Workbook

Sheet START
A1: =muni -> LIM355 Lepelle-Nkumpi

Sheet Instructions
D2: 2020
X4: Yes
X5: No
W7: Type of Entities Range: | X7: Parent Municipality
X8: Consolidated Information
W10: Date linked | X10: 8
W11: Date | X11: =VLOOKUP(X10,W39:X55,2) -> M08 February | Y11: 2013-08-01
W19: MTREF Range: | X19: 2008
X20: 2009
X21: 2010
X22: 2011
X23: 2012
X24: 2013
X25: 2014
X26: 2015
X27: 2016
X28: 2017
X29: 2018
X30: 2019
X31: 2020
X32: 2021
X33: 2022
W34: MTREF Linked:
W35: MTREF: | X35: 13
X36: =INDEX(X19:X33,X35,1) -> 2020
W37: Fin Year:
X38: =MTREF&"/"&RIGHT(MTREF,2)+1 -> 2020/21
V39: Date/type of report | W39: 1 | X39: M01 July
W40: 2 | X40: M02 August
W41: 3 | X41: M03 September
W42: 4 | X42: M04 October
W43: 5 | X43: M05 November
W44: 6 | X44: M06 December
W45: 7 | X45: M07 January
W46: 8 | X46: M08 February
W47: 9 | X47: M09 March
W48: 10 | X48: M10 April
W49: 11 | X49: M11 May
W50: 12 | X50: M12 June
W51: 13 | X51: Q1 First Quarter
W52: 14 | X52: Q2 Second Quarter
W53: 15 | X53: Q3 Third Quarter
W54: 16 | X54: Q4 Fourth Quarter
W55: 17 | X55: Mid-Year Assessment

Sheet Template names (hidden)
A1: Common sheet headings
A2: Head1 | B2: =HLOOKUP(MTREF,Headings,2) -> 2019/20 | C2: Prior year -1
A3: Head2 | B3: =HLOOKUP(MTREF,Headings,5) -> Budget Year 2020/21 | C3: Year of approved budget
A4: Head2A | B4: =HLOOKUP(MTREF,Headings,4) -> 2020/21 | C4: Approved budget year
A5: Head3 | B5: =HLOOKUP(MTREF,Headings,3) -> 2020/21 Medium Term Revenue & Expenditure Framework | C5: MTREF header name
A6: Head5 | B6: Audited Outcome
A7: Head5A | B7: Outcome
A8: Head5B | B8: Pre-audit outcome
A9: Head6 | B9: Original Budget
A10: Head7 | B10: Adjusted Budget
A11: Head8 | B11: Full Year Forecast
A12: Head9 | B12: =HLOOKUP(MTREF,Headings,5) -> Budget Year 2020/21 | C12: 1st year of MTREF | D12: Year1
A13: Head10 | B13: =HLOOKUP(MTREF,Headings,6) -> Budget Year +1 2021/22 | C13: 2nd year of MTREF | D13: Year2
A14: Head11 | B14: =HLOOKUP(MTREF,Headings,7) -> Budget Year +2 2022/23 | C14: 3rd year of MTREF | D14: Year3
A15: Head12 | B15: Forecast 2010/11 | D15: Year4
A16: Head13 | B16: Forecast 2011/12 | D16: Year5
A17: Head14 | B17: Forecast 2012/13 | D17: Year6
A18: Head15 | B18: Forecast 2013/14 | D18: Year7
A19: Head16 | B19: Forecast 2014/15 | D19: Year8
A20: Head17 | B20: Forecast 2015/16 | D20: Year9
A21: Head18 | B21: Forecast 2016/17 | D21: Year10
A22: Head19 | B22: Forecast 2017/18 | D22: Year11
A23: Head20 | B23: Forecast 2018/19 | D23: Year12
A24: Head21 | B24: Forecast 2019/20 | D24: Year13
A25: Head22 | B25: Forecast 2020/21 | D25: Year14
A26: Head23 | B26: Forecast 2021/22 | D26: Year15
A27: Head24 | B27: Description | D27: Desc
A28: Head25 | B28: Schedule of funding diligence | D28: fdil
A29: Head26 | B29: Vote Description | D29: VDesc
A30: Head27 | B30: Ref
A31: Head27a | B31: References
A32: Head28 | B32: Surplus/ (Deficit) for the year | D32: Result
A33: Head29 | B33: Annual target 2007/08
A34: Head30 | B34: Revised target 2007/08
A35: Head31 | B35: Quarter ended 30 September
A36: Head32 | B36: Quarter ended 31 December
A37: Head33 | B37: Quarter ended 31 March
A38: Head34 | B38: Quarter ended 30 June
A39: Head35 | B39: Variance explanation
A40: Head36 | B40: YTD Actual 31 Dec
A41: Head37 | B41: YTD Budget 31 Dec
A42: Head38 | B42: Monthly actual
A43: Head39 | B43: YearTD actual
A44: Head40 | B44: YearTD budget
A45: Head41 | B45: YTD variance
A46: Head42 | B46: Surplus/ (Deficit) for the yr/period
A47: Head43 | B47: =Head3&" Summary" -> 2020/21 Medium Term Revenue & Expenditure Framework Summary
A48: Head44 | B48: 1996 Census
A49: Head45 | B49: 2001 Census
A50: Head46 | B50: - Adjustments Budget - Month YYYY
A51: Head47 | B51: Previous target year to complete
A52: Head48 | B52: Present value
A53: Head49 | B53: Virement
A54: Head50 | B54: Other Adjusts.
A55: Head51 | B55: Accum. Funds
A56: Head52 | B56: Multi-year capital
A57: Head53 | B57: Unfore. Unavoid.
A58: Head54 | B58: Prior Adjusted
A59: Head55 | B59: Nat. or Prov. Govt
A60: Head56 | B60: Total Adjusts.
A61: Head57 | B61: =date -> M08 February
A62: Head58 | B62: Parent muni.
A63: Head59 | B63: Downward adjusts
A64: Head60 | B64: Month | C64: Report header part name | D64: =MONTH(date) -> 
A65: SFPerf1 | B65: Budgeted Financial Performance
A66: SFPerf2 | B66: Forecast Financial Performance
A67: SFPos1 | B67: Budgeted Financial Position
A68: SFPos2 | B68: Forecast Financial Position
A69: Cash1 | B69: Budget Cash Flow
A70: Cash2 | B70: Forecast Cash Flow
A71: RandM | B71: Expenditure includes repairs & maintenance of R'000
A72: Standard nomenclature
A73: Muni | B73: ='Lookup and lists'!B27 -> LIM355 Lepelle-Nkumpi
A74: Municipal Entities | B74: 2 | C74: Type of report: | D74: 1
A75: =IF((MuniEntities=1)*(MuniType=2),"YES","NO") -> NO | B75: Does this municipality have entities (consolidated budget and entity budgets required)? YES/NO
A76: s71 (Monthly Mayor report) schedules and charts
A77: S71sum | B77: =IF(Consolques="YES",E77,F77) -> Table C1 Monthly Budget Statement Summary | D77: Table C1 | E77: =D77&"Consolidated Monthly Budget Statement Summary" -> Table C1 Consolidated Monthly Budget Statement Summary | F77: =D77&"Monthly Budget Statement Summary" -> Table C1 Monthly Budget Statement Summary
A78: S71C | B78: Table C3 Monthly Budget Statement - Financial Performance (revenue and expenditure by municipal vote) | D78: Table C3 | E78: =D78&"Consolidated Monthly Budget Statement - Financial Performance (revenue and expenditure by municipal vote) " -> Table C3 Consolidated Monthly Budget Statement - Financial Performance (revenue and expenditure by municipal vote) | F78: =D78&"Monthly Budget Statement - Financial Performance (revenue and expenditure by municipal vote)" -> Table C3 Monthly Budget Statement - Financial Performance (revenue and expenditure by municipal vote)
A79: S71A | B79: =IF(Consolques="YES",E79,F79) -> Table C2 Monthly Budget Statement - Financial Performance (functional classification) | D79: Table C2 | E79: =D79&"Consolidated Monthly Budget Statement - Financial Performance (functional classification) " -> Table C2 Consolidated Monthly Budget Statement - Financial Performance (functional classification) | F79: =D79&"Monthly Budget Statement - Financial Performance (functional classification)" -> Table C2 Monthly Budget Statement - Financial Performance (functional classification)
A80: S71B | B80: =IF(Consolques="YES",E80,F80) -> Table C4 Monthly Budget Statement - Financial Performance (revenue and expenditure) | D80: Table C4 | E80: =D80&"Consolidated Monthly Budget Statement - Financial Performance (revenue and expenditure) " -> Table C4 Consolidated Monthly Budget Statement - Financial Performance (revenue and expenditure) | F80: =D80&"Monthly Budget Statement - Financial Performance (revenue and expenditure)" -> Table C4 Monthly Budget Statement - Financial Performance (revenue and expenditure)
A81: S71D | B81: =IF(Consolques="YES",E81,F81) -> Table C5 Monthly Budget Statement - Capital Expenditure (municipal vote, functional classification and funding) | D81: Table C5 | E81: =D81&"Consolidated Monthly Budget Statement - Capital Expenditure (municipal vote, functional classification and funding " -> Table C5 Consolidated Monthly Budget Statement - Capital Expenditure (municipal vote, functional classification and funding | F81: =D81&"Monthly Budget Statement - Capital Expenditure (municipal vote, functional classification and funding)" -> Table C5 Monthly Budget Statement - Capital Expenditure (municipal vote, functional classification and funding)
A82: S71E | B82: Table C6 Monthly Budget Statement - Financial Position | D82: Table C6 | E82: =D82&"Consolidated Monthly Budget Statement - Financial Position " -> Table C6 Consolidated Monthly Budget Statement - Financial Position | F82: =D82&"Monthly Budget Statement - Financial Position" -> Table C6 Monthly Budget Statement - Financial Position
A83: S71F | B83: Table C7 Monthly Budget Statement - Cash Flow | D83: Table C7 | E83: =D83&"Consolidated Monthly Budget Statement - Cash Flow " -> Table C7 Consolidated Monthly Budget Statement - Cash Flow | F83: =D83&"Monthly Budget Statement - Cash Flow " -> Table C7 Monthly Budget Statement - Cash Flow
A84: S71G | B84: =D84&"Material variance explanations " -> Supporting Table SC1 Material variance explanations | D84: Supporting Table SC1
A85: S71H | B85: =D85&"Monthly Budget Statement - performance indicators " -> Supporting Table SC2 Monthly Budget Statement - performance indicators | D85: Supporting Table SC2
A86: S71I | B86: =D86&"Monthly Budget Statement - aged debtors" -> Supporting Table SC3 Monthly Budget Statement - aged debtors | D86: Supporting Table SC3
A87: S71J | B87: =D87&"Monthly Budget Statement - aged creditors " -> Supporting Table SC4 Monthly Budget Statement - aged creditors | D87: Supporting Table SC4
A88: S71K | B88: =D88&"Monthly Budget Statement - investment portfolio " -> Supporting Table SC5 Monthly Budget Statement - investment portfolio | D88: Supporting Table SC5
A89: S71L | B89: =D89&"Monthly Budget Statement - transfers and grant receipts " -> Supporting Table SC6 Monthly Budget Statement - transfers and grant receipts | D89: Supporting Table SC6
A90: S71M | B90: =D90&" Monthly Budget Statement - transfers and grant expenditure " -> Supporting Table SC7(1) Monthly Budget Statement - transfers and grant expenditure | D90: Supporting Table SC7(1)
A91: S71N | B91: =D91&"Monthly Budget Statement - councillor and staff benefits " -> Supporting Table SC8 Monthly Budget Statement - councillor and staff benefits | D91: Supporting Table SC8
A92: S71O | B92: =D92&"Monthly Budget Statement - actuals and revised targets for cash receipts" -> Supporting Table SC9 Monthly Budget Statement - actuals and revised targets for cash receipts | D92: Supporting Table SC9
A93: S71P | B93: =IF(Consolques="YES",E93,F93) -> NOT REQUIRED - municipality does not have entities or this is the parent municipality's budget | D93: Supporting Table SC10 | E93: =D93&"Monthly Budget Statement - Parent Municipality Financial Performance (revenue and expenditure) " -> Supporting Table SC10 Monthly Budget Statement - Parent Municipality Financial Performance (revenue and expenditure) | F93: NOT REQUIRED - municipality does not have entities or this is the parent municipality's budget
A94: S71Q | B94: NOT REQUIRED - municipality does not have entities or this is the parent municipality's budget | D94: Supporting Table SC11 | E94: =D94&"Monthly Budget Statement - summary of municipal entities" -> Supporting Table SC11 Monthly Budget Statement - summary of municipal entities | F94: NOT REQUIRED - municipality does not have entities or this is the parent municipality's budget
A95: S71R | B95: Supporting Table SC12 Monthly Budget Statement - capital expenditure trend | D95: Supporting Table SC12 | E95: =D95&"Consolidated Monthly Budget Statement - capital expenditure trend " -> Supporting Table SC12 Consolidated Monthly Budget Statement - capital expenditure trend | F95: =D95&"Monthly Budget Statement - capital expenditure trend" -> Supporting Table SC12 Monthly Budget Statement - capital expenditure trend
A96: S71Sa | B96: Supporting Table SC13a Monthly Budget Statement - capital expenditure on new assets by asset class | D96: Supporting Table SC13a | E96: =D96&"Consolidated Monthly Budget Statement - capital expenditure on new assets by asset class" -> Supporting Table SC13a Consolidated Monthly Budget Statement - capital expenditure on new assets by asset class | F96: =D96&"Monthly Budget Statement - capital expenditure on new assets by asset class" -> Supporting Table SC13a Monthly Budget Statement - capital expenditure on new assets by asset class
A97: S71Sb | B97: Supporting Table SC13b Monthly Budget Statement - capital expenditure on renewal of existing assets by asset class | D97: Supporting Table SC13b | E97: =D97&"Consolidated Monthly Budget Statement - capital expenditure on renewal of existing assets by asset class" -> Supporting Table SC13b Consolidated Monthly Budget Statement - capital expenditure on renewal of existing assets by asset class | F97: =D97&"Monthly Budget Statement - capital expenditure on renewal of existing assets by asset class" -> Supporting Table SC13b Monthly Budget Statement - capital expenditure on renewal of existing assets by asset class
A98: S71Sc | B98: Supporting Table SC13c Monthly Budget Statement - expenditure on repairs and maintenance by asset class | D98: Supporting Table SC13c | E98: =D98&"Consolidated Monthly Budget Statement - expenditure on repairs and maintenance by asset class" -> Supporting Table SC13c Consolidated Monthly Budget Statement - expenditure on repairs and maintenance by asset class | F98: =D98&"Monthly Budget Statement - expenditure on repairs and maintenance by asset class" -> Supporting Table SC13c Monthly Budget Statement - expenditure on repairs and maintenance by asset class
A99: S71Sd | B99: Supporting Table SC13d Monthly Budget Statement - depreciation by asset class | D99: Supporting Table SC13d | E99: =D99&"Consolidated Monthly Budget Statement - depreciation by asset class" -> Supporting Table SC13d Consolidated Monthly Budget Statement - depreciation by asset class | F99: =D99&"Monthly Budget Statement - depreciation by asset class" -> Supporting Table SC13d Monthly Budget Statement - depreciation by asset class
A100: S71Se | B100: =IF(Consolques="YES",E100,F100) -> Supporting Table SC13e Monthly Budget Statement - capital expenditure on upgrading of existing assets by asset class | D100: Supporting Table SC13e | E100: =D100&"Consolidated Monthly Budget Statement - capital expenditure on upgrading of existing assets by asset class" -> Supporting Table SC13e Consolidated Monthly Budget Statement - capital expenditure on upgrading of existing assets by asset class | F100: =D100&"Monthly Budget Statement - capital expenditure on upgrading of existing assets by asset class" -> Supporting Table SC13e Monthly Budget Statement - capital expenditure on upgrading of existing assets by asset class
B101: s71 charts listing
B102: =D102&Head2A&" Capital Expenditure Monthly Trend: actual v target" -> Chart C1 2020/21 Capital Expenditure Monthly Trend: actual v target | D102: Chart C1
B103: =D103&Head2A&" Capital Expenditure: YTD actual v YTD target" -> Chart C2 2020/21 Capital Expenditure: YTD actual v YTD target | D103: Chart C2
B104: =D104&"Aged Consumer Debtors Analysis" -> Chart C3 Aged Consumer Debtors Analysis | D104: Chart C3
B105: =D105&"Consumer Debtors (total by Debtor Customer Category)" -> Chart C4 Consumer Debtors (total by Debtor Customer Category) | D105: Chart C4
B106: =D106&"Aged Creditors Analysis" -> Chart C5 Aged Creditors Analysis | D106: Chart C5
A107: S71T | B107: =D107&" Monthly Budget Statement - Expenditure against approved rollovers" -> Supporting Table SC7(2) Monthly Budget Statement - Expenditure against approved rollovers | D107: Supporting Table SC7(2)

Sheet Lookup and lists (hidden)
A1: Description | B1: 2007 | C1: 2008 | D1: 2009 | E1: 2010 | F1: 2011 | G1: 2012 | H1: 2013 | I1: 2014 | J1: 2015 | K1: 2016 | L1: 2017 | M1: 2018 | N1: 2019 | O1: 2020 | Q1: Grants: | R1: National - opex | S1: Provincial - opex | T1: National - capex | U1: Provincial - capex | V1: YESNO
A2: ='Template names'!C2 -> Prior year -1 | B2: 2006/07 | C2: 2007/08 | D2: 2008/09 | E2: =E1-1&"/"&RIGHT(E1,2)-0 -> 2009/10 | F2: =F1-1&"/"&RIGHT(F1,2)-0 -> 2010/11 | G2: 2011/12 | H2: 2012/13 | I2: 2013/14 | J2: 2014/15 | K2: 2015/16 | L2: 2016/17 | M2: 2017/18 | N2: 2018/19 | O2: 2019/20 | R2: Local Government Equitable Share | S2: Health subsidy | T2: Municipal Infrastructure Grant (MIG) | U2: Agriculture | V2: Yes
A3: ='Template names'!C5 -> MTREF header name | B3: 2007/08 Medium Term Revenue & Expenditure Framework | C3: 2008/09 Medium Term Revenue & Expenditure Framework | D3: 2009/10 Medium Term Revenue & Expenditure Framework | E3: =E1&"/"&RIGHT(E1,2)+1&" Medium Term Revenue & Expenditure Framework" -> 2010/11 Medium Term Revenue & Expenditure Framework | F3: =F1&"/"&RIGHT(F1,2)+1&" Medium Term Revenue & Expenditure Framework" -> 2011/12 Medium Term Revenue & Expenditure Framework | G3: 2012/13 Medium Term Revenue & Expenditure Framework | H3: 2013/14 Medium Term Revenue & Expenditure Framework | I3: 2014/15 Medium Term Revenue & Expenditure Framework | J3: 2015/16 Medium Term Revenue & Expenditure Framework | K3: 2016/17 Medium Term Revenue & Expenditure Framework | L3: 2017/18 Medium Term Revenue & Expenditure Framework | M3: 2018/19 Medium Term Revenue & Expenditure Framework | N3: 2019/20 Medium Term Revenue & Expenditure Framework | O3: 2020/21 Medium Term Revenue & Expenditure Framework | R3: RSC Levy Replacement | S3: Ambulance subsidy | T3: Public Transport and Systems | U3: Education | V3: No
A4: ='Template names'!C4 -> Approved budget year | B4: 2007/08 | C4: 2008/09 | D4: 2009/10 | E4: =E1&"/"&RIGHT(E1,2)+1 -> 2010/11 | F4: =F1&"/"&RIGHT(F1,2)+1 -> 2011/12 | G4: 2012/13 | H4: 2013/14 | I4: 2014/15 | J4: 2015/16 | K4: 2016/17 | L4: 2017/18 | M4: 2018/19 | N4: 2019/20 | O4: 2020/21 | R4: Finance Management | S4: Housing | T4: Rural Transport Services and Infrastructure | U4: Health
A5: ='Template names'!C12 -> 1st year of MTREF | B5: Budget Year 2007/08 | C5: Budget Year 2008/09 | D5: Budget Year 2009/10 | E5: ="Budget Year "&E1&"/"&RIGHT(E1,2)+1 -> Budget Year 2010/11 | F5: ="Budget Year "&F1&"/"&RIGHT(F1,2)+1 -> Budget Year 2011/12 | G5: Budget Year 2012/13 | H5: Budget Year 2013/14 | I5: Budget Year 2014/15 | J5: Budget Year 2015/16 | K5: Budget Year 2016/17 | L5: Budget Year 2017/18 | M5: Budget Year 2018/19 | N5: Budget Year 2019/20 | O5: Budget Year 2020/21 | R5: Municipal Systems Improvement | S5: Sport and Recreation | T5: Regional Bulk Infrastructure | U5: Housing and Local Government
A6: ='Template names'!C13 -> 2nd year of MTREF | B6: Budget Year +1 2008/09 | C6: Budget Year +1 2009/10 | D6: Budget Year +1 2010/11 | E6: ="Budget Year +1 "&E1+1&"/"&RIGHT(E1,2)+2 -> Budget Year +1 2011/12 | F6: ="Budget Year +1 "&F1+1&"/"&RIGHT(F1,2)+2 -> Budget Year +1 2012/13 | G6: Budget Year +1 2013/14 | H6: Budget Year +1 2014/15 | I6: Budget Year +1 2015/16 | J6: Budget Year +1 2016/17 | K6: Budget Year +1 2017/18 | L6: Budget Year +1 2018/19 | M6: Budget Year +1 2019/20 | N6: Budget Year +1 2020/21 | O6: Budget Year +1 2021/22 | R6: Water Services Operating Subsidy | T6: Rural Households Infrastructure | U6: Other Departments
A7: ='Template names'!C14 -> 3rd year of MTREF | B7: Budget Year +2 2009/10 | C7: Budget Year +2 2010/11 | D7: Budget Year +2 2011/12 | E7: ="Budget Year +2 "&E1+2&"/"&RIGHT(E1,2)+3 -> Budget Year +2 2012/13 | F7: ="Budget Year +2 "&F1+2&"/"&RIGHT(F1,2)+3 -> Budget Year +2 2013/14 | G7: Budget Year +2 2014/15 | H7: Budget Year +2 2015/16 | I7: Budget Year +2 2016/17 | J7: Budget Year +2 2017/18 | K7: Budget Year +2 2018/19 | L7: Budget Year +2 2019/20 | M7: Budget Year +2 2020/21 | N7: Budget Year +2 2021/22 | O7: Budget Year +2 2022/23 | R7: Energy Efficiency and Demand Management | T7: Neighbourhood Development Partnership | U7: Public Works, Roads, Transport
A8: NOTE: This sheet should not be directly amended - select headings from sheet 'S' | R8: Integrated National Electrification Programme | T8: 2010 FIFA World Cup Stadiums Development | U8: Sport and Recreation
R9: Municipal Drought Relief
R10: 2010 FIFA World Cup Operating
R11: Electricity Demand Side Management
R12: EPWP Incentive
A26: Name link | B26: 143
A27: Name of Muni | B27: =INDEX(B28:B311,B26,1) -> LIM355 Lepelle-Nkumpi
B28: Choose name from list | C28: Set name on 'Instructions' sheet
B29: BUF Buffalo City | C29: EC EASTERN CAPE
B30: NMA Nelson Mandela Bay | C30: EC EASTERN CAPE
B31: EC101 Dr Beyers Naude | C31: EC EASTERN CAPE
B32: EC102 Blue Crane Route | C32: EC EASTERN CAPE
B33: EC104 Makana | C33: EC EASTERN CAPE
B34: EC105 Ndlambe | C34: EC EASTERN CAPE
B35: EC106 Sundays River Valley | C35: EC EASTERN CAPE
B36: EC108 Kouga | C36: EC EASTERN CAPE
B37: EC109 Kou-Kamma | C37: EC EASTERN CAPE
B38: DC10 Sarah Baartman | C38: EC EASTERN CAPE
B39: EC121 Mbhashe | C39: EC EASTERN CAPE
B40: EC122 Mnquma | C40: EC EASTERN CAPE
B41: EC123 Great Kei | C41: EC EASTERN CAPE
B42: EC124 Amahlathi | C42: EC EASTERN CAPE
B43: EC126 Ngqushwa | C43: EC EASTERN CAPE
B44: EC129 Raymond Mhlaba | C44: EC EASTERN CAPE
B45: DC12 Amathole | C45: EC EASTERN CAPE
B46: EC131 Inxuba Yethemba | C46: EC EASTERN CAPE
B47: EC135 Intsika Yethu | C47: EC EASTERN CAPE
B48: EC136 Emalahleni (Ec) | C48: EC EASTERN CAPE
B49: EC137 Engcobo | C49: EC EASTERN CAPE
B50: EC138 Sakhisizwe | C50: EC EASTERN CAPE
B51: EC139 Enoch Mgijima | C51: EC EASTERN CAPE
B52: DC13 Chris Hani | C52: EC EASTERN CAPE
B53: EC141 Elundini | C53: EC EASTERN CAPE
B54: EC142 Senqu | C54: EC EASTERN CAPE
B55: EC145 Walter Sisulu | C55: EC EASTERN CAPE
B56: DC14 Joe Gqabi | C56: EC EASTERN CAPE
B57: EC153 Ngquza Hills | C57: EC EASTERN CAPE
B58: EC154 Port St Johns | C58: EC EASTERN CAPE
B59: EC155 Nyandeni | C59: EC EASTERN CAPE
B60: EC156 Mhlontlo | C60: EC EASTERN CAPE
B61: EC157 King Sabata Dalindyebo | C61: EC EASTERN CAPE
B62: DC15 O .R. Tambo | C62: EC EASTERN CAPE
B63: EC441 Matatiele | C63: EC EASTERN CAPE
B64: EC442 Umzimvubu | C64: EC EASTERN CAPE
B65: EC443 Mbizana | C65: EC EASTERN CAPE
B66: EC444 Ntabankulu | C66: EC EASTERN CAPE
B67: DC44 Alfred Nzo | C67: EC EASTERN CAPE
B68: MAN Mangaung | C68: FS FREE STATE
B69: FS161 Letsemeng | C69: FS FREE STATE
B70: FS162 Kopanong | C70: FS FREE STATE
B71: FS163 Mohokare | C71: FS FREE STATE
B72: DC16 Xhariep | C72: FS FREE STATE
B73: FS181 Masilonyana | C73: FS FREE STATE
B74: FS182 Tokologo | C74: FS FREE STATE
B75: FS183 Tswelopele | C75: FS FREE STATE
B76: FS184 Matjhabeng | C76: FS FREE STATE
B77: FS185 Nala | C77: FS FREE STATE
B78: DC18 Lejweleputswa | C78: FS FREE STATE
B79: FS191 Setsoto | C79: FS FREE STATE
B80: FS192 Dihlabeng | C80: FS FREE STATE
B81: FS193 Nketoana | C81: FS FREE STATE
B82: FS194 Maluti-a-Phofung | C82: FS FREE STATE
B83: FS195 Phumelela | C83: FS FREE STATE
B84: FS196 Mantsopa | C84: FS FREE STATE
B85: DC19 Thabo Mofutsanyana | C85: FS FREE STATE
B86: FS201 Moqhaka | C86: FS FREE STATE
B87: FS203 Ngwathe | C87: FS FREE STATE
B88: FS204 Metsimaholo | C88: FS FREE STATE
B89: FS205 Mafube | C89: FS FREE STATE
B90: DC20 Fezile Dabi | C90: FS FREE STATE
B91: EKU City of Ekurhuleni | C91: GT GAUTENG
B92: JHB City Of Johannesburg | C92: GT GAUTENG
B93: TSH City Of Tshwane | C93: GT GAUTENG
B94: GT421 Emfuleni | C94: GT GAUTENG
B95: GT422 Midvaal | C95: GT GAUTENG
B96: GT423 Lesedi | C96: GT GAUTENG
B97: DC42 Sedibeng | C97: GT GAUTENG
B98: GT481 Mogale City | C98: GT GAUTENG
B99: GT484 Merafong City | C99: GT GAUTENG
B100: GT485 Rand West City | C100: GT GAUTENG
B101: DC48 West Rand | C101: GT GAUTENG
B102: ETH eThekwini | C102: KZN KWAZULU-NATAL
B103: KZN212 Umdoni | C103: KZN KWAZULU-NATAL
B104: KZN213 Umzumbe | C104: KZN KWAZULU-NATAL
B105: KZN214 uMuziwabantu | C105: KZN KWAZULU-NATAL
B106: KZN216 Ray Nkonyeni | C106: KZN KWAZULU-NATAL
B107: DC21 Ugu | C107: KZN KWAZULU-NATAL
B108: KZN221 uMshwathi | C108: KZN KWAZULU-NATAL
B109: KZN222 uMngeni | C109: KZN KWAZULU-NATAL
B110: KZN223 Mpofana | C110: KZN KWAZULU-NATAL
B111: KZN224 Impendle | C111: KZN KWAZULU-NATAL
B112: KZN225 Msunduzi | C112: KZN KWAZULU-NATAL
B113: KZN226 Mkhambathini | C113: KZN KWAZULU-NATAL
B114: KZN227 Richmond | C114: KZN KWAZULU-NATAL
B115: DC22 uMgungundlovu | C115: KZN KWAZULU-NATAL
B116: KZN235 Okhahlamba | C116: KZN KWAZULU-NATAL
B117: KZN237 Inkosi Langalibalele | C117: KZN KWAZULU-NATAL
B118: KZN238 Alfred Duma | C118: KZN KWAZULU-NATAL
B119: DC23 Uthukela | C119: KZN KWAZULU-NATAL
B120: KZN241 Endumeni | C120: KZN KWAZULU-NATAL
B121: KZN242 Nquthu | C121: KZN KWAZULU-NATAL
B122: KZN244 Msinga | C122: KZN KWAZULU-NATAL
B123: KZN245 Umvoti | C123: KZN KWAZULU-NATAL
B124: DC24 Umzinyathi | C124: KZN KWAZULU-NATAL
B125: KZN252 Newcastle | C125: KZN KWAZULU-NATAL
B126: KZN253 Emadlangeni | C126: KZN KWAZULU-NATAL
B127: KZN254 Dannhauser | C127: KZN KWAZULU-NATAL
B128: DC25 Amajuba | C128: KZN KWAZULU-NATAL
B129: KZN261 eDumbe | C129: KZN KWAZULU-NATAL
B130: KZN262 uPhongolo | C130: KZN KWAZULU-NATAL
B131: KZN263 Abaqulusi | C131: KZN KWAZULU-NATAL
B132: KZN265 Nongoma | C132: KZN KWAZULU-NATAL
B133: KZN266 Ulundi | C133: KZN KWAZULU-NATAL
B134: DC26 Zululand | C134: KZN KWAZULU-NATAL
B135: KZN271 Umhlabuyalingana | C135: KZN KWAZULU-NATAL
B136: KZN272 Jozini | C136: KZN KWAZULU-NATAL
B137: KZN275 Mtubatuba | C137: KZN KWAZULU-NATAL
B138: KZN276 Hlabisa Big Five | C138: KZN KWAZULU-NATAL
B139: DC27 Umkhanyakude | C139: KZN KWAZULU-NATAL
B140: KZN281 Mfolozi | C140: KZN KWAZULU-NATAL
B141: KZN282 uMhlathuze | C141: KZN KWAZULU-NATAL
B142: KZN284 uMlalazi | C142: KZN KWAZULU-NATAL
B143: KZN285 Mthonjaneni | C143: KZN KWAZULU-NATAL
B144: KZN286 Nkandla | C144: KZN KWAZULU-NATAL
B145: DC28 King Cetshwayo | C145: KZN KWAZULU-NATAL
B146: KZN291 Mandeni | C146: KZN KWAZULU-NATAL
B147: KZN292 KwaDukuza | C147: KZN KWAZULU-NATAL
B148: KZN293 Ndwedwe | C148: KZN KWAZULU-NATAL
B149: KZN294 Maphumulo | C149: KZN KWAZULU-NATAL
B150: DC29 iLembe | C150: KZN KWAZULU-NATAL
B151: KZN433 Greater Kokstad | C151: KZN KWAZULU-NATAL
B152: KZN434 Ubuhlebezwe | C152: KZN KWAZULU-NATAL
B153: KZN435 Umzimkhulu | C153: KZN KWAZULU-NATAL
B154: KZN436 Dr Nkosazana Dlamini Zuma | C154: KZN KWAZULU-NATAL
B155: DC43 Harry Gwala | C155: KZN KWAZULU-NATAL
B156: LIM331 Greater Giyani | C156: LIM LIMPOPO
B157: LIM332 Greater Letaba | C157: LIM LIMPOPO
B158: LIM333 Greater Tzaneen | C158: LIM LIMPOPO
B159: LIM334 Ba-Phalaborwa | C159: LIM LIMPOPO
B160: LIM335 Maruleng | C160: LIM LIMPOPO
B161: DC33 Mopani | C161: LIM LIMPOPO
B162: LIM341 Musina | C162: LIM LIMPOPO
B163: LIM343 Thulamela | C163: LIM LIMPOPO
B164: LIM344 Makhado | C164: LIM LIMPOPO
B165: LIM345 Collins Chabane | C165: LIM LIMPOPO
B166: DC34 Vhembe | C166: LIM LIMPOPO
B167: LIM351 Blouberg | C167: LIM LIMPOPO
B168: LIM353 Molemole | C168: LIM LIMPOPO
B169: LIM354 Polokwane | C169: LIM LIMPOPO
B170: LIM355 Lepelle-Nkumpi | C170: LIM LIMPOPO
B171: DC35 Capricorn | C171: LIM LIMPOPO
B172: LIM361 Thabazimbi | C172: LIM LIMPOPO
B173: LIM362 Lephalale | C173: LIM LIMPOPO
B174: LIM366 Bela Bela | C174: LIM LIMPOPO
B175: LIM367 Mogalakwena | C175: LIM LIMPOPO
B176: LIM368 Modimolle-Mookgopong | C176: LIM LIMPOPO
B177: DC36 Waterberg | C177: LIM LIMPOPO
B178: LIM471 Ephraim Mogale | C178: LIM LIMPOPO
B179: LIM472 Elias Motsoaledi | C179: LIM LIMPOPO
B180: LIM473 Makhuduthamaga | C180: LIM LIMPOPO
B181: LIM476 Tubatse Fetakgomo | C181: LIM LIMPOPO
B182: DC47 Sekhukhune | C182: LIM LIMPOPO
B183: MP301 Albert Luthuli | C183: MP MPUMALANGA
B184: MP302 Msukaligwa | C184: MP MPUMALANGA
B185: MP303 Mkhondo | C185: MP MPUMALANGA
B186: MP304 Pixley Ka Seme (MP) | C186: MP MPUMALANGA
B187: MP305 Lekwa | C187: MP MPUMALANGA
B188: MP306 Dipaleseng | C188: MP MPUMALANGA
B189: MP307 Govan Mbeki | C189: MP MPUMALANGA
B190: DC30 Gert Sibande | C190: MP MPUMALANGA
B191: MP311 Victor Khanye | C191: MP MPUMALANGA
B192: MP312 Emalahleni (Mp) | C192: MP MPUMALANGA
B193: MP313 Steve Tshwete | C193: MP MPUMALANGA
B194: MP314 Emakhazeni | C194: MP MPUMALANGA
B195: MP315 Thembisile Hani | C195: MP MPUMALANGA
B196: MP316 Dr J.S. Moroka | C196: MP MPUMALANGA
B197: DC31 Nkangala | C197: MP MPUMALANGA
B198: MP321 Thaba Chweu | C198: MP MPUMALANGA
B199: MP324 Nkomazi | C199: MP MPUMALANGA
B200: MP325 Bushbuckridge | C200: MP MPUMALANGA
B201: MP326 City of Mbombela | C201: MP MPUMALANGA
B202: DC32 Ehlanzeni | C202: MP MPUMALANGA
B203: NC451 Joe Morolong | C203: NC NORTHERN CAPE
B204: NC452 Ga-Segonyana | C204: NC NORTHERN CAPE
B205: NC453 Gamagara | C205: NC NORTHERN CAPE
B206: DC45 John Taolo Gaetsewe | C206: NC NORTHERN CAPE
B207: NC061 Richtersveld | C207: NC NORTHERN CAPE
B208: NC062 Nama Khoi | C208: NC NORTHERN CAPE
B209: NC064 Kamiesberg | C209: NC NORTHERN CAPE
B210: NC065 Hantam | C210: NC NORTHERN CAPE
B211: NC066 Karoo Hoogland | C211: NC NORTHERN CAPE
B212: NC067 Khai-Ma | C212: NC NORTHERN CAPE
B213: DC6 Namakwa | C213: NC NORTHERN CAPE
... 73 more rows

Sheet Org structure
A1: Organisational Structure Votes | C1: Organisational Structure Sub-Votes | E1: Display Sub-Votes
A2: =B2&" - "&C2 -> Vote 01 - Executive & Council | B2: Vote 01 | C2: Executive & Council
A3: =B5&" - "&C5 -> Vote 02 - Municipal Manager | B3: 01.1 | C3: Mayor & Councillors | D3: =CONCATENATE(B3, " - ", C3) -> 01.1 - Mayor & Councillors | E3: 01.1 - Mayor & Councillors
A4: =B11&" - "&C11 -> Vote 03 - Corporate Services | B4: 01.2 | C4: Mayor & Council Support | D4: =CONCATENATE(B4, " - ", C4) -> 01.2 - Mayor & Council Support | E4: 01.2 - Mayor & Council Support
A5: =B19&" - "&C19 -> Vote 04 - Budget And Treasury | B5: Vote 02 | C5: Municipal Manager
A6: =B26&" - "&C26 -> Vote 05 - Community Services | B6: 02.1 | C6: Municipal Manager | D6: =CONCATENATE(B6, " - ", C6) -> 02.1 - Municipal Manager | E6: 02.1 - Municipal Manager
A7: =B35&" - "&C35 -> Vote 06 - Planning And Development | B7: 02.2 | C7: Municipal Manager Support | D7: =CONCATENATE(B7, " - ", C7) -> 02.2 - Municipal Manager Support | E7: 02.2 - Municipal Manager Support
A8: =B44&" - "&C44 -> Vote 07 - Infrastructure Development | B8: 02.3 | C8: Internal Audit | D8: =CONCATENATE(B8, " - ", C8) -> 02.3 - Internal Audit | E8: 02.3 - Internal Audit
A9: =B49&" - "&C49 -> Vote 08 - | B9: 02.4 | C9: Communications | D9: =CONCATENATE(B9, " - ", C9) -> 02.4 - Communications | E9: 02.4 - Communications
A10: Vote 09 - | B10: 02.5 | C10: Risk Management | D10: =CONCATENATE(B10, " - ", C10) -> 02.5 - Risk Management | E10: 02.5 - Risk Management
A11: Vote 10 - | B11: Vote 03 | C11: Corporate Services
A12: Vote 11 - | B12: 03.1 | C12: Executive Manager: Corporate Services | D12: =CONCATENATE(B12, " - ", C12) -> 03.1 - Executive Manager: Corporate Services | E12: 03.1 - Executive Manager: Corporate Services
A13: Vote 12 - | B13: 03.2 | C13: Human Resource Management & Development | D13: 03.2 - Human Resource Management & Development | E13: 03.2 - Human Resource Management & Development
A14: Vote 13 - | B14: 03.3 | C14: Information Technology | D14: 03.3 - Information Technology | E14: 03.3 - Information Technology
A15: Vote 14 - | B15: 03.4 | C15: Legal Services | D15: 03.4 - Legal Services | E15: 03.4 - Legal Services
A16: Vote 15 - Other | B16: 03.5 | C16: Gen Adm_Sec_Fleet: General Administrat | D16: 03.5 - Gen Adm_Sec_Fleet: General Administrat | E16: 03.5 - Gen Adm_Sec_Fleet: General Administrat
B17: 03.6 | C17: Gen Adm_Sec_Fleet: Security Services | D17: 03.6 - Gen Adm_Sec_Fleet: Security Services | E17: 03.6 - Gen Adm_Sec_Fleet: Security Services
B18: 03.7 | C18: Gen Adm_Sec_Fleet: Fleet Management | D18: 03.7 - Gen Adm_Sec_Fleet: Fleet Management | E18: 03.7 - Gen Adm_Sec_Fleet: Fleet Management
B19: Vote 04 | C19: Budget And Treasury
B20: 04.1 | C20: Chief Financial Officer | D20: =CONCATENATE(B20, " - ", C20) -> 04.1 - Chief Financial Officer | E20: 04.1 - Chief Financial Officer
B21: 04.2 | C21: Budget Planning & Management | D21: 04.2 - Budget Planning & Management | E21: 04.2 - Budget Planning & Management
B22: 04.3 | C22: Expenditure Management | D22: 04.3 - Expenditure Management | E22: 04.3 - Expenditure Management
B23: 04.4 | C23: Revenue Management | D23: 04.4 - Revenue Management | E23: 04.4 - Revenue Management
B24: 04.5 | C24: Asset Management | D24: 04.5 - Asset Management | E24: 04.5 - Asset Management
B25: 04.6 | C25: Supply Chain Management | D25: 04.6 - Supply Chain Management | E25: 04.6 - Supply Chain Management
B26: Vote 05 | C26: Community Services
B27: 05.1 | C27: Executive Manager: Community Services | D27: =CONCATENATE(B27, " - ", C27) -> 05.1 - Executive Manager: Community Services | E27: 05.1 - Executive Manager: Community Services
B28: 05.2 | C28: Waste Management Services | D28: 05.2 - Waste Management Services | E28: 05.2 - Waste Management Services
B29: 05.3 | C29: Road Traffic & Law Enforce: Traffic Serv | D29: 05.3 - Road Traffic & Law Enforce: Traffic Serv | E29: 05.3 - Road Traffic & Law Enforce: Traffic Serv
B30: 05.4 | C30: Road Traffic&Law Enforce: Licencing Serv | D30: 05.4 - Road Traffic&Law Enforce: Licencing Serv | E30: 05.4 - Road Traffic&Law Enforce: Licencing Serv
B31: 05.5 | C31: Road Traffic&Law Enforce: Pound | D31: 05.5 - Road Traffic&Law Enforce: Pound | E31: 05.5 - Road Traffic&Law Enforce: Pound
B32: 05.6 | C32: Institutional & Social Dev Management | D32: 05.6 - Institutional & Social Dev Management | E32: 05.6 - Institutional & Social Dev Management
B33: 05.7 | C33: Libraries And Archives | D33: 05.7 - Libraries And Archives | E33: 05.7 - Libraries And Archives
B34: 05.8 | C34: Community Halls And Facilities | D34: 05.8 - Community Halls And Facilities | E34: 05.8 - Community Halls And Facilities
B35: Vote 06 | C35: Planning And Development
B36: 06.1 | C36: Executive Manager:Planning & Development | D36: =CONCATENATE(B36, " - ", C36) -> 06.1 - Executive Manager:Planning & Development | E36: 06.1 - Executive Manager:Planning & Development
B37: 06.2 | C37: Economic Development & Planning | D37: 06.2 - Economic Development & Planning | E37: 06.2 - Economic Development & Planning
B38: 06.3 | C38: Development & Town Planning | D38: 06.3 - Development & Town Planning | E38: 06.3 - Development & Town Planning
B39: 06.4 | C39: Property Management & Housing | D39: 06.4 - Property Management & Housing | E39: 06.4 - Property Management & Housing
B40: 06.5 | C40: Integrated Development Planning | D40: 06.5 - Integrated Development Planning | E40: 06.5 - Integrated Development Planning
B41: 06.6 | C41: Performance Management | D41: 06.6 - Performance Management | E41: 06.6 - Performance Management
B42: 06.7 | C42: Environmental Management Services | D42: 06.7 - Environmental Management Services | E42: 06.7 - Environmental Management Services
B43: 06.8 | C43: Disaster Management | D43: 06.8 - Disaster Management | E43: 06.8 - Disaster Management
B44: Vote 07 | C44: Infrastructure Development
B45: 07.1 | C45: Executive Manager: Infrastructure Dev | D45: =CONCATENATE(B45, " - ", C45) -> 07.1 - Executive Manager: Infrastructure Dev | E45: 07.1 - Executive Manager: Infrastructure Dev
B46: 07.2 | C46: Road Construction & Maintenance | D46: =CONCATENATE(B46, " - ", C46) -> 07.2 - Road Construction & Maintenance | E46: 07.2 - Road Construction & Maintenance
B47: 07.3 | C47: Electrical & Mechanical Works | D47: =CONCATENATE(B47, " - ", C47) -> 07.3 - Electrical & Mechanical Works | E47: 07.3 - Electrical & Mechanical Works
B48: 07.4 | C48: Project Management | D48: =CONCATENATE(B48, " - ", C48) -> 07.4 - Project Management | E48: 07.4 - Project Management
B49: Vote 08
B50: Vote 09
B51: Vote 10
B52: Vote 11
B53: Vote 12
B54: Vote 13
B55: Vote 14
B56: Vote 15 | C56: Other

Sheet Contacts
A1: =muni&" - "&" Contact Information" -> LIM355 Lepelle-Nkumpi - Contact Information
A3: A. GENERAL INFORMATION
A4: Municipality | B4: =muni -> LIM355 Lepelle-Nkumpi | C4: Set name on 'Instructions' sheet
A6: Grade | B6: 5 | C6: 1 Grade in terms of the Remuneration of Public Office Bearers Act.
A8: Province | B8: =IF(B4>" ",VLOOKUP(B4,'Lookup and lists'!B28:C311,2, FALSE)," ") -> LIM LIMPOPO
A10: Web Address | B10: www.council.gov.za
A12: e-mail Address
A14: B. CONTACT INFORMATION
A15: Postal address:
A16: P.O. Box | B16: Private Bag x 07
A17: City / Town | B17: Chuenespoort
A18: Postal Code | B18: 745
A20: Street address
A21: Building | B21: Civic Centre
A22: Street No. & Name | B22: 170 BA
A23: City / Town | B23: Lebowakgomo
A24: Postal Code | B24: 737
A26: General Contacts
A27: Telephone number | B27: 015 633 4500
A28: Fax number | B28: 015 633 6896
A30: C. POLITICAL LEADERSHIP
A31: Speaker: | C31: Secretary/PA to the Speaker:
A32: ID Number | B32: 7209075567081 | C32: ID Number | D32: 7309240363083
A33: Title | B33: Mr | C33: Title | D33: Ms
A34: Name | B34: Cllr Barnard Phukuwe Ntsoane | C34: Name | D34: Jeanette Ramatsobane Mphahlele
A35: Telephone number | B35: 015 633 4525 | C35: Telephone number | D35: 015 633 4525
A36: Cell number | B36: 063 495 9777 | C36: Cell number | D36: "0724985740
A37: Fax number | B37: 015 633 6896 | C37: Fax number | D37: 015 633 6896
A38: E-mail address | B38: phukuwe.ntsoane@lepelle-nkumpi.gov.za | C38: E-mail address | D38: jeanette.mphahlel@lepelle-nkumpi.gov.za
A40: Mayor/Executive Mayor: | C40: Secretary/PA to the Mayor/Executive Mayor:
A41: ID Number | B41: "6806060319088 | C41: ID Number | D41: 8809211020082
A42: Title | B42: Ms | C42: Title | D42: Ms
A43: Name | B43: MM Molala | C43: Name | D43: Lebogang Kekana
A44: Telephone number | B44: 015 633 4520 | C44: Telephone number | D44: "015 633 4518
A45: Cell number | B45: "0711042289 | C45: Cell number | D45: "0714800336
A46: Fax number | B46: 015 633 6896 | C46: Fax number | D46: 015 633 6896
A47: E-mail address | B47: merriam.molala@lepelle-nkumpi.gov.za | C47: E-mail address | D47: lebogang.kekana@lepelle-nkumpi.gov.za
A49: Deputy Mayor/Executive Mayor: | C49: Secretary/PA to the Deputy Mayor/Executive Mayor:
A50: ID Number | C50: ID Number
A51: Title | C51: Title
A52: Name | C52: Name
A53: Telephone number | C53: Telephone number
A54: Cell number | C54: Cell number
A55: Fax number | C55: Fax number
A56: E-mail address | C56: E-mail address
A58: D. MANAGEMENT LEADERSHIP
A59: Municipal Manager: | C59: Secretary/PA to the Municipal Manager:
A60: ID Number | B60: 7905075438088 | C60: ID Number | D60: "8110230738089
A61: Title | B61: Mr | C61: Title | D61: Ms
A62: Name | B62: LA Gafane | C62: Name | D62: Lekgau Theresho
A63: Telephone number | B63: 015 633 4508 | C63: Telephone number | D63: 015 633 4508
A64: Cell number | B64: 079 503 5000 | C64: Cell number | D64: 082 371 9768
A65: Fax number | B65: 015 633 6896 | C65: Fax number | D65: 015 633 6896
A66: E-mail address | B66: tebogo.gafane@lepelle-nkumpi.gov.za | C66: E-mail address | D66: theresho.lekgau@lepelle-nkumpi.gov.za
A68: Chief Financial Officer | C68: Secretary/PA to the Chief Financial Officer
A69: ID Number | C69: ID Number | D69: "8706271296083
A70: Title | B70: Ms | C70: Title | D70: Ms
A71: Name | B71: Mankga KG | C71: Name | D71: Agnes Lehomo
A72: Telephone number | B72: "015 633 4520 | C72: Telephone number | D72: "0156334537
A73: Cell number | B73: "064 538 6703 | C73: Cell number | D73: "071 371 9977
A74: Fax number | B74: 015 633 6896 | C74: Fax number | D74: 015 633 6896
A75: E-mail address | B75: khomotjo.mankga@lepelle-nkumpi.gov.za | C75: E-mail address | D75: agnes.lehomo@lepelle-nkumpi.gov.za
A77: Official responsible for submitting financial information | C77: Official responsible for submitting financial information
A78: ID Number | B78: "7809210399082 | C78: ID Number | D78: "7311295313088
A79: Title | B79: Mrs | C79: Title | D79: Mr
A80: Name | B80: Daphney Moema | C80: Name | D80: Mokgalo Maribe
A81: Telephone number | B81: 015 633 4503 | C81: Telephone number | D81: 015 633 4513
A82: Cell number | B82: 071 416 1345 | C82: Cell number | D82: 072 308 8189
A83: Fax number | B83: 015 633 6896 | C83: Fax number | D83: 015 633 6896
A84: E-mail address | B84: daphney.moroaswi@lepelle-nkumpi.gov.za | C84: E-mail address | D84: mokgalo.maribe@lepelle-nkumpi.gov.za
A85: Official responsible for submitting financial information | C85: Official responsible for submitting financial information
A86: ID Number | B86: "8801131131081 | C86: ID Number
A87: Title | B87: Mrs | C87: Title
A88: Name | B88: Kwena Moila | C88: Name
A89: Telephone number | B89: 015 633 4513 | C89: Telephone number
A90: Cell number | B90: "060 528 2863 | C90: Cell number
A91: Fax number | B91: 015 633 4513 | C91: Fax number
A92: E-mail address | B92: kwena.seshoka@lepelle-nkumpi.gov.za | C92: E-mail address
A93: Official responsible for submitting financial information | C93: Official responsible for submitting financial information
A94: ID Number | C94: ID Number
A95: Title | C95: Title
A96: Name | C96: Name
A97: Telephone number | C97: Telephone number
A98: Cell number | C98: Cell number
A99: Fax number | C99: Fax number
A100: E-mail address | C100: E-mail address
A101: Official responsible for submitting financial information | C101: Official responsible for submitting financial information
A102: ID Number | C102: ID Number
A103: Title | C103: Title
A104: Name | C104: Name
A105: Telephone number | C105: Telephone number
A106: Cell number | C106: Cell number
A107: Fax number | C107: Fax number
A108: E-mail address | C108: E-mail address
A109: Official responsible for submitting financial information | C109: Official responsible for submitting financial information
A110: ID Number | C110: ID Number
A111: Title | C111: Title
A112: Name | C112: Name
A113: Telephone number | C113: Telephone number
A114: Cell number | C114: Cell number
A115: Fax number | C115: Fax number
A116: E-mail address | C116: E-mail address
A117: Official responsible for submitting financial information | C117: Official responsible for submitting financial information
A118: ID Number | C118: ID Number
A119: Title | C119: Title
A120: Name | C120: Name
A121: Telephone number | C121: Telephone number
A122: Cell number | C122: Cell number
A123: Fax number | C123: Fax number
A124: E-mail address | C124: E-mail address
A125: Official responsible for submitting financial information | C125: Official responsible for submitting financial information
A126: ID Number | C126: ID Number
A127: Title | C127: Title
A128: Name | C128: Name
A129: Telephone number | C129: Telephone number
A130: Cell number | C130: Cell number
A131: Fax number | C131: Fax number
A132: E-mail address | C132: E-mail address
A133: Official responsible for submitting financial information
A134: ID Number
A135: Title
A136: Name
A137: Telephone number
A138: Cell number
A139: Fax number
A140: E-mail address

Sheet C1-Sum
A1: =muni& " - "&s71sum& " - "&date -> LIM355 Lepelle-Nkumpi - Table C1 Monthly Budget Statement Summary - M08 February
A2: =desc -> Description | B2: =Head1 -> 2019/20 | C2: =Head2 -> Budget Year 2020/21
B3: =Head5 -> Audited Outcome | C3: =Head6 -> Original Budget | D3: =Head7 -> Adjusted Budget | E3: =Head38 -> Monthly actual | F3: =Head39 -> YearTD actual | G3: =Head40 -> YearTD budget | H3: =Head41 -> YTD variance | I3: =Head41 -> YTD variance | J3: =Head8 -> Full Year Forecast
A4: R thousands | I4: %
A5: Financial Performance
A6: Property rates | B6: =SUM('C4-FinPerf RE'!C6:C6) -> 8369863.77 | C6: =SUM('C4-FinPerf RE'!D6:D6) -> 31568339 | D6: =SUM('C4-FinPerf RE'!E6:E6) -> 31568339 | E6: =SUM('C4-FinPerf RE'!F6:F6) -> 2616808.89 | F6: =SUM('C4-FinPerf RE'!G6:G6) -> 20934180.62 | G6: =SUM('C4-FinPerf RE'!H6:H6) -> 21045544 | H6: =F6-G6 -> -111363.38 | I6: =IF(H6=0,"",H6/G6) -> -0.005291542001 | J6: =SUM('C4-FinPerf RE'!K6:K6) -> 31568339
A7: Service charges | B7: =SUM('C4-FinPerf RE'!C7:C10) -> 23065489.82 | C7: =SUM('C4-FinPerf RE'!D7:D10) -> 6271577 | D7: =SUM('C4-FinPerf RE'!E7:E10) -> 6539437 | E7: =SUM('C4-FinPerf RE'!F7:F10) -> 6092860.11 | F7: =SUM('C4-FinPerf RE'!G7:G10) -> 51507892.95 | G7: =SUM('C4-FinPerf RE'!H7:H10) -> 4234620 | H7: =F7-G7 -> 47273272.95 | I7: =IF(H7=0,"",H7/G7) -> 11.16352186 | J7: =SUM('C4-FinPerf RE'!K7:K10) -> 6539437
A8: Investment revenue | B8: ='C4-FinPerf RE'!C13 -> 1202955.64 | C8: ='C4-FinPerf RE'!D13 -> 7505491 | D8: ='C4-FinPerf RE'!E13 -> 7505491 | E8: ='C4-FinPerf RE'!F13 -> 198622.24 | F8: ='C4-FinPerf RE'!G13 -> 1141689.27 | G8: ='C4-FinPerf RE'!H13 -> 5003664 | H8: =F8-G8 -> -3861974.73 | I8: =IF(H8=0,"",H8/G8) -> -0.7718293495 | J8: ='C4-FinPerf RE'!K13 -> 7505491
A9: Transfers and subsidies | B9: ='C4-FinPerf RE'!C19 -> 105855612.7 | C9: ='C4-FinPerf RE'!D19 -> 269853000 | D9: ='C4-FinPerf RE'!E19 -> 323118898 | E9: ='C4-FinPerf RE'!F19 -> 851175.27 | F9: ='C4-FinPerf RE'!G19 -> 254225195.4 | G9: ='C4-FinPerf RE'!H19 -> 211581579 | H9: =F9-G9 -> 42643616.38 | I9: =IF(H9=0,"",H9/G9) -> 0.2015469238 | J9: ='C4-FinPerf RE'!K19 -> 323118898
A10: Other own revenue | B10: ='C4-FinPerf RE'!C12+'C4-FinPerf RE'!C14+'C4-FinPerf RE'!C15+'C4-FinPerf RE'!C16+'C4-FinPerf RE'!C17+'C4-FinPerf RE'!C18+'C4-FinPerf RE'!C20+'C4-FinPerf RE'!C21 -> 4652584.03 | C10: ='C4-FinPerf RE'!D12+'C4-FinPerf RE'!D14+'C4-FinPerf RE'!D15+'C4-FinPerf RE'!D16+'C4-FinPerf RE'!D17+'C4-FinPerf RE'!D18+'C4-FinPerf RE'!D20+'C4-FinPerf RE'!D21 -> 75555720 | D10: ='C4-FinPerf RE'!E12+'C4-FinPerf RE'!E14+'C4-FinPerf RE'!E15+'C4-FinPerf RE'!E16+'C4-FinPerf RE'!E17+'C4-FinPerf RE'!E18+'C4-FinPerf RE'!E20+'C4-FinPerf RE'!E21 -> 71904544 | E10: ='C4-FinPerf RE'!F12+'C4-FinPerf RE'!F14+'C4-FinPerf RE'!F15+'C4-FinPerf RE'!F16+'C4-FinPerf RE'!F17+'C4-FinPerf RE'!F18+'C4-FinPerf RE'!F20+'C4-FinPerf RE'!F21 -> 4966100.24 | F10: ='C4-FinPerf RE'!G12+'C4-FinPerf RE'!G14+'C4-FinPerf RE'!G15+'C4-FinPerf RE'!G16+'C4-FinPerf RE'!G17+'C4-FinPerf RE'!G18+'C4-FinPerf RE'!G20+'C4-FinPerf RE'!G21 -> 40174314.23 | G10: ='C4-FinPerf RE'!H12+'C4-FinPerf RE'!H14+'C4-FinPerf RE'!H15+'C4-FinPerf RE'!H16+'C4-FinPerf RE'!H17+'C4-FinPerf RE'!H18+'C4-FinPerf RE'!H20+'C4-FinPerf RE'!H21 -> 49640281 | H10: =F10-G10 -> -9465966.77 | I10: =IF(H10=0,"",H10/G10) -> -0.1906912406 | J10: ='C4-FinPerf RE'!K12+'C4-FinPerf RE'!K14+'C4-FinPerf RE'!K15+'C4-FinPerf RE'!K16+'C4-FinPerf RE'!K17+'C4-FinPerf RE'!K18+'C4-FinPerf RE'!K20+'C4-FinPerf RE'!K21 -> 71904544
A11: Total Revenue (excluding capital transfers and contributions) | B11: =SUM(B6:B10) -> 143146505.9 | C11: 390754127 | D11: 440636709 | E11: 14725566.75 | F11: 367983272.5 | G11: 291505688 | H11: =F11-G11 -> 76477584.45 | I11: =IF(H11=0,"",H11/G11) -> 0.262353661 | J11: 440636709
A12: Employee costs | B12: ='C4-FinPerf RE'!C25 -> 25927135.45 | C12: ='C4-FinPerf RE'!D25 -> 117854345 | D12: ='C4-FinPerf RE'!E25 -> 113807212 | E12: ='C4-FinPerf RE'!F25 -> 7986009.19 | F12: ='C4-FinPerf RE'!G25 -> 64747073.22 | G12: ='C4-FinPerf RE'!H25 -> 80052485 | H12: -15305411.78 | I12: -0.1911922132 | J12: ='C4-FinPerf RE'!K25 -> 113807212
A13: Remuneration of Councillors | B13: ='C4-FinPerf RE'!C26 -> 3605569.71 | C13: ='C4-FinPerf RE'!D26 -> 23639490 | D13: ='C4-FinPerf RE'!E26 -> 23639472 | E13: ='C4-FinPerf RE'!F26 -> 1872613.37 | F13: ='C4-FinPerf RE'!G26 -> 15141785.04 | G13: ='C4-FinPerf RE'!H26 -> 15759653 | H13: -617867.96 | I13: -0.03920568302 | J13: ='C4-FinPerf RE'!K26 -> 23639472
A14: Depreciation & asset impairment | B14: ='C4-FinPerf RE'!C28 -> 13577.88 | C14: ='C4-FinPerf RE'!D28 -> 32261244 | D14: ='C4-FinPerf RE'!E28 -> 32261244 | E14: ='C4-FinPerf RE'!F28 -> 2447456.92 | F14: ='C4-FinPerf RE'!G28 -> 19577822.15 | G14: ='C4-FinPerf RE'!H28 -> 21507488 | H14: -1929665.85 | I14: -0.08972065217 | J14: ='C4-FinPerf RE'!K28 -> 32261244
A15: Finance charges | B15: ='C4-FinPerf RE'!C29 -> 0 | C15: ='C4-FinPerf RE'!D29 -> 141075 | D15: ='C4-FinPerf RE'!E29 -> 141075 | E15: ='C4-FinPerf RE'!F29 -> 0 | F15: ='C4-FinPerf RE'!G29 -> 0 | G15: ='C4-FinPerf RE'!H29 -> 94048 | H15: -94048 | I15: -1 | J15: ='C4-FinPerf RE'!K29 -> 141075
A16: Materials and bulk purchases | B16: =SUM('C4-FinPerf RE'!C30:C31) -> 1214498 | C16: =SUM('C4-FinPerf RE'!D30:D31) -> 3765094 | D16: =SUM('C4-FinPerf RE'!E30:E31) -> 4926250 | E16: =SUM('C4-FinPerf RE'!F30:F31) -> 7264.14 | F16: =SUM('C4-FinPerf RE'!G30:G31) -> 329251.01 | G16: =SUM('C4-FinPerf RE'!H30:H31) -> 3082296 | H16: -2753044.99 | I16: -0.8931799509 | J16: =SUM('C4-FinPerf RE'!K30:K31) -> 4926250
A17: Transfers and subsidies | B17: ='C4-FinPerf RE'!C33 -> 0 | C17: ='C4-FinPerf RE'!D33 -> 0 | D17: ='C4-FinPerf RE'!E33 -> 0 | E17: ='C4-FinPerf RE'!F33 -> 0 | F17: ='C4-FinPerf RE'!G33 -> 0 | G17: ='C4-FinPerf RE'!H33 -> 0 | H17: 0 | J17: ='C4-FinPerf RE'!K33 -> 0
A18: Other expenditure | B18: ='C4-FinPerf RE'!C36-SUM('C1-Sum'!B12:B17) -> 16547043.5 | C18: ='C4-FinPerf RE'!D36-SUM('C1-Sum'!C12:C17) -> 132144629 | D18: ='C4-FinPerf RE'!E36-SUM('C1-Sum'!D12:D17) -> 172662650 | E18: ='C4-FinPerf RE'!F36-SUM('C1-Sum'!E12:E17) -> 4241749.45 | F18: ='C4-FinPerf RE'!G36-SUM('C1-Sum'!F12:F17) -> 56184984.23 | G18: ='C4-FinPerf RE'!H36-SUM('C1-Sum'!G12:G17) -> 103986068 | H18: -47801083.77 | I18: -0.4596873859 | J18: ='C4-FinPerf RE'!K36-SUM('C1-Sum'!J12:J17) -> 172662650
A19: Total Expenditure | B19: =SUM(B12:B18) -> 47307824.54 | C19: 309805877 | D19: 347437903 | E19: 16555093.07 | F19: 155980915.6 | G19: 224482038 | H19: -68501122.35 | I19: -0.3051519086 | J19: =SUM(J12:J18) -> 347437903
A20: Surplus/(Deficit) | B20: =B11-B19 -> 95838681.4 | C20: 80948250 | D20: 93198806 | E20: -1829526.32 | F20: 212002356.8 | G20: 67023650 | H20: 144978706.8 | I20: 2.163097754 | J20: =J11-J19 -> 93198806
A21: ='C4-FinPerf RE'!A39 -> Transfers and subsidies - capital (monetary allocations) (National / Provincial and District) | B21: ='C4-FinPerf RE'!C39 -> 3983727.73 | C21: ='C4-FinPerf RE'!D39 -> 53720000 | D21: ='C4-FinPerf RE'!E39 -> 69887541 | E21: ='C4-FinPerf RE'!F39 -> 5500363.59 | F21: ='C4-FinPerf RE'!G39 -> 12341792.03 | G21: ='C4-FinPerf RE'!H39 -> 39046844 | H21: -26705051.97 | I21: -0.6839234426 | J21: ='C4-FinPerf RE'!K39 -> 69887541
A22: ='C4-FinPerf RE'!A40&" & "&'C4-FinPerf RE'!A41 -> Transfers and subsidies - capital (monetary allocations) (National / Provincial Departmental Agencies, Households, Non-profit Institutions, Private Enterprises, Public Corporatons, Higher Educational Institutions) & Transfers and subsidies - capital (in-kind - all) | B22: =SUM('C4-FinPerf RE'!C40:C41) -> 0 | C22: =SUM('C4-FinPerf RE'!D40:D41) -> 0 | D22: =SUM('C4-FinPerf RE'!E40:E41) -> 0 | E22: =SUM('C4-FinPerf RE'!F40:F41) -> 0 | F22: =SUM('C4-FinPerf RE'!G40:G41) -> 0 | G22: =SUM('C4-FinPerf RE'!H40:H41) -> 0 | H22: 0 | J22: =SUM('C4-FinPerf RE'!K40:K41) -> 0
A23: Surplus/(Deficit) after capital transfers & contributions | B23: =B20+B21+B22 -> 99822409.13 | C23: 134668250 | D23: 163086347 | E23: 3670837.27 | F23: 224344148.8 | G23: 106070494 | H23: 118273654.8 | I23: 1.115047648 | J23: =J20+J21+J22 -> 163086347
A24: Share of surplus/ (deficit) of associate | B24: ='C4-FinPerf RE'!C47 -> 0 | C24: ='C4-FinPerf RE'!D47 -> 0 | D24: ='C4-FinPerf RE'!E47 -> 0 | E24: ='C4-FinPerf RE'!F47 -> 0 | F24: ='C4-FinPerf RE'!G47 -> 0 | G24: ='C4-FinPerf RE'!H47 -> 0 | H24: 0 | J24: ='C4-FinPerf RE'!K47 -> 0
A25: Surplus/ (Deficit) for the year | B25: =B23+B24 -> 99822409.13 | C25: 134668250 | D25: 163086347 | E25: 3670837.27 | F25: 224344148.8 | G25: 106070494 | H25: 118273654.8 | I25: 1.115047648 | J25: =J23+J24 -> 163086347
A27: Capital expenditure & funds sources
A28: Capital expenditure | B28: ='C5-Capex'!C40 -> 13767567.82 | C28: ='C5-Capex'!D40 -> 134668250 | D28: ='C5-Capex'!E40 -> 164519790 | E28: ='C5-Capex'!F40 -> 1777210.5 | F28: ='C5-Capex'!G40 -> 22436038.92 | G28: ='C5-Capex'!H40 -> 106357164 | H28: =F28-G28 -> -83921125.08 | I28: =IF(H28=0,"",H28/G28) -> -0.7890500454 | J28: ='C5-Capex'!K40 -> 164519790
A29: Capital transfers recognised | B29: ='C5-Capex'!C70 -> 8736597.37 | C29: ='C5-Capex'!D70 -> 54318250 | D29: ='C5-Capex'!E70 -> 67648073 | E29: ='C5-Capex'!F70 -> 3494138.8 | F29: ='C5-Capex'!G70 -> 9884046.35 | G29: ='C5-Capex'!H70 -> 37578140 | H29: -27694093.65 | I29: -0.7369735077 | J29: ='C5-Capex'!K70 -> 67648073
A31: Borrowing | B31: ='C5-Capex'!C72 -> 0 | C31: ='C5-Capex'!D72 -> 0 | D31: ='C5-Capex'!E72 -> 0 | E31: ='C5-Capex'!F72 -> 0 | F31: ='C5-Capex'!G72 -> 0 | G31: ='C5-Capex'!H72 -> 0 | H31: 0 | J31: ='C5-Capex'!K72 -> 0
A32: Internally generated funds | B32: ='C5-Capex'!C73 -> 5030970.45 | C32: ='C5-Capex'!D73 -> 80350000 | D32: ='C5-Capex'!E73 -> 96871717 | E32: ='C5-Capex'!F73 -> -1716928.3 | F32: ='C5-Capex'!G73 -> 12551992.57 | G32: ='C5-Capex'!H73 -> 68779024 | H32: -56227031.43 | I32: -0.817502607 | J32: ='C5-Capex'!K73 -> 96871717
A33: Total sources of capital funds | B33: =+B29+B31+B32 -> 13767567.82 | C33: 134668250 | D33: 164519790 | E33: 1777210.5 | F33: 22436038.92 | G33: 106357164 | H33: -83921125.08 | I33: -0.7890500454 | J33: =+J29+J31+J32 -> 164519790
A35: Financial position
A36: Total current assets | B36: ='C6-FinPos'!C13 -> 104634109.1 | C36: ='C6-FinPos'!D13 -> 271110196 | D36: ='C6-FinPos'!E13 -> 523054355 | F36: ='C6-FinPos'!F13 -> 408402932 | J36: ='C6-FinPos'!G13 -> 523054355
A37: Total non current assets | B37: ='C6-FinPos'!C25 -> 13767567.82 | C37: ='C6-FinPos'!D25 -> 837346338 | D37: ='C6-FinPos'!E25 -> 867197878 | F37: ='C6-FinPos'!F25 -> 1051662343 | J37: ='C6-FinPos'!G25 -> 867197878
A38: Total current liabilities | B38: ='C6-FinPos'!C35 -> 18717977.87 | C38: ='C6-FinPos'!D35 -> 69136150 | D38: ='C6-FinPos'!E35 -> 69136150 | F38: ='C6-FinPos'!F35 -> 169562844.7 | J38: ='C6-FinPos'!G35 -> 69136150
A39: Total non current liabilities | B39: ='C6-FinPos'!C40 -> 0 | C39: ='C6-FinPos'!D40 -> 14246863 | D39: ='C6-FinPos'!E40 -> 14246863 | F39: ='C6-FinPos'!F40 -> 238138.31 | J39: ='C6-FinPos'!G40 -> 14246863
A40: Community wealth/Equity | B40: ='C6-FinPos'!C48 -> -138710.1 | C40: ='C6-FinPos'!D48 -> 890405271 | D40: ='C6-FinPos'!E48 -> 1000994177 | F40: ='C6-FinPos'!F48 -> 1434878391 | J40: ='C6-FinPos'!G48 -> 1000994177
A42: Cash flows
A43: Net cash from (used) operating | B43: ='C7-CFlow'!C18 -> 0 | C43: ='C7-CFlow'!D18 -> 305807865 | D43: ='C7-CFlow'!E18 -> 305807865 | E43: ='C7-CFlow'!F18 -> 20781431.34 | F43: ='C7-CFlow'!G18 -> 453756660.1 | G43: ='C7-CFlow'!H18 -> 203871896 | H43: =G43-F43 -> -249884764.1 | I43: =IF(H43=0,"",H43/G43) -> -1.225695003 | J43: ='C7-CFlow'!K18 -> 305807865
A44: Net cash from (used) investing | B44: ='C7-CFlow'!C28 -> 0 | C44: ='C7-CFlow'!D28 -> -134668250 | D44: ='C7-CFlow'!E28 -> -134668250 | E44: ='C7-CFlow'!F28 -> -1777210.5 | F44: ='C7-CFlow'!G28 -> 127563961.1 | G44: ='C7-CFlow'!H28 -> -89778728 | H44: =G44-F44 -> -217342689.1 | I44: =IF(H44=0,"",H44/G44) -> 2.420870666 | J44: ='C7-CFlow'!K28 -> -134668250
A45: Net cash from (used) financing | B45: ='C7-CFlow'!C37 -> 5000 | C45: ='C7-CFlow'!D37 -> -1891836 | D45: ='C7-CFlow'!E37 -> 0 | E45: ='C7-CFlow'!F37 -> 0 | F45: ='C7-CFlow'!G37 -> -2113252.13 | G45: ='C7-CFlow'!H37 -> -1257896 | H45: =G45-F45 -> 855356.13 | I45: =IF(H45=0,"",H45/G45) -> -0.679989546 | J45: ='C7-CFlow'!K37 -> -1886836
A46: Cash/cash equivalents at the month/year end | B46: ='C7-CFlow'!C41 -> 5160 | C46: ='C7-CFlow'!D41 -> 174677946 | D46: ='C7-CFlow'!E41 -> 340737545 | E46: ='C7-CFlow'!F41 -> 0 | F46: ='C7-CFlow'!G41 -> 697155936.6 | G46: ='C7-CFlow'!H41 -> 112835272 | H46: =G46-F46 -> -584320664.6 | I46: =IF(H46=0,"",H46/G46) -> -5.178528435 | J46: ='C7-CFlow'!K41 -> 169252779
A48: Debtors & creditors analysis | B48: ='SC3'!C3 -> 0-30 Days | C48: ='SC3'!D3 -> 31-60 Days | D48: ='SC3'!E3 -> 61-90 Days | E48: ='SC3'!F3 -> 91-120 Days | F48: ='SC3'!G3 -> 121-150 Dys | G48: ='SC3'!H3 -> 151-180 Dys | H48: ='SC3'!I3 -> 181 Dys-1 Yr | I48: ='SC3'!J3 -> Over 1Yr | J48: Total
A49: =LEFT('SC3'!A4,20) -> Debtors Age Analysis
A50: ='SC3'!A14 -> Total By Income Source | B50: ='SC3'!C14 -> 0 | C50: ='SC3'!D14 -> 0 | D50: ='SC3'!E14 -> 0 | E50: ='SC3'!F14 -> 0 | F50: ='SC3'!G14 -> 0 | G50: ='SC3'!H14 -> 0 | H50: ='SC3'!I14 -> 0 | I50: ='SC3'!J14 -> 0 | J50: ='SC3'!K14 -> 0
A51: =LEFT('SC4'!A5,22) -> Creditors Age Analysis
A52: Total Creditors | B52: ='SC4'!C15 -> 0 | C52: ='SC4'!D15 -> 0 | D52: ='SC4'!E15 -> 0 | E52: ='SC4'!F15 -> 0 | F52: ='SC4'!G15 -> 0 | G52: ='SC4'!H15 -> 0 | H52: ='SC4'!I15 -> 0 | I52: ='SC4'!J15 -> 0 | J52: ='SC4'!K15 -> 0

Sheet C2-FinPerf SC
A1: =muni& " - "&S71A& " - "&date -> LIM355 Lepelle-Nkumpi - Table C2 Monthly Budget Statement - Financial Performance (functional classification) - M08 February
A2: =desc -> Description | B2: =head27 -> Ref | C2: =Head1 -> 2019/20 | D2: =Head2 -> Budget Year 2020/21
C3: =Head5 -> Audited Outcome | D3: =Head6 -> Original Budget | E3: =Head7 -> Adjusted Budget | F3: =Head38 -> Monthly actual | G3: =Head39 -> YearTD actual | H3: =Head40 -> YearTD budget | I3: =Head41 -> YTD variance | J3: =Head41 -> YTD variance | K3: =Head8 -> Full Year Forecast
A4: R thousands | B4: 1 | J4: %
A5: Revenue - Functional
A6: Governance and administration | C6: =SUM(C7:C9) -> 117989986.5 | D6: 364554477 | E6: 417111807 | F6: 4526083.47 | G6: 288328086 | H6: 274574195 | I6: =G6-H6 -> 13753891.01 | J6: =IF(I6=0,"",I6/H6) -> 0.05009171022 | K6: =SUM(K7:K9) -> 417111807
A7: Executive and council | C7: ='C2C'!C7 -> 0 | D7: ='C2C'!D7 -> 0 | E7: ='C2C'!E7 -> 0 | F7: ='C2C'!F7 -> 0 | G7: ='C2C'!G7 -> 0 | H7: ='C2C'!H7 -> 0 | I7: 0 | J7: =IF(I7=0,"",I7/H7) ->  | K7: ='C2C'!K7 -> 0
A8: Finance and administration | C8: ='C2C'!C10 -> 117989986.5 | D8: ='C2C'!D10 -> 364554477 | E8: ='C2C'!E10 -> 417111807 | F8: ='C2C'!F10 -> 4526083.47 | G8: ='C2C'!G10 -> 288328086 | H8: ='C2C'!H10 -> 274574195 | I8: 13753891.01 | J8: 0.05009171022 | K8: ='C2C'!K10 -> 417111807
A9: Internal audit | C9: ='C2C'!C24 -> 0 | D9: ='C2C'!D24 -> 0 | E9: ='C2C'!E24 -> 0 | F9: ='C2C'!F24 -> 0 | G9: ='C2C'!G24 -> 0 | H9: ='C2C'!H24 -> 0 | I9: 0 | K9: ='C2C'!K24 -> 0
A10: Community and public safety | C10: =SUM(C11:C15) -> -1295749.75 | D10: 2768785 | E10: 4430735 | F10: 11015 | G10: 692326.51 | H10: 2178248 | I10: -1485921.49 | J10: -0.6821635966 | K10: =SUM(K11:K15) -> 4430735
A11: Community and social services | C11: ='C2C'!C27 -> 41217.36 | D11: ='C2C'!D27 -> 135689 | E11: ='C2C'!E27 -> 337135 | F11: ='C2C'!F27 -> 0 | G11: ='C2C'!G27 -> 17800.33 | H11: ='C2C'!H27 -> 130746 | I11: -112945.67 | J11: -0.8638556438 | K11: ='C2C'!K27 -> 337135
A12: Sport and recreation | C12: ='C2C'!C49 -> 0 | D12: ='C2C'!D49 -> 0 | E12: ='C2C'!E49 -> 0 | F12: ='C2C'!F49 -> 0 | G12: ='C2C'!G49 -> 0 | H12: ='C2C'!H49 -> 0 | I12: 0 | K12: ='C2C'!K49 -> 0
A13: Public safety | C13: ='C2C'!C55 -> -1336967.11 | D13: ='C2C'!D55 -> 2633096 | E13: ='C2C'!E55 -> 4093600 | F13: ='C2C'!F55 -> 11015 | G13: ='C2C'!G55 -> 674526.18 | H13: ='C2C'!H55 -> 2047502 | I13: -1372975.82 | J13: -0.670561406 | K13: ='C2C'!K55 -> 4093600
A14: Housing | C14: ='C2C'!C64 -> 0 | D14: ='C2C'!D64 -> 0 | E14: ='C2C'!E64 -> 0 | F14: ='C2C'!F64 -> 0 | G14: ='C2C'!G64 -> 0 | H14: ='C2C'!H64 -> 0 | I14: =G14-H14 -> 0 | J14: =IF(I14=0,"",I14/H14) ->  | K14: ='C2C'!K64 -> 0
A15: Health | C15: ='C2C'!C67 -> 0 | D15: ='C2C'!D67 -> 0 | E15: ='C2C'!E67 -> 0 | F15: ='C2C'!F67 -> 0 | G15: ='C2C'!G67 -> 0 | H15: ='C2C'!H67 -> 0 | I15: 0 | K15: ='C2C'!K67 -> 0
A16: Economic and environmental services | C16: =SUM(C17:C19) -> 27319908.58 | D16: 68963312 | E16: 80526295 | F16: 14559773.26 | G16: 86123439.86 | H16: 48288149 | I16: 37835290.86 | J16: 0.7835316044 | K16: =SUM(K17:K19) -> 80526295
A17: Planning and development | C17: ='C2C'!C76 -> 6113750.03 | D17: ='C2C'!D76 -> 60532862 | E17: ='C2C'!E76 -> 72081732 | F17: ='C2C'!F76 -> 5650790.27 | G17: ='C2C'!G76 -> 13427465.09 | H17: ='C2C'!H76 -> 42665030 | I17: -29237564.91 | J17: -0.6852817146 | K17: ='C2C'!K76 -> 72081732
A18: Road transport | C18: ='C2C'!C87 -> 21206158.55 | D18: ='C2C'!D87 -> 8430450 | E18: ='C2C'!E87 -> 8428108 | F18: ='C2C'!F87 -> 8908982.99 | G18: ='C2C'!G87 -> 72695974.77 | H18: ='C2C'!H87 -> 5619828 | I18: 67076146.77 | J18: 11.93562272 | K18: ='C2C'!K87 -> 8428108
A19: Environmental protection | C19: ='C2C'!C92 -> 0 | D19: ='C2C'!D92 -> 0 | E19: ='C2C'!E92 -> 16455 | F19: ='C2C'!F92 -> 0 | G19: ='C2C'!G92 -> 0 | H19: ='C2C'!H92 -> 3291 | I19: -3291 | J19: -1 | K19: ='C2C'!K92 -> 16455
A20: Trading services | C20: =SUM(C21:C24) -> 3116088.34 | D20: =SUM(D21:D24) -> 8187553 | E20: 8455413 | F20: 1129058.61 | G20: 5181212.1 | H20: 5511940 | I20: -330727.9 | J20: -0.06000208638 | K20: =SUM(K21:K24) -> 8455413
A21: Energy sources | C21: ='C2C'!C100 -> 0 | D21: ='C2C'!D100 -> 0 | E21: ='C2C'!E100 -> 0 | F21: ='C2C'!F100 -> 0 | G21: ='C2C'!G100 -> 0 | H21: ='C2C'!H100 -> 0 | I21: =G21-H21 -> 0 | K21: ='C2C'!K100 -> 0
A22: Water management | C22: ='C2C'!C104 -> 0 | D22: ='C2C'!D104 -> 0 | E22: ='C2C'!E104 -> 0 | F22: ='C2C'!F104 -> 0 | G22: ='C2C'!G104 -> 0 | H22: ='C2C'!H104 -> 0 | I22: =G22-H22 -> 0 | K22: ='C2C'!K104 -> 0
A23: Waste water management | C23: ='C2C'!C108 -> 0 | D23: ='C2C'!D108 -> 0 | E23: ='C2C'!E108 -> 0 | F23: ='C2C'!F108 -> 0 | G23: ='C2C'!G108 -> 0 | H23: ='C2C'!H108 -> 0 | I23: =G23-H23 -> 0 | K23: ='C2C'!K108 -> 0
A24: Waste management | C24: ='C2C'!C113 -> 3116088.34 | D24: ='C2C'!D113 -> 8187553 | E24: ='C2C'!E113 -> 8455413 | F24: ='C2C'!F113 -> 1129058.61 | G24: ='C2C'!G113 -> 5181212.1 | H24: ='C2C'!H113 -> 5511940 | I24: =G24-H24 -> -330727.9 | J24: -0.06000208638 | K24: ='C2C'!K113 -> 8455413
A25: Other | B25: 4 | C25: ='C2C'!C118 -> 0 | D25: ='C2C'!D118 -> 0 | E25: ='C2C'!E118 -> 0 | F25: ='C2C'!F118 -> 0 | G25: ='C2C'!G118 -> 0 | H25: ='C2C'!H118 -> 0 | I25: =G25-H25 -> 0 | K25: ='C2C'!K118 -> 0
A26: Total Revenue - Functional | B26: 2 | C26: =C6+C10+C16+C20+C25 -> 147130233.7 | D26: =D6+D10+D16+D20+D25 -> 444474127 | E26: 510524250 | F26: 20225930.34 | G26: 380325064.5 | H26: 330552532 | I26: 49772532.48 | J26: 0.1505737444 | K26: =K6+K10+K16+K20+K25 -> 510524250
A28: Expenditure - Functional
A29: Governance and administration | C29: =SUM(C30:C32) -> 32400614.14 | D29: 208086381 | E29: 207863246 | F29: 9818640.23 | G29: 103547525.6 | H29: 141948553 | I29: =G29-H29 -> -38401027.44 | J29: =IF(I29=0,"",I29/H29) -> -0.2705277837 | K29: =SUM(K30:K32) -> 207863246
A30: Executive and council | C30: ='C2C'!C129 -> 3772792.01 | D30: ='C2C'!D129 -> 33064912 | E30: ='C2C'!E129 -> 31765316 | F30: ='C2C'!F129 -> 3220458.01 | G30: ='C2C'!G129 -> 18596327.4 | H30: ='C2C'!H129 -> 21783364 | I30: -3187036.6 | J30: =IF(I30=0,"",I30/H30) -> -0.1463059884 | K30: ='C2C'!K129 -> 31765316
A31: Finance and administration | C31: ='C2C'!C132 -> 26971381.54 | D31: ='C2C'!D132 -> 166892222 | E31: ='C2C'!E132 -> 167460585 | F31: ='C2C'!F132 -> 6078961.98 | G31: ='C2C'!G132 -> 83818745.72 | H31: ='C2C'!H132 -> 114644049 | I31: -30825303.28 | J31: -0.2688783548 | K31: ='C2C'!K132 -> 167460585
A32: Internal audit | C32: ='C2C'!C146 -> 1656440.59 | D32: ='C2C'!D146 -> 8129247 | E32: ='C2C'!E146 -> 8637345 | F32: ='C2C'!F146 -> 519220.24 | G32: ='C2C'!G146 -> 1132452.44 | H32: ='C2C'!H146 -> 5521140 | I32: -4388687.56 | J32: -0.7948879326 | K32: ='C2C'!K146 -> 8637345
A33: Community and public safety | C33: =SUM(C34:C38) -> 3193690.22 | D33: 22163541 | E33: 27051692 | F33: 1589991.12 | G33: 6711590.8 | H33: 16143956 | I33: -9432365.2 | J33: -0.5842660374 | K33: =SUM(K34:K38) -> 27051692
A34: Community and social services | C34: ='C2C'!C149 -> 952011.43 | D34: ='C2C'!D149 -> 10592109 | E34: ='C2C'!E149 -> 12964178 | F34: ='C2C'!F149 -> 827749.37 | G34: ='C2C'!G149 -> 5856823.97 | H34: ='C2C'!H149 -> 7655813 | I34: -1798989.03 | J34: -0.234983408 | K34: ='C2C'!K149 -> 12964178
A35: Sport and recreation | C35: ='C2C'!C171 -> 0 | D35: ='C2C'!D171 -> 0 | E35: ='C2C'!E171 -> 0 | F35: ='C2C'!F171 -> 0 | G35: ='C2C'!G171 -> 0 | H35: ='C2C'!H171 -> 0 | I35: 0 | K35: ='C2C'!K171 -> 0
A36: Public safety | C36: ='C2C'!C177 -> 2241678.79 | D36: ='C2C'!D177 -> 11571432 | E36: ='C2C'!E177 -> 14087514 | F36: ='C2C'!F177 -> 762241.75 | G36: ='C2C'!G177 -> 854766.83 | H36: ='C2C'!H177 -> 8488143 | I36: -7633376.17 | J36: -0.8992987241 | K36: ='C2C'!K177 -> 14087514
A37: Housing | C37: ='C2C'!C186 -> 0 | D37: ='C2C'!D186 -> 0 | E37: ='C2C'!E186 -> 0 | F37: ='C2C'!F186 -> 0 | G37: ='C2C'!G186 -> 0 | H37: ='C2C'!H186 -> 0 | I37: 0 | K37: ='C2C'!K186 -> 0
A38: Health | C38: ='C2C'!C189 -> 0 | D38: ='C2C'!D189 -> 0 | E38: ='C2C'!E189 -> 0 | F38: ='C2C'!F189 -> 0 | G38: ='C2C'!G189 -> 0 | H38: ='C2C'!H189 -> 0 | I38: 0 | K38: ='C2C'!K189 -> 0
A39: Economic and environmental services | C39: =SUM(C40:C42) -> 7036921.48 | D39: 41329048 | E39: 51068929 | F39: 2854324.19 | G39: 18622727.23 | H39: 31067835 | I39: -12445107.77 | J39: -0.4005785331 | K39: =SUM(K40:K42) -> 51068929
A40: Planning and development | C40: ='C2C'!C198 -> 1717007.1 | D40: ='C2C'!D198 -> 12232641 | E40: ='C2C'!E198 -> 11883738 | F40: ='C2C'!F198 -> 771925.86 | G40: ='C2C'!G198 -> 3978926.29 | H40: ='C2C'!H198 -> 8085334 | I40: -4106407.71 | J40: -0.5078834975 | K40: ='C2C'!K198 -> 11883738
A41: Road transport | C41: ='C2C'!C209 -> 5078351.11 | D41: ='C2C'!D209 -> 28017889 | E41: ='C2C'!E209 -> 38469054 | F41: ='C2C'!F209 -> 2037905.36 | G41: ='C2C'!G209 -> 14566907.97 | H41: ='C2C'!H209 -> 22335962 | I41: -7769054.03 | J41: -0.3478271511 | K41: ='C2C'!K209 -> 38469054
A42: Environmental protection | C42: ='C2C'!C214 -> 241563.27 | D42: ='C2C'!D214 -> 1078518 | E42: ='C2C'!E214 -> 716137 | F42: ='C2C'!F214 -> 44492.97 | G42: ='C2C'!G214 -> 76892.97 | H42: ='C2C'!H214 -> 646539 | I42: -569646.03 | J42: -0.8810698659 | K42: ='C2C'!K214 -> 716137
A43: Trading services | C43: =SUM(C44:C47) -> 4676598.7 | D43: =SUM(D44:D47) -> 38226907 | E43: 61454036 | F43: 2292137.53 | G43: 27099072.06 | H43: 35321694 | I43: -8222621.94 | J43: -0.2327924006 | K43: =SUM(K44:K47) -> 61454036
A44: Energy sources | C44: ='C2C'!C222 -> 1860752.06 | D44: ='C2C'!D222 -> 20083844 | E44: ='C2C'!E222 -> 40829581 | F44: ='C2C'!F222 -> 1098394.04 | G44: ='C2C'!G222 -> 7083709.57 | H44: ='C2C'!H222 -> 21897040 | I44: -14813330.43 | J44: -0.6764992177 | K44: ='C2C'!K222 -> 40829581
A45: Water management | C45: ='C2C'!C226 -> 0 | D45: ='C2C'!D226 -> 0 | E45: ='C2C'!E226 -> 0 | F45: ='C2C'!F226 -> 0 | G45: ='C2C'!G226 -> 0 | H45: ='C2C'!H226 -> 0 | I45: 0 | K45: ='C2C'!K226 -> 0
A46: Waste water management | C46: ='C2C'!C230 -> 0 | D46: ='C2C'!D230 -> 0 | E46: ='C2C'!E230 -> 0 | F46: ='C2C'!F230 -> 0 | G46: ='C2C'!G230 -> 0 | H46: ='C2C'!H230 -> 0 | I46: 0 | K46: ='C2C'!K230 -> 0
A47: Waste management | C47: ='C2C'!C235 -> 2815846.64 | D47: ='C2C'!D235 -> 18143063 | E47: ='C2C'!E235 -> 20624455 | F47: ='C2C'!F235 -> 1193743.49 | G47: ='C2C'!G235 -> 20015362.49 | H47: ='C2C'!H235 -> 13424654 | I47: 6590708.49 | J47: 0.4909406596 | K47: ='C2C'!K235 -> 20624455
A48: Other | C48: ='C2C'!C240 -> 0 | D48: ='C2C'!D240 -> 0 | E48: ='C2C'!E240 -> 0 | F48: ='C2C'!F240 -> 0 | G48: ='C2C'!G240 -> 0 | H48: ='C2C'!H240 -> 0 | I48: 0 | K48: ='C2C'!K240 -> 0
A49: Total Expenditure - Functional | B49: 3 | C49: =C29+C33+C39+C43+C48 -> 47307824.54 | D49: =D29+D33+D39+D43+D48 -> 309805877 | E49: 347437903 | F49: 16555093.07 | G49: 155980915.7 | H49: 224482038 | I49: -68501122.35 | J49: -0.3051519086 | K49: =K29+K33+K39+K43+K48 -> 347437903
A50: Surplus/ (Deficit) for the year | C50: =C26-C49 -> 99822409.13 | D50: 134668250 | E50: 163086347 | F50: 3670837.27 | G50: 224344148.8 | H50: 106070494 | I50: =I26-I49 -> 118273654.8 | J50: =IF(I50=0,"",I50/H50) -> 1.115047648 | K50: =K26-K49 -> 163086347
A51: =head27a -> References
A52: 1. Government Finance Statistics Functions and Sub-functions are standardised to assist the compilation of national and international accounts for comparison purposes
A53: 2. Total Revenue by functional classification must reconcile to Total Operating Revenue shown in the Financial Performance Statement
A54: 3. Total Expenditure by functional classification must reconcile to total operating expenditure shown in 'Financial Performance Statement'
A55: 4. All amounts must be classified under a functional classification (modified GFS). The GFS function 'Other' is only for Abbatoirs, Air Transport, Licensing and Regulation, Markets and Tourism - and if used must be supported by footnotes. Nothing else may be placed under 'Other'. Assign associate share to relevant classification

Sheet C2C
A1: =muni& " - "&S71A& " - "&date -> LIM355 Lepelle-Nkumpi - Table C2 Monthly Budget Statement - Financial Performance (functional classification) - M08 February
A2: =desc -> Description | B2: =head27 -> Ref | C2: =Head1 -> 2019/20 | D2: =Head2 -> Budget Year 2020/21
C3: =Head5 -> Audited Outcome | D3: =Head6 -> Original Budget | E3: =Head7 -> Adjusted Budget | F3: =Head38 -> Monthly actual | G3: =Head39 -> YearTD actual | H3: =Head40 -> YearTD budget | I3: =Head41 -> YTD variance | J3: =Head41 -> YTD variance | K3: =Head8 -> Full Year Forecast
A4: R thousands | B4: 1 | J4: %
A5: Revenue - Functional
A6: Municipal governance and administration | C6: =C7+C10+C24 -> 117989986.5 | D6: 364554477 | E6: 417111807 | F6: 4526083.47 | G6: 288328086 | H6: 274574195 | I6: =G6-H6 -> 13753891.01 | J6: =IF(I6=0,"",I6/H6) -> 0.05009171022 | K6: =K7+K10+K24 -> 417111807
A7: Executive and council | C7: =SUM(C8:C9) -> 0 | D7: =SUM(D8:D9) -> 0 | E7: 0 | F7: 0 | G7: 0 | H7: 0 | I7: =G7-H7 -> 0 | J7: =IF(I7=0,"",I7/H7) ->  | K7: 0
A8: Mayor and Council | I8: 0
A9: Municipal Manager, Town Secretary and Chief Executive | I9: 0
A10: Finance and administration | C10: =SUM(C11:C23) -> 117989986.5 | D10: 364554477 | E10: 417111807 | F10: 4526083.47 | G10: 288328086 | H10: 274574195 | I10: =G10-H10 -> 13753891.01 | J10: =IF(I10=0,"",I10/H10) -> 0.05009171022 | K10: =SUM(K11:K23) -> 417111807
A11: Administrative and Corporate Support | C11: 16260.95 | D11: 99001 | E11: 201277 | F11: 4017.38 | G11: 145869.26 | H11: 86455 | I11: 59414.26 | J11: 0.687227575 | K11: 201277
A12: Asset Management | C12: 0 | D12: 40531 | E12: 40531 | F12: 0 | G12: 0 | H12: 27024 | I12: -27024 | J12: -1 | K12: 40531
A13: Finance | C13: 109334313.6 | D13: 331607059 | E13: 384162113 | F13: 1891680.54 | G13: 266926312.6 | H13: 252608804 | I13: 14317508.61 | J13: 0.0566785812 | K13: 384162113
A14: Fleet Management | I14: 0
A15: Human Resources | C15: 0 | D15: 221930 | E15: 221930 | F15: 0 | G15: 62075 | H15: 147952 | I15: -85877 | J15: -0.5804382502 | K15: 221930
A16: Information Technology | C16: 39940.2 | D16: 209000 | E16: 209000 | F16: 695.66 | G16: 82978.94 | H16: 139336 | I16: =G16-H16 -> -56357.06 | J16: =IF(I16=0,"",I16/H16) -> -0.4044687661 | K16: 209000
A17: Legal Services | I17: 0
A18: Marketing, Customer Relations, Publicity and Media Co-ordination | I18: 0
A19: Property Services | C19: 8472818.65 | D19: 32000190 | E19: 31900190 | F19: 2629689.89 | G19: 21106328.47 | H19: 21313448 | I19: -207119.53 | J19: -0.00971778616 | K19: 31900190
A20: Risk Management | I20: 0
A21: Security Services | C21: 0 | D21: 0 | E21: 0 | F21: 0 | G21: 0 | H21: 0 | I21: 0 | K21: 0
A22: Supply Chain Management | C22: 126653.14 | D22: 376766 | E22: 376766 | F22: 0 | G22: 4521.73 | H22: 251176 | I22: -246654.27 | J22: -0.9819977625 | K22: 376766
A23: Valuation Service | I23: 0
A24: Internal audit | C24: =SUM(C25:C25) -> 0 | D24: 0 | E24: 0 | F24: 0 | G24: 0 | H24: 0 | I24: 0 | K24: =SUM(K25:K25) -> 0
A25: Governance Function | I25: 0
A26: Community and public safety | C26: =C27+C49+C55+C64+C67 -> -1295749.75 | D26: =D27+D49+D55+D64+D67 -> 2768785 | E26: 4430735 | F26: 11015 | G26: 692326.51 | H26: 2178248 | I26: -1485921.49 | J26: -0.6821635966 | K26: 4430735
A27: Community and social services | C27: =SUM(C28:C48) -> 41217.36 | D27: 135689 | E27: 337135 | F27: 0 | G27: 17800.33 | H27: 130746 | I27: -112945.67 | J27: -0.8638556438 | K27: =SUM(K28:K48) -> 337135
A28: Aged Care | I28: =G28-H28 -> 0 | J28: =IF(I28=0,"",I28/H28) -> 
A29: Agricultural | I29: 0
A30: Animal Care and Diseases | I30: 0
A31: Cemeteries, Funeral Parlours and Crematoriums | I31: 0
A32: Child Care Facilities | I32: 0
A33: Community Halls and Facilities | C33: 41217.36 | D33: 131292 | E33: 336135 | F33: 0 | G33: 17800.33 | H33: 128497 | I33: -110696.67 | J33: -0.861472797 | K33: 336135
A34: Consumer Protection | I34: 0
A35: Cultural Matters | I35: =G35-H35 -> 0 | J35: =IF(I35=0,"",I35/H35) -> 
A36: Disaster Management | C36: 0 | D36: 0 | E36: 0 | F36: 0 | G36: 0 | H36: 0 | I36: 0 | K36: 0
A37: Education | I37: 0
A38: Indigenous and Customary Law | I38: 0
A39: Industrial Promotion | I39: 0
A40: Language Policy | I40: 0
A41: Libraries and Archives | C41: 0 | D41: 4397 | E41: 1000 | F41: 0 | G41: 0 | H41: 2249 | I41: -2249 | J41: -1 | K41: 1000
A42: Literacy Programmes | I42: 0
A43: Media Services | I43: 0
A44: Museums and Art Galleries | I44: 0
A45: Population Development | I45: 0
A46: Provincial Cultural Matters | I46: 0
A47: Theatres | I47: 0
A48: Zoo's | I48: 0
A49: Sport and recreation | C49: =SUM(C50:C54) -> 0 | D49: =SUM(D50:D54) -> 0 | E49: 0 | F49: 0 | G49: 0 | H49: 0 | I49: =G49-H49 -> 0 | J49: =IF(I49=0,"",I49/H49) ->  | K49: 0
A50: Beaches and Jetties | I50: 0
A51: Casinos, Racing, Gambling, Wagering | I51: 0
A52: Community Parks (including Nurseries) | I52: 0
A53: Recreational Facilities | I53: 0
A54: Sports Grounds and Stadiums | I54: 0
A55: Public safety | C55: =SUM(C56:C63) -> -1336967.11 | D55: =SUM(D56:D63) -> 2633096 | E55: 4093600 | F55: 11015 | G55: 674526.18 | H55: 2047502 | I55: -1372975.82 | J55: -0.670561406 | K55: 4093600
A56: Civil Defence | I56: 0
A57: Cleansing | I57: 0
A58: Control of Public Nuisances | I58: =G58-H58 -> 0 | J58: =IF(I58=0,"",I58/H58) -> 
A59: Fencing and Fences | I59: 0
A60: Fire Fighting and Protection | I60: 0
A61: Licensing and Control of Animals | I61: =G61-H61 -> 0 | J61: =IF(I61=0,"",I61/H61) -> 
A62: Police Forces, Traffic and Street Parking Control | C62: -1352688.84 | D62: 2604693 | E62: 4091600 | F62: 11015 | G62: 673474.01 | H62: 2033846 | I62: =G62-H62 -> -1360371.99 | J62: =IF(I62=0,"",I62/H62) -> -0.6688667628 | K62: 4091600
A63: Pounds | C63: 15721.73 | D63: 28403 | E63: 2000 | F63: 0 | G63: 1052.17 | H63: 13656 | I63: -12603.83 | J63: -0.9229518161 | K63: 2000
A64: Housing | C64: =SUM(C65:C66) -> 0 | D64: 0 | E64: 0 | F64: 0 | G64: 0 | H64: 0 | I64: =G64-H64 -> 0 | J64: =IF(I64=0,"",I64/H64) ->  | K64: =SUM(K65:K66) -> 0
A65: Housing | I65: =G65-H65 -> 0 | J65: =IF(I65=0,"",I65/H65) -> 
A66: Informal Settlements | I66: =G66-H66 -> 0 | J66: =IF(I66=0,"",I66/H66) -> 
A67: Health | C67: =SUM(C68:C74) -> 0 | D67: 0 | E67: 0 | F67: 0 | G67: 0 | H67: 0 | I67: 0 | K67: =SUM(K68:K74) -> 0
A68: Ambulance | I68: 0
A69: Health Services | I69: 0
A70: Laboratory Services | I70: =G70-H70 -> 0 | J70: =IF(I70=0,"",I70/H70) -> 
A71: Food Control | I71: =G71-H71 -> 0 | J71: =IF(I71=0,"",I71/H71) -> 
A72: Health Surveillance and Prevention of Communicable Diseases including immunizations | I72: 0
A73: Vector Control | I73: 0
A74: Chemical Safety | I74: 0
A75: Economic and environmental services | C75: =C76+C87+C92 -> 27319908.58 | D75: 68963312 | E75: 80526295 | F75: 14559773.26 | G75: 86123439.86 | H75: 48288149 | I75: 37835290.86 | J75: 0.7835316044 | K75: =K76+K87+K92 -> 80526295
A76: Planning and development | C76: =SUM(C77:C86) -> 6113750.03 | D76: 60532862 | E76: 72081732 | F76: 5650790.27 | G76: 13427465.09 | H76: 42665030 | I76: -29237564.91 | J76: -0.6852817146 | K76: =SUM(K77:K86) -> 72081732
A77: Billboards | I77: =G77-H77 -> 0 | J77: =IF(I77=0,"",I77/H77) -> 
A78: Corporate Wide Strategic Planning (IDPs, LEDs) | C78: 0 | D78: 0 | E78: 377308 | F78: 0 | G78: 0 | H78: 75461 | I78: -75461 | J78: -1 | K78: 377308
A79: Central City Improvement District | I79: 0
A80: Development Facilitation | I80: =G80-H80 -> 0 | J80: =IF(I80=0,"",I80/H80) -> 
A81: Economic Development/Planning | C81: 916808.3 | D81: 70324 | E81: 4347 | F81: 0 | G81: 13.04 | H81: 33686 | I81: =G81-H81 -> -33672.96 | J81: =IF(I81=0,"",I81/H81) -> -0.9996128956 | K81: 4347
A82: Regional Planning and Development | I82: =G82-H82 -> 0 | J82: =IF(I82=0,"",I82/H82) -> 
A83: Town Planning, Building Regulations and Enforcement, and City Engineer | C83: 1213214 | D83: 6742538 | E83: 1812536 | F83: 150426.68 | G83: 1085660.02 | H83: 3509039 | I83: =G83-H83 -> -2423378.98 | J83: =IF(I83=0,"",I83/H83) -> -0.6906104435 | K83: 1812536
A84: Project Management Unit | C84: 3983727.73 | D84: 53720000 | E84: 69887541 | F84: 5500363.59 | G84: 12341792.03 | H84: 39046844 | I84: -26705051.97 | J84: -0.6839234426 | K84: 69887541
A85: Provincial Planning | I85: 0
A86: Support to Local Municipalities | I86: 0
A87: Road transport | C87: =SUM(C88:C91) -> 21206158.55 | D87: 8430450 | E87: 8428108 | F87: 8908982.99 | G87: 72695974.77 | H87: 5619828 | I87: 67076146.77 | J87: 11.93562272 | K87: =SUM(K88:K91) -> 8428108
A88: Public Transport | I88: 0
A89: Road and Traffic Regulation | C89: 963757.07 | D89: 8430450 | E89: 8428108 | F89: 599146.35 | G89: 4666107.86 | H89: 5619828 | I89: -953720.14 | J89: -0.1697062864 | K89: 8428108
A90: Roads | C90: 20242401.48 | D90: 0 | E90: 0 | F90: 8309836.64 | G90: 68029866.91 | H90: 0 | I90: 68029866.91 | K90: 0
A91: Taxi Ranks | I91: 0
A92: Environmental protection | C92: =SUM(C93:C98) -> 0 | D92: =SUM(D93:D98) -> 0 | E92: 16455 | F92: 0 | G92: 0 | H92: 3291 | I92: -3291 | J92: -1 | K92: 16455
A93: Biodiversity and Landscape | I93: 0
A94: Coastal Protection | I94: 0
A95: Indigenous Forests | I95: =G95-H95 -> 0 | J95: =IF(I95=0,"",I95/H95) -> 
A96: Nature Conservation | I96: =G96-H96 -> 0 | J96: =IF(I96=0,"",I96/H96) -> 
A97: Pollution Control | C97: 0 | D97: 0 | E97: 16455 | F97: 0 | G97: 0 | H97: 3291 | I97: -3291 | J97: -1 | K97: 16455
A98: Soil Conservation | I98: 0
A99: Trading services | C99: =C100+C104+C108+C113 -> 3116088.34 | D99: =D100+D104+D108+D113 -> 8187553 | E99: 8455413 | F99: 1129058.61 | G99: 5181212.1 | H99: 5511940 | I99: -330727.9 | J99: -0.06000208638 | K99: =K100+K104+K108+K113 -> 8455413
A100: Energy sources | C100: =SUM(C101:C103) -> 0 | D100: =SUM(D101:D103) -> 0 | E100: 0 | F100: 0 | G100: 0 | H100: 0 | I100: 0 | K100: 0
A101: Electricity | C101: 0 | D101: 0 | E101: 0 | F101: 0 | G101: 0 | H101: 0 | I101: 0 | K101: 0
A102: Street Lighting and Signal Systems | I102: =G102-H102 -> 0 | J102: =IF(I102=0,"",I102/H102) -> 
A103: Nonelectric Energy | I103: 0
A104: Water management | C104: =SUM(C105:C107) -> 0 | D104: =SUM(D105:D107) -> 0 | E104: 0 | F104: 0 | G104: 0 | H104: 0 | I104: 0 | K104: 0
A105: Water Treatment | I105: 0
A106: Water Distribution | I106: =G106-H106 -> 0 | J106: =IF(I106=0,"",I106/H106) -> 
A107: Water Storage | I107: 0
A108: Waste water management | C108: =SUM(C109:C112) -> 0 | D108: =SUM(D109:D112) -> 0 | E108: 0 | F108: 0 | G108: 0 | H108: 0 | I108: 0 | K108: 0
A109: Public Toilets | I109: 0
A110: Sewerage | I110: 0
A111: Storm Water Management | I111: =G111-H111 -> 0 | J111: =IF(I111=0,"",I111/H111) -> 
A112: Waste Water Treatment | I112: 0
A113: Waste management | C113: =SUM(C114:C117) -> 3116088.34 | D113: 8187553 | E113: 8455413 | F113: 1129058.61 | G113: 5181212.1 | H113: 5511940 | I113: -330727.9 | J113: -0.06000208638 | K113: =SUM(K114:K117) -> 8455413
A114: Recycling | I114: =G114-H114 -> 0 | J114: =IF(I114=0,"",I114/H114) -> 
A115: Solid Waste Disposal (Landfill Sites) | I115: =G115-H115 -> 0 | J115: =IF(I115=0,"",I115/H115) -> 
A116: Solid Waste Removal | C116: 3116088.34 | D116: 8187553 | E116: 8455413 | F116: 1129058.61 | G116: 5181212.1 | H116: 5511940 | I116: -330727.9 | J116: -0.06000208638 | K116: 8455413
A117: Street Cleaning | I117: =G117-H117 -> 0 | J117: =IF(I117=0,"",I117/H117) -> 
A118: Other | C118: =SUM(C119:C124) -> 0 | D118: =SUM(D119:D124) -> 0 | E118: 0 | F118: 0 | G118: 0 | H118: 0 | I118: 0 | K118: 0
A119: Abattoirs | I119: 0
A120: Air Transport | I120: 0
A121: Forestry | I121: =G121-H121 -> 0 | J121: =IF(I121=0,"",I121/H121) -> 
A122: Licensing and Regulation | I122: 0
A123: Markets | I123: 0
A124: Tourism | I124: =G124-H124 -> 0 | J124: =IF(I124=0,"",I124/H124) -> 
A125: ="Total "&A5 -> Total Revenue - Functional | B125: 2 | C125: =C6+C26+C75+C99+C118 -> 147130233.7 | D125: 444474127 | E125: 510524250 | F125: 20225930.34 | G125: 380325064.5 | H125: 330552532 | I125: =G125-H125 -> 49772532.48 | J125: =IF(I125=0,"",I125/H125) -> 0.1505737444 | K125: =K6+K26+K75+K99+K118 -> 510524250
A127: Expenditure - Functional
A128: =A6 -> Municipal governance and administration | C128: =C129+C132+C146 -> 32400614.14 | D128: 208086381 | E128: 207863246 | F128: 9818640.23 | G128: 103547525.6 | H128: 141948553 | I128: =G128-H128 -> -38401027.44 | J128: =IF(I128=0,"",I128/H128) -> -0.2705277837 | K128: =K129+K132+K146 -> 207863246
A129: Executive and council | C129: =SUM(C130:C131) -> 3772792.01 | D129: 33064912 | E129: 31765316 | F129: 3220458.01 | G129: 18596327.4 | H129: 21783364 | I129: -3187036.6 | J129: -0.1463059884 | K129: 31765316
A130: Mayor and Council | C130: 3744580.79 | D130: 31605649 | E130: 31380933 | F130: 3218458.01 | G130: 18431901.08 | H130: 21025500 | I130: -2593598.92 | J130: -0.1233549224 | K130: 31380933
A131: Municipal Manager, Town Secretary and Chief Executive | C131: 28211.22 | D131: 1459263 | E131: 384383 | F131: 2000 | G131: 164426.32 | H131: 757864 | I131: -593437.68 | J131: -0.7830398066 | K131: 384383
A132: Finance and administration | C132: =SUM(C133:C145) -> 26971381.54 | D132: 166892222 | E132: 167460585 | F132: 6078961.98 | G132: 83818745.72 | H132: 114644049 | I132: -30825303.28 | J132: -0.2688783548 | K132: =SUM(K133:K145) -> 167460585
A133: Administrative and Corporate Support | C133: 12624353.63 | D133: 61939662 | E133: 47810524 | F133: 1706529.14 | G133: 28545642.47 | H133: 39209562 | I133: -10663919.53 | J133: -0.2719724217 | K133: 47810524
A134: Asset Management | C134: 1492531.8 | D134: 7487183 | E134: 7275584 | F134: 218663.96 | G134: 3830191.54 | H134: 4949129 | I134: -1118937.46 | J134: -0.226087754 | K134: 7275584
A135: Finance | C135: 3779667.25 | D135: 45427046 | E135: 48480852 | F135: 1134150.88 | G135: 16971350.67 | H135: 31299995 | I135: -14328644.33 | J135: -0.457784237 | K135: 48480852
A136: Fleet Management | C136: 595504.93 | D136: 5035205 | E136: 13246823 | F136: 474070.89 | G136: 2472837.6 | H136: 4999123 | I136: -2526285.4 | J136: -0.5053457176 | K136: 13246823
A137: Human Resources | C137: 2073196.74 | D137: 8864309 | E137: 9181262 | F137: 340657.45 | G137: 5358078.47 | H137: 6400656 | I137: -1042577.53 | J137: -0.1628860432 | K137: 9181262
A138: Information Technology | C138: 1063297.72 | D138: 7851479 | E138: 6041293 | F138: 250613.13 | G138: 2517805.26 | H138: 4860850 | I138: -2343044.74 | J138: -0.4820236666 | K138: 6041293
A139: Legal Services | C139: 1366637.65 | D139: 6150372 | E139: 12129478 | F139: 311914.52 | G139: 7010714.21 | H139: 6107504 | I139: 903210.21 | J139: 0.1478853243 | K139: 12129478
A140: Marketing, Customer Relations, Publicity and Media Co-ordination | C140: 1000010.49 | D140: 2023274 | E140: 3693842 | F140: 114189.87 | G140: 10598643.9 | H140: 1682958 | I140: 8915685.9 | J140: 5.297628283 | K140: 3693842
A141: Property Services | C141: 2025425.08 | D141: 15465860 | E141: 11417490 | F141: 407779.49 | G141: 3659446.5 | H141: 9500902 | I141: -5841455.5 | J141: -0.614831676 | K141: 11417490
A142: Risk Management | C142: 350991.52 | D142: 2963625 | E142: 4377586 | F142: 1086798.59 | G142: 2820201.04 | H142: 2858545 | I142: -38343.96 | J142: -0.01341380318 | K142: 4377586
A143: Security Services | C143: 0 | D143: 0 | E143: 207970 | F143: 0 | G143: 0 | H143: 41592 | I143: -41592 | J143: -1 | K143: 207970
A144: Supply Chain Management | C144: 599764.73 | D144: 3684207 | E144: 3597881 | F144: 33594.06 | G144: 33834.06 | H144: 2733233 | I144: -2699398.94 | J144: -0.987621231 | K144: 3597881
A145: Valuation Service | I145: 0
A146: Internal audit | C146: =SUM(C147:C147) -> 1656440.59 | D146: 8129247 | E146: 8637345 | F146: 519220.24 | G146: 1132452.44 | H146: 5521140 | I146: -4388687.56 | J146: -0.7948879326 | K146: =SUM(K147:K147) -> 8637345
A147: Governance Function | C147: 1656440.59 | D147: 8129247 | E147: 8637345 | F147: 519220.24 | G147: 1132452.44 | H147: 5521140 | I147: -4388687.56 | J147: -0.7948879326 | K147: 8637345
A148: Community and public safety | C148: =C149+C171+C177+C186+C189 -> 3193690.22 | D148: 22163541 | E148: 27051692 | F148: 1589991.12 | G148: 6711590.8 | H148: 16143956 | I148: -9432365.2 | J148: -0.5842660374 | K148: =K149+K171+K177+K186+K189 -> 27051692
A149: Community and social services | C149: =SUM(C150:C170) -> 952011.43 | D149: 10592109 | E149: 12964178 | F149: 827749.37 | G149: 5856823.97 | H149: 7655813 | I149: -1798989.03 | J149: -0.234983408 | K149: =SUM(K150:K170) -> 12964178
A150: Aged Care | I150: 0
A151: Agricultural | I151: 0
A152: Animal Care and Diseases | I152: 0
A153: Cemeteries, Funeral Parlours and Crematoriums | I153: 0
A154: Child Care Facilities | I154: 0
A155: Community Halls and Facilities | C155: 512621.55 | D155: 8615799 | E155: 10718614 | F155: 688179.56 | G155: 5087351.13 | H155: 6164435 | I155: -1077083.87 | J155: -0.1747254809 | K155: 10718614
A156: Consumer Protection | I156: 0
A157: Cultural Matters | I157: =G157-H157 -> 0 | J157: =IF(I157=0,"",I157/H157) -> 
A158: Disaster Management | C158: 292926.61 | D158: 748961 | E158: 1053215 | F158: 70697.92 | G158: 218497.72 | H158: 680154 | I158: =G158-H158 -> -461656.28 | J158: =IF(I158=0,"",I158/H158) -> -0.6787525766 | K158: 1053215
A159: Education | I159: =G159-H159 -> 0 | J159: =IF(I159=0,"",I159/H159) -> 
A160: =A38 -> Indigenous and Customary Law | I160: 0
A161: Industrial Promotion | I161: 0
A162: Language Policy | I162: 0
A163: Libraries and Archives | C163: 146463.27 | D163: 1227349 | E163: 1192349 | F163: 68871.89 | G163: 550975.12 | H163: 811224 | I163: -260248.88 | J163: -0.3208101338 | K163: 1192349
A164: Literacy Programmes | I164: 0
A165: Media Services | I165: 0
A166: Museums and Art Galleries | I166: 0
A167: Population Development | I167: 0
A168: Provincial Cultural Matters | I168: 0
A169: Theatres | I169: 0
A170: Zoo's | I170: 0
A171: Sport and recreation | C171: =SUM(C172:C176) -> 0 | D171: 0 | E171: 0 | F171: 0 | G171: 0 | H171: 0 | I171: =G171-H171 -> 0 | J171: =IF(I171=0,"",I171/H171) ->  | K171: 0
A172: Beaches and Jetties | I172: 0
A173: Casinos, Racing, Gambling, Wagering | I173: 0
A174: Community Parks (including Nurseries) | I174: 0
A175: Recreational Facilities | I175: 0
A176: Sports Grounds and Stadiums | I176: 0
A177: Public safety | C177: =SUM(C178:C185) -> 2241678.79 | D177: 11571432 | E177: 14087514 | F177: 762241.75 | G177: 854766.83 | H177: 8488143 | I177: -7633376.17 | J177: -0.8992987241 | K177: 14087514
A178: Civil Defence | I178: 0
A179: Cleansing | I179: 0
A180: Control of Public Nuisances | I180: =G180-H180 -> 0 | J180: =IF(I180=0,"",I180/H180) -> 
A181: Fencing and Fences | I181: 0
A182: Fire Fighting and Protection | I182: 0
A183: Licensing and Control of Animals | I183: =G183-H183 -> 0 | J183: =IF(I183=0,"",I183/H183) -> 
A184: Police Forces, Traffic and Street Parking Control | C184: 2021983.83 | D184: 10813045 | E184: 13427354 | F184: 713508.79 | G184: 806033.87 | H184: 8002196 | I184: =G184-H184 -> -7196162.13 | J184: =IF(I184=0,"",I184/H184) -> -0.8992734157 | K184: 13427354
A185: Pounds | C185: 219694.96 | D185: 758387 | E185: 660160 | F185: 48732.96 | G185: 48732.96 | H185: 485947 | I185: -437214.04 | J185: -0.8997154834 | K185: 660160
A186: Housing | C186: =SUM(C187:C188) -> 0 | D186: 0 | E186: 0 | F186: 0 | G186: 0 | H186: 0 | I186: =G186-H186 -> 0 | J186: =IF(I186=0,"",I186/H186) ->  | K186: =SUM(K187:K188) -> 0
A187: Housing | I187: =G187-H187 -> 0 | J187: =IF(I187=0,"",I187/H187) -> 
A188: Informal Settlements | I188: =G188-H188 -> 0 | J188: =IF(I188=0,"",I188/H188) -> 
A189: Health | C189: =SUM(C190:C196) -> 0 | D189: 0 | E189: 0 | F189: 0 | G189: 0 | H189: 0 | I189: 0 | K189: 0
A190: Ambulance | I190: 0
A191: Health Services | I191: 0
A192: =A70 -> Laboratory Services | I192: 0
A193: Food Control | I193: =G193-H193 -> 0 | J193: =IF(I193=0,"",I193/H193) -> 
A194: Health Surveillance and Prevention of Communicable Diseases including immunizations | I194: =G194-H194 -> 0 | J194: =IF(I194=0,"",I194/H194) -> 
A195: Vector Control | I195: 0
A196: Chemical Safety | I196: 0
A197: Economic and environmental services | C197: =C198+C209+C214 -> 7036921.48 | D197: 41329048 | E197: 51068929 | F197: 2854324.19 | G197: 18622727.23 | H197: 31067835 | I197: -12445107.77 | J197: -0.4005785331 | K197: =K198+K209+K214 -> 51068929
A198: Planning and development | C198: =SUM(C199:C208) -> 1717007.1 | D198: 12232641 | E198: 11883738 | F198: 771925.86 | G198: 3978926.29 | H198: 8085334 | I198: -4106407.71 | J198: -0.5078834975 | K198: 11883738
A199: Billboards | I199: 0
A200: Corporate Wide Strategic Planning (IDPs, LEDs) | C200: 479618.25 | D200: 2927913 | E200: 2608995 | F200: 155915.59 | G200: 329511.59 | H200: 1888162 | I200: -1558650.41 | J200: -0.8254855304 | K200: 2608995
A201: Central City Improvement District | I201: 0
... 54 more rows

Sheet C3-FinPerf V
A1: =muni& " - "&S71C& " - "&date -> LIM355 Lepelle-Nkumpi - Table C3 Monthly Budget Statement - Financial Performance (revenue and expenditure by municipal vote) - M08 February
A2: =Vdesc -> Vote Description | B2: =head27 -> Ref | C2: =Head1 -> 2019/20 | D2: =Head2 -> Budget Year 2020/21
C3: =Head5 -> Audited Outcome | D3: =Head6 -> Original Budget | E3: =Head7 -> Adjusted Budget | F3: =Head38 -> Monthly actual | G3: =Head39 -> YearTD actual | H3: =Head40 -> YearTD budget | I3: =Head41 -> YTD variance | J3: =Head41 -> YTD variance | K3: =Head8 -> Full Year Forecast
A4: R thousands | J4: %
A5: Revenue by Vote | B5: 1
A6: ='Org structure'!A2 -> Vote 01 - Executive & Council | C6: ='C3C'!C6 -> 0 | D6: ='C3C'!D6 -> 0 | E6: ='C3C'!E6 -> 0 | F6: ='C3C'!F6 -> 0 | G6: ='C3C'!G6 -> 0 | H6: ='C3C'!H6 -> 0 | I6: =G6-H6 -> 0 | J6: =IF(I6=0,"",I6/H6) ->  | K6: ='C3C'!K6 -> 0
A7: ='Org structure'!A3 -> Vote 02 - Municipal Manager | C7: ='C3C'!C9 -> 0 | D7: ='C3C'!D9 -> 0 | E7: ='C3C'!E9 -> 0 | F7: ='C3C'!F9 -> 0 | G7: ='C3C'!G9 -> 0 | H7: ='C3C'!H9 -> 0 | I7: 0 | K7: ='C3C'!K9 -> 0
A8: ='Org structure'!A4 -> Vote 03 - Corporate Services | C8: ='C3C'!C15 -> 39940.2 | D8: ='C3C'!D15 -> 430930 | E8: ='C3C'!E15 -> 430930 | F8: ='C3C'!F15 -> 695.66 | G8: ='C3C'!G15 -> 145053.94 | H8: ='C3C'!H15 -> 287288 | I8: -142234.06 | J8: -0.4950922419 | K8: ='C3C'!K15 -> 430930
A9: ='Org structure'!A5 -> Vote 04 - Budget And Treasury | C9: ='C3C'!C23 -> 109460966.7 | D9: ='C3C'!D23 -> 332024356 | E9: ='C3C'!E23 -> 384579410 | F9: ='C3C'!F23 -> 1891680.54 | G9: ='C3C'!G23 -> 266930834.3 | H9: ='C3C'!H23 -> 252887004 | I9: 14043830.34 | J9: 0.05553401368 | K9: ='C3C'!K23 -> 384579410
A10: ='Org structure'!A6 -> Vote 05 - Community Services | C10: ='C3C'!C30 -> 2800356.61 | D10: ='C3C'!D30 -> 19485789 | E10: ='C3C'!E30 -> 21515533 | F10: ='C3C'!F30 -> 1743237.34 | G10: ='C3C'!G30 -> 10685515.73 | H10: ='C3C'!H30 -> 13396471 | I10: -2710955.27 | J10: -0.2023633888 | K10: ='C3C'!K30 -> 21515533
A11: ='Org structure'!A7 -> Vote 06 - Planning And Development | C11: ='C3C'!C39 -> 10602840.95 | D11: ='C3C'!D39 -> 38813052 | E11: ='C3C'!E39 -> 34110836 | F11: ='C3C'!F39 -> 2780116.57 | G11: ='C3C'!G39 -> 22192001.53 | H11: ='C3C'!H39 -> 24934925 | I11: -2742923.47 | J11: -0.1100032773 | K11: ='C3C'!K39 -> 34110836
A12: ='Org structure'!A8 -> Vote 07 - Infrastructure Development | C12: ='C3C'!C48 -> 24226129.21 | D12: ='C3C'!D48 -> 53720000 | E12: ='C3C'!E48 -> 69887541 | F12: ='C3C'!F48 -> 13810200.23 | G12: ='C3C'!G48 -> 80371658.94 | H12: ='C3C'!H48 -> 39046844 | I12: 41324814.94 | J12: 1.058339438 | K12: ='C3C'!K48 -> 69887541
A13: ='Org structure'!A9 -> Vote 08 - | C13: ='C3C'!C53 -> 0 | D13: ='C3C'!D53 -> 0 | E13: ='C3C'!E53 -> 0 | F13: ='C3C'!F53 -> 0 | G13: ='C3C'!G53 -> 0 | H13: ='C3C'!H53 -> 0 | I13: =G13-H13 -> 0 | J13: =IF(I13=0,"",I13/H13) ->  | K13: ='C3C'!K53 -> 0
A14: ='Org structure'!A10 -> Vote 09 - | C14: ='C3C'!C54 -> 0 | D14: ='C3C'!D54 -> 0 | E14: ='C3C'!E54 -> 0 | F14: ='C3C'!F54 -> 0 | G14: ='C3C'!G54 -> 0 | H14: ='C3C'!H54 -> 0 | I14: 0 | K14: ='C3C'!K54 -> 0
A15: ='Org structure'!A11 -> Vote 10 - | C15: ='C3C'!C55 -> 0 | D15: ='C3C'!D55 -> 0 | E15: ='C3C'!E55 -> 0 | F15: ='C3C'!F55 -> 0 | G15: ='C3C'!G55 -> 0 | H15: ='C3C'!H55 -> 0 | I15: 0 | K15: ='C3C'!K55 -> 0
A16: ='Org structure'!A12 -> Vote 11 - | C16: ='C3C'!C56 -> 0 | D16: ='C3C'!D56 -> 0 | E16: ='C3C'!E56 -> 0 | F16: ='C3C'!F56 -> 0 | G16: ='C3C'!G56 -> 0 | H16: ='C3C'!H56 -> 0 | I16: 0 | K16: ='C3C'!K56 -> 0
A17: ='Org structure'!A13 -> Vote 12 - | C17: ='C3C'!C57 -> 0 | D17: ='C3C'!D57 -> 0 | E17: ='C3C'!E57 -> 0 | F17: ='C3C'!F57 -> 0 | G17: ='C3C'!G57 -> 0 | H17: ='C3C'!H57 -> 0 | I17: 0 | K17: ='C3C'!K57 -> 0
A18: ='Org structure'!A14 -> Vote 13 - | C18: ='C3C'!C58 -> 0 | D18: ='C3C'!D58 -> 0 | E18: ='C3C'!E58 -> 0 | F18: ='C3C'!F58 -> 0 | G18: ='C3C'!G58 -> 0 | H18: ='C3C'!H58 -> 0 | I18: 0 | K18: ='C3C'!K58 -> 0
A19: ='Org structure'!A15 -> Vote 14 - | C19: ='C3C'!C59 -> 0 | D19: ='C3C'!D59 -> 0 | E19: ='C3C'!E59 -> 0 | F19: ='C3C'!F59 -> 0 | G19: ='C3C'!G59 -> 0 | H19: ='C3C'!H59 -> 0 | I19: 0 | K19: ='C3C'!K59 -> 0
A20: ='Org structure'!A16 -> Vote 15 - Other | C20: ='C3C'!C60 -> 0 | D20: ='C3C'!D60 -> 0 | E20: ='C3C'!E60 -> 0 | F20: ='C3C'!F60 -> 0 | G20: ='C3C'!G60 -> 0 | H20: ='C3C'!H60 -> 0 | I20: 0 | K20: ='C3C'!K60 -> 0
A21: Total Revenue by Vote | B21: 2 | C21: =SUM(C6:C20) -> 147130233.7 | D21: =SUM(D6:D20) -> 444474127 | E21: 510524250 | F21: 20225930.34 | G21: 380325064.5 | H21: 330552532 | I21: 49772532.48 | J21: 0.1505737444 | K21: =SUM(K6:K20) -> 510524250
A23: Expenditure by Vote | B23: 1
A24: ='Org structure'!A2 -> Vote 01 - Executive & Council | C24: ='C3C'!C64 -> 5878017.43 | D24: ='C3C'!D64 -> 41370333 | E24: ='C3C'!E64 -> 36092103 | F24: ='C3C'!F64 -> 2756627.61 | G24: ='C3C'!G64 -> 26218099.64 | H24: ='C3C'!H64 -> 26688848 | I24: =G24-H24 -> -470748.36 | J24: =IF(I24=0,"",I24/H24) -> -0.01763839189 | K24: ='C3C'!K64 -> 36092103
A25: ='Org structure'!A3 -> Vote 02 - Municipal Manager | C25: ='C3C'!C67 -> 3857393.6 | D25: ='C3C'!D67 -> 16630952 | E25: ='C3C'!E67 -> 19166217 | F25: ='C3C'!F67 -> 1851561.47 | G25: ='C3C'!G67 -> 19469898.04 | H25: ='C3C'!H67 -> 12194379 | I25: 7275519.04 | J25: 0.5966289091 | K25: ='C3C'!K67 -> 19166217
A26: ='Org structure'!A4 -> Vote 03 - Corporate Services | C26: ='C3C'!C73 -> 13061529.98 | D26: ='C3C'!D73 -> 68583673 | E26: ='C3C'!E73 -> 74827479 | F26: ='C3C'!F73 -> 3181555.95 | G26: ='C3C'!G73 -> 33129998.3 | H26: ='C3C'!H73 -> 48726626 | I26: -15596627.7 | J26: -0.3200842944 | K26: ='C3C'!K73 -> 74827479
A27: ='Org structure'!A5 -> Vote 04 - Budget And Treasury | C27: ='C3C'!C81 -> 5871963.78 | D27: ='C3C'!D81 -> 56598436 | E27: ='C3C'!E81 -> 59354317 | F27: ='C3C'!F81 -> 1386408.9 | G27: ='C3C'!G81 -> 20835376.27 | H27: ='C3C'!H81 -> 38982357 | I27: -18146980.73 | J27: -0.4655177913 | K27: ='C3C'!K81 -> 59354317
A28: ='Org structure'!A6 -> Vote 05 - Community Services | C28: ='C3C'!C88 -> 9399975.62 | D28: ='C3C'!D88 -> 53508658 | E28: ='C3C'!E88 -> 59020805 | F28: ='C3C'!F88 -> 3421680.54 | G28: ='C3C'!G88 -> 27394469.97 | H28: ='C3C'!H88 -> 37928831 | I28: -10534361.03 | J28: -0.277740198 | K28: ='C3C'!K88 -> 59020805
A29: ='Org structure'!A7 -> Vote 06 - Planning And Development | C29: ='C3C'!C97 -> 4544465.11 | D29: ='C3C'!D97 -> 29506380 | E29: ='C3C'!E97 -> 24475826 | F29: ='C3C'!F97 -> 1209767.96 | G29: ='C3C'!G97 -> 6749980.05 | H29: ='C3C'!H97 -> 18784834 | I29: -12034853.95 | J29: -0.6406686346 | K29: ='C3C'!K97 -> 24475826
A30: ='Org structure'!A8 -> Vote 07 - Infrastructure Development | C30: ='C3C'!C106 -> 4694479.02 | D30: ='C3C'!D106 -> 43607445 | E30: ='C3C'!E106 -> 74501156 | F30: ='C3C'!F106 -> 2747490.64 | G30: ='C3C'!G106 -> 22183093.38 | H30: ='C3C'!H106 -> 41176163 | I30: -18993069.62 | J30: -0.4612637078 | K30: ='C3C'!K106 -> 74501156
A31: ='Org structure'!A9 -> Vote 08 - | C31: ='C3C'!C111 -> 0 | D31: ='C3C'!D111 -> 0 | E31: ='C3C'!E111 -> 0 | F31: ='C3C'!F111 -> 0 | G31: ='C3C'!G111 -> 0 | H31: ='C3C'!H111 -> 0 | I31: =G31-H31 -> 0 | J31: =IF(I31=0,"",I31/H31) ->  | K31: ='C3C'!K111 -> 0
A32: ='Org structure'!A10 -> Vote 09 - | C32: ='C3C'!C112 -> 0 | D32: ='C3C'!D112 -> 0 | E32: ='C3C'!E112 -> 0 | F32: ='C3C'!F112 -> 0 | G32: ='C3C'!G112 -> 0 | H32: ='C3C'!H112 -> 0 | I32: 0 | K32: ='C3C'!K112 -> 0
A33: ='Org structure'!A11 -> Vote 10 - | C33: ='C3C'!C113 -> 0 | D33: ='C3C'!D113 -> 0 | E33: ='C3C'!E113 -> 0 | F33: ='C3C'!F113 -> 0 | G33: ='C3C'!G113 -> 0 | H33: ='C3C'!H113 -> 0 | I33: 0 | J33: =IF(I33=0,"",I33/H33) ->  | K33: ='C3C'!K113 -> 0
A34: ='Org structure'!A12 -> Vote 11 - | C34: ='C3C'!C114 -> 0 | D34: ='C3C'!D114 -> 0 | E34: ='C3C'!E114 -> 0 | F34: ='C3C'!F114 -> 0 | G34: ='C3C'!G114 -> 0 | H34: ='C3C'!H114 -> 0 | I34: 0 | J34: =IF(I34=0,"",I34/H34) ->  | K34: ='C3C'!K114 -> 0
A35: ='Org structure'!A13 -> Vote 12 - | C35: ='C3C'!C115 -> 0 | D35: ='C3C'!D115 -> 0 | E35: ='C3C'!E115 -> 0 | F35: ='C3C'!F115 -> 0 | G35: ='C3C'!G115 -> 0 | H35: ='C3C'!H115 -> 0 | I35: 0 | J35: =IF(I35=0,"",I35/H35) ->  | K35: ='C3C'!K115 -> 0
A36: ='Org structure'!A14 -> Vote 13 - | C36: ='C3C'!C116 -> 0 | D36: ='C3C'!D116 -> 0 | E36: ='C3C'!E116 -> 0 | F36: ='C3C'!F116 -> 0 | G36: ='C3C'!G116 -> 0 | H36: ='C3C'!H116 -> 0 | I36: 0 | J36: =IF(I36=0,"",I36/H36) ->  | K36: ='C3C'!K116 -> 0
A37: ='Org structure'!A15 -> Vote 14 - | C37: ='C3C'!C117 -> 0 | D37: ='C3C'!D117 -> 0 | E37: ='C3C'!E117 -> 0 | F37: ='C3C'!F117 -> 0 | G37: ='C3C'!G117 -> 0 | H37: ='C3C'!H117 -> 0 | I37: 0 | J37: =IF(I37=0,"",I37/H37) ->  | K37: ='C3C'!K117 -> 0
A38: ='Org structure'!A16 -> Vote 15 - Other | C38: ='C3C'!C118 -> 0 | D38: ='C3C'!D118 -> 0 | E38: ='C3C'!E118 -> 0 | F38: ='C3C'!F118 -> 0 | G38: ='C3C'!G118 -> 0 | H38: ='C3C'!H118 -> 0 | I38: 0 | K38: ='C3C'!K118 -> 0
A39: Total Expenditure by Vote | B39: 2 | C39: =SUM(C24:C38) -> 47307824.54 | D39: =SUM(D24:D38) -> 309805877 | E39: 347437903 | F39: 16555093.07 | G39: 155980915.6 | H39: 224482038 | I39: -68501122.35 | J39: =IF(I39=0,"",I39/H39) -> -0.3051519086 | K39: =SUM(K24:K38) -> 347437903
A40: =result -> Surplus/ (Deficit) for the year | B40: 2 | C40: =C21-C39 -> 99822409.13 | D40: 134668250 | E40: 163086347 | F40: 3670837.27 | G40: 224344148.8 | H40: 106070494 | I40: =I21-I39 -> 118273654.8 | J40: =IF(I40=0,"",I40/H40) -> 1.115047648 | K40: =K21-K39 -> 163086347
A41: =head27a -> References
A42: 1. Insert 'Vote'; e.g. Department, if different to standard classification structure
A43: 2. Must reconcile to Monthly Budget Statement - Financial Performance Statement (standard classification)

Sheet C3C
A1: =muni& " - "&S71C& " - "&"A"& " - "&date -> LIM355 Lepelle-Nkumpi - Table C3 Monthly Budget Statement - Financial Performance (revenue and expenditure by municipal vote) - A - M08 February
A2: =Vdesc -> Vote Description | B2: =head27 -> Ref | C2: =Head1 -> 2019/20 | D2: =Head2 -> Budget Year 2020/21 | L2: =Head4 -> 
A3: R thousand | C3: =Head5 -> Audited Outcome | D3: =Head6 -> Original Budget | E3: =Head7 -> Adjusted Budget | F3: =Head38 -> Monthly actual | G3: =Head39 -> YearTD actual | H3: =Head40 -> YearTD budget | I3: =Head41 -> YTD variance | J3: =Head41 -> YTD variance | K3: =Head8 -> Full Year Forecast | L3: =Head12 -> Forecast 2010/11 | M3: =Head13 -> Forecast 2011/12 | N3: =Head14 -> Forecast 2012/13 | O3: =Head15 -> Forecast 2013/14 | P3: =Head16 -> Forecast 2014/15 | Q3: =Head17 -> Forecast 2015/16 | R3: =Head18 -> Forecast 2016/17 | S3: =Head19 -> Forecast 2017/18 | T3: =Head20 -> Forecast 2018/19 | U3: =Head21 -> Forecast 2019/20 | V3: =Head22 -> Forecast 2020/21 | W3: =Head23 -> Forecast 2021/22
J4: %
A5: Revenue by Vote | B5: 1
A6: ='Org structure'!A2 -> Vote 01 - Executive & Council | C6: =SUM(C7:C8) -> 0 | D6: 0 | E6: 0 | F6: 0 | G6: 0 | H6: 0 | I6: =G6-H6 -> 0 | J6: =IF(I6=0,"",I6/H6) ->  | K6: =SUM(K7:K8) -> 0
A7: ='Org structure'!E3 -> 01.1 - Mayor & Councillors | C7: 0 | D7: 0 | E7: 0 | F7: 0 | G7: 0 | H7: 0 | I7: =G7-H7 -> 0 | J7: =IF(I7=0,"",I7/H7) ->  | K7: 0
A8: ='Org structure'!E4 -> 01.2 - Mayor & Council Support | C8: 0 | D8: 0 | E8: 0 | F8: 0 | G8: 0 | H8: 0 | I8: =G8-H8 -> 0 | J8: =IF(I8=0,"",I8/H8) ->  | K8: 0
A9: ='Org structure'!A3 -> Vote 02 - Municipal Manager | C9: =SUM(C10:C14) -> 0 | D9: 0 | E9: 0 | F9: 0 | G9: 0 | H9: 0 | I9: 0 | K9: =SUM(K10:K14) -> 0
A10: ='Org structure'!E6 -> 02.1 - Municipal Manager | C10: 0 | D10: 0 | E10: 0 | F10: 0 | G10: 0 | H10: 0 | I10: =G10-H10 -> 0 | J10: =IF(I10=0,"",I10/H10) ->  | K10: 0
A11: ='Org structure'!E7 -> 02.2 - Municipal Manager Support | C11: 0 | D11: 0 | E11: 0 | F11: 0 | G11: 0 | H11: 0 | I11: =G11-H11 -> 0 | J11: =IF(I11=0,"",I11/H11) ->  | K11: 0
A12: ='Org structure'!E8 -> 02.3 - Internal Audit | C12: 0 | D12: 0 | E12: 0 | F12: 0 | G12: 0 | H12: 0 | I12: =G12-H12 -> 0 | J12: =IF(I12=0,"",I12/H12) ->  | K12: 0
A13: ='Org structure'!E9 -> 02.4 - Communications | C13: 0 | D13: 0 | E13: 0 | F13: 0 | G13: 0 | H13: 0 | I13: =G13-H13 -> 0 | J13: =IF(I13=0,"",I13/H13) ->  | K13: 0
A14: ='Org structure'!E10 -> 02.5 - Risk Management | C14: 0 | D14: 0 | E14: 0 | F14: 0 | G14: 0 | H14: 0 | I14: =G14-H14 -> 0 | J14: =IF(I14=0,"",I14/H14) ->  | K14: 0
A15: ='Org structure'!A4 -> Vote 03 - Corporate Services | C15: =SUM(C16:C22) -> 39940.2 | D15: 430930 | E15: 430930 | F15: 695.66 | G15: 145053.94 | H15: 287288 | I15: -142234.06 | J15: -0.4950922419 | K15: =SUM(K16:K22) -> 430930
A16: ='Org structure'!E12 -> 03.1 - Executive Manager: Corporate Services | C16: 0 | D16: 0 | E16: 0 | F16: 0 | G16: 0 | H16: 0 | I16: =G16-H16 -> 0 | J16: =IF(I16=0,"",I16/H16) ->  | K16: 0
A17: ='Org structure'!E13 -> 03.2 - Human Resource Management & Development | C17: 0 | D17: 221930 | E17: 221930 | F17: 0 | G17: 62075 | H17: 147952 | I17: -85877 | J17: -0.5804382502 | K17: 221930
A18: ='Org structure'!E14 -> 03.3 - Information Technology | C18: 39940.2 | D18: 209000 | E18: 209000 | F18: 695.66 | G18: 82978.94 | H18: 139336 | I18: -56357.06 | J18: -0.4044687661 | K18: 209000
A19: ='Org structure'!E15 -> 03.4 - Legal Services | C19: 0 | D19: 0 | E19: 0 | F19: 0 | G19: 0 | H19: 0 | I19: 0 | K19: 0
A20: ='Org structure'!E16 -> 03.5 - Gen Adm_Sec_Fleet: General Administrat | C20: 0 | D20: 0 | E20: 0 | F20: 0 | G20: 0 | H20: 0 | I20: 0 | K20: 0
A21: ='Org structure'!E17 -> 03.6 - Gen Adm_Sec_Fleet: Security Services | C21: 0 | D21: 0 | E21: 0 | F21: 0 | G21: 0 | H21: 0 | I21: 0 | K21: 0
A22: ='Org structure'!E18 -> 03.7 - Gen Adm_Sec_Fleet: Fleet Management | C22: 0 | D22: 0 | E22: 0 | F22: 0 | G22: 0 | H22: 0 | I22: 0 | K22: 0
A23: ='Org structure'!A5 -> Vote 04 - Budget And Treasury | C23: =SUM(C24:C29) -> 109460966.7 | D23: 332024356 | E23: 384579410 | F23: 1891680.54 | G23: 266930834.3 | H23: 252887004 | I23: 14043830.34 | J23: 0.05553401368 | K23: =SUM(K24:K29) -> 384579410
A24: ='Org structure'!E20 -> 04.1 - Chief Financial Officer | C24: 0 | D24: 0 | E24: 0 | F24: 0 | G24: 0 | H24: 0 | I24: =G24-H24 -> 0 | J24: =IF(I24=0,"",I24/H24) ->  | K24: 0
A25: ='Org structure'!E21 -> 04.2 - Budget Planning & Management | C25: 104662677.7 | D25: 267947000 | E25: 320513000 | F25: 261285.27 | G25: 253366805.4 | H25: 210170936 | I25: 43195869.38 | J25: 0.2055273208 | K25: 320513000
A26: ='Org structure'!E22 -> 04.3 - Expenditure Management | C26: 0 | D26: 0 | E26: 0 | F26: 0 | G26: 1343769.55 | H26: 0 | I26: 1343769.55 | K26: 0
A27: ='Org structure'!E23 -> 04.4 - Revenue Management | C27: 4671635.88 | D27: 63660059 | E27: 63649113 | F27: 1630395.27 | G27: 12215737.68 | H27: 42437868 | I27: -30222130.32 | J27: -0.7121500618 | K27: 63649113
A28: ='Org structure'!E24 -> 04.5 - Asset Management | C28: 0 | D28: 40531 | E28: 40531 | F28: 0 | G28: 0 | H28: 27024 | I28: -27024 | J28: -1 | K28: 40531
A29: ='Org structure'!E25 -> 04.6 - Supply Chain Management | C29: 126653.14 | D29: 376766 | E29: 376766 | F29: 0 | G29: 4521.73 | H29: 251176 | I29: -246654.27 | J29: -0.9819977625 | K29: 376766
A30: ='Org structure'!A6 -> Vote 05 - Community Services | C30: =SUM(C31:C38) -> 2800356.61 | D30: 19485789 | E30: 21515533 | F30: 1743237.34 | G30: 10685515.73 | H30: 13396471 | I30: -2710955.27 | J30: -0.2023633888 | K30: =SUM(K31:K38) -> 21515533
A31: ='Org structure'!E27 -> 05.1 - Executive Manager: Community Services | C31: 0 | D31: 0 | E31: 0 | F31: 0 | G31: 0 | H31: 0 | I31: =G31-H31 -> 0 | J31: =IF(I31=0,"",I31/H31) ->  | K31: 0
A32: ='Org structure'!E28 -> 05.2 - Waste Management Services | C32: 3116088.34 | D32: 8187553 | E32: 8455413 | F32: 1129058.61 | G32: 5181212.1 | H32: 5511940 | I32: -330727.9 | J32: -0.06000208638 | K32: 8455413
A33: ='Org structure'!E29 -> 05.3 - Road Traffic & Law Enforce: Traffic Serv | C33: -1352688.84 | D33: 2604693 | E33: 4091600 | F33: 11015 | G33: 673474.01 | H33: 2033846 | I33: -1360371.99 | J33: -0.6688667628 | K33: 4091600
A34: ='Org structure'!E30 -> 05.4 - Road Traffic&Law Enforce: Licencing Serv | C34: 963757.07 | D34: 8430450 | E34: 8428108 | F34: 599146.35 | G34: 4666107.86 | H34: 5619828 | I34: -953720.14 | J34: -0.1697062864 | K34: 8428108
A35: ='Org structure'!E31 -> 05.5 - Road Traffic&Law Enforce: Pound | C35: 15721.73 | D35: 28403 | E35: 2000 | F35: 0 | G35: 1052.17 | H35: 13656 | I35: -12603.83 | J35: -0.9229518161 | K35: 2000
A36: ='Org structure'!E32 -> 05.6 - Institutional & Social Dev Management | C36: 16260.95 | D36: 99001 | E36: 201277 | F36: 4017.38 | G36: 145869.26 | H36: 86455 | I36: 59414.26 | J36: 0.687227575 | K36: 201277
A37: ='Org structure'!E33 -> 05.7 - Libraries And Archives | C37: 0 | D37: 4397 | E37: 1000 | F37: 0 | G37: 0 | H37: 2249 | I37: -2249 | J37: -1 | K37: 1000
A38: ='Org structure'!E34 -> 05.8 - Community Halls And Facilities | C38: 41217.36 | D38: 131292 | E38: 336135 | F38: 0 | G38: 17800.33 | H38: 128497 | I38: -110696.67 | J38: -0.861472797 | K38: 336135
A39: ='Org structure'!A7 -> Vote 06 - Planning And Development | C39: =SUM(C40:C47) -> 10602840.95 | D39: 38813052 | E39: 34110836 | F39: 2780116.57 | G39: 22192001.53 | H39: 24934925 | I39: -2742923.47 | J39: -0.1100032773 | K39: =SUM(K40:K47) -> 34110836
A40: ='Org structure'!E36 -> 06.1 - Executive Manager:Planning & Development | C40: 0 | D40: 0 | E40: 0 | F40: 0 | G40: 0 | H40: 0 | I40: =G40-H40 -> 0 | J40: =IF(I40=0,"",I40/H40) ->  | K40: 0
A41: ='Org structure'!E37 -> 06.2 - Economic Development & Planning | C41: 916808.3 | D41: 70324 | E41: 4347 | F41: 0 | G41: 13.04 | H41: 33686 | I41: -33672.96 | J41: -0.9996128956 | K41: 4347
A42: ='Org structure'!E38 -> 06.3 - Development & Town Planning | C42: 1213214 | D42: 6742538 | E42: 1812536 | F42: 150426.68 | G42: 1085660.02 | H42: 3509039 | I42: -2423378.98 | J42: -0.6906104435 | K42: 1812536
A43: ='Org structure'!E39 -> 06.4 - Property Management & Housing | C43: 8472818.65 | D43: 32000190 | E43: 31900190 | F43: 2629689.89 | G43: 21106328.47 | H43: 21313448 | I43: -207119.53 | J43: -0.00971778616 | K43: 31900190
A44: ='Org structure'!E40 -> 06.5 - Integrated Development Planning | C44: 0 | D44: 0 | E44: 377308 | F44: 0 | G44: 0 | H44: 75461 | I44: -75461 | J44: -1 | K44: 377308
A45: ='Org structure'!E41 -> 06.6 - Performance Management | C45: 0 | D45: 0 | E45: 0 | F45: 0 | G45: 0 | H45: 0 | I45: 0 | K45: 0
A46: ='Org structure'!E42 -> 06.7 - Environmental Management Services | C46: 0 | D46: 0 | E46: 16455 | F46: 0 | G46: 0 | H46: 3291 | I46: -3291 | J46: -1 | K46: 16455
A47: ='Org structure'!E43 -> 06.8 - Disaster Management | C47: 0 | D47: 0 | E47: 0 | F47: 0 | G47: 0 | H47: 0 | I47: 0 | K47: 0
A48: ='Org structure'!A8 -> Vote 07 - Infrastructure Development | C48: =SUM(C49:C52) -> 24226129.21 | D48: 53720000 | E48: 69887541 | F48: 13810200.23 | G48: 80371658.94 | H48: 39046844 | I48: =G48-H48 -> 41324814.94 | J48: =IF(I48=0,"",I48/H48) -> 1.058339438 | K48: =SUM(K49:K52) -> 69887541
A49: ='Org structure'!E45 -> 07.1 - Executive Manager: Infrastructure Dev | C49: 0 | D49: 0 | E49: 0 | F49: 0 | G49: 0 | H49: 0 | I49: =G49-H49 -> 0 | J49: =IF(I49=0,"",I49/H49) ->  | K49: 0
A50: ='Org structure'!E46 -> 07.2 - Road Construction & Maintenance | C50: 20242401.48 | D50: 0 | E50: 0 | F50: 8309836.64 | G50: 68029866.91 | H50: 0 | I50: =G50-H50 -> 68029866.91 | J50: =IF(I50=0,"",I50/H50) ->  | K50: 0
A51: ='Org structure'!E47 -> 07.3 - Electrical & Mechanical Works | C51: 0 | D51: 0 | E51: 0 | F51: 0 | G51: 0 | H51: 0 | I51: =G51-H51 -> 0 | J51: =IF(I51=0,"",I51/H51) ->  | K51: 0
A52: ='Org structure'!E48 -> 07.4 - Project Management | C52: 3983727.73 | D52: 53720000 | E52: 69887541 | F52: 5500363.59 | G52: 12341792.03 | H52: 39046844 | I52: =G52-H52 -> -26705051.97 | J52: =IF(I52=0,"",I52/H52) -> -0.6839234426 | K52: 69887541
A53: ='Org structure'!A9 -> Vote 08 - | C53: 0 | D53: 0 | E53: 0 | F53: 0 | G53: 0 | H53: 0 | I53: 0 | K53: 0
A54: ='Org structure'!A10 -> Vote 09 - | C54: 0 | D54: 0 | E54: 0 | F54: 0 | G54: 0 | H54: 0 | I54: 0 | K54: 0
A55: ='Org structure'!A11 -> Vote 10 - | C55: 0 | D55: 0 | E55: 0 | F55: 0 | G55: 0 | H55: 0 | I55: 0 | K55: 0
A56: ='Org structure'!A12 -> Vote 11 - | C56: 0 | D56: 0 | E56: 0 | F56: 0 | G56: 0 | H56: 0 | I56: 0 | K56: 0
A57: ='Org structure'!A13 -> Vote 12 - | C57: 0 | D57: 0 | E57: 0 | F57: 0 | G57: 0 | H57: 0 | I57: 0 | K57: 0
A58: ='Org structure'!A14 -> Vote 13 - | C58: 0 | D58: 0 | E58: 0 | F58: 0 | G58: 0 | H58: 0 | I58: =G58-H58 -> 0 | J58: =IF(I58=0,"",I58/H58) ->  | K58: 0
A59: ='Org structure'!A15 -> Vote 14 - | C59: 0 | D59: 0 | E59: 0 | F59: 0 | G59: 0 | H59: 0 | I59: 0 | K59: 0
A60: ='Org structure'!A16 -> Vote 15 - Other | C60: 0 | D60: 0 | E60: 0 | F60: 0 | G60: 0 | H60: 0 | I60: 0 | K60: 0
A61: Total Revenue by Vote | B61: 2 | C61: =C6+C9+C15+C23+C30+C39+C48+C53+C54+C55+C56+C57+C58+C59+C60 -> 147130233.7 | D61: 444474127 | E61: 510524250 | F61: 20225930.34 | G61: 380325064.5 | H61: 330552532 | I61: 49772532.48 | J61: 0.1505737444 | K61: =K6+K9+K15+K23+K30+K39+K48+K53+K54+K55+K56+K57+K58+K59+K60 -> 510524250
I62: 0
A63: Expenditure by Vote | B63: 1 | I63: 0
A64: ='Org structure'!A2 -> Vote 01 - Executive & Council | C64: =SUM(C65:C66) -> 5878017.43 | D64: 41370333 | E64: 36092103 | F64: 2756627.61 | G64: 26218099.64 | H64: 26688848 | I64: -470748.36 | J64: -0.01763839189 | K64: =SUM(K65:K66) -> 36092103
A65: ='Org structure'!E3 -> 01.1 - Mayor & Councillors | C65: 3744580.79 | D65: 31605649 | E65: 31380933 | F65: 3218458.01 | G65: 18431901.08 | H65: 21025500 | I65: =G65-H65 -> -2593598.92 | J65: =IF(I65=0,"",I65/H65) -> -0.1233549224 | K65: 31380933
A66: ='Org structure'!E4 -> 01.2 - Mayor & Council Support | C66: 2133436.64 | D66: 9764684 | E66: 4711170 | F66: -461830.4 | G66: 7786198.56 | H66: 5663348 | I66: =G66-H66 -> 2122850.56 | J66: =IF(I66=0,"",I66/H66) -> 0.3748402111 | K66: 4711170
A67: ='Org structure'!A3 -> Vote 02 - Municipal Manager | C67: =SUM(C68:C72) -> 3857393.6 | D67: 16630952 | E67: 19166217 | F67: 1851561.47 | G67: 19469898.04 | H67: 12194379 | I67: 7275519.04 | J67: 0.5966289091 | K67: =SUM(K68:K72) -> 19166217
A68: ='Org structure'!E6 -> 02.1 - Municipal Manager | C68: 28211.22 | D68: 1459263 | E68: 384383 | F68: 2000 | G68: 164426.32 | H68: 757864 | I68: =G68-H68 -> -593437.68 | J68: =IF(I68=0,"",I68/H68) -> -0.7830398066 | K68: 384383
A69: ='Org structure'!E7 -> 02.2 - Municipal Manager Support | C69: 821739.78 | D69: 2055543 | E69: 2073061 | F69: 129352.77 | G69: 4754174.34 | H69: 1373872 | I69: =G69-H69 -> 3380302.34 | J69: =IF(I69=0,"",I69/H69) -> 2.460420141 | K69: 2073061
A70: ='Org structure'!E8 -> 02.3 - Internal Audit | C70: 1656440.59 | D70: 8129247 | E70: 8637345 | F70: 519220.24 | G70: 1132452.44 | H70: 5521140 | I70: =G70-H70 -> -4388687.56 | J70: =IF(I70=0,"",I70/H70) -> -0.7948879326 | K70: 8637345
A71: ='Org structure'!E9 -> 02.4 - Communications | C71: 1000010.49 | D71: 2023274 | E71: 3693842 | F71: 114189.87 | G71: 10598643.9 | H71: 1682958 | I71: =G71-H71 -> 8915685.9 | J71: =IF(I71=0,"",I71/H71) -> 5.297628283 | K71: 3693842
A72: ='Org structure'!E10 -> 02.5 - Risk Management | C72: 350991.52 | D72: 2963625 | E72: 4377586 | F72: 1086798.59 | G72: 2820201.04 | H72: 2858545 | I72: =G72-H72 -> -38343.96 | J72: =IF(I72=0,"",I72/H72) -> -0.01341380318 | K72: 4377586
A73: ='Org structure'!A4 -> Vote 03 - Corporate Services | C73: =SUM(C74:C80) -> 13061529.98 | D73: 68583673 | E73: 74827479 | F73: 3181555.95 | G73: 33129998.3 | H73: 48726626 | I73: -15596627.7 | J73: -0.3200842944 | K73: =SUM(K74:K80) -> 74827479
A74: ='Org structure'!E12 -> 03.1 - Executive Manager: Corporate Services | C74: 0 | D74: 1195502 | E74: 1195502 | F74: 91732.5 | G74: 91732.5 | H74: 797000 | I74: =G74-H74 -> -705267.5 | J74: =IF(I74=0,"",I74/H74) -> -0.8849027604 | K74: 1195502
A75: ='Org structure'!E13 -> 03.2 - Human Resource Management & Development | C75: 2073196.74 | D75: 8864309 | E75: 9181262 | F75: 340657.45 | G75: 5358078.47 | H75: 6400656 | I75: -1042577.53 | J75: -0.1628860432 | K75: 9181262
A76: ='Org structure'!E14 -> 03.3 - Information Technology | C76: 1063297.72 | D76: 7851479 | E76: 6041293 | F76: 250613.13 | G76: 2517805.26 | H76: 4860850 | I76: -2343044.74 | J76: -0.4820236666 | K76: 6041293
A77: ='Org structure'!E15 -> 03.4 - Legal Services | C77: 1366637.65 | D77: 6150372 | E77: 12129478 | F77: 311914.52 | G77: 7010714.21 | H77: 6107504 | I77: 903210.21 | J77: 0.1478853243 | K77: 12129478
A78: ='Org structure'!E16 -> 03.5 - Gen Adm_Sec_Fleet: General Administrat | C78: 7962892.94 | D78: 39486806 | E78: 32825151 | F78: 1712567.46 | G78: 15678830.26 | H78: 25519901 | I78: -9841070.74 | J78: -0.3856233902 | K78: 32825151
A79: ='Org structure'!E17 -> 03.6 - Gen Adm_Sec_Fleet: Security Services | C79: 0 | D79: 0 | E79: 207970 | F79: 0 | G79: 0 | H79: 41592 | I79: -41592 | J79: -1 | K79: 207970
A80: ='Org structure'!E18 -> 03.7 - Gen Adm_Sec_Fleet: Fleet Management | C80: 595504.93 | D80: 5035205 | E80: 13246823 | F80: 474070.89 | G80: 2472837.6 | H80: 4999123 | I80: -2526285.4 | J80: -0.5053457176 | K80: 13246823
A81: ='Org structure'!A5 -> Vote 04 - Budget And Treasury | C81: =SUM(C82:C87) -> 5871963.78 | D81: 56598436 | E81: 59354317 | F81: 1386408.9 | G81: 20835376.27 | H81: 38982357 | I81: =G81-H81 -> -18146980.73 | J81: =IF(I81=0,"",I81/H81) -> -0.4655177913 | K81: =SUM(K82:K87) -> 59354317
A82: ='Org structure'!E20 -> 04.1 - Chief Financial Officer | C82: 0 | D82: 1203256 | E82: 535560 | F82: 89185.5 | G82: 174371 | H82: 668629 | I82: =G82-H82 -> -494258 | J82: =IF(I82=0,"",I82/H82) -> -0.739211132 | K82: 535560
A83: ='Org structure'!E21 -> 04.2 - Budget Planning & Management | C83: 1366256.25 | D83: 12369797 | E83: 16238230 | F83: 250747.81 | G83: 14708920.15 | H83: 9222503 | I83: 5486417.15 | J83: 0.594894591 | K83: 16238230
A84: ='Org structure'!E22 -> 04.3 - Expenditure Management | C84: 999064.07 | D84: 3770759 | E84: 3753585 | F84: 294018.09 | G84: 1421749.31 | H84: 2510414 | I84: -1088664.69 | J84: -0.4336594243 | K84: 3753585
A85: ='Org structure'!E23 -> 04.4 - Revenue Management | C85: 1414346.93 | D85: 28083234 | E85: 27953477 | F85: 500199.48 | G85: 666310.21 | H85: 18898449 | I85: -18232138.79 | J85: -0.9647425982 | K85: 27953477
A86: ='Org structure'!E24 -> 04.5 - Asset Management | C86: 1492531.8 | D86: 7487183 | E86: 7275584 | F86: 218663.96 | G86: 3830191.54 | H86: 4949129 | I86: -1118937.46 | J86: -0.226087754 | K86: 7275584
A87: ='Org structure'!E25 -> 04.6 - Supply Chain Management | C87: 599764.73 | D87: 3684207 | E87: 3597881 | F87: 33594.06 | G87: 33834.06 | H87: 2733233 | I87: -2699398.94 | J87: -0.987621231 | K87: 3597881
A88: ='Org structure'!A6 -> Vote 05 - Community Services | C88: =SUM(C89:C96) -> 9399975.62 | D88: 53508658 | E88: 59020805 | F88: 3421680.54 | G88: 27394469.97 | H88: 37928831 | I88: -10534361.03 | J88: -0.277740198 | K88: =SUM(K89:K96) -> 59020805
A89: ='Org structure'!E27 -> 05.1 - Executive Manager: Community Services | C89: 0 | D89: 1208042 | E89: 1195502 | F89: 76537.25 | G89: 76537.25 | H89: 802852 | I89: =G89-H89 -> -726314.75 | J89: =IF(I89=0,"",I89/H89) -> -0.904668295 | K89: 1195502
A90: ='Org structure'!E28 -> 05.2 - Waste Management Services | C90: 2815846.64 | D90: 18143063 | E90: 20624455 | F90: 1193743.49 | G90: 20015362.49 | H90: 13424654 | I90: 6590708.49 | J90: 0.4909406596 | K90: 20624455
A91: ='Org structure'!E29 -> 05.3 - Road Traffic & Law Enforce: Traffic Serv | C91: 2021983.83 | D91: 10813045 | E91: 13427354 | F91: 713508.79 | G91: 806033.87 | H91: 8002196 | I91: -7196162.13 | J91: -0.8992734157 | K91: 13427354
A92: ='Org structure'!E30 -> 05.4 - Road Traffic&Law Enforce: Licencing Serv | C92: 2270181.16 | D92: 8368309 | E92: 8247217 | F92: 573700.49 | G92: 751071.04 | H92: 5554663 | I92: -4803591.96 | J92: -0.8647854892 | K92: 8247217
A93: ='Org structure'!E31 -> 05.5 - Road Traffic&Law Enforce: Pound | C93: 219694.96 | D93: 758387 | E93: 660160 | F93: 48732.96 | G93: 48732.96 | H93: 485947 | I93: -437214.04 | J93: -0.8997154834 | K93: 660160
A94: ='Org structure'!E32 -> 05.6 - Institutional & Social Dev Management | C94: 1413184.21 | D94: 4374664 | E94: 2955154 | F94: 58406.11 | G94: 58406.11 | H94: 2682860 | I94: -2624453.89 | J94: -0.9782299076 | K94: 2955154
A95: ='Org structure'!E33 -> 05.7 - Libraries And Archives | C95: 146463.27 | D95: 1227349 | E95: 1192349 | F95: 68871.89 | G95: 550975.12 | H95: 811224 | I95: -260248.88 | J95: -0.3208101338 | K95: 1192349
A96: ='Org structure'!E34 -> 05.8 - Community Halls And Facilities | C96: 512621.55 | D96: 8615799 | E96: 10718614 | F96: 688179.56 | G96: 5087351.13 | H96: 6164435 | I96: -1077083.87 | J96: -0.1747254809 | K96: 10718614
A97: ='Org structure'!A7 -> Vote 06 - Planning And Development | C97: =SUM(C98:C105) -> 4544465.11 | D97: 29506380 | E97: 24475826 | F97: 1209767.96 | G97: 6749980.05 | H97: 18784834 | I97: -12034853.95 | J97: -0.6406686346 | K97: =SUM(K98:K105) -> 24475826
A98: ='Org structure'!E36 -> 06.1 - Executive Manager:Planning & Development | C98: 0 | D98: 1195502 | E98: 298876 | F98: 0 | G98: 0 | H98: 617675 | I98: =G98-H98 -> -617675 | J98: =IF(I98=0,"",I98/H98) -> -1 | K98: 298876
A99: ='Org structure'!E37 -> 06.2 - Economic Development & Planning | C99: 566638.86 | D99: 2783408 | E99: 2438883 | F99: 181598.7 | G99: 2116347.98 | H99: 1786713 | I99: 329634.98 | J99: 0.1844924059 | K99: 2438883
A100: ='Org structure'!E38 -> 06.3 - Development & Town Planning | C100: 645192.98 | D100: 3869570 | E100: 4596393 | F100: 249519.84 | G100: 249519.84 | H100: 2725083 | I100: -2475563.16 | J100: -0.9084358752 | K100: 4596393
A101: ='Org structure'!E39 -> 06.4 - Property Management & Housing | C101: 2025425.08 | D101: 15465860 | E101: 11417490 | F101: 407779.49 | G101: 3659446.5 | H101: 9500902 | I101: -5841455.5 | J101: -0.614831676 | K101: 11417490
A102: ='Org structure'!E40 -> 06.5 - Integrated Development Planning | C102: 479618.25 | D102: 2927913 | E102: 2608995 | F102: 155915.59 | G102: 329511.59 | H102: 1888162 | I102: -1558650.41 | J102: -0.8254855304 | K102: 2608995
A103: ='Org structure'!E41 -> 06.6 - Performance Management | C103: 293100.06 | D103: 1436648 | E103: 1345837 | F103: 99763.45 | G103: 99763.45 | H103: 939606 | I103: -839842.55 | J103: -0.8938241667 | K103: 1345837
A104: ='Org structure'!E42 -> 06.7 - Environmental Management Services | C104: 241563.27 | D104: 1078518 | E104: 716137 | F104: 44492.97 | G104: 76892.97 | H104: 646539 | I104: -569646.03 | J104: -0.8810698659 | K104: 716137
A105: ='Org structure'!E43 -> 06.8 - Disaster Management | C105: 292926.61 | D105: 748961 | E105: 1053215 | F105: 70697.92 | G105: 218497.72 | H105: 680154 | I105: -461656.28 | J105: -0.6787525766 | K105: 1053215
A106: ='Org structure'!A8 -> Vote 07 - Infrastructure Development | C106: =SUM(C107:C110) -> 4694479.02 | D106: 43607445 | E106: 74501156 | F106: 2747490.64 | G106: 22183093.38 | H106: 41176163 | I106: -18993069.62 | J106: -0.4612637078 | K106: =SUM(K107:K110) -> 74501156
A107: ='Org structure'!E45 -> 07.1 - Executive Manager: Infrastructure Dev | C107: 0 | D107: 1222271 | E107: 1210271 | F107: 0 | G107: 0 | H107: 812448 | I107: =G107-H107 -> -812448 | J107: =IF(I107=0,"",I107/H107) -> -1 | K107: 1210271
A108: ='Org structure'!E46 -> 07.2 - Road Construction & Maintenance | C108: 2808169.95 | D108: 19649580 | E108: 30221837 | F108: 1464204.87 | G108: 13815836.93 | H108: 16781299 | I108: =G108-H108 -> -2965462.07 | J108: =IF(I108=0,"",I108/H108) -> -0.1767123076 | K108: 30221837
A109: ='Org structure'!E47 -> 07.3 - Electrical & Mechanical Works | C109: 1860752.06 | D109: 20083844 | E109: 40829581 | F109: 1098394.04 | G109: 7083709.57 | H109: 21897040 | I109: =G109-H109 -> -14813330.43 | J109: =IF(I109=0,"",I109/H109) -> -0.6764992177 | K109: 40829581
A110: ='Org structure'!E48 -> 07.4 - Project Management | C110: 25557.01 | D110: 2651750 | E110: 2239467 | F110: 184891.73 | G110: 1283546.88 | H110: 1685376 | I110: =G110-H110 -> -401829.12 | J110: =IF(I110=0,"",I110/H110) -> -0.2384210526 | K110: 2239467
A111: ='Org structure'!A9 -> Vote 08 - | C111: 0 | D111: 0 | E111: 0 | F111: 0 | G111: 0 | H111: 0 | I111: 0 | K111: 0
A112: ='Org structure'!A10 -> Vote 09 - | C112: 0 | D112: 0 | E112: 0 | F112: 0 | G112: 0 | H112: 0 | I112: =G112-H112 -> 0 | J112: =IF(I112=0,"",I112/H112) ->  | K112: 0
A113: ='Org structure'!A11 -> Vote 10 - | C113: 0 | D113: 0 | E113: 0 | F113: 0 | G113: 0 | H113: 0 | I113: 0 | K113: 0
A114: ='Org structure'!A12 -> Vote 11 - | C114: 0 | D114: 0 | E114: 0 | F114: 0 | G114: 0 | H114: 0 | I114: 0 | K114: 0
A115: ='Org structure'!A13 -> Vote 12 - | C115: 0 | D115: 0 | E115: 0 | F115: 0 | G115: 0 | H115: 0 | I115: 0 | K115: 0
A116: ='Org structure'!A14 -> Vote 13 - | C116: 0 | D116: 0 | E116: 0 | F116: 0 | G116: 0 | H116: 0 | I116: 0 | K116: 0
A117: ='Org structure'!A15 -> Vote 14 - | C117: 0 | D117: 0 | E117: 0 | F117: 0 | G117: 0 | H117: 0 | I117: 0 | K117: 0
A118: ='Org structure'!A16 -> Vote 15 - Other | C118: 0 | D118: 0 | E118: 0 | F118: 0 | G118: 0 | H118: 0 | I118: =G118-H118 -> 0 | J118: =IF(I118=0,"",I118/H118) ->  | K118: 0
A119: Total Expenditure by Vote | B119: 2 | C119: =C64+C67+C73+C81+C88+C97+C106+C111+C112+C113+C114+C115+C116+C117+C118 -> 47307824.54 | D119: 309805877 | E119: 347437903 | F119: 16555093.07 | G119: 155980915.6 | H119: 224482038 | I119: -68501122.35 | J119: -0.3051519086 | K119: =K64+K67+K73+K81+K88+K97+K106+K111+K112+K113+K114+K115+K116+K117+K118 -> 347437903
I120: 0 | L120: =#REF!-#REF! ->  | M120: =#REF!-#REF! ->  | N120: =#REF!-#REF! ->  | O120: =#REF!-#REF! ->  | P120: =#REF!-#REF! ->  | Q120: =#REF!-#REF! ->  | R120: =#REF!-#REF! ->  | S120: =#REF!-#REF! ->  | T120: =#REF!-#REF! ->  | U120: =#REF!-#REF! ->  | V120: =#REF!-#REF! ->  | W120: =#REF!-#REF! -> 
A121: =result -> Surplus/ (Deficit) for the year | B121: 2 | C121: =C61-C119 -> 99822409.13 | D121: 134668250 | E121: 163086347 | F121: 3670837.27 | G121: 224344148.8 | H121: 106070494 | I121: 118273654.8 | J121: 1.115047648 | K121: =K61-K119 -> 163086347
A122: =head27a -> References
A123: 1. Insert 'Vote'; e.g. Department, if different to standard structure
A124: 2. Must reconcile to Financial Performance ('Revenue and Expenditure by Standard Classification' and 'Revenue and Expenditure')
A125: 3. Assign share in 'associate' to relevant Vote
A127: check revenue
A128: check expenditure

Sheet C4-FinPerf RE
A1: =muni& " - "&S71B& " - "&date -> LIM355 Lepelle-Nkumpi - Table C4 Monthly Budget Statement - Financial Performance (revenue and expenditure) - M08 February
A2: =desc -> Description | B2: =head27 -> Ref | C2: =Head1 -> 2019/20 | D2: =Head2 -> Budget Year 2020/21
C3: =Head5 -> Audited Outcome | D3: =Head6 -> Original Budget | E3: =Head7 -> Adjusted Budget | F3: =Head38 -> Monthly actual | G3: =Head39 -> YearTD actual | H3: =Head40 -> YearTD budget | I3: =Head41 -> YTD variance | J3: =Head41 -> YTD variance | K3: =Head8 -> Full Year Forecast
A4: R thousands | J4: %
A5: Revenue By Source
A6: Property rates | C6: 8369863.77 | D6: 31568339 | E6: 31568339 | F6: 2616808.89 | G6: 20934180.62 | H6: 21045544 | I6: =G6-H6 -> -111363.38 | J6: =IF(I6=0,"",I6/H6) -> -0.005291542001 | K6: 31568339
A7: Service charges - electricity revenue | I7: 0
A8: Service charges - water revenue | C8: 16512163.87 | D8: 0 | E8: 0 | F8: 4836999.2 | G8: 41450977.64 | H8: 0 | I8: 41450977.64 | K8: 0
A9: Service charges - sanitation revenue | C9: 3730237.61 | D9: 0 | E9: 0 | F9: 716692.3 | G9: 5734093.21 | H9: 0 | I9: 5734093.21 | K9: 0
A10: Service charges - refuse revenue | C10: 2823088.34 | D10: 6271577 | E10: 6539437 | F10: 539168.61 | G10: 4322822.1 | H10: 4234620 | I10: 88202.1 | J10: 0.02082881109 | K10: 6539437
A12: Rental of facilities and equipment | C12: 129468.43 | D12: 500845 | E12: 292308 | F12: 695.66 | G12: 119162.57 | H12: 292197 | I12: -173034.43 | J12: -0.5921841429 | K12: 292308
A13: Interest earned - external investments | C13: 1202955.64 | D13: 7505491 | E13: 7505491 | F13: 198622.24 | G13: 1141689.27 | H13: 5003664 | I13: -3861974.73 | J13: -0.7718293495 | K13: 7505491
A14: Interest earned - outstanding debtors | C14: 0 | D14: 12032957 | E14: 12032957 | F14: 4175835.38 | G14: 31707269.05 | H14: 8021976 | I14: 23685293.05 | J14: 2.952550974 | K14: 12032957
A15: Dividends received | C15: 0 | D15: 0 | E15: 0 | F15: 0 | G15: 0 | H15: 0 | I15: 0 | K15: 0
A16: Fines, penalties and forfeits | C16: -1336967.11 | D16: 2626549 | E16: 4100146 | F16: 11015 | G16: 674526.18 | H16: 2045760 | I16: -1371233.82 | J16: -0.6702808834 | K16: 4100146
A17: Licences and permits | C17: 262.04 | D17: 11324 | E17: 1500 | F17: 0 | G17: 605.04 | H17: 5580 | I17: -4974.96 | J17: -0.8915698925 | K17: 1500
A18: Agency services | C18: 4455847.89 | D18: 17437256 | E18: 17437256 | F18: 599146.35 | G18: 4665515.86 | H18: 11624832 | I18: -6959316.14 | J18: -0.5986595023 | K18: 17437256
A19: Transfers and subsidies | C19: 105855612.7 | D19: 269853000 | E19: 323118898 | F19: 851175.27 | G19: 254225195.4 | H19: 211581579 | I19: 42643616.38 | J19: 0.2015469238 | K19: 323118898
A20: Other revenue | C20: 1403972.78 | D20: 42946789 | E20: 38040377 | F20: 179407.85 | G20: 1663465.98 | H20: 27649936 | I20: -25986470.02 | J20: -0.9398383425 | K20: 38040377
A21: Gains | C21: 0 | D21: 0 | E21: 0 | F21: 0 | G21: 1343769.55 | H21: 0 | I21: 1343769.55 | K21: 0
A22: Total Revenue (excluding capital transfers and contributions) | C22: =SUM(C6:C10)+SUM(C12:C21) -> 143146505.9 | D22: 390754127 | E22: 440636709 | F22: 14725566.75 | G22: 367983272.5 | H22: 291505688 | I22: 76477584.45 | J22: 0.262353661 | K22: =SUM(K6:K10)+SUM(K12:K21) -> 440636709
A24: Expenditure By Type
A25: Employee related costs | C25: 25927135.45 | D25: 117854345 | E25: 113807212 | F25: 7986009.19 | G25: 64747073.22 | H25: 80052485 | I25: =G25-H25 -> -15305411.78 | J25: =IF(I25=0,"",I25/H25) -> -0.1911922132 | K25: 113807212
A26: Remuneration of councillors | C26: 3605569.71 | D26: 23639490 | E26: 23639472 | F26: 1872613.37 | G26: 15141785.04 | H26: 15759653 | I26: -617867.96 | J26: -0.03920568302 | K26: 23639472
A27: Debt impairment | C27: 1874168.48 | D27: 29757430 | E27: 31257430 | F27: 111627.4 | G27: 137894.85 | H27: 20138288 | I27: -20000393.15 | J27: -0.9931526031 | K27: 31257430
A28: Depreciation & asset impairment | C28: 13577.88 | D28: 32261244 | E28: 32261244 | F28: 2447456.92 | G28: 19577822.15 | H28: 21507488 | I28: -1929665.85 | J28: -0.08972065217 | K28: 32261244
A29: Finance charges | C29: 0 | D29: 141075 | E29: 141075 | F29: 0 | G29: 0 | H29: 94048 | I29: -94048 | J29: -1 | K29: 141075
A30: Bulk purchases | I30: 0
A31: Other materials | C31: 1214498 | D31: 3765094 | E31: 4926250 | F31: 7264.14 | G31: 329251.01 | H31: 3082296 | I31: -2753044.99 | J31: -0.8931799509 | K31: 4926250
A32: Contracted services | C32: 8752569.03 | D32: 59001829 | E32: 95790192 | F32: 1434291.81 | G32: 28544302.9 | H32: 53401867 | I32: -24857564.1 | J32: -0.4654811806 | K32: 95790192
A33: Transfers and subsidies | I33: 0
A34: Other expenditure | C34: 5920305.99 | D34: 43385370 | E34: 45615028 | F34: 2695830.24 | G34: 26653971.95 | H34: 30445913 | I34: -3791941.05 | J34: -0.1245468004 | K34: 45615028
A35: Losses | C35: 0 | D35: 0 | E35: 0 | F35: 0 | G35: 848814.53 | H35: 0 | I35: 848814.53 | K35: 0
A36: Total Expenditure | C36: =SUM(C25:C35) -> 47307824.54 | D36: =SUM(D25:D35) -> 309805877 | E36: =SUM(E25:E35) -> 347437903 | F36: 16555093.07 | G36: 155980915.6 | H36: 224482038 | I36: -68501122.35 | J36: -0.3051519086 | K36: 347437903
A38: Surplus/(Deficit) | C38: =C22-C36 -> 95838681.4 | D38: 80948250 | E38: 93198806 | F38: -1829526.32 | G38: 212002356.8 | H38: 67023650 | I38: =I22-I36 -> 144978706.8 | J38: 2.163097754 | K38: =K22-K36 -> 93198806
A39: Transfers and subsidies - capital (monetary allocations) (National / Provincial and District) | C39: 3983727.73 | D39: 53720000 | E39: 69887541 | F39: 5500363.59 | G39: 12341792.03 | H39: 39046844 | I39: =G39-H39 -> -26705051.97 | J39: -0.6839234426 | K39: 69887541
A40: Transfers and subsidies - capital (monetary allocations) (National / Provincial Departmental Agencies, Households, Non-profit Institutions, Private Enterprises, Public Corporatons, Higher Educational Institutions) | I40: =G40-H40 -> 0
A41: Transfers and subsidies - capital (in-kind - all) | I41: =G41-H41 -> 0
A42: Surplus/(Deficit) after capital transfers & contributions | C42: =C38+SUM(C39:C41) -> 99822409.13 | D42: 134668250 | E42: 163086347 | F42: 3670837.27 | G42: 224344148.8 | H42: 106070494 | K42: =K38+SUM(K39:K41) -> 163086347
A43: Taxation | I43: =G43-H43 -> 0 | J43: =IF(I43=0,"",I43/H43) -> 
A44: Surplus/(Deficit) after taxation | C44: =C42-C43 -> 99822409.13 | D44: 134668250 | E44: 163086347 | F44: 3670837.27 | G44: 224344148.8 | H44: 106070494 | K44: =K42-K43 -> 163086347
A45: Attributable to minorities
A46: Surplus/(Deficit) attributable to municipality | C46: =SUM(C44:C45) -> 99822409.13 | D46: 134668250 | E46: 163086347 | F46: 3670837.27 | G46: 224344148.8 | H46: 106070494 | K46: =SUM(K44:K45) -> 163086347
A47: Share of surplus/ (deficit) of associate
A48: Surplus/ (Deficit) for the year | C48: =C46+C47 -> 99822409.13 | D48: 134668250 | E48: 163086347 | F48: 3670837.27 | G48: 224344148.8 | H48: 106070494 | K48: =K46+K47 -> 163086347
A49: =head27a -> References
A50: 1. Material variances to be explained on Table SC1
A53: =A22&" including capital transfers/contributions etc" -> Total Revenue (excluding capital transfers and contributions) including capital transfers/contributions etc | C53: =C22+SUM(C39:C41) -> 147130233.7 | D53: 444474127 | E53: 510524250 | F53: 20225930.34 | G53: 380325064.5 | H53: 330552532 | K53: =K22+SUM(K39:K41) -> 510524250

Sheet C5-Capex
A1: =muni& " - "&S71D& " - "&date -> LIM355 Lepelle-Nkumpi - Table C5 Monthly Budget Statement - Capital Expenditure (municipal vote, functional classification and funding) - M08 February
A2: =Vdesc -> Vote Description | B2: =head27 -> Ref | C2: =Head1 -> 2019/20 | D2: =Head2 -> Budget Year 2020/21
C3: =Head5 -> Audited Outcome | D3: =Head6 -> Original Budget | E3: =Head7 -> Adjusted Budget | F3: =Head38 -> Monthly actual | G3: =Head39 -> YearTD actual | H3: =Head40 -> YearTD budget | I3: =Head41 -> YTD variance | J3: =Head41 -> YTD variance | K3: =Head8 -> Full Year Forecast
A4: R thousands | B4: 1 | J4: %
A5: Multi-Year expenditure appropriation | B5: 2
A6: ='Org structure'!A2 -> Vote 01 - Executive & Council | C6: ='C5C'!C7 -> 0 | D6: ='C5C'!D7 -> 0 | E6: ='C5C'!E7 -> 0 | F6: ='C5C'!F7 -> 0 | G6: ='C5C'!G7 -> 0 | H6: ='C5C'!H7 -> 0 | I6: =G6-H6 -> 0 | J6: =IF(I6=0,"",I6/H6) ->  | K6: ='C5C'!K7 -> 0
A7: ='Org structure'!A3 -> Vote 02 - Municipal Manager | C7: ='C5C'!C10 -> 0 | D7: ='C5C'!D10 -> 0 | E7: ='C5C'!E10 -> 0 | F7: ='C5C'!F10 -> 0 | G7: ='C5C'!G10 -> 0 | H7: ='C5C'!H10 -> 0 | I7: 0 | K7: ='C5C'!K10 -> 0
A8: ='Org structure'!A4 -> Vote 03 - Corporate Services | C8: ='C5C'!C16 -> 0 | D8: ='C5C'!D16 -> 0 | E8: ='C5C'!E16 -> 0 | F8: ='C5C'!F16 -> 0 | G8: ='C5C'!G16 -> 0 | H8: ='C5C'!H16 -> 0 | I8: 0 | K8: ='C5C'!K16 -> 0
A9: ='Org structure'!A5 -> Vote 04 - Budget And Treasury | C9: ='C5C'!C24 -> 0 | D9: ='C5C'!D24 -> 0 | E9: ='C5C'!E24 -> 0 | F9: ='C5C'!F24 -> 0 | G9: ='C5C'!G24 -> 0 | H9: ='C5C'!H24 -> 0 | I9: 0 | K9: ='C5C'!K24 -> 0
A10: ='Org structure'!A6 -> Vote 05 - Community Services | C10: ='C5C'!C31 -> 0 | D10: ='C5C'!D31 -> 0 | E10: ='C5C'!E31 -> 0 | F10: ='C5C'!F31 -> 0 | G10: ='C5C'!G31 -> 0 | H10: ='C5C'!H31 -> 0 | I10: 0 | K10: ='C5C'!K31 -> 0
A11: ='Org structure'!A7 -> Vote 06 - Planning And Development | C11: ='C5C'!C40 -> 0 | D11: ='C5C'!D40 -> 0 | E11: ='C5C'!E40 -> 0 | F11: ='C5C'!F40 -> 0 | G11: ='C5C'!G40 -> 0 | H11: ='C5C'!H40 -> 0 | I11: 0 | K11: ='C5C'!K40 -> 0
A12: ='Org structure'!A8 -> Vote 07 - Infrastructure Development | C12: ='C5C'!C49 -> 0 | D12: ='C5C'!D49 -> 0 | E12: ='C5C'!E49 -> 0 | F12: ='C5C'!F49 -> 0 | G12: ='C5C'!G49 -> 0 | H12: ='C5C'!H49 -> 0 | I12: 0 | K12: ='C5C'!K49 -> 0
A13: ='Org structure'!A9 -> Vote 08 - | C13: ='C5C'!C54 -> 0 | D13: ='C5C'!D54 -> 0 | E13: ='C5C'!E54 -> 0 | F13: ='C5C'!F54 -> 0 | G13: ='C5C'!G54 -> 0 | H13: ='C5C'!H54 -> 0 | I13: =G13-H13 -> 0 | J13: =IF(I13=0,"",I13/H13) ->  | K13: ='C5C'!K54 -> 0
A14: ='Org structure'!A10 -> Vote 09 - | C14: ='C5C'!C55 -> 0 | D14: ='C5C'!D55 -> 0 | E14: ='C5C'!E55 -> 0 | F14: ='C5C'!F55 -> 0 | G14: ='C5C'!G55 -> 0 | H14: ='C5C'!H55 -> 0 | I14: 0 | K14: ='C5C'!K55 -> 0
A15: ='Org structure'!A11 -> Vote 10 - | C15: ='C5C'!C56 -> 0 | D15: ='C5C'!D56 -> 0 | E15: ='C5C'!E56 -> 0 | F15: ='C5C'!F56 -> 0 | G15: ='C5C'!G56 -> 0 | H15: ='C5C'!H56 -> 0 | I15: 0 | K15: ='C5C'!K56 -> 0
A16: ='Org structure'!A12 -> Vote 11 - | C16: ='C5C'!C57 -> 0 | D16: ='C5C'!D57 -> 0 | E16: ='C5C'!E57 -> 0 | F16: ='C5C'!F57 -> 0 | G16: ='C5C'!G57 -> 0 | H16: ='C5C'!H57 -> 0 | I16: 0 | K16: ='C5C'!K57 -> 0
A17: ='Org structure'!A13 -> Vote 12 - | C17: ='C5C'!C58 -> 0 | D17: ='C5C'!D58 -> 0 | E17: ='C5C'!E58 -> 0 | F17: ='C5C'!F58 -> 0 | G17: ='C5C'!G58 -> 0 | H17: ='C5C'!H58 -> 0 | I17: 0 | K17: ='C5C'!K58 -> 0
A18: ='Org structure'!A14 -> Vote 13 - | C18: ='C5C'!C59 -> 0 | D18: ='C5C'!D59 -> 0 | E18: ='C5C'!E59 -> 0 | F18: ='C5C'!F59 -> 0 | G18: ='C5C'!G59 -> 0 | H18: ='C5C'!H59 -> 0 | I18: =G18-H18 -> 0 | J18: =IF(I18=0,"",I18/H18) ->  | K18: ='C5C'!K59 -> 0
A19: ='Org structure'!A15 -> Vote 14 - | C19: ='C5C'!C60 -> 0 | D19: ='C5C'!D60 -> 0 | E19: ='C5C'!E60 -> 0 | F19: ='C5C'!F60 -> 0 | G19: ='C5C'!G60 -> 0 | H19: ='C5C'!H60 -> 0 | I19: =G19-H19 -> 0 | J19: =IF(I19=0,"",I19/H19) ->  | K19: ='C5C'!K60 -> 0
A20: ='Org structure'!A16 -> Vote 15 - Other | C20: ='C5C'!C61 -> 0 | D20: ='C5C'!D61 -> 0 | E20: ='C5C'!E61 -> 0 | F20: ='C5C'!F61 -> 0 | G20: ='C5C'!G61 -> 0 | H20: ='C5C'!H61 -> 0 | I20: =G20-H20 -> 0 | J20: =IF(I20=0,"",I20/H20) ->  | K20: ='C5C'!K61 -> 0
A21: Total Capital Multi-year expenditure | B21: 4,7 | C21: =SUM(C6:C20) -> 0 | D21: =SUM(D6:D20) -> 0 | E21: 0 | F21: 0 | G21: 0 | H21: 0 | I21: 0 | J21: =IF(I21=0,"",I21/H21) ->  | K21: =SUM(K6:K20) -> 0
A23: Single Year expenditure appropriation | B23: 2
A24: ='C5C'!A66 -> Vote 01 - Executive & Council | C24: ='C5C'!C66 -> 24205 | D24: ='C5C'!D66 -> 0 | E24: ='C5C'!E66 -> 0 | F24: ='C5C'!F66 -> 0 | G24: ='C5C'!G66 -> 0 | H24: ='C5C'!H66 -> 0 | I24: =G24-H24 -> 0 | J24: =IF(I24=0,"",I24/H24) ->  | K24: ='C5C'!K66 -> 0
A25: ='C5C'!A69 -> Vote 02 - Municipal Manager | C25: ='C5C'!C69 -> 0 | D25: ='C5C'!D69 -> 0 | E25: ='C5C'!E69 -> 0 | F25: ='C5C'!F69 -> 0 | G25: ='C5C'!G69 -> 0 | H25: ='C5C'!H69 -> 0 | I25: 0 | K25: ='C5C'!K69 -> 0
A26: ='C5C'!A75 -> Vote 03 - Corporate Services | C26: ='C5C'!C75 -> 0 | D26: ='C5C'!D75 -> 11493000 | E26: ='C5C'!E75 -> 12193000 | F26: ='C5C'!F75 -> 266056 | G26: ='C5C'!G75 -> 716180.06 | H26: ='C5C'!H75 -> 7842000 | I26: -7125819.94 | J26: -0.9086738001 | K26: ='C5C'!K75 -> 12193000
A27: ='C5C'!A83 -> Vote 04 - Budget And Treasury | C27: ='C5C'!C83 -> -565.22 | D27: ='C5C'!D83 -> 0 | E27: ='C5C'!E83 -> 0 | F27: ='C5C'!F83 -> 0 | G27: ='C5C'!G83 -> 0 | H27: ='C5C'!H83 -> 0 | I27: 0 | K27: ='C5C'!K83 -> 0
A28: ='C5C'!A90 -> Vote 05 - Community Services | C28: ='C5C'!C90 -> 0 | D28: ='C5C'!D90 -> 25737000 | E28: ='C5C'!E90 -> 27414717 | F28: ='C5C'!F90 -> 0 | G28: ='C5C'!G90 -> 3876787.16 | H28: ='C5C'!H90 -> 18781560 | I28: -14904772.84 | J28: -0.7935854551 | K28: ='C5C'!K90 -> 27414717
A29: ='C5C'!A99 -> Vote 06 - Planning And Development | C29: ='C5C'!C99 -> 0 | D29: ='C5C'!D99 -> 11520000 | E29: ='C5C'!E99 -> 8520000 | F29: ='C5C'!F99 -> 0 | G29: ='C5C'!G99 -> 7800 | H29: ='C5C'!H99 -> 7080000 | I29: -7072200 | J29: -0.9988983051 | K29: ='C5C'!K99 -> 8520000
A30: ='C5C'!A108 -> Vote 07 - Infrastructure Development | C30: ='C5C'!C108 -> 13743928.04 | D30: ='C5C'!D108 -> 85918250 | E30: ='C5C'!E108 -> 116392073 | F30: ='C5C'!F108 -> 1511154.5 | G30: ='C5C'!G108 -> 17835271.7 | H30: ='C5C'!H108 -> 72653604 | I30: -54818332.3 | J30: -0.7545163527 | K30: ='C5C'!K108 -> 116392073
A31: ='Org structure'!A9 -> Vote 08 - | C31: ='C5C'!C113 -> 0 | D31: ='C5C'!D113 -> 0 | E31: ='C5C'!E113 -> 0 | F31: ='C5C'!F113 -> 0 | G31: ='C5C'!G113 -> 0 | H31: ='C5C'!H113 -> 0 | I31: ='C5C'!I113 -> 0 | J31: =IF(I31=0,"",I31/H31) ->  | K31: ='C5C'!K113 -> 0
A32: ='Org structure'!A10 -> Vote 09 - | C32: ='C5C'!C114 -> 0 | D32: ='C5C'!D114 -> 0 | E32: ='C5C'!E114 -> 0 | F32: ='C5C'!F114 -> 0 | G32: ='C5C'!G114 -> 0 | H32: ='C5C'!H114 -> 0 | I32: ='C5C'!I114 -> 0 | K32: ='C5C'!K114 -> 0
A33: ='Org structure'!A11 -> Vote 10 - | C33: ='C5C'!C115 -> 0 | D33: ='C5C'!D115 -> 0 | E33: ='C5C'!E115 -> 0 | F33: ='C5C'!F115 -> 0 | G33: ='C5C'!G115 -> 0 | H33: ='C5C'!H115 -> 0 | I33: ='C5C'!I115 -> 0 | K33: ='C5C'!K115 -> 0
A34: ='Org structure'!A12 -> Vote 11 - | C34: ='C5C'!C116 -> 0 | D34: ='C5C'!D116 -> 0 | E34: ='C5C'!E116 -> 0 | F34: ='C5C'!F116 -> 0 | G34: ='C5C'!G116 -> 0 | H34: ='C5C'!H116 -> 0 | I34: ='C5C'!I116 -> 0 | K34: ='C5C'!K116 -> 0
A35: ='Org structure'!A13 -> Vote 12 - | C35: ='C5C'!C117 -> 0 | D35: ='C5C'!D117 -> 0 | E35: ='C5C'!E117 -> 0 | F35: ='C5C'!F117 -> 0 | G35: ='C5C'!G117 -> 0 | H35: ='C5C'!H117 -> 0 | I35: ='C5C'!I117 -> 0 | K35: ='C5C'!K117 -> 0
A36: ='Org structure'!A14 -> Vote 13 - | C36: ='C5C'!C118 -> 0 | D36: ='C5C'!D118 -> 0 | E36: ='C5C'!E118 -> 0 | F36: ='C5C'!F118 -> 0 | G36: ='C5C'!G118 -> 0 | H36: ='C5C'!H118 -> 0 | I36: ='C5C'!I118 -> 0 | K36: ='C5C'!K118 -> 0
A37: ='Org structure'!A15 -> Vote 14 - | C37: ='C5C'!C119 -> 0 | D37: ='C5C'!D119 -> 0 | E37: ='C5C'!E119 -> 0 | F37: ='C5C'!F119 -> 0 | G37: ='C5C'!G119 -> 0 | H37: ='C5C'!H119 -> 0 | I37: ='C5C'!I119 -> 0 | K37: ='C5C'!K119 -> 0
A38: ='Org structure'!A16 -> Vote 15 - Other | C38: ='C5C'!C120 -> 0 | D38: ='C5C'!D120 -> 0 | E38: ='C5C'!E120 -> 0 | F38: ='C5C'!F120 -> 0 | G38: ='C5C'!G120 -> 0 | H38: ='C5C'!H120 -> 0 | I38: ='C5C'!I120 -> 0 | K38: ='C5C'!K120 -> 0
A39: Total Capital single-year expenditure | B39: 4 | C39: =SUM(C24:C38) -> 13767567.82 | D39: 134668250 | E39: 164519790 | F39: 1777210.5 | G39: 22436038.92 | H39: 106357164 | I39: -83921125.08 | J39: -0.7890500454 | K39: =SUM(K24:K38) -> 164519790
A40: Total Capital Expenditure | C40: =C39+C21 -> 13767567.82 | D40: 134668250 | E40: 164519790 | F40: 1777210.5 | G40: 22436038.92 | H40: 106357164 | I40: -83921125.08 | J40: =IF(I40=0,"",I40/H40) -> -0.7890500454 | K40: =K39+K21 -> 164519790
A42: Capital Expenditure - Functional Classification
A43: Governance and administration | C43: =SUM(C44:C46) -> 23639.78 | D43: 11493000 | E43: 12193000 | F43: 266056 | G43: 716180.06 | H43: 7842000 | I43: =G43-H43 -> -7125819.94 | J43: =IF(I43=0,"",I43/H43) -> -0.9086738001 | K43: =SUM(K44:K46) -> 12193000
A44: Executive and council | I44: 0 | J44: =IF(I44=0,"",I44/H44) -> 
A45: Finance and administration | C45: 23639.78 | D45: 11493000 | E45: 12193000 | F45: 266056 | G45: 716180.06 | H45: 7842000 | I45: -7125819.94 | J45: -0.9086738001 | K45: 12193000
A46: Internal audit | I46: 0
A47: Community and public safety | C47: =SUM(C48:C52) -> 0 | D47: 10337000 | E47: 14714717 | F47: 0 | G47: 3876787.16 | H47: 9934888 | I47: -6058100.84 | J47: -0.6097804867 | K47: =SUM(K48:K52) -> 14714717
A48: Community and social services | C48: 0 | D48: 10137000 | E48: 12914717 | F48: 0 | G48: 3679287.16 | H48: 8681552 | I48: -5002264.84 | J48: -0.5761947679 | K48: 12914717
A49: Sport and recreation | I49: 0
A50: Public safety | C50: 0 | D50: 200000 | E50: 1800000 | F50: 0 | G50: 197500 | H50: 1253336 | I50: -1055836 | J50: -0.842420548 | K50: 1800000
A51: Housing | I51: 0
A52: Health | I52: 0
A53: Economic and environmental services | C53: =SUM(C54:C56) -> 13632800.43 | D53: 106313250 | E53: 129162073 | F53: 1511154.5 | G53: 15569191.7 | H53: 84725276 | I53: -69156084.3 | J53: -0.816239115 | K53: =SUM(K54:K56) -> 129162073
A54: Planning and development | C54: 8736597.37 | D54: 62068250 | E54: 75648073 | F54: 3494138.8 | G54: 9884046.35 | H54: 44094812 | I54: -34210765.65 | J54: -0.7758455949 | K54: 75648073
A55: Road transport | C55: 4896203.06 | D55: 43725000 | E55: 52994000 | F55: -1982984.3 | G55: 5677345.35 | H55: 40283800 | I55: -34606454.65 | J55: -0.8590662909 | K55: 52994000
A56: Environmental protection | C56: 0 | D56: 520000 | E56: 520000 | F56: 0 | G56: 7800 | H56: 346664 | I56: -338864 | J56: -0.9774998269 | K56: 520000
A57: Trading services | C57: =SUM(C58:C61) -> 111127.61 | D57: 6525000 | E57: 8450000 | F57: 0 | G57: 2273880 | H57: 3855000 | I57: -1581120 | J57: -0.4101478599 | K57: =SUM(K58:K61) -> 8450000
A58: Energy sources | C58: 111127.61 | D58: 4125000 | E58: 8250000 | F58: 0 | G58: 2273880 | H58: 3575000 | I58: -1301120 | J58: -0.3639496503 | K58: 8250000
A59: Water management | I59: 0
A60: Waste water management | I60: 0
A61: Waste management | C61: 0 | D61: 2400000 | E61: 200000 | F61: 0 | G61: 0 | H61: 280000 | I61: -280000 | J61: -1 | K61: 200000
A62: Other | I62: 0
A63: Total Capital Expenditure - Functional Classification | B63: 3 | C63: =C43+C47+C53+C57+C62 -> 13767567.82 | D63: =D43+D47+D53+D57+D62 -> 134668250 | E63: 164519790 | F63: 1777210.5 | G63: 22436038.92 | H63: 106357164 | I63: -83921125.08 | J63: -0.7890500454 | K63: =K43+K47+K53+K57+K62 -> 164519790
A65: Funded by:
A66: National Government | C66: 8736597.37 | D66: 54318250 | E66: 67648073 | F66: 3494138.8 | G66: 9884046.35 | H66: 37578140 | I66: =G66-H66 -> -27694093.65 | J66: =IF(I66=0,"",I66/H66) -> -0.7369735077 | K66: 67648073
A67: Provincial Government | C67: 0 | D67: 0 | E67: 0 | F67: 0 | G67: 0 | H67: 0 | I67: 0 | K67: 0
A68: District Municipality | I68: 0
A69: ='C4-FinPerf RE'!A40 -> Transfers and subsidies - capital (monetary allocations) (National / Provincial Departmental Agencies, Households, Non-profit Institutions, Private Enterprises, Public Corporatons, Higher Educational Institutions) | I69: 0
A70: Transfers recognised - capital | C70: =SUM(C66:C69) -> 8736597.37 | D70: 54318250 | E70: 67648073 | F70: 3494138.8 | G70: 9884046.35 | H70: 37578140 | I70: -27694093.65 | J70: -0.7369735077 | K70: =SUM(K66:K69) -> 67648073
A72: Borrowing | B72: 6 | I72: 0
A73: Internally generated funds | C73: 5030970.45 | D73: 80350000 | E73: 96871717 | F73: -1716928.3 | G73: 12551992.57 | H73: 68779024 | I73: -56227031.43 | J73: -0.817502607 | K73: 96871717
A74: Total Capital Funding | C74: =+C70+C72+C73 -> 13767567.82 | D74: 134668250 | E74: 164519790 | F74: 1777210.5 | G74: 22436038.92 | H74: 106357164 | I74: -83921125.08 | J74: -0.7890500454 | K74: =+K70+K72+K73 -> 164519790
A75: =head27a -> References
A76: 1. Municipalities may choose to appropriate for capital expenditure for three years or for one year (if one year appropriation projected expenditure required for yr2 and yr3).
A77: 2. Include capital component of PPP unitary payment
A78: 3. Capital expenditure by functional classification must reconcile to the total of multi-year and single year appropriations
A79: 4. Include expenditure on investment property, intangible and biological assets
A81: 6. Include finance leases and PPP capital funding component of unitary payment - total borrowing/repayments to reconcile to changes in Table SA17
A86: check balance | C86: =C40-C74 -> 0 | D86: =D40-D74 -> 0 | E86: 0 | F86: 0 | G86: 0 | H86: 0 | K86: 0

Sheet C5C
A1: =muni& " - "&S71D& " - "&"A"& " - "&date -> LIM355 Lepelle-Nkumpi - Table C5 Monthly Budget Statement - Capital Expenditure (municipal vote, functional classification and funding) - A - M08 February
A2: =Vdesc -> Vote Description | B2: =head27 -> Ref | C2: =Head1 -> 2019/20 | D2: =Head2 -> Budget Year 2020/21 | L2: =Head4 -> 
A3: R thousand | C3: =Head5 -> Audited Outcome | D3: =Head6 -> Original Budget | E3: =Head7 -> Adjusted Budget | F3: =Head38 -> Monthly actual | G3: =Head39 -> YearTD actual | H3: =Head40 -> YearTD budget | I3: =Head41 -> YTD variance | J3: =Head41 -> YTD variance | K3: =Head8 -> Full Year Forecast | L3: =Head12 -> Forecast 2010/11 | M3: =Head13 -> Forecast 2011/12 | N3: =Head14 -> Forecast 2012/13 | O3: =Head15 -> Forecast 2013/14 | P3: =Head16 -> Forecast 2014/15 | Q3: =Head17 -> Forecast 2015/16 | R3: =Head18 -> Forecast 2016/17 | S3: =Head19 -> Forecast 2017/18 | T3: =Head20 -> Forecast 2018/19 | U3: =Head21 -> Forecast 2019/20 | V3: =Head22 -> Forecast 2020/21 | W3: =Head23 -> Forecast 2021/22
J4: %
A5: Capital expenditure - Municipal Vote
A6: Expenditure of multi-year capital appropriation | B6: 1
A7: ='Org structure'!A2 -> Vote 01 - Executive & Council | C7: =SUM(C8:C9) -> 0 | D7: 0 | E7: 0 | F7: 0 | G7: 0 | H7: 0 | I7: =G7-H7 -> 0 | J7: =IF(I7=0,"",I7/H7) ->  | K7: =SUM(K8:K9) -> 0
A8: ='Org structure'!E3 -> 01.1 - Mayor & Councillors | I8: =G8-H8 -> 0 | J8: =IF(I8=0,"",I8/H8) ->  | K8: 0
A9: ='Org structure'!E4 -> 01.2 - Mayor & Council Support | I9: =G9-H9 -> 0 | J9: =IF(I9=0,"",I9/H9) ->  | K9: 0
A10: ='Org structure'!A3 -> Vote 02 - Municipal Manager | C10: =SUM(C11:C15) -> 0 | D10: 0 | E10: 0 | F10: 0 | G10: 0 | H10: 0 | I10: 0 | K10: =SUM(K11:K15) -> 0
A11: ='Org structure'!E6 -> 02.1 - Municipal Manager | I11: =G11-H11 -> 0 | J11: =IF(I11=0,"",I11/H11) ->  | K11: 0
A12: ='Org structure'!E7 -> 02.2 - Municipal Manager Support | I12: =G12-H12 -> 0 | J12: =IF(I12=0,"",I12/H12) ->  | K12: 0
A13: ='Org structure'!E8 -> 02.3 - Internal Audit | I13: =G13-H13 -> 0 | J13: =IF(I13=0,"",I13/H13) ->  | K13: 0
A14: ='Org structure'!E9 -> 02.4 - Communications | I14: =G14-H14 -> 0 | J14: =IF(I14=0,"",I14/H14) ->  | K14: 0
A15: ='Org structure'!E10 -> 02.5 - Risk Management | I15: =G15-H15 -> 0 | J15: =IF(I15=0,"",I15/H15) ->  | K15: 0
A16: ='Org structure'!A4 -> Vote 03 - Corporate Services | C16: =SUM(C17:C23) -> 0 | D16: 0 | E16: 0 | F16: 0 | G16: 0 | H16: 0 | I16: 0 | K16: =SUM(K17:K23) -> 0
A17: ='Org structure'!E12 -> 03.1 - Executive Manager: Corporate Services | I17: =G17-H17 -> 0 | J17: =IF(I17=0,"",I17/H17) ->  | K17: 0
A18: ='Org structure'!E13 -> 03.2 - Human Resource Management & Development | I18: 0 | K18: 0
A19: ='Org structure'!E14 -> 03.3 - Information Technology | I19: 0 | K19: 0
A20: ='Org structure'!E15 -> 03.4 - Legal Services | I20: 0 | K20: 0
A21: ='Org structure'!E16 -> 03.5 - Gen Adm_Sec_Fleet: General Administrat | I21: 0 | K21: 0
A22: ='Org structure'!E17 -> 03.6 - Gen Adm_Sec_Fleet: Security Services | I22: 0 | K22: 0
A23: ='Org structure'!E18 -> 03.7 - Gen Adm_Sec_Fleet: Fleet Management | I23: 0 | K23: 0
A24: ='Org structure'!A5 -> Vote 04 - Budget And Treasury | C24: =SUM(C25:C30) -> 0 | D24: 0 | E24: 0 | F24: 0 | G24: 0 | H24: 0 | I24: 0 | K24: =SUM(K25:K30) -> 0
A25: ='Org structure'!E20 -> 04.1 - Chief Financial Officer | I25: =G25-H25 -> 0 | J25: =IF(I25=0,"",I25/H25) ->  | K25: 0
A26: ='Org structure'!E21 -> 04.2 - Budget Planning & Management | I26: 0 | K26: 0
A27: ='Org structure'!E22 -> 04.3 - Expenditure Management | I27: 0 | K27: 0
A28: ='Org structure'!E23 -> 04.4 - Revenue Management | I28: 0 | K28: 0
A29: ='Org structure'!E24 -> 04.5 - Asset Management | I29: 0 | K29: 0
A30: ='Org structure'!E25 -> 04.6 - Supply Chain Management | I30: 0 | K30: 0
A31: ='Org structure'!A6 -> Vote 05 - Community Services | C31: =SUM(C32:C39) -> 0 | D31: 0 | E31: 0 | F31: 0 | G31: 0 | H31: 0 | I31: 0 | K31: =SUM(K32:K39) -> 0
A32: ='Org structure'!E27 -> 05.1 - Executive Manager: Community Services | I32: =G32-H32 -> 0 | J32: =IF(I32=0,"",I32/H32) ->  | K32: 0
A33: ='Org structure'!E28 -> 05.2 - Waste Management Services | I33: 0 | K33: 0
A34: ='Org structure'!E29 -> 05.3 - Road Traffic & Law Enforce: Traffic Serv | I34: 0 | K34: 0
A35: ='Org structure'!E30 -> 05.4 - Road Traffic&Law Enforce: Licencing Serv | I35: 0 | K35: 0
A36: ='Org structure'!E31 -> 05.5 - Road Traffic&Law Enforce: Pound | I36: 0 | K36: 0
A37: ='Org structure'!E32 -> 05.6 - Institutional & Social Dev Management | I37: 0 | K37: 0
A38: ='Org structure'!E33 -> 05.7 - Libraries And Archives | I38: 0 | K38: 0
A39: ='Org structure'!E34 -> 05.8 - Community Halls And Facilities | I39: 0 | K39: 0
A40: ='Org structure'!A7 -> Vote 06 - Planning And Development | C40: =SUM(C41:C48) -> 0 | D40: 0 | E40: 0 | F40: 0 | G40: 0 | H40: 0 | I40: 0 | K40: =SUM(K41:K48) -> 0
A41: ='Org structure'!E36 -> 06.1 - Executive Manager:Planning & Development | I41: =G41-H41 -> 0 | J41: =IF(I41=0,"",I41/H41) ->  | K41: 0
A42: ='Org structure'!E37 -> 06.2 - Economic Development & Planning | I42: 0 | K42: 0
A43: ='Org structure'!E38 -> 06.3 - Development & Town Planning | I43: 0 | K43: 0
A44: ='Org structure'!E39 -> 06.4 - Property Management & Housing | I44: 0 | K44: 0
A45: ='Org structure'!E40 -> 06.5 - Integrated Development Planning | I45: 0 | K45: 0
A46: ='Org structure'!E41 -> 06.6 - Performance Management | I46: 0 | K46: 0
A47: ='Org structure'!E42 -> 06.7 - Environmental Management Services | I47: 0 | K47: 0
A48: ='Org structure'!E43 -> 06.8 - Disaster Management | I48: 0 | K48: 0
A49: ='Org structure'!A8 -> Vote 07 - Infrastructure Development | C49: =SUM(C50:C53) -> 0 | D49: 0 | E49: 0 | F49: 0 | G49: 0 | H49: 0 | I49: =G49-H49 -> 0 | J49: =IF(I49=0,"",I49/H49) ->  | K49: =SUM(K50:K53) -> 0
A50: ='Org structure'!E45 -> 07.1 - Executive Manager: Infrastructure Dev | I50: =G50-H50 -> 0 | J50: =IF(I50=0,"",I50/H50) ->  | K50: 0
A51: ='Org structure'!E46 -> 07.2 - Road Construction & Maintenance | I51: =G51-H51 -> 0 | J51: =IF(I51=0,"",I51/H51) ->  | K51: 0
A52: ='Org structure'!E47 -> 07.3 - Electrical & Mechanical Works | I52: =G52-H52 -> 0 | J52: =IF(I52=0,"",I52/H52) ->  | K52: 0
A53: ='Org structure'!E48 -> 07.4 - Project Management | I53: =G53-H53 -> 0 | J53: =IF(I53=0,"",I53/H53) ->  | K53: 0
A54: ='Org structure'!A9 -> Vote 08 - | C54: 0 | D54: 0 | E54: 0 | F54: 0 | G54: 0 | H54: 0 | I54: 0 | K54: 0
A55: ='Org structure'!A10 -> Vote 09 - | C55: 0 | D55: 0 | E55: 0 | F55: 0 | G55: 0 | H55: 0 | I55: 0 | K55: 0
A56: ='Org structure'!A11 -> Vote 10 - | C56: 0 | D56: 0 | E56: 0 | F56: 0 | G56: 0 | H56: 0 | I56: 0 | K56: 0
A57: ='Org structure'!A12 -> Vote 11 - | C57: 0 | D57: 0 | E57: 0 | F57: 0 | G57: 0 | H57: 0 | I57: 0 | K57: 0
A58: ='Org structure'!A13 -> Vote 12 - | C58: 0 | D58: 0 | E58: 0 | F58: 0 | G58: 0 | H58: 0 | I58: 0 | K58: 0
A59: ='Org structure'!A14 -> Vote 13 - | C59: 0 | D59: 0 | E59: 0 | F59: 0 | G59: 0 | H59: 0 | I59: =G59-H59 -> 0 | J59: =IF(I59=0,"",I59/H59) ->  | K59: 0
A60: ='Org structure'!A15 -> Vote 14 - | C60: 0 | D60: 0 | E60: 0 | F60: 0 | G60: 0 | H60: 0 | I60: 0 | K60: 0
A61: ='Org structure'!A16 -> Vote 15 - Other | C61: 0 | D61: 0 | E61: 0 | F61: 0 | G61: 0 | H61: 0 | I61: 0 | K61: 0
A62: Total multi-year capital expenditure | C62: =C7+C10+C16+C24+C31+C40+C49+C54+C55+C56+C57+C58+C59+C60+C61 -> 0 | D62: 0 | E62: 0 | F62: 0 | G62: 0 | H62: 0 | I62: 0 | K62: =K7+K10+K16+K24+K31+K40+K49+K54+K55+K56+K57+K58+K59+K60+K61 -> 0
I63: 0
A64: Capital expenditure - Municipal Vote
A65: Expenditue of single-year capital appropriation | B65: 1 | I65: 0
A66: ='Org structure'!A2 -> Vote 01 - Executive & Council | C66: =SUM(C67:C68) -> 24205 | D66: 0 | E66: 0 | F66: 0 | G66: 0 | H66: 0 | I66: 0 | K66: =SUM(K67:K68) -> 0
A67: ='Org structure'!E3 -> 01.1 - Mayor & Councillors | C67: 0 | D67: 0 | E67: 0 | F67: 0 | G67: 0 | H67: 0 | I67: 0 | K67: 0
A68: ='Org structure'!E4 -> 01.2 - Mayor & Council Support | C68: 24205 | D68: 0 | E68: 0 | F68: 0 | G68: 0 | H68: 0 | I68: 0 | K68: 0
A69: ='Org structure'!A3 -> Vote 02 - Municipal Manager | C69: =SUM(C70:C74) -> 0 | D69: 0 | E69: 0 | F69: 0 | G69: 0 | H69: 0 | I69: 0 | K69: =SUM(K70:K74) -> 0
A70: ='Org structure'!E6 -> 02.1 - Municipal Manager | C70: 0 | D70: 0 | E70: 0 | F70: 0 | G70: 0 | H70: 0 | I70: 0 | K70: 0
A71: ='Org structure'!E7 -> 02.2 - Municipal Manager Support | C71: 0 | D71: 0 | E71: 0 | F71: 0 | G71: 0 | H71: 0 | I71: 0 | K71: 0
A72: ='Org structure'!E8 -> 02.3 - Internal Audit | C72: 0 | D72: 0 | E72: 0 | F72: 0 | G72: 0 | H72: 0 | I72: 0 | K72: 0
A73: ='Org structure'!E9 -> 02.4 - Communications | C73: 0 | D73: 0 | E73: 0 | F73: 0 | G73: 0 | H73: 0 | I73: 0 | K73: 0
A74: ='Org structure'!E10 -> 02.5 - Risk Management | C74: 0 | D74: 0 | E74: 0 | F74: 0 | G74: 0 | H74: 0 | I74: 0 | K74: 0
A75: ='Org structure'!A4 -> Vote 03 - Corporate Services | C75: =SUM(C76:C82) -> 0 | D75: 11493000 | E75: 12193000 | F75: 266056 | G75: 716180.06 | H75: 7842000 | I75: -7125819.94 | J75: -0.9086738001 | K75: =SUM(K76:K82) -> 12193000
A76: ='Org structure'!E12 -> 03.1 - Executive Manager: Corporate Services | C76: 0 | D76: 0 | E76: 0 | F76: 0 | G76: 0 | H76: 0 | I76: 0 | K76: 0
A77: ='Org structure'!E13 -> 03.2 - Human Resource Management & Development | C77: 0 | D77: 0 | E77: 0 | F77: 0 | G77: 0 | H77: 0 | I77: =G77-H77 -> 0 | J77: =IF(I77=0,"",I77/H77) ->  | K77: 0
A78: ='Org structure'!E14 -> 03.3 - Information Technology | C78: 0 | D78: 1343000 | E78: 2043000 | F78: 38556 | G78: 450217.56 | H78: 1075336 | I78: -625118.44 | J78: -0.5813238281 | K78: 2043000
A79: ='Org structure'!E15 -> 03.4 - Legal Services | C79: 0 | D79: 0 | E79: 0 | F79: 0 | G79: 0 | H79: 0 | I79: 0 | K79: 0
A80: ='Org structure'!E16 -> 03.5 - Gen Adm_Sec_Fleet: General Administrat | C80: 0 | D80: 9850000 | E80: 9850000 | F80: 0 | G80: 0 | H80: 6566664 | I80: -6566664 | J80: -1 | K80: 9850000
A81: ='Org structure'!E17 -> 03.6 - Gen Adm_Sec_Fleet: Security Services | C81: 0 | D81: 300000 | E81: 300000 | F81: 227500 | G81: 265962.5 | H81: 200000 | I81: 65962.5 | J81: 0.3298125 | K81: 300000
A82: ='Org structure'!E18 -> 03.7 - Gen Adm_Sec_Fleet: Fleet Management | C82: 0 | D82: 0 | E82: 0 | F82: 0 | G82: 0 | H82: 0 | I82: 0 | K82: 0
A83: ='Org structure'!A5 -> Vote 04 - Budget And Treasury | C83: =SUM(C84:C89) -> -565.22 | D83: 0 | E83: 0 | F83: 0 | G83: 0 | H83: 0 | I83: 0 | K83: =SUM(K84:K89) -> 0
A84: ='Org structure'!E20 -> 04.1 - Chief Financial Officer | C84: 0 | D84: 0 | E84: 0 | F84: 0 | G84: 0 | H84: 0 | I84: 0 | K84: 0
A85: ='Org structure'!E21 -> 04.2 - Budget Planning & Management | C85: 0 | D85: 0 | E85: 0 | F85: 0 | G85: 0 | H85: 0 | I85: 0 | K85: 0
A86: ='Org structure'!E22 -> 04.3 - Expenditure Management | C86: 0 | D86: 0 | E86: 0 | F86: 0 | G86: 0 | H86: 0 | I86: 0 | K86: 0
A87: ='Org structure'!E23 -> 04.4 - Revenue Management | C87: -565.22 | D87: 0 | E87: 0 | F87: 0 | G87: 0 | H87: 0 | I87: 0 | K87: 0
A88: ='Org structure'!E24 -> 04.5 - Asset Management | C88: 0 | D88: 0 | E88: 0 | F88: 0 | G88: 0 | H88: 0 | I88: 0 | K88: 0
A89: ='Org structure'!E25 -> 04.6 - Supply Chain Management | C89: 0 | D89: 0 | E89: 0 | F89: 0 | G89: 0 | H89: 0 | I89: 0 | K89: 0
A90: ='Org structure'!A6 -> Vote 05 - Community Services | C90: =SUM(C91:C98) -> 0 | D90: 25737000 | E90: 27414717 | F90: 0 | G90: 3876787.16 | H90: 18781560 | I90: -14904772.84 | J90: -0.7935854551 | K90: =SUM(K91:K98) -> 27414717
A91: ='Org structure'!E27 -> 05.1 - Executive Manager: Community Services | C91: 0 | D91: 0 | E91: 0 | F91: 0 | G91: 0 | H91: 0 | I91: 0 | K91: 0
A92: ='Org structure'!E28 -> 05.2 - Waste Management Services | C92: 0 | D92: 2400000 | E92: 200000 | F92: 0 | G92: 0 | H92: 280000 | I92: -280000 | J92: -1 | K92: 200000
A93: ='Org structure'!E29 -> 05.3 - Road Traffic & Law Enforce: Traffic Serv | C93: 0 | D93: 200000 | E93: 1800000 | F93: 0 | G93: 197500 | H93: 1253336 | I93: -1055836 | J93: -0.842420548 | K93: 1800000
A94: ='Org structure'!E30 -> 05.4 - Road Traffic&Law Enforce: Licencing Serv | C94: 0 | D94: 13000000 | E94: 12500000 | F94: 0 | G94: 0 | H94: 8566672 | I94: -8566672 | J94: -1 | K94: 12500000
A95: ='Org structure'!E31 -> 05.5 - Road Traffic&Law Enforce: Pound | C95: 0 | D95: 0 | E95: 0 | F95: 0 | G95: 0 | H95: 0 | I95: 0 | K95: 0
A96: ='Org structure'!E32 -> 05.6 - Institutional & Social Dev Management | C96: 0 | D96: 0 | E96: 0 | F96: 0 | G96: 0 | H96: 0 | I96: 0 | K96: 0
A97: ='Org structure'!E33 -> 05.7 - Libraries And Archives | C97: 0 | D97: 0 | E97: 0 | F97: 0 | G97: 0 | H97: 0 | I97: 0 | K97: 0
A98: ='Org structure'!E34 -> 05.8 - Community Halls And Facilities | C98: 0 | D98: 10137000 | E98: 12914717 | F98: 0 | G98: 3679287.16 | H98: 8681552 | I98: -5002264.84 | J98: -0.5761947679 | K98: 12914717
A99: ='Org structure'!A7 -> Vote 06 - Planning And Development | C99: =SUM(C100:C107) -> 0 | D99: 11520000 | E99: 8520000 | F99: 0 | G99: 7800 | H99: 7080000 | I99: -7072200 | J99: -0.9988983051 | K99: =SUM(K100:K107) -> 8520000
A100: ='Org structure'!E36 -> 06.1 - Executive Manager:Planning & Development | C100: 0 | D100: 0 | E100: 0 | F100: 0 | G100: 0 | H100: 0 | I100: 0 | K100: 0
A101: ='Org structure'!E37 -> 06.2 - Economic Development & Planning | C101: 0 | D101: 3000000 | E101: 0 | F101: 0 | G101: 0 | H101: 1400000 | I101: -1400000 | J101: -1 | K101: 0
A102: ='Org structure'!E38 -> 06.3 - Development & Town Planning | C102: 0 | D102: 8000000 | E102: 8000000 | F102: 0 | G102: 0 | H102: 5333336 | I102: -5333336 | J102: -1 | K102: 8000000
A103: ='Org structure'!E39 -> 06.4 - Property Management & Housing | C103: 0 | D103: 0 | E103: 0 | F103: 0 | G103: 0 | H103: 0 | I103: 0 | K103: 0
A104: ='Org structure'!E40 -> 06.5 - Integrated Development Planning | C104: 0 | D104: 0 | E104: 0 | F104: 0 | G104: 0 | H104: 0 | I104: 0 | K104: 0
A105: ='Org structure'!E41 -> 06.6 - Performance Management | C105: 0 | D105: 0 | E105: 0 | F105: 0 | G105: 0 | H105: 0 | I105: 0 | K105: 0
A106: ='Org structure'!E42 -> 06.7 - Environmental Management Services | C106: 0 | D106: 520000 | E106: 520000 | F106: 0 | G106: 7800 | H106: 346664 | I106: -338864 | J106: -0.9774998269 | K106: 520000
A107: ='Org structure'!E43 -> 06.8 - Disaster Management | C107: 0 | D107: 0 | E107: 0 | F107: 0 | G107: 0 | H107: 0 | I107: 0 | K107: 0
A108: ='Org structure'!A8 -> Vote 07 - Infrastructure Development | C108: =SUM(C109:C112) -> 13743928.04 | D108: 85918250 | E108: 116392073 | F108: 1511154.5 | G108: 17835271.7 | H108: 72653604 | I108: -54818332.3 | J108: -0.7545163527 | K108: =SUM(K109:K112) -> 116392073
A109: ='Org structure'!E45 -> 07.1 - Executive Manager: Infrastructure Dev | C109: 0 | D109: 0 | E109: 0 | F109: 0 | G109: 0 | H109: 0 | I109: 0 | K109: 0
A110: ='Org structure'!E46 -> 07.2 - Road Construction & Maintenance | C110: 4896203.06 | D110: 30725000 | E110: 40494000 | F110: -1982984.3 | G110: 5677345.35 | H110: 31717128 | I110: -26039782.65 | J110: -0.8210006483 | K110: 40494000
A111: ='Org structure'!E47 -> 07.3 - Electrical & Mechanical Works | C111: 111127.61 | D111: 4125000 | E111: 8250000 | F111: 0 | G111: 2273880 | H111: 3575000 | I111: -1301120 | J111: -0.3639496503 | K111: 8250000
A112: ='Org structure'!E48 -> 07.4 - Project Management | C112: 8736597.37 | D112: 51068250 | E112: 67648073 | F112: 3494138.8 | G112: 9884046.35 | H112: 37361476 | I112: -27477429.65 | J112: -0.7354481833 | K112: 67648073
A113: ='Org structure'!A9 -> Vote 08 - | C113: 0 | D113: 0 | E113: 0 | F113: 0 | G113: 0 | H113: 0 | I113: 0 | K113: 0
A114: ='Org structure'!A10 -> Vote 09 - | C114: 0 | D114: 0 | E114: 0 | F114: 0 | G114: 0 | H114: 0 | I114: =G114-H114 -> 0 | J114: =IF(I114=0,"",I114/H114) ->  | K114: 0
A115: ='Org structure'!A11 -> Vote 10 - | C115: 0 | D115: 0 | E115: 0 | F115: 0 | G115: 0 | H115: 0 | I115: 0 | K115: 0
A116: ='Org structure'!A12 -> Vote 11 - | C116: 0 | D116: 0 | E116: 0 | F116: 0 | G116: 0 | H116: 0 | I116: 0 | K116: 0
A117: ='Org structure'!A13 -> Vote 12 - | C117: 0 | D117: 0 | E117: 0 | F117: 0 | G117: 0 | H117: 0 | I117: 0 | K117: 0
A118: ='Org structure'!A14 -> Vote 13 - | C118: 0 | D118: 0 | E118: 0 | F118: 0 | G118: 0 | H118: 0 | I118: 0 | K118: 0
A119: ='Org structure'!A15 -> Vote 14 - | C119: 0 | D119: 0 | E119: 0 | F119: 0 | G119: 0 | H119: 0 | I119: 0 | K119: 0
A120: ='Org structure'!A16 -> Vote 15 - Other | C120: 0 | D120: 0 | E120: 0 | F120: 0 | G120: 0 | H120: 0 | I120: =G120-H120 -> 0 | J120: =IF(I120=0,"",I120/H120) ->  | K120: 0
A121: Total single-year capital expenditure | C121: =C66+C69+C75+C83+C90+C99+C108+C113+C114+C115+C116+C117+C118+C119+C120 -> 13767567.82 | D121: 134668250 | E121: 164519790 | F121: 1777210.5 | G121: 22436038.92 | H121: 106357164 | I121: -83921125.08 | J121: -0.7890500454 | K121: =K66+K69+K75+K83+K90+K99+K108+K113+K114+K115+K116+K117+K118+K119+K120 -> 164519790
A122: Total Capital Expenditure | C122: =C62+C121 -> 13767567.82 | D122: 134668250 | E122: 164519790 | F122: 1777210.5 | G122: 22436038.92 | H122: 106357164 | I122: -83921125.08 | J122: -0.7890500454 | K122: =K62+K121 -> 164519790
A123: =head27a -> References
A124: 1. Insert 'Vote'; e.g. Department, if different to standard structure

Sheet C6-FinPos
A1: =muni& " - "&S71E& " - "&date -> LIM355 Lepelle-Nkumpi - Table C6 Monthly Budget Statement - Financial Position - M08 February
A2: =desc -> Description | B2: =head27 -> Ref | C2: =Head1 -> 2019/20 | D2: =Head2 -> Budget Year 2020/21
C3: =Head5 -> Audited Outcome | D3: =Head6 -> Original Budget | E3: =Head7 -> Adjusted Budget | F3: =Head39 -> YearTD actual | G3: =Head8 -> Full Year Forecast
A4: R thousands | B4: 1
A5: ASSETS
A6: Current assets
A7: Cash | C7: -10364174.71 | D7: -312500425 | E7: -269711729 | F7: -5025178.91 | G7: -269711729
A8: Call investment deposits | C8: 86700994.8 | D8: 385400941 | E8: 594556404 | F8: 254120823.7 | G8: 594556404
A9: Consumer debtors | C9: 26678713.58 | D9: 85826168 | E9: 85826168 | F9: 107489513.3 | G9: 85826168
A10: Other debtors | C10: 1249070.41 | D10: -2358821 | E10: -2358821 | F10: 9003378.93 | G10: -2358821
A11: Current portion of long-term receivables
A12: Inventory | C12: 369505 | D12: 114742333 | E12: 114742333 | F12: 42814395.09 | G12: 114742333
A13: Total current assets | C13: =SUM(C7:C12) -> 104634109.1 | D13: =SUM(D7:D12) -> 271110196 | E13: =SUM(E7:E12) -> 523054355 | F13: =SUM(F7:F12) -> 408402932 | G13: =SUM(G7:G12) -> 523054355
A15: Non current assets
A16: Long-term receivables | C16: 0 | D16: 0 | E16: 0 | F16: 0 | G16: 0
A17: Investments | C17: 0 | D17: 0 | E17: 0 | F17: 150000000 | G17: 0
A18: Investment property | C18: 0 | D18: 117414000 | E18: 117414000 | F18: 146641000 | G18: 117414000
A19: Investments in Associate
A20: Property, plant and equipment | C20: 13767567.82 | D20: 719846507 | E20: 749698047 | F20: 754662002.9 | G20: 749698047
A22: Biological
A23: Intangible | C23: 0 | D23: 85831 | E23: 85831 | F23: 175655.42 | G23: 85831
A24: Other non-current assets | C24: 0 | D24: 0 | E24: 0 | F24: 183684.33 | G24: 0
A25: Total non current assets | C25: =SUM(C16:C20)+SUM(C22:C24) -> 13767567.82 | D25: =SUM(D16:D20)+SUM(D22:D24) -> 837346338 | E25: =SUM(E16:E20)+SUM(E22:E24) -> 867197878 | F25: =SUM(F16:F20)+SUM(F22:F24) -> 1051662343 | G25: =SUM(G16:G20)+SUM(G22:G24) -> 867197878
A26: TOTAL ASSETS | C26: =C13+C25 -> 118401676.9 | D26: =D13+D25 -> 1108456534 | E26: =E13+E25 -> 1390252233 | F26: =F13+F25 -> 1460065275 | G26: =G13+G25 -> 1390252233
A28: LIABILITIES
A29: Current liabilities
A30: Bank overdraft | C30: 0 | D30: 0 | E30: 0 | F30: 0 | G30: 0
A31: Borrowing | C31: 0 | D31: 0 | E31: 0 | F31: -238137.84 | G31: 0
A32: Consumer deposits | C32: -5000 | D32: 1886836 | E32: 1886836 | F32: 2113252.13 | G32: 1886836
A33: Trade and other payables | C33: 18722977.87 | D33: 67249314 | E33: 67249314 | F33: 147525496.5 | G33: 67249314
A34: Provisions | C34: 0 | D34: 0 | E34: 0 | F34: 20162233.94 | G34: 0
A35: Total current liabilities | C35: =SUM(C30:C34) -> 18717977.87 | D35: =SUM(D30:D34) -> 69136150 | E35: =SUM(E30:E34) -> 69136150 | F35: =SUM(F30:F34) -> 169562844.7 | G35: =SUM(G30:G34) -> 69136150
A37: Non current liabilities
A38: Borrowing | C38: 0 | D38: 0 | E38: 0 | F38: 238138.31 | G38: 0
A39: Provisions | C39: 0 | D39: 14246863 | E39: 14246863 | F39: 0 | G39: 14246863
A40: Total non current liabilities | C40: =SUM(C38:C39) -> 0 | D40: =SUM(D38:D39) -> 14246863 | E40: =SUM(E38:E39) -> 14246863 | F40: =SUM(F38:F39) -> 238138.31 | G40: =SUM(G38:G39) -> 14246863
A41: TOTAL LIABILITIES | C41: =C35+C40 -> 18717977.87 | D41: =D35+D40 -> 83383013 | E41: =E35+E40 -> 83383013 | F41: =F35+F40 -> 169800983 | G41: =G35+G40 -> 83383013
A43: NET ASSETS | B43: 2 | C43: =C26-C41 -> 99683699.03 | D43: =D26-D41 -> 1025073521 | E43: =E26-E41 -> 1306869220 | F43: =F26-F41 -> 1290264292 | G43: =G26-G41 -> 1306869220
A45: COMMUNITY WEALTH/EQUITY
A46: Accumulated Surplus/(Deficit) | C46: -138710.1 | D46: 890405271 | E46: 1000994177 | F46: 1422096940 | G46: 1000994177
A47: Reserves | C47: 0 | D47: 0 | E47: 0 | F47: 12781450.78 | G47: 0
A48: TOTAL COMMUNITY WEALTH/EQUITY | B48: 2 | C48: =SUM(C46:C47) -> -138710.1 | D48: =SUM(D46:D47) -> 890405271 | E48: =SUM(E46:E47) -> 1000994177 | F48: =SUM(F46:F47) -> 1434878391 | G48: =SUM(G46:G47) -> 1000994177
A49: =head27a -> References
A50: 1. Material variances to be explained in Table SC1
A51: 2. Net assets must balance with Total Community Wealth/Equity
A54: check balance | C54: =C43-C48 -> 99822409.13 | D54: =D43-D48 -> 134668250 | E54: =E43-E48 -> 305875043 | F54: =F43-F48 -> -144614099.6 | G54: =G43-G48 -> 305875043

Sheet C7-CFlow
A1: =muni& " - "&S71F& " - "&date -> LIM355 Lepelle-Nkumpi - Table C7 Monthly Budget Statement - Cash Flow - M08 February
A2: =desc -> Description | B2: =head27 -> Ref | C2: =Head1 -> 2019/20 | D2: =Head2 -> Budget Year 2020/21
C3: =Head5 -> Audited Outcome | D3: =Head6 -> Original Budget | E3: =Head7 -> Adjusted Budget | F3: =Head38 -> Monthly actual | G3: =Head39 -> YearTD actual | H3: =Head40 -> YearTD budget | I3: =Head41 -> YTD variance | J3: =Head41 -> YTD variance | K3: =Head8 -> Full Year Forecast
A4: R thousands | B4: 1 | J4: %
A5: CASH FLOW FROM OPERATING ACTIVITIES
A6: Receipts
A7: Property rates | C7: 0 | D7: 19223452 | E7: 19223452 | F7: 1101189.72 | G7: 7225349.1 | H7: 12815632 | I7: =G7-H7 -> -5590282.9 | J7: =IF(I7=0,"",I7/H7) -> -0.4362081324 | K7: 19223452
A8: Service charges | C8: 0 | D8: 2897004 | E8: 2897004 | F8: 3369941.52 | G8: 19695845.74 | H8: 1931336 | I8: 17764509.74 | J8: =IF(I8=0,"",I8/H8) -> 9.19804205 | K8: 2897004
A9: Other revenue | C9: 0 | D9: 456255885 | E9: 456255885 | F9: 10491473.35 | G9: 469258280.7 | H9: 304170568 | I9: 165087712.7 | J9: =IF(I9=0,"",I9/H9) -> 0.5427471626 | K9: 456255885
A10: Transfers and Subsidies - Operational | I10: 0 | J10: =IF(I10=0,"",I10/H10) -> 
A11: Transfers and Subsidies - Capital | I11: 0 | J11: =IF(I11=0,"",I11/H11) -> 
A12: Interest | C12: 0 | D12: 7505491 | E12: 7505491 | F12: 0 | G12: 3061328.73 | H12: 5003656 | I12: -1942327.27 | J12: -0.3881816156 | K12: 7505491
A13: Dividends | C13: 0 | D13: 0 | E13: 0 | F13: 0 | G13: 0 | H13: 0 | I13: 0 | K13: 0
A14: Payments
A15: Suppliers and employees | C15: 0 | D15: -180073967 | E15: -180073967 | F15: 5818826.75 | G15: -45484144.18 | H15: -120049296 | I15: =H15-G15 -> -74565151.82 | J15: 0.6211211086 | K15: -180073967
A16: Finance charges | I16: =H16-G16 -> 0
A17: Transfers and Grants | I17: =H17-G17 -> 0
A18: NET CASH FROM/(USED) OPERATING ACTIVITIES | C18: =SUM(C7:C13)+SUM(C15:C17) -> 0 | D18: 305807865 | E18: 305807865 | F18: 20781431.34 | G18: 453756660.1 | H18: 203871896 | I18: =H18-G18 -> -249884764.1 | J18: -1.225695003 | K18: =SUM(K7:K13)+SUM(K15:K17) -> 305807865
A20: CASH FLOWS FROM INVESTING ACTIVITIES
A21: Receipts
A22: Proceeds on disposal of PPE | I22: =G22-H22 -> 0 | J22: =IF(I22=0,"",I22/H22) -> 
A24: Decrease (increase) in non-current receivables | C24: 0 | D24: 0 | E24: 0 | F24: 0 | G24: 0 | H24: 0 | I24: =G24-H24 -> 0 | K24: 0
A25: Decrease (increase) in non-current investments | C25: 0 | D25: 0 | E25: 0 | F25: 0 | G25: 150000000 | H25: 0 | I25: =G25-H25 -> 150000000 | K25: 0
A26: Payments
A27: Capital assets | C27: 0 | D27: -134668250 | E27: -134668250 | F27: -1777210.5 | G27: -22436038.92 | H27: -89778728 | I27: =H27-G27 -> -67342689.08 | J27: 0.7500962709 | K27: -134668250
A28: NET CASH FROM/(USED) INVESTING ACTIVITIES | C28: =SUM(C22:C25)+C27 -> 0 | D28: =SUM(D22:D25)+D27 -> -134668250 | E28: -134668250 | F28: -1777210.5 | G28: 127563961.1 | H28: -89778728 | I28: =H28-G28 -> -217342689.1 | J28: 2.420870666 | K28: =SUM(K22:K25)+K27 -> -134668250
A30: CASH FLOWS FROM FINANCING ACTIVITIES
A31: Receipts
A32: Short term loans | I32: =G32-H32 -> 0 | J32: =IF(I32=0,"",I32/H32) -> 
A33: Borrowing long term/refinancing | I33: =G33-H33 -> 0
A34: Increase (decrease) in consumer deposits | C34: 5000 | D34: -1891836 | E34: 0 | F34: 0 | G34: -2113252.13 | H34: -1257896 | I34: =G34-H34 -> -855356.13 | J34: 0.679989546 | K34: -1886836
A35: Payments
A36: Repayment of borrowing | C36: 0 | D36: 0 | E36: 0 | F36: 0 | G36: 0 | H36: 0 | I36: =H36-G36 -> 0 | K36: 0
A37: NET CASH FROM/(USED) FINANCING ACTIVITIES | C37: =SUM(C32:C34)+C36 -> 5000 | D37: -1891836 | E37: 0 | F37: 0 | G37: -2113252.13 | H37: -1257896 | I37: =H37-G37 -> 855356.13 | J37: -0.679989546 | K37: =SUM(K32:K34)+K36 -> -1886836
A39: NET INCREASE/ (DECREASE) IN CASH HELD | C39: =C18+C28+C37 -> 5000 | D39: 169247779 | E39: 171139615 | F39: 19004220.84 | G39: 579207369.1 | H39: 112835272 | K39: =K18+K28+K37 -> 169252779
A40: Cash/cash equivalents at beginning: | C40: 160 | D40: 5430167 | E40: 169597930 | G40: 117948567.5
A41: Cash/cash equivalents at month/year end: | C41: =C39+C40 -> 5160 | D41: =D39+D40 -> 174677946 | E41: =E39+E40 -> 340737545 | G41: =G39+G40 -> 697155936.6 | H41: =H39+H40 -> 112835272 | K41: =K39+K40 -> 169252779
A42: References
A43: 1. Material variances to be explained in Table SC1

Sheet SC1
A1: =muni& " - "&S71G& " - "&date -> LIM355 Lepelle-Nkumpi - Supporting Table SC1 Material variance explanations - M08 February
A2: =head27 -> Ref | B2: =desc -> Description
C3: Variance | D3: Reasons for material deviations | E3: Remedial or corrective steps/remarks
B4: R thousands
A5: 1 | B5: ='C4-FinPerf RE'!A5 -> Revenue By Source
B6: Client elected not to populate this sheet
A10: 2 | B10: ='C4-FinPerf RE'!A24 -> Expenditure By Type
B11: Client elected not to populate this sheet
A15: 3 | B15: =RIGHT('C5-Capex'!A40,19) -> Capital Expenditure
B16: Client elected not to populate this sheet
A20: 4 | B20: Financial Position
B21: Client elected not to populate this sheet
A25: 5 | B25: Cash Flow
B26: Client elected not to populate this sheet
A30: 6 | B30: Measureable performance
B31: Client elected not to populate this sheet
A35: 7 | B35: Municipal Entities
B36: Client elected not to populate this sheet
A41: =head27a -> References
A42: 1. Revenue for each source, vote and standard classification
A43: 2. Expenditure for each type, vote and standard classification
A44: 3. Capital expenditure for each vote and standard classification
A45: 4. Explain any material variances between the annual budget and the expected financial position based on current trends
A46: 5. Cash receipts by source and cash payments by type where not explained under revenue and expenditure
A47: 6. For Sept, Dec, Mar and Jun statements explain any material variances in achievement of measurable performance objectives

Sheet SC2
A1: =muni& " - "&S71H& " - "&Head57 -> LIM355 Lepelle-Nkumpi - Supporting Table SC2 Monthly Budget Statement - performance indicators - M08 February
A2: Description of financial indicator | B2: Basis of calculation | C2: =head27 -> Ref | D2: =Head1 -> 2019/20 | E2: =Head2 -> Budget Year 2020/21
D3: =Head5 -> Audited Outcome | E3: =Head6 -> Original Budget | F3: =Head7 -> Adjusted Budget | G3: =Head39 -> YearTD actual | H3: =Head8 -> Full Year Forecast
A5: Borrowing Management
A7: Capital Charges to Operating Expenditure | B7: Interest & principal paid/Operating Expenditure | D7: =IF(ISERROR((D42-D43)/D45),0,((D42-D43)/D45)) -> 0 | E7: =IF(ISERROR((E42+E44)/E45),0,((E42+E44)/E45)) -> 0.1045891037 | F7: =IF(ISERROR((F42+F44)/F45),0,((F42+F44)/F45)) -> 0.09326074881 | G7: =IF(ISERROR((G42+G44)/G45),0,((G42+G44)/G45)) -> 0 | H7: =IF(ISERROR((H42+H44)/H45),0,((H42+H44)/H45)) -> 0.06844545973
A8: Borrowed funding of 'own' capital expenditure | B8: Borrowings/Capital expenditure excl. transfers and grants | D8: =IF(ISERROR(D47/D46),0,(D47/D46)) -> 0 | E8: =IF(ISERROR(E47/E46),0,(E47/E46)) -> 0 | F8: =IF(ISERROR(F47/F46),0,(F47/F46)) -> 0 | G8: =IF(ISERROR(G47/G46),0,(G47/G46)) -> 0 | H8: =IF(ISERROR(H47/H46),0,(H47/H46)) -> 0
A9: Safety of Capital
A10: Debt to Equity | B10: Loans, Accounts Payable, Overdraft & Tax Provision/ Funds & Reserves | D10: =IF(ISERROR(D48/D49),0,(D48/D49)) -> -134.9791967 | E10: =IF(ISERROR(E48/E49),0,(E48/E49)) -> 0.07552663511 | F10: =IF(ISERROR(F48/F49),0,(F48/F49)) -> 0.06718252268 | G10: =IF(ISERROR(G48/G49),0,(G48/G49)) -> 0.1028139373 | H10: =IF(ISERROR(H48/H49),0,(H48/H49)) -> 0.06718252268
A11: Gearing | B11: Long Term Borrowing/ Funds & Reserves | D11: =IF(ISERROR(D51/D50),0,(D51/D50)) -> 0 | E11: =IF(ISERROR(E51/E50),0,(E51/E50)) -> 0 | F11: =IF(ISERROR(F51/F50),0,(F51/F50)) -> 0 | G11: =IF(ISERROR(G51/G50),0,(G51/G50)) -> 0.01863155553 | H11: =IF(ISERROR(H51/H50),0,(H51/H50)) -> 0
A12: Liquidity
A13: Current Ratio | B13: Current assets/current liabilities | C13: 1 | D13: =IF(ISERROR(D52/D53),0,(D52/D53)) -> 5.590032738 | E13: =IF(ISERROR(E52/E53),0,(E52/E53)) -> 3.921395623 | F13: =IF(ISERROR(F52/F53),0,(F52/F53)) -> 7.565569604 | G13: =IF(ISERROR(G52/G53),0,(G52/G53)) -> 2.408563814 | H13: =IF(ISERROR(H52/H53),0,(H52/H53)) -> 7.565569604
A14: Liquidity Ratio | B14: Monetary Assets/Current Liabilities | D14: =IF(ISERROR(D54/D53),0,(D54/D53)) -> 4.078262119 | E14: =IF(ISERROR(E54/E53),0,(E54/E53)) -> 1.054448592 | F14: =IF(ISERROR(F54/F53),0,(F54/F53)) -> 4.698622573 | G14: =IF(ISERROR(G54/G53),0,(G54/G53)) -> 1.469046153 | H14: =IF(ISERROR(H54/H53),0,(H54/H53)) -> 4.698622573
A15: Revenue Management
A16: Annual Debtors Collection Rate (Payment Level %) | B16: Last 12 Mths Receipts/ Last 12 Mths Billing
A17: Outstanding Debtors to Revenue | B17: Total Outstanding Debtors to Annual Revenue | D17: =IF(ISERROR(D59/D55),0,(D59/D55)) -> 0.1950993062 | E17: =IF(ISERROR(E59/E55),0,(E59/E55)) -> 0.2136057977 | F17: =IF(ISERROR(F59/F55),0,(F59/F55)) -> 0.1894244063 | G17: =IF(ISERROR(G59/G55),0,(G59/G55)) -> 0.3165711621 | H17: =IF(ISERROR(H59/H55),0,(H59/H55)) -> 0.1894244063
A18: Longstanding Debtors Recovered | B18: Debtors > 12 Mths Recovered/Total Debtors > 12 Months Old | D18: =IF(ISERROR(D64/D63),0,(D64/D63)) -> 0 | E18: =IF(ISERROR(E64/E63),0,(E64/E63)) -> 0 | F18: =IF(ISERROR(F64/F63),0,(F64/F63)) -> 0 | G18: =IF(ISERROR(G64/G63),0,(G64/G63)) -> 0 | H18: =IF(ISERROR(H64/H63),0,(H64/H63)) -> 0
A19: Creditors Management
A20: Creditors System Efficiency | B20: % of Creditors Paid Within Terms (within MFMA s 65(e))
A21: Funding of Provisions
A22: Percentage Of Provisions Not Funded | B22: Unfunded Provisions/Total Provisions
A23: Other Indicators
A24: Electricity Distribution Losses | B24: % Volume (units purchased and generated less units sold)/units purchased and generated | C24: 2
A25: Water Distribution Losses | B25: % Volume (units purchased and own source less units sold)/Total units purchased and own source | C25: 2
A26: Employee costs | B26: Employee costs/Total Revenue - capital revenue | D26: =IF(ISERROR(D40/D55),0,(D40/D55)) -> 0.1811230758 | E26: =IF(ISERROR(E40/E55),0,(E40/E55)) -> 0.3016074223 | F26: =IF(ISERROR(F40/F55),0,(F40/F55)) -> 0.2582790078 | G26: =IF(ISERROR(G40/G55),0,(G40/G55)) -> 0.1759511317 | H26: =IF(ISERROR(H40/H55),0,(H40/H55)) -> 0.2582790078
A27: Repairs & Maintenance | B27: R&M/Total Revenue - capital revenue | D27: =IF(ISERROR(D41/D55),0,(D41/D55)) -> 0.003620231151 | E27: =IF(ISERROR(E41/E55),0,(E41/E55)) -> 0.008445208309 | F27: =IF(ISERROR(F41/F55),0,(F41/F55)) -> 0.03244152997 | G27: =IF(ISERROR(G41/G55),0,(G41/G55)) -> 0.001067567358 | H27: =IF(ISERROR(H41/H55),0,(H41/H55)) -> 0.03244152997
A28: Interest & Depreciation | B28: I&D/Total Revenue - capital revenue | D28: =IF(ISERROR((D42+D44)/D55),0,((D42+D44)/D55)) -> 9.485303124e-05 | E28: =IF(ISERROR((E42+E44)/E55),0,((E42+E44)/E55)) -> 0.08292252535 | F28: =IF(ISERROR((F42+F44)/F55),0,((F42+F44)/F55)) -> 0.07353522378 | G28: =IF(ISERROR((G42+G44)/G55),0,((G42+G44)/G55)) -> 0 | H28: =IF(ISERROR((H42+H44)/H55),0,((H42+H44)/H55)) -> 0.0539686016
A29: IDP regulation financial viability indicators
A30: i. Debt coverage | B30: (Total Operating Revenue - Operating Grants)/Debt service payments due within financial year)
A31: ii. O/S Service Debtors to Revenue | B31: Total outstanding service debtors/annual revenue received for services
A32: iii. Cost coverage | B32: (Available cash + Investments)/monthly fixed operational expenditure
A33: References
A34: 1. Consumer debtors > 12 months old are excluded from current assets.
A35: 2. Material variances to be explained.
A37: Calculations
A38: ='C6-FinPos'!A38 -> Borrowing | D38: ='C6-FinPos'!C38 -> 0 | E38: ='C6-FinPos'!D38 -> 0 | F38: ='C6-FinPos'!E38 -> 0 | G38: ='C6-FinPos'!F38 -> 238138.31 | H38: 0
A39: Total Assets | D39: ='C6-FinPos'!C26 -> 118401676.9 | E39: ='C6-FinPos'!D26 -> 1108456534 | F39: ='C6-FinPos'!E26 -> 1390252233 | G39: ='C6-FinPos'!F26 -> 1460065275 | H39: ='C6-FinPos'!G26 -> 1390252233
A40: ='C4-FinPerf RE'!A25 -> Employee related costs | D40: ='C4-FinPerf RE'!C25 -> 25927135.45 | E40: ='C4-FinPerf RE'!D25 -> 117854345 | F40: ='C4-FinPerf RE'!E25 -> 113807212 | G40: ='C4-FinPerf RE'!G25 -> 64747073.22 | H40: ='C4-FinPerf RE'!K25 -> 113807212
A41: =A27 -> Repairs & Maintenance | D41: 518223.44 | E41: 3300000 | F41: 14294929 | G41: 392846.93 | H41: 14294929
A42: Interest (finance charges) | D42: ='C4-FinPerf RE'!C29 -> 0 | E42: ='C4-FinPerf RE'!D29 -> 141075 | F42: ='C4-FinPerf RE'!E29 -> 141075 | G42: ='C4-FinPerf RE'!G29 -> 0 | H42: ='C4-FinPerf RE'!K29 -> 141075
A43: Principal paid | D43: =-'C7-CFlow'!C36 -> 0 | E43: =-'C7-CFlow'!D36 -> 0 | F43: =-'C7-CFlow'!E36 -> 0 | G43: =-'C7-CFlow'!G36 -> 0 | H43: =-'C7-CFlow'!K36 -> 0
A44: Depreciation | D44: ='C4-FinPerf RE'!C28 -> 13577.88 | E44: ='C4-FinPerf RE'!D28 -> 32261244 | F44: ='C4-FinPerf RE'!E28 -> 32261244 | H44: ='C4-FinPerf RE'!K26 -> 23639472
A45: Operating expenditure | D45: ='C4-FinPerf RE'!C36 -> 47307824.54 | E45: ='C4-FinPerf RE'!D36 -> 309805877 | F45: ='C4-FinPerf RE'!E36 -> 347437903 | G45: ='C4-FinPerf RE'!G36 -> 155980915.6 | H45: ='C4-FinPerf RE'!K36 -> 347437903
A46: ='C5-Capex'!A40 -> Total Capital Expenditure | D46: ='C5-Capex'!C40 -> 13767567.82 | E46: ='C5-Capex'!D40 -> 134668250 | F46: ='C5-Capex'!E40 -> 164519790 | G46: ='C5-Capex'!G40 -> 22436038.92 | H46: ='C5-Capex'!K40 -> 164519790
A47: Borrowed funding for capital | D47: ='C5-Capex'!C72 -> 0 | E47: ='C5-Capex'!D72 -> 0 | F47: ='C5-Capex'!E72 -> 0 | G47: ='C5-Capex'!G72 -> 0 | H47: ='C5-Capex'!K72 -> 0
A48: Debt | D48: ='C6-FinPos'!C30+'C6-FinPos'!C31+'C6-FinPos'!C33+'C6-FinPos'!C38 -> 18722977.87 | E48: ='C6-FinPos'!D30+'C6-FinPos'!D31+'C6-FinPos'!D33+'C6-FinPos'!D38 -> 67249314 | F48: ='C6-FinPos'!E30+'C6-FinPos'!E31+'C6-FinPos'!E33+'C6-FinPos'!E38 -> 67249314 | G48: ='C6-FinPos'!F30+'C6-FinPos'!F31+'C6-FinPos'!F33+'C6-FinPos'!F38 -> 147525497 | H48: ='C6-FinPos'!G30+'C6-FinPos'!G31+'C6-FinPos'!G33+'C6-FinPos'!G38 -> 67249314
A49: Equity | D49: ='C6-FinPos'!C48 -> -138710.1 | E49: ='C6-FinPos'!D48 -> 890405271 | F49: ='C6-FinPos'!E48 -> 1000994177 | G49: ='C6-FinPos'!F48 -> 1434878391 | H49: ='C6-FinPos'!G48 -> 1000994177
A50: ='C6-FinPos'!A47 -> Reserves | D50: ='C6-FinPos'!C47 -> 0 | E50: ='C6-FinPos'!D47 -> 0 | F50: ='C6-FinPos'!E47 -> 0 | G50: ='C6-FinPos'!F47 -> 12781450.78 | H50: ='C6-FinPos'!G47 -> 0
A51: ='C6-FinPos'!A38 -> Borrowing | D51: ='C6-FinPos'!C38 -> 0 | E51: ='C6-FinPos'!D38 -> 0 | F51: ='C6-FinPos'!E38 -> 0 | G51: ='C6-FinPos'!F38 -> 238138.31 | H51: ='C6-FinPos'!G38 -> 0
A52: ='C6-FinPos'!A6 -> Current assets | D52: ='C6-FinPos'!C13 -> 104634109.1 | E52: ='C6-FinPos'!D13 -> 271110196 | F52: ='C6-FinPos'!E13 -> 523054355 | G52: ='C6-FinPos'!F13 -> 408402932 | H52: ='C6-FinPos'!G13 -> 523054355
A53: ='C6-FinPos'!A29 -> Current liabilities | D53: ='C6-FinPos'!C35 -> 18717977.87 | E53: ='C6-FinPos'!D35 -> 69136150 | F53: ='C6-FinPos'!E35 -> 69136150 | G53: ='C6-FinPos'!F35 -> 169562844.7 | H53: ='C6-FinPos'!G35 -> 69136150
A54: Monetary assets | D54: ='C6-FinPos'!C7+'C6-FinPos'!C8 -> 76336820.09 | E54: ='C6-FinPos'!D7+'C6-FinPos'!D8 -> 72900516 | F54: ='C6-FinPos'!E7+'C6-FinPos'!E8 -> 324844675 | G54: ='C6-FinPos'!F7+'C6-FinPos'!F8 -> 249095644.7 | H54: ='C6-FinPos'!G7+'C6-FinPos'!G8 -> 324844675
A55: ='C4-FinPerf RE'!A22 -> Total Revenue (excluding capital transfers and contributions) | D55: ='C4-FinPerf RE'!C22 -> 143146505.9 | E55: ='C4-FinPerf RE'!D22 -> 390754127 | F55: ='C4-FinPerf RE'!E22 -> 440636709 | G55: ='C4-FinPerf RE'!G22 -> 367983272.5 | H55: ='C4-FinPerf RE'!K22 -> 440636709
A56: ='C4-FinPerf RE'!A19 -> Transfers and subsidies | D56: ='C4-FinPerf RE'!C19 -> 105855612.7 | E56: ='C4-FinPerf RE'!D19 -> 269853000 | F56: ='C4-FinPerf RE'!E19 -> 323118898 | G56: ='C4-FinPerf RE'!G19 -> 254225195.4 | H56: ='C4-FinPerf RE'!K19 -> 323118898
A57: ='C4-FinPerf RE'!A39 -> Transfers and subsidies - capital (monetary allocations) (National / Provincial and District) | D57: ='C4-FinPerf RE'!C39 -> 3983727.73 | E57: ='C4-FinPerf RE'!D39 -> 53720000 | F57: ='C4-FinPerf RE'!E39 -> 69887541 | G57: ='C4-FinPerf RE'!G39 -> 12341792.03 | H57: ='C4-FinPerf RE'!K39 -> 69887541
A58: Debt service payments | D58: ='C7-CFlow'!C12+'C7-CFlow'!C36 -> 0 | E58: ='C7-CFlow'!D12+'C7-CFlow'!D36 -> 7505491 | F58: ='C7-CFlow'!E12+'C7-CFlow'!E36 -> 7505491 | G58: ='C7-CFlow'!G16+'C7-CFlow'!G36 -> 0 | H58: ='C7-CFlow'!K16+'C7-CFlow'!K36 -> 0
A59: Outstanding debtors (receivables) | D59: ='C6-FinPos'!C9+'C6-FinPos'!C10+'C6-FinPos'!C11+'C6-FinPos'!C16 -> 27927783.99 | E59: ='C6-FinPos'!D9+'C6-FinPos'!D10+'C6-FinPos'!D11+'C6-FinPos'!D16 -> 83467347 | F59: ='C6-FinPos'!E9+'C6-FinPos'!E10+'C6-FinPos'!E11+'C6-FinPos'!E16 -> 83467347 | G59: ='C6-FinPos'!F9+'C6-FinPos'!F10+'C6-FinPos'!F11+'C6-FinPos'!F16 -> 116492892.2 | H59: ='C6-FinPos'!G9+'C6-FinPos'!G10+'C6-FinPos'!G11+'C6-FinPos'!G16 -> 83467347
A60: Annual services revenue | D60: =SUM('C4-FinPerf RE'!C7:C11) -> 23065489.82 | E60: =SUM('C4-FinPerf RE'!D7:D11) -> 6271577 | F60: =SUM('C4-FinPerf RE'!E7:E11) -> 6539437 | G60: =SUM('C4-FinPerf RE'!G7:G11) -> 51507892.95
A61: Cash + investments | B61: Including LT investments | D61: ='C6-FinPos'!C7+'C6-FinPos'!C8+'C6-FinPos'!C17-'C6-FinPos'!C30 -> 76336820.09 | E61: ='C6-FinPos'!D7+'C6-FinPos'!D8+'C6-FinPos'!D17-'C6-FinPos'!D30 -> 72900516 | F61: ='C6-FinPos'!E7+'C6-FinPos'!E8+'C6-FinPos'!E17-'C6-FinPos'!E30 -> 324844675 | G61: ='C6-FinPos'!F7+'C6-FinPos'!F8+'C6-FinPos'!F17-'C6-FinPos'!F30 -> 399095644.7 | H61: ='C6-FinPos'!G7+'C6-FinPos'!G8+'C6-FinPos'!G17-'C6-FinPos'!G30 -> 324844675
A62: Fixed operational expend. (monthly)
A63: Longstanding debtors outstanding | D63: ='C6-FinPos'!C16 -> 0 | E63: ='C6-FinPos'!D16 -> 0 | F63: ='C6-FinPos'!E16 -> 0 | G63: ='C6-FinPos'!F16 -> 0 | H63: ='C6-FinPos'!G16 -> 0
A64: Longstanding debtors recovered
A65: Attorney collections

Sheet SC3
A1: =muni& " - "&S71I& " - "&Head57 -> LIM355 Lepelle-Nkumpi - Supporting Table SC3 Monthly Budget Statement - aged debtors - M08 February
A2: =desc -> Description | C2: =Head2 -> Budget Year 2020/21
A3: R thousands | B3: NT Code | C3: 0-30 Days | D3: 31-60 Days | E3: 61-90 Days | F3: 91-120 Days | G3: 121-150 Dys | H3: 151-180 Dys | I3: 181 Dys-1 Yr | J3: Over 1Yr | K3: Total | L3: Total over 90 days | M3: Actual Bad Debts Written Off against Debtors | N3: Impairment - Bad Debts i.t.o Council Policy
A4: Debtors Age Analysis By Income Source
A5: Trade and Other Receivables from Exchange Transactions - Water | B5: 1200 | K5: =SUM(C5:J5) -> 0 | L5: =SUM(F5:J5) -> 0
A6: Trade and Other Receivables from Exchange Transactions - Electricity | B6: 1300 | K6: =SUM(C6:J6) -> 0 | L6: =SUM(F6:J6) -> 0
A7: Receivables from Non-exchange Transactions - Property Rates | B7: 1400 | K7: =SUM(C7:J7) -> 0 | L7: 0
A8: Receivables from Exchange Transactions - Waste Water Management | B8: 1500 | K8: 0 | L8: 0
A9: Receivables from Exchange Transactions - Waste Management | B9: 1600 | K9: 0 | L9: =SUM(F9:J9) -> 0
A10: Receivables from Exchange Transactions - Property Rental Debtors | B10: 1700 | K10: 0 | L10: =SUM(F10:J10) -> 0
A11: Interest on Arrear Debtor Accounts | B11: 1810 | K11: 0 | L11: 0
A12: Recoverable unauthorised, irregular, fruitless and wasteful expenditure | B12: 1820 | K12: 0 | L12: 0
A13: Other | B13: 1900 | K13: 0 | L13: =SUM(F13:J13) -> 0
A14: Total By Income Source | B14: 2000 | C14: =SUM(C5:C13) -> 0 | D14: 0 | E14: 0 | F14: 0 | G14: 0 | H14: 0 | I14: 0 | J14: 0 | K14: 0 | L14: =SUM(L5:L13) -> 0 | M14: 0 | N14: 0
A15: =Head1&" - totals only" -> 2019/20 - totals only | K15: =SUM(C15:J15) -> 0 | L15: =SUM(F15:J15) -> 0
A16: Debtors Age Analysis By Customer Group
A17: Organs of State | B17: 2200 | K17: =SUM(C17:J17) -> 0 | L17: =SUM(F17:J17) -> 0
A18: Commercial | B18: 2300 | K18: =SUM(C18:J18) -> 0 | L18: =SUM(F18:J18) -> 0
A19: Households | B19: 2400 | K19: =SUM(C19:J19) -> 0 | L19: =SUM(F19:J19) -> 0
A20: Other | B20: 2500 | K20: =SUM(C20:J20) -> 0 | L20: =SUM(F20:J20) -> 0
A21: Total By Customer Group | B21: 2600 | C21: =SUM(C17:C20) -> 0 | D21: 0 | E21: 0 | F21: 0 | G21: 0 | H21: 0 | I21: 0 | J21: =SUM(J17:J20) -> 0 | K21: =SUM(K17:K20) -> 0 | L21: =SUM(L17:L20) -> 0 | M21: =SUM(M17:M20) -> 0 | N21: =SUM(N17:N20) -> 0
A22: Notes
A23: Material increases in value of debtors' categories compared to previous month to be explained
A24: Bad debts = amounts actually written off in the month
A25: Total by Income Source must reconcile with Total by Customer Group
C26: =C14-C21 -> 0 | D26: =D14-D21 -> 0 | E26: =E14-E21 -> 0 | F26: 0 | G26: 0 | H26: 0 | I26: 0 | J26: =J14-J21 -> 0 | K26: 0
C27: =IF(C26=0,"","MUST AGREE") ->  | D27: =IF(D26=0,"","MUST AGREE") -> 

Sheet SC4
A1: =muni& " - "&S71J& " - "&Head57 -> LIM355 Lepelle-Nkumpi - Supporting Table SC4 Monthly Budget Statement - aged creditors - M08 February
A2: =desc -> Description | B2: NT Code | C2: =Head2 -> Budget Year 2020/21 | L2: Prior year totals for chart (same period)
C3: 0 - 30 Days | D3: 31 - 60 Days | E3: 61 - 90 Days | F3: 91 - 120 Days | G3: 121 - 150 Days | H3: 151 - 180 Days | I3: 181 Days - 1 Year | J3: Over 1 Year | K3: Total
A4: R thousands
A5: Creditors Age Analysis By Customer Type
A6: Bulk Electricity | B6: 0100 | K6: =SUM(C6:J6) -> 0
A7: Bulk Water | B7: 0200 | K7: =SUM(C7:J7) -> 0
A8: PAYE deductions | B8: 0300 | K8: 0
A9: VAT (output less input) | B9: 0400 | K9: 0
A10: Pensions / Retirement deductions | B10: 0500 | K10: 0
A11: Loan repayments | B11: 0600 | K11: 0
A12: Trade Creditors | B12: 0700 | K12: 0
A13: Auditor General | B13: 0800 | K13: 0
A14: Other | B14: 0900 | K14: =SUM(C14:J14) -> 0
A15: Total By Customer Type | B15: 1000 | C15: =SUM(C6:C14) -> 0 | D15: =SUM(D6:D14) -> 0 | E15: 0 | F15: 0 | G15: 0 | H15: 0 | I15: 0 | J15: 0 | K15: =SUM(K6:K14) -> 0 | L15: =SUM(L6:L14) -> 0
A16: Notes
A17: Material increases in value of creditors' categories compared to previous month to be explained

Sheet SC5
A1: =muni& " - "&S71K& " - "&Head57 -> LIM355 Lepelle-Nkumpi - Supporting Table SC5 Monthly Budget Statement - investment portfolio - M08 February
A2: Investments by maturity Name of institution & investment ID | B2: Ref | C2: Period of Investment | D2: Type of Investment | E2: Capital Guarantee (Yes/ No) | F2: Variable or Fixed interest rate | G2: Interest Rate ᶟ | H2: Commission Paid (Rands) | I2: Commission Recipient | J2: Expiry date of investment | K2: Opening balance | L2: Interest to be realised | M2: Partial / Premature Withdrawal (4) | N2: Investment Top Up | O2: Closing Balance
A3: R thousands | C3: Yrs/Months
A4: Municipality
O5: =SUM(K5:N5) -> 0
A6: Municipality sub-total | K6: =SUM(K5:K5) -> 0 | M6: =SUM(M5:M5) -> 0 | N6: =SUM(N5:N5) -> 0 | O6: =SUM(O5:O5) -> 0
A8: Entities
O9: =SUM(K9:N9) -> 0
O10: 0
O11: 0
O12: 0
O13: 0
O14: 0
O15: 0
A16: Entities sub-total | K16: =SUM(K9:K15) -> 0 | M16: =SUM(M9:M15) -> 0 | N16: =SUM(N9:N15) -> 0 | O16: =SUM(O9:O15) -> 0
A18: TOTAL INVESTMENTS AND INTEREST | B18: 2 | K18: =K6+K16 -> 0 | M18: =M6+M16 -> 0 | N18: =N6+N16 -> 0 | O18: =O6+O16 -> 0
A19: =head27a -> References
A20: 2. List investments in expiry date order
A21: 3. If 'variable' is selected in column F, input interest rate range
A22: 4. Withdrawals to be entered as negative

Sheet SC6
A1: =muni& " - "&S71L& " - "&Head57 -> LIM355 Lepelle-Nkumpi - Supporting Table SC6 Monthly Budget Statement - transfers and grant receipts - M08 February
A2: =desc -> Description | B2: =head27 -> Ref | C2: =Head1 -> 2019/20 | D2: =Head2 -> Budget Year 2020/21
C3: =Head5 -> Audited Outcome | D3: =Head6 -> Original Budget | E3: =Head7 -> Adjusted Budget | F3: =Head38 -> Monthly actual | G3: =Head39 -> YearTD actual | H3: =Head40 -> YearTD budget | I3: =Head41 -> YTD variance | J3: =Head41 -> YTD variance | K3: =Head8 -> Full Year Forecast
A4: R thousands | J4: %
A5: RECEIPTS: | B5: 1,2
A7: Operating Transfers and Grants
A8: National Government: | C8: =SUM(C9:C13) -> 105855612.7 | D8: 269853000 | E8: 322419000 | F8: 851175.27 | G8: 254225195.4 | H8: 211441600 | I8: =G8-H8 -> 42783595.38 | J8: =IF(H8=0,"",I8/H8) -> 0.2023423743 | K8: =SUM(K9:K13) -> 322419000
A9: Equitable Share | C9: 104184000 | D9: 265947000 | E9: 318513000 | F9: 0 | G9: 251860000 | H9: 208837600 | I9: 43022400 | J9: 0.2060088796 | K9: 318513000
A10: Expanded Public Works Programme Integrated Grant | C10: 1192935 | D10: 1906000 | E10: 1906000 | F10: 589890 | G10: 858390 | H10: 1270664 | I10: -412274 | J10: -0.3244555602 | K10: 1906000
A11: Integrated National Electrification Programme Grant | C11: 0 | D11: 0 | E11: 0 | F11: 0 | G11: 0 | H11: 0 | I11: 0 | K11: 0
A12: Local Government Financial Management Grant | C12: 478677.68 | D12: 2000000 | E12: 2000000 | F12: 261285.27 | G12: 1506805.38 | H12: 1333336 | I12: 173469.38 | J12: 0.1301017748 | K12: 2000000
A13: Municipal Disaster Relief Grant | C13: 0 | D13: 0 | E13: 0 | F13: 0 | G13: 0 | H13: 0 | I13: 0 | K13: 0
A14: Other transfers and grants [insert description] | I14: =G14-H14 -> 0 | J14: =IF(I14=0,"",I14/H14) -> 
A15: Provincial Government: | C15: =SUM(C16:C16) -> 0 | D15: 0 | E15: 699898 | F15: 0 | G15: 0 | H15: 139979 | I15: =G15-H15 -> -139979 | J15: =IF(H15=0,"",I15/H15) -> -1 | K15: =SUM(K16:K16) -> 699898
A16: Specify (Add grant description) | C16: 0 | D16: 0 | E16: 699898 | F16: 0 | G16: 0 | H16: 139979 | I16: =G16-H16 -> -139979 | J16: =IF(H16=0,"",I16/H16) -> -1 | K16: 699898
A17: Other transfers and grants [insert description] | I17: =G17-H17 -> 0
A18: District Municipality: | C18: =SUM(C19:C19) -> 0 | D18: 0 | E18: 0 | F18: 0 | G18: 0 | H18: 0 | I18: 0 | K18: =SUM(K19:K19) -> 0
A19: [insert description] | I19: 0
A20: Other grant providers: | C20: =SUM(C21:C22) -> 0 | D20: 0 | E20: 0 | F20: 0 | G20: 0 | H20: 0 | I20: =G20-H20 -> 0 | J20: =IF(H20=0,"",I20/H20) ->  | K20: =SUM(K21:K22) -> 0
A21: Library Donations | C21: 0 | D21: 0 | E21: 0 | F21: 0 | G21: 0 | H21: 0 | I21: =G21-H21 -> 0 | J21: =IF(H21=0,"",I21/H21) ->  | K21: 0
A22: Local Government Water and Related Service SETA | C22: 0 | D22: 0 | E22: 0 | F22: 0 | G22: 0 | H22: 0 | I22: =G22-H22 -> 0 | J22: =IF(H22=0,"",I22/H22) ->  | K22: 0
A23: Total Operating Transfers and Grants | B23: 5 | C23: =C8+C15+C18+C20 -> 105855612.7 | D23: 269853000 | E23: 323118898 | F23: 851175.27 | G23: 254225195.4 | H23: 211581579 | I23: 42643616.38 | J23: 0.2015469238 | K23: =K8+K15+K18+K20 -> 323118898
A25: Capital Transfers and Grants
A26: =A8 -> National Government: | C26: =SUM(C27:C27) -> 3983727.73 | D26: 53720000 | E26: 69887541 | F26: 5500363.59 | G26: 12341792.03 | H26: 39046844 | I26: =G26-H26 -> -26705051.97 | J26: =IF(H26=0,"",I26/H26) -> -0.6839234426 | K26: =SUM(K27:K27) -> 69887541
A27: Municipal Infrastructure Grant | C27: 3983727.73 | D27: 53720000 | E27: 69887541 | F27: 5500363.59 | G27: 12341792.03 | H27: 39046844 | I27: =G27-H27 -> -26705051.97 | J27: =IF(H27=0,"",I27/H27) -> -0.6839234426 | K27: 69887541
A28: =A15 -> Provincial Government: | C28: =SUM(C29:C29) -> 0 | D28: 0 | E28: 0 | F28: 0 | G28: 0 | H28: 0 | I28: =G28-H28 -> 0 | J28: =IF(H28=0,"",I28/H28) ->  | K28: =SUM(K29:K29) -> 0
A29: Specify (Add grant description) | C29: 0 | D29: 0 | E29: 0 | F29: 0 | G29: 0 | H29: 0 | I29: =G29-H29 -> 0 | J29: =IF(H29=0,"",I29/H29) ->  | K29: 0
A30: =A18 -> District Municipality: | C30: =SUM(C31:C31) -> 0 | D30: 0 | E30: 0 | F30: 0 | G30: 0 | H30: 0 | I30: =G30-H30 -> 0 | J30: =IF(I30=0,"",I30/H30) ->  | K30: =SUM(K31:K31) -> 0
A31: [insert description] | I31: 0
A32: =A20 -> Other grant providers: | C32: =SUM(C33:C33) -> 0 | D32: 0 | E32: 0 | F32: 0 | G32: 0 | H32: 0 | I32: 0 | K32: =SUM(K33:K33) -> 0
A33: [insert description] | I33: 0 | J33: =IF(I33=0,"",I33/H33) -> 
A34: Total Capital Transfers and Grants | B34: 5 | C34: =C26+C28+C30+C32 -> 3983727.73 | D34: 53720000 | E34: 69887541 | F34: 5500363.59 | G34: 12341792.03 | H34: 39046844 | I34: -26705051.97 | J34: -0.6839234426 | K34: =K26+K28+K30+K32 -> 69887541
A36: TOTAL RECEIPTS OF TRANSFERS & GRANTS | B36: 5 | C36: =C23+C34 -> 109839340.4 | D36: 323573000 | E36: 393006439 | F36: 6351538.86 | G36: 266566987.4 | H36: 250628423 | I36: 15938564.41 | J36: 0.0635944009 | K36: =K23+K34 -> 393006439
A37: =head27a -> References
A38: 1. Each grant is listed by name as gazetted together with the name of the transferring department or municipality, donor or other organisation
A39: 2. Grant expenditure must be separately listed for each grant received
A40: 3. Replacement of RSC levies
A41: 4. Housing subsidies for housing where ownership transferred
A42: 5. Total recurrent/capital grants and subsidies must reconcile to the 'Financial Performance' Statement

Sheet SC7(1)
A1: =muni& " - "&S71M& " - "&Head57 -> LIM355 Lepelle-Nkumpi - Supporting Table SC7(1) Monthly Budget Statement - transfers and grant expenditure - M08 February
A2: =desc -> Description | B2: =head27 -> Ref | C2: =Head1 -> 2019/20 | D2: =Head2 -> Budget Year 2020/21
C3: =Head5 -> Audited Outcome | D3: =Head6 -> Original Budget | E3: =Head7 -> Adjusted Budget | F3: =Head38 -> Monthly actual | G3: =Head39 -> YearTD actual | H3: =Head40 -> YearTD budget | I3: =Head41 -> YTD variance | J3: =Head41 -> YTD variance | K3: =Head8 -> Full Year Forecast
A4: R thousands | J4: %
A5: EXPENDITURE
A7: Operating expenditure of Transfers and Grants
A8: ='SC6'!A8 -> National Government: | C8: =SUM(C9:C14) -> 45433656.06 | D8: 308756877 | E8: 328408451 | F8: 16555093.07 | G8: 155132101.1 | H8: 216293766 | I8: -61161664.88 | J8: =IF(I8=0,"",I8/H8) -> -0.2827712791 | K8: =SUM(K9:K14) -> 328408451
I9: =G9-H9 -> 0
A10: Equitable Share | C10: 45333040.61 | D10: 294899127 | E10: 322262983 | F10: 15409781.09 | G10: 151536213.4 | H10: 211517718 | I10: =G10-H10 -> -59981504.59 | J10: =IF(H10=0,"",I10/H10) -> -0.2835767384 | K10: 322262983
A11: Expanded Public Works Programme Integrated Grant | C11: 0 | D11: 1906000 | E11: 1906000 | F11: 552087 | G11: 901589 | H11: 1270664 | I11: =G11-H11 -> -369075 | J11: =IF(H11=0,"",I11/H11) -> -0.2904583745 | K11: 1906000
A12: Integrated National Electrification Programme Grant | C12: 0 | D12: 7300000 | E12: 0 | F12: 0 | G12: 0 | H12: 486664 | I12: =G12-H12 -> -486664 | J12: =IF(H12=0,"",I12/H12) -> -1 | K12: 0
A13: Local Government Financial Management Grant | C13: 88636.32 | D13: 2000000 | E13: 2000001 | F13: 408333.25 | G13: 1410751.83 | H13: 1333344 | I13: =G13-H13 -> 77407.83 | J13: =IF(H13=0,"",I13/H13) -> 0.05805540806 | K13: 2000001
A14: Municipal Infrastructure Grant | C14: 11979.13 | D14: 2651750 | E14: 2239467 | F14: 184891.73 | G14: 1283546.88 | H14: 1685376 | I14: =G14-H14 -> -401829.12 | J14: =IF(H14=0,"",I14/H14) -> -0.2384210526 | K14: 2239467
A15: ='SC6'!A15 -> Provincial Government: | C15: =SUM(C16:C17) -> 0 | D15: 0 | E15: 683443 | F15: 0 | G15: 0 | H15: 136688 | I15: -136688 | J15: -1 | K15: =SUM(K16:K17) -> 683443
I16: =G16-H16 -> 0
A17: Specify (Add grant description) | C17: 0 | D17: 0 | E17: 683443 | F17: 0 | G17: 0 | H17: 136688 | I17: =G17-H17 -> -136688 | J17: =IF(H17=0,"",I17/H17) -> -1 | K17: 683443
A18: ='SC6'!A18 -> District Municipality: | C18: =SUM(C19:C19) -> 0 | D18: 0 | E18: 0 | F18: 0 | G18: 0 | H18: 0 | I18: 0 | K18: =SUM(K19:K19) -> 0
I19: 0
A20: ='SC6'!A20 -> Other grant providers: | C20: =SUM(C21:C21) -> 0 | D20: 0 | E20: 0 | F20: 0 | G20: 0 | H20: 0 | I20: 0 | K20: =SUM(K21:K21) -> 0
I21: 0
A22: Total operating expenditure of Transfers and Grants: | C22: =C8+C15+C18+C20 -> 45433656.06 | D22: 308756877 | E22: 329091894 | F22: 16555093.07 | G22: 155132101.1 | H22: 216430454 | I22: -61298352.88 | J22: -0.2832242494 | K22: =K8+K15+K18+K20 -> 329091894
A24: Capital expenditure of Transfers and Grants
A25: ='SC6'!A26 -> National Government: | C25: =SUM(C26:C26) -> 8736597.37 | D25: 54318250 | E25: 67648073 | F25: 3494138.8 | G25: 9884046.35 | H25: 37578140 | I25: -27694093.65 | J25: =IF(I25=0,"",I25/H25) -> -0.7369735077 | K25: =SUM(K26:K26) -> 67648073
A26: Municipal Infrastructure Grant | C26: 8736597.37 | D26: 54318250 | E26: 67648073 | F26: 3494138.8 | G26: 9884046.35 | H26: 37578140 | I26: =G26-H26 -> -27694093.65 | J26: =IF(H26=0,"",I26/H26) -> -0.7369735077 | K26: 67648073
A27: ='SC6'!A28 -> Provincial Government: | C27: =SUM(C28:C28) -> 0 | D27: 0 | E27: 0 | F27: 0 | G27: 0 | H27: 0 | I27: =G27-H27 -> 0 | K27: =SUM(K28:K28) -> 0
A28: Specify (Add grant description) | C28: 0 | D28: 0 | E28: 0 | F28: 0 | G28: 0 | H28: 0 | I28: =G28-H28 -> 0 | J28: =IF(H28=0,"",I28/H28) ->  | K28: 0
A29: ='SC6'!A30 -> District Municipality: | C29: =SUM(C30:C30) -> 0 | D29: 0 | E29: 0 | F29: 0 | G29: 0 | H29: 0 | I29: 0 | K29: =SUM(K30:K30) -> 0
I30: 0
A31: ='SC6'!A32 -> Other grant providers: | C31: =SUM(C32:C32) -> 0 | D31: 0 | E31: 0 | F31: 0 | G31: 0 | H31: 0 | I31: 0 | K31: =SUM(K32:K32) -> 0
I32: 0
A33: Total capital expenditure of Transfers and Grants | C33: =C25+C27+C29+C31 -> 8736597.37 | D33: 54318250 | E33: 67648073 | F33: 3494138.8 | G33: 9884046.35 | H33: 37578140 | I33: -27694093.65 | J33: =IF(I33=0,"",I33/H33) -> -0.7369735077 | K33: =K25+K27+K29+K31 -> 67648073
A35: TOTAL EXPENDITURE OF TRANSFERS AND GRANTS | C35: =C22+C33 -> 54170253.43 | D35: 363075127 | E35: 396739967 | F35: 20049231.87 | G35: 165016147.5 | H35: 254008594 | I35: -88992446.53 | J35: =IF(I35=0,"",I35/H35) -> -0.3503521087 | K35: =K22+K33 -> 396739967
A36: =head27a -> References

Sheet SC7(2)
A1: =muni& " - "&S71T& " - "&Head57 -> LIM355 Lepelle-Nkumpi - Supporting Table SC7(2) Monthly Budget Statement - Expenditure against approved rollovers - M08 February
A2: =desc -> Description | B2: =head27 -> Ref | C2: =Head2 -> Budget Year 2020/21
C3: ="Approved Rollover " &Head1 -> Approved Rollover 2019/20 | D3: =Head38 -> Monthly actual | E3: =Head39 -> YearTD actual | F3: =Head41 -> YTD variance | G3: =Head41 -> YTD variance
A4: R thousands | G4: %
A5: EXPENDITURE
A7: Operating expenditure of Approved Roll-overs
A8: ='SC6'!A8 -> National Government: | C8: =SUM(C9:C9) -> 0 | D8: =SUM(D9:D9) -> 0 | E8: =SUM(E9:E9) -> 0 | F8: =SUM(F9:F9) -> 0 | G8: =IF(F8=0,"",F8/C8) -> 
F9: =E9-C9 -> 0 | G9: =IF(F9=0,"",F9/C9) -> 
A10: ='SC6'!A15 -> Provincial Government: | C10: =SUM(C11:C11) -> 0 | D10: =SUM(D11:D11) -> 0 | E10: =SUM(E11:E11) -> 0 | F10: =SUM(F11:F11) -> 0
F11: =C11-E11 -> 0
A12: ='SC6'!A18 -> District Municipality: | C12: =SUM(C13:C13) -> 0 | D12: =SUM(D13:D13) -> 0 | E12: =SUM(E13:E13) -> 0 | F12: =SUM(F13:F13) -> 0
F13: =C13-E13 -> 0
A14: ='SC6'!A20 -> Other grant providers: | C14: =SUM(C15:C15) -> 0 | D14: =SUM(D15:D15) -> 0 | E14: =SUM(E15:E15) -> 0 | F14: =SUM(F15:F15) -> 0
F15: =C15-E15 -> 0
A16: Total operating expenditure of Approved Roll-overs | C16: =C8+C10+C12+C14 -> 0 | D16: =D8+D10+D12+D14 -> 0 | E16: =E8+E10+E12+E14 -> 0 | F16: =F8+F10+F12+F14 -> 0
A18: Capital expenditure of Approved Roll-overs
A19: ='SC6'!A26 -> National Government: | C19: =SUM(C20:C20) -> 0 | D19: =SUM(D20:D20) -> 0 | E19: =SUM(E20:E20) -> 0 | F19: =SUM(F20:F20) -> 0
F20: =C20-E20 -> 0
A21: ='SC6'!A28 -> Provincial Government: | C21: =SUM(C22:C22) -> 0 | D21: =SUM(D22:D22) -> 0 | E21: =SUM(E22:E22) -> 0 | F21: =SUM(F22:F22) -> 0
F22: =C22-E22 -> 0
A23: ='SC6'!A30 -> District Municipality: | C23: =SUM(C24:C24) -> 0 | D23: =SUM(D24:D24) -> 0 | E23: =SUM(E24:E24) -> 0 | F23: =SUM(F24:F24) -> 0
F24: =C24-E24 -> 0
A25: ='SC6'!A32 -> Other grant providers: | C25: =SUM(C26:C26) -> 0 | D25: =SUM(D26:D26) -> 0 | E25: =SUM(E26:E26) -> 0 | F25: =SUM(F26:F26) -> 0
F26: =C26-E26 -> 0
A27: Total capital expenditure of Approved Roll-overs | C27: =C19+C21+C23+C25 -> 0 | D27: =D19+D21+D23+D25 -> 0 | E27: =E19+E21+E23+E25 -> 0 | F27: =F19+F21+F23+F25 -> 0
A29: TOTAL EXPENDITURE OF APPROVED ROLL-OVERS | C29: =C16+C27 -> 0 | D29: =D16+D27 -> 0 | E29: =E16+E27 -> 0 | F29: =F16+F27 -> 0
A30: =head27a -> References

Sheet SC8
A1: =muni& " - "&S71N& " - "&Head57 -> LIM355 Lepelle-Nkumpi - Supporting Table SC8 Monthly Budget Statement - councillor and staff benefits - M08 February
A2: Summary of Employee and Councillor remuneration | B2: =head27 -> Ref | C2: =Head1 -> 2019/20 | D2: =Head2 -> Budget Year 2020/21
C3: =Head5 -> Audited Outcome | D3: =Head6 -> Original Budget | E3: =Head7 -> Adjusted Budget | F3: =Head38 -> Monthly actual | G3: =Head39 -> YearTD actual | H3: =Head40 -> YearTD budget | I3: =Head41 -> YTD variance | J3: =Head41 -> YTD variance | K3: =Head8 -> Full Year Forecast
A4: R thousands | J4: %
B5: 1 | C5: A | D5: B | E5: C | K5: D
A6: Councillors (Political Office Bearers plus Other)
A7: Basic Salaries and Wages | C7: 2585605.02 | D7: 18648375 | E7: 18648375 | F7: 1650613.37 | G7: 10020464.33 | H7: 12432248 | I7: =G7-H7 -> -2411783.67 | J7: =IF(I7=0,"",I7/H7) -> -0.1939941731 | K7: 18648375
A8: Pension and UIF Contributions | C8: 0 | D8: 0 | E8: 0 | F8: 0 | G8: 0 | H8: 0 | I8: 0 | K8: 0
A9: Medical Aid Contributions | C9: 0 | D9: 0 | E9: 0 | F9: 0 | G9: 0 | H9: 0 | I9: 0 | K9: 0
A10: Motor Vehicle Allowance | C10: 0 | D10: 0 | E10: 0 | F10: 0 | G10: 2689924.72 | H10: 0 | I10: =G10-H10 -> 2689924.72 | J10: =IF(I10=0,"",I10/H10) ->  | K10: 0
A11: Cellphone Allowance | C11: 0 | D11: 2664000 | E11: 2664000 | F11: 222000 | G11: 1772300 | H11: 1776000 | I11: =G11-H11 -> -3700 | J11: =IF(I11=0,"",I11/H11) -> -0.002083333333 | K11: 2664000
A12: Housing Allowances | C12: 0 | D12: 0 | E12: 0 | F12: 0 | G12: 0 | H12: 0 | I12: =G12-H12 -> 0 | J12: =IF(I12=0,"",I12/H12) ->  | K12: 0
A13: Other benefits and allowances | C13: 1019964.69 | D13: 2327115 | E13: 2327097 | F13: 0 | G13: 659095.99 | H13: 1551405 | I13: -892309.01 | J13: -0.5751618758 | K13: 2327097
A14: Sub Total - Councillors | C14: =SUM(C7:C13) -> 3605569.71 | D14: 23639490 | E14: 23639472 | F14: 1872613.37 | G14: 15141785.04 | H14: 15759653 | I14: -617867.96 | J14: -0.03920568302 | K14: 23639472
A15: % increase | B15: 4 | D15: =IF(D14=0,"",(D14/C14)-1) -> 5.556381349 | E15: =IF(E14=0,"",(E14/C14)-1) -> 5.556376357 | K15: =IF(K14=0,"",(K14/C14)-1) -> 5.556376357
A17: Senior Managers of the Municipality | B17: 3
A18: Basic Salaries and Wages | C18: 518400.24 | D18: 7317452 | E18: 4703557 | F18: 249455.25 | G18: 1891824.45 | H18: 4355518 | I18: =G18-H18 -> -2463693.55 | J18: =IF(I18=0,"",I18/H18) -> -0.5656488046 | K18: 4703557
A19: Pension and UIF Contributions | C19: 141.06 | D19: 0 | E19: 0 | F19: 0 | G19: 0 | H19: 0 | I19: 0 | K19: 0
A20: Medical Aid Contributions | C20: 0 | D20: 0 | E20: 0 | F20: 0 | G20: 0 | H20: 0 | I20: 0 | K20: 0
A21: Overtime | C21: 0 | D21: 0 | E21: 0 | F21: 0 | G21: 0 | H21: 0 | I21: 0 | K21: 0
A22: Performance Bonus | C22: 0 | D22: 0 | E22: 0 | F22: 0 | G22: 0 | H22: 0 | I22: =G22-H22 -> 0 | J22: =IF(I22=0,"",I22/H22) ->  | K22: 0
A23: Motor Vehicle Allowance | C23: 0 | D23: 0 | E23: 0 | F23: 0 | G23: 19571.37 | H23: 0 | I23: =G23-H23 -> 19571.37 | J23: =IF(I23=0,"",I23/H23) ->  | K23: 0
A24: Cellphone Allowance | C24: 12000 | D24: 144000 | E24: 102000 | F24: 10000 | G24: 134828.98 | H24: 87600 | I24: =G24-H24 -> 47228.98 | J24: =IF(I24=0,"",I24/H24) -> 0.5391436073 | K24: 102000
A25: Housing Allowances | C25: 0 | D25: 0 | E25: 0 | F25: 0 | G25: 0 | H25: 0 | I25: =G25-H25 -> 0 | J25: =IF(I25=0,"",I25/H25) ->  | K25: 0
A26: Other benefits and allowances | C26: 0 | D26: 0 | E26: 0 | F26: 0 | G26: 0 | H26: 0 | I26: 0 | K26: 0
A27: Payments in lieu of leave | C27: 0 | D27: 0 | E27: 0 | F27: 0 | G27: 0 | H27: 0 | I27: 0 | K27: 0
A28: Long service awards | C28: 0 | D28: 0 | E28: 0 | F28: 0 | G28: 0 | H28: 0 | I28: 0 | K28: 0
A29: Post-retirement benefit obligations | B29: 2 | I29: 0
A30: Sub Total - Senior Managers of Municipality | C30: =SUM(C18:C29) -> 530541.3 | D30: 7461452 | E30: 4805557 | F30: =SUM(F18:F29) -> 259455.25 | G30: =SUM(G18:G29) -> 2046224.8 | H30: =SUM(H18:H29) -> 4443118 | I30: -2396893.2 | J30: =IF(I30=0,"",I30/H30) -> -0.5394619724 | K30: 4805557
A31: % increase | B31: 4 | D31: =IF(D30=0,"",(D30/C30)-1) -> 13.06384762 | E31: =IF(E30=0,"",(E30/C30)-1) -> 8.057837722 | K31: =IF(K30=0,"",(K30/C30)-1) -> 8.057837722
A33: Other Municipal Staff
A34: Basic Salaries and Wages | C34: 15665199.44 | D34: 69158646 | E34: 68503571 | F34: 4991482.63 | G34: 37825429.55 | H34: 47720653 | I34: =G34-H34 -> -9895223.45 | J34: =IF(I34=0,"",I34/H34) -> -0.2073572516 | K34: 68503571
A35: Pension and UIF Contributions | C35: 3010354.69 | D35: 14113381 | E35: 14001265 | F35: 988774.03 | G35: 8140906.65 | H35: 9625540 | I35: -1484633.35 | J35: -0.1542389674 | K35: 14001265
A36: Medical Aid Contributions | C36: 821024.28 | D36: 3925084 | E36: 3721498 | F36: 303716.16 | G36: 2441682.6 | H36: 2752521 | I36: -310838.4 | J36: -0.1129286207 | K36: 3721498
A37: Overtime | C37: 427665.98 | D37: 2562000 | E37: 2704000 | F37: 72904.29 | G37: 655172.97 | H37: 1736416 | I37: -1081243.03 | J37: -0.6226866315 | K37: 2704000
A38: Performance Bonus | C38: 1343545.67 | D38: 5074558 | E38: 4969558 | F38: 419004.35 | G38: 3717669.68 | H38: 3362072 | I38: 355597.68 | J38: 0.1057674196 | K38: 4969558
A39: Motor Vehicle Allowance | C39: 3003793.76 | D39: 8355608 | E39: 7678952 | F39: 575048.08 | G39: 4777319.98 | H39: 5521967 | I39: =G39-H39 -> -744647.02 | J39: =IF(I39=0,"",I39/H39) -> -0.1348517693 | K39: 7678952
A40: Cellphone Allowance | C40: 879945.66 | D40: 904485 | E40: 913261 | F40: 72795 | G40: 602200 | H40: 635026 | I40: =G40-H40 -> -32826 | J40: =IF(I40=0,"",I40/H40) -> -0.05169237165 | K40: 913261
A41: Housing Allowances | C41: 70806.06 | D41: 339689 | E41: 348870 | F41: 23148.24 | G41: 195795.53 | H41: 228268 | I41: =G41-H41 -> -32472.47 | J41: =IF(I41=0,"",I41/H41) -> -0.142255901 | K41: 348870
A42: Other benefits and allowances | C42: 10455.35 | D42: 2339368 | E42: 2350899 | F42: 196288.78 | G42: 3010048.33 | H42: 1575555 | I42: 1434493.33 | J42: 0.9104685841 | K42: 2350899
A43: Payments in lieu of leave | C43: 78108.96 | D43: 3040795 | E43: 3070015 | F43: 28490.88 | G43: 863611.95 | H43: 2033052 | I43: -1169440.05 | J43: -0.5752140378 | K43: 3070015
A44: Long service awards | C44: 85694.3 | D44: 579279 | E44: 739766 | F44: 54901.5 | G44: 471011.18 | H44: 418297 | I44: 52714.18 | J44: 0.1260209373 | K44: 739766
A45: Post-retirement benefit obligations | B45: 2 | C45: 0 | D45: 0 | E45: 0 | F45: 0 | G45: 0 | H45: 0 | I45: 0 | K45: 0
A46: Sub Total - Other Municipal Staff | C46: =SUM(C34:C45) -> 25396594.15 | D46: 110392893 | E46: 109001655 | F46: =SUM(F34:F45) -> 7726553.94 | G46: =SUM(G34:G45) -> 62700848.42 | H46: =SUM(H34:H45) -> 75609367 | I46: -12908518.58 | J46: =IF(I46=0,"",I46/H46) -> -0.1707264469 | K46: 109001655
A47: % increase | B47: 4 | D47: =IF(D46=0,"",(D46/C46)-1) -> 3.346759741 | E47: =IF(E46=0,"",(E46/C46)-1) -> 3.291979246 | K47: =IF(K46=0,"",(K46/C46)-1) -> 3.291979246
A49: Total Parent Municipality | C49: =C14+C30+C46 -> 29532705.16 | D49: =D14+D30+D46 -> 141493835 | E49: 137446684 | F49: 9858622.56 | G49: 79888858.26 | H49: 95812138 | I49: =G49-H49 -> -15923279.74 | J49: =IF(I49=0,"",I49/H49) -> -0.1661927191 | K49: 137446684
D50: =IF(D49=0,"",(D49/C49)-1) -> 3.791089547 | E50: =IF(E49=0,"",(E49/C49)-1) -> 3.654049917 | K50: =IF(K49=0,"",(K49/C49)-1) -> 3.654049917
A51: Unpaid salary, allowances & benefits in arrears:
A53: Board Members of Entities
A54: Basic Salaries and Wages | I54: =G54-H54 -> 0 | J54: =IF(I54=0,"",I54/H54) -> 
A55: Pension and UIF Contributions | I55: 0
A56: Medical Aid Contributions | I56: 0
A57: Overtime | I57: =G57-H57 -> 0 | J57: =IF(I57=0,"",I57/H57) -> 
A58: Performance Bonus | I58: =G58-H58 -> 0 | J58: =IF(I58=0,"",I58/H58) -> 
A59: Motor Vehicle Allowance | I59: =G59-H59 -> 0 | J59: =IF(I59=0,"",I59/H59) -> 
A60: Cellphone Allowance | I60: =G60-H60 -> 0 | J60: =IF(I60=0,"",I60/H60) -> 
A61: Housing Allowances | I61: =G61-H61 -> 0 | J61: =IF(I61=0,"",I61/H61) -> 
A62: Other benefits and allowances | I62: 0
A63: Board Fees | I63: =G63-H63 -> 0 | J63: =IF(I63=0,"",I63/H63) -> 
A64: Payments in lieu of leave | I64: 0
A65: Long service awards | I65: 0
A66: Post-retirement benefit obligations | I66: 0
A67: Sub Total - Board Members of Entities | B67: 2 | C67: =SUM(C54:C66) -> 0 | D67: 0 | E67: 0 | F67: =SUM(F54:F66) -> 0 | G67: =SUM(G54:G66) -> 0 | H67: =SUM(H54:H66) -> 0 | I67: 0 | J67: =IF(I67=0,"",I67/H67) ->  | K67: 0
A68: % increase | B68: 4 | D68: =IF(D67=0,"",(D67/C67)-1) ->  | E68: =IF(E67=0,"",(E67/C67)-1) ->  | K68: =IF(K67=0,"",(K67/C67)-1) -> 
A70: Senior Managers of Entities
A71: Basic Salaries and Wages | I71: =G71-H71 -> 0 | J71: =IF(I71=0,"",I71/H71) -> 
A72: Pension and UIF Contributions | I72: 0
A73: Medical Aid Contributions | I73: 0
A74: Overtime | I74: 0
A75: Performance Bonus | I75: =G75-H75 -> 0 | J75: =IF(I75=0,"",I75/H75) -> 
A76: Motor Vehicle Allowance | I76: =G76-H76 -> 0 | J76: =IF(I76=0,"",I76/H76) -> 
A77: Cellphone Allowance | I77: =G77-H77 -> 0 | J77: =IF(I77=0,"",I77/H77) -> 
A78: Housing Allowances | I78: =G78-H78 -> 0 | J78: =IF(I78=0,"",I78/H78) -> 
A79: Other benefits and allowances | I79: 0
A80: Payments in lieu of leave | I80: 0
A81: Long service awards | I81: 0
A82: Post-retirement benefit obligations | B82: 2 | I82: 0
A83: Sub Total - Senior Managers of Entities | C83: =SUM(C71:C82) -> 0 | D83: 0 | E83: 0 | F83: =SUM(F71:F82) -> 0 | G83: =SUM(G71:G82) -> 0 | H83: =SUM(H71:H82) -> 0 | I83: 0 | J83: =IF(I83=0,"",I83/H83) ->  | K83: 0
A84: % increase | B84: 4 | D84: =IF(D83=0,"",(D83/C83)-1) ->  | E84: =IF(E83=0,"",(E83/C83)-1) ->  | K84: =IF(K83=0,"",(K83/C83)-1) -> 
A86: Other Staff of Entities
A87: Basic Salaries and Wages | I87: =G87-H87 -> 0 | J87: =IF(I87=0,"",I87/H87) -> 
A88: Pension and UIF Contributions | I88: 0
A89: Medical Aid Contributions | I89: =G89-H89 -> 0 | J89: =IF(I89=0,"",I89/H89) -> 
A90: Overtime | I90: =G90-H90 -> 0 | J90: =IF(I90=0,"",I90/H90) -> 
A91: Performance Bonus | I91: =G91-H91 -> 0 | J91: =IF(I91=0,"",I91/H91) -> 
A92: Motor Vehicle Allowance | I92: =G92-H92 -> 0 | J92: =IF(I92=0,"",I92/H92) -> 
A93: Cellphone Allowance | I93: 0
A94: Housing Allowances | I94: 0
A95: Other benefits and allowances | I95: 0
A96: Payments in lieu of leave | I96: 0
A97: Long service awards | I97: 0
A98: Post-retirement benefit obligations | I98: 0
A99: Sub Total - Other Staff of Entities | C99: =SUM(C87:C98) -> 0 | D99: 0 | E99: 0 | F99: 0 | G99: 0 | H99: 0 | I99: 0 | J99: =IF(I99=0,"",I99/H99) ->  | K99: =SUM(K87:K98) -> 0
A100: % increase | B100: 4 | D100: =IF(D99=0,"",(D99/C99)-1) ->  | E100: =IF(E99=0,"",(E99/C99)-1) ->  | K100: =IF(K99=0,"",(K99/C99)-1) -> 
A102: Total Municipal Entities | C102: =C67+C83+C99 -> 0 | D102: 0 | E102: 0 | F102: 0 | G102: 0 | H102: 0 | I102: =G102-H102 -> 0 | J102: =IF(I102=0,"",I102/H102) ->  | K102: =K67+K83+K99 -> 0
A104: TOTAL SALARY, ALLOWANCES & BENEFITS | C104: =C49+C102 -> 29532705.16 | D104: 141493835 | E104: 137446684 | F104: 9858622.56 | G104: 79888858.26 | H104: 95812138 | I104: =G104-H104 -> -15923279.74 | J104: =IF(I104=0,"",I104/H104) -> -0.1661927191 | K104: =K49+K102 -> 137446684
A105: % increase | B105: 4 | D105: =IF(D104=0,"",(D104/C104)-1) -> 3.791089547 | E105: =IF(E104=0,"",(E104/C104)-1) -> 3.654049917 | K105: =IF(K104=0,"",(K104/C104)-1) -> 3.654049917
A106: TOTAL MANAGERS AND STAFF | C106: =C30+C46+C83+C99 -> 25927135.45 | D106: 117854345 | E106: 113807212 | F106: 7986009.19 | G106: 64747073.22 | H106: 80052485 | I106: -15305411.78 | J106: =IF(I106=0,"",I106/H106) -> -0.1911922132 | K106: =K30+K46+K83+K99 -> 113807212
A107: =head27a -> References
A108: 1. Include 'Loans and advances' where applicable if any reportable amounts until phased compliance with s164 of MFMA achieved
A109: 2. If benefits in kind are provided (e.g. provision of living quarters) the full market value must be shown as the cost to the municipality
A110: 3. s57 of the Systems Act
A111: 4. B/A, C/A, D/A
A112: Column Definitions:
A113: A. Audited actual 2005/06 (audited financial statements). If audited amounts unavailable, unaudited amounts must be provided with a note stating these are unaudited
A114: B. The original budget approved by council for the 2006/07 budget year.
A115: C. The budget for 2006/07 budget year as adjusted by council resolution in terms of section 28 of the MFMA.
A116: D. An estimate of final actual amounts (pre audit - 2006/07 budget year) at the time of preparing the budget for the 2007/08 budget year. This may differ from C.

Sheet SC9
A1: =muni& " - "&S71O& " - "&Head57 -> LIM355 Lepelle-Nkumpi - Supporting Table SC9 Monthly Budget Statement - actuals and revised targets for cash receipts - M08 February
A2: =desc -> Description | B2: =head27 -> Ref | C2: =Head2 -> Budget Year 2020/21 | O2: ='Template names'!B5 -> 2020/21 Medium Term Revenue & Expenditure Framework
C3: July | D3: August | E3: Sept | F3: October | G3: Nov | H3: Dec | I3: January | J3: Feb | K3: March | L3: April | M3: May | N3: June | O3: =Head9 -> Budget Year 2020/21 | P3: =Head10 -> Budget Year +1 2021/22 | Q3: =Head11 -> Budget Year +2 2022/23
A4: R thousands | B4: 1 | C4: Outcome | D4: Outcome | E4: Outcome | F4: Outcome | G4: Outcome | H4: Outcome | I4: Outcome | J4: Outcome | K4: Budget | L4: Budget | M4: Budget | N4: Budget
A5: Cash Receipts By Source
A6: Property rates | C6: 583213.73 | D6: 378204.05 | E6: 1477193.65 | F6: 1248286.52 | G6: 879885.49 | H6: 660446.18 | I6: 896929.76 | J6: 1101189.72 | K6: 1601954 | L6: 1601954 | M6: 1601954 | N6: =O6-SUM(C6:M6) -> 7192240.9 | O6: 19223452 | P6: 42291596 | Q6: 46520756
A7: Service charges - electricity revenue | N7: 0
A8: Service charges - water revenue | C8: 1980972.96 | D8: 1609307.06 | E8: 2049767.3 | F8: 1926779.48 | G8: 2530605.21 | H8: 1686235.44 | I8: 2222771.08 | J8: 2855141.52 | K8: 0 | L8: 0 | M8: 0 | N8: -16861580.05 | O8: 0 | P8: 0 | Q8: 0
A9: Service charges - sanitation revenue | C9: 13768.17 | D9: 121424.96 | E9: 152787.19 | F9: 172517 | G9: 131719.44 | H9: 98421.7 | I9: 118204.35 | J9: 171102.3 | K9: 0 | L9: 0 | M9: 0 | N9: -979945.11 | O9: 0 | P9: 0 | Q9: 0
A10: Service charges - refuse | C10: 168396.62 | D10: 150532.29 | E10: 297264.75 | F10: 216468.12 | G10: 232724.72 | H10: 186292.62 | I10: 258943.76 | J10: 343697.7 | K10: 241417 | L10: 241417 | M10: 241417 | N10: 318432.42 | O10: 2897004 | P10: 6373260 | Q10: 7010432
A12: Rental of facilities and equipment | C12: 21219.83 | D12: 21219.83 | E12: 21219.83 | F12: 29186.31 | G12: 20925.45 | H12: 4000 | I12: 695.66 | J12: 695.66 | K12: 41737 | L12: 41737 | M12: 41737 | N12: 256471.43 | O12: 500845 | P12: 1047766 | Q12: 1095966
A13: Interest earned - external investments | C13: 3061328.73 | D13: 0 | E13: 0 | F13: 0 | G13: 0 | H13: 0 | I13: 0 | J13: 0 | K13: 625457 | L13: 625457 | M13: 625457 | N13: 2567791.27 | O13: 7505491 | P13: 15701488 | Q13: 16423756
A14: Interest earned - outstanding debtors | N14: 0
A15: Dividends received | C15: 0 | D15: 0 | E15: 0 | F15: 0 | G15: 0 | H15: 0 | I15: 0 | J15: 0 | K15: 0 | L15: 0 | M15: 0 | N15: 0 | O15: 0 | P15: 0 | Q15: 0
A16: Fines, penalties and forfeits | C16: 103640.96 | D16: 284765.18 | E16: 455850.01 | F16: 860350.02 | G16: 263281 | H16: -1326740.99 | I16: 22365 | J16: 11015 | K16: 218879 | L16: 218879 | M16: 218879 | N16: 1295385.82 | O16: 2626549 | P16: 5494742 | Q16: 5747500
A17: Licences and permits | C17: 249 | D17: 13.04 | E17: 0 | F17: 0 | G17: 249 | H17: 94 | I17: 0 | J17: 0 | K17: 943 | L17: 943 | M17: 943 | N17: 7889.96 | O17: 11324 | P17: 23690 | Q17: 24780
A18: Agency services | C18: 12307663.99 | D18: -1307821.77 | E18: 1899718.5 | F18: -9804875.97 | G18: -1371313.79 | H18: 2145716.95 | I18: 197281.6 | J18: 599146.35 | K18: 1453104 | L18: 1453104 | M18: 1453104 | N18: 8412428.14 | O18: 17437256 | P18: 36478740 | Q18: 38156762
A19: Transfers and Subsidies - Operational | N19: 0
A20: Other revenue | C20: 263912877.9 | D20: 22956253.59 | E20: 27587102.69 | F20: 45200372.1 | G20: 29940479.46 | H20: 27846502.6 | I20: 36474266.39 | J20: 9880616.34 | K20: 36306658 | L20: 36306658 | M20: 36306658 | N20: -137038534.1 | O20: 435679911 | P20: -91709794 | Q20: -98556196
A21: Cash Receipts by Source | C21: =SUM(C6:C10)+SUM(C12:C20) -> 282153331.9 | D21: =SUM(D6:D10)+SUM(D12:D20) -> 24213898.23 | E21: 33940903.92 | F21: 39849083.58 | G21: 32628555.98 | H21: 31300968.5 | I21: 40191457.6 | J21: 14962604.59 | K21: 40490149 | L21: 40490149 | M21: 40490149 | N21: -134829419.3 | O21: 485881832 | P21: 15701488 | Q21: 16423756
N22: =O22-SUM(C22:M22) -> 0
A23: Other Cash Flows by Source | N23: 0
A24: ='C4-FinPerf RE'!A39 -> Transfers and subsidies - capital (monetary allocations) (National / Provincial and District) | N24: 0
A25: ='C4-FinPerf RE'!A40 -> Transfers and subsidies - capital (monetary allocations) (National / Provincial Departmental Agencies, Households, Non-profit Institutions, Private Enterprises, Public Corporatons, Higher Educational Institutions) | N25: 0
A26: Proceeds on Disposal of Fixed and Intangible Assets | N26: 0
A27: Short term loans | N27: 0
A28: Borrowing long term/refinancing | N28: 0
A29: Increase (decrease) in consumer deposits | C29: 0 | D29: 0 | E29: 0 | F29: 0 | G29: 0 | H29: 0 | I29: 0 | J29: 0 | K29: 0 | L29: 0 | M29: 0 | N29: 1891836 | O29: 1891836 | P29: -44000 | Q29: 35600
A31: Decrease (increase) in non-current receivables | C31: 0 | D31: 0 | E31: 0 | F31: 0 | G31: 0 | H31: 0 | I31: 0 | J31: 0 | K31: 0 | L31: 0 | M31: 0 | N31: 0 | O31: 0 | P31: 0 | Q31: 0
A32: Decrease (increase) in non-current investments | C32: 0 | D32: 0 | E32: 0 | F32: 0 | G32: 0 | H32: 0 | I32: 0 | J32: 0 | K32: 0 | L32: 0 | M32: 0 | N32: 0 | O32: 0 | P32: 0 | Q32: 0
A33: Total Cash Receipts by Source | C33: =SUM(C21:C29)+SUM(C31:C32) -> 282153331.9 | D33: =SUM(D21:D29)+SUM(D31:D32) -> 24213898.23 | E33: 33940903.92 | F33: 39849083.58 | G33: 32628555.98 | H33: 31300968.5 | I33: 40191457.6 | J33: 14962604.59 | K33: 40490149 | L33: 40490149 | M33: 40490149 | N33: -132937583.3 | O33: 487773668 | P33: 15657488 | Q33: 16459356
N34: =O34-SUM(C34:M34) -> 0
A35: Cash Payments by Type | N35: 0
A36: Employee related costs | C36: -10724838.31 | D36: 0 | E36: 0 | F36: 0 | G36: -32293265.9 | H36: -5656280.09 | I36: -26098512.93 | J36: -10493900.84 | K36: 0 | L36: 0 | M36: 0 | N36: 85266798.07 | O36: 0 | P36: 0 | Q36: 0
A37: Remuneration of councillors | N37: 0
A38: Interest paid | N38: 0
A39: Bulk purchases - Electricity | N39: 0
A40: Bulk purchases - Water & Sewer | N40: 0
A41: Other materials | N41: 0
A42: Contracted services | N42: 0
A43: Grants and subsidies paid - other municipalities | N43: 0
A44: Grants and subsidies paid - other | N44: 0
A45: General expenses | C45: 37050700.34 | D45: 17049248.1 | E45: 11024513.25 | F45: 0 | G45: 36667157.11 | H45: 16469545.52 | I45: 7814703.84 | J45: 4675074.09 | K45: 15006162 | L45: 15006162 | M45: 15006162 | N45: 4304538.75 | O45: 180073967 | P45: 0 | Q45: 0
A46: Cash Payments by Type | B46: =SUM(B36:B45) -> 0 | C46: =SUM(C36:C45) -> 26325862.03 | D46: =SUM(D36:D45) -> 17049248.1 | E46: 11024513.25 | F46: 0 | G46: 4373891.21 | H46: 10813265.43 | I46: -18283809.09 | J46: -5818826.75 | K46: 15006162 | L46: 15006162 | M46: 15006162 | N46: 89571336.82 | O46: 180073967 | P46: 0 | Q46: 0
N47: =O47-SUM(C47:M47) -> 0
A48: Other Cash Flows/Payments by Type
A49: Capital assets | C49: 0 | D49: 2762389.24 | E49: 3884812.03 | F49: 529086.29 | G49: 8750004.21 | H49: 4221519.49 | I49: 511017.16 | J49: 1777210.5 | K49: 11222341 | L49: 11222341 | M49: 11222341 | N49: =O49-SUM(C49:M49) -> 78565188.08 | O49: 134668250 | P49: 192255906 | Q49: 241456806
A50: Repayment of borrowing | C50: 0 | D50: 0 | E50: 0 | F50: 0 | G50: 0 | H50: 0 | I50: 0 | J50: 0 | K50: 0 | L50: 0 | M50: 0 | N50: =O50-SUM(C50:M50) -> 0 | O50: 0 | P50: 0 | Q50: 0
A51: Other Cash Flows/Payments | N51: =O51-SUM(C51:M51) -> 0
A52: Total Cash Payments by Type | B52: =SUM(B46:B51) -> 0 | C52: 26325862.03 | D52: 19811637.34 | E52: 14909325.28 | F52: 529086.29 | G52: 13123895.42 | H52: 15034784.92 | I52: -17772791.93 | J52: -4041616.25 | K52: 26228503 | L52: 26228503 | M52: 26228503 | N52: 168136524.9 | O52: 314742217 | P52: 192255906 | Q52: 241456806
N53: =O53-SUM(C53:M53) -> 0
A54: NET INCREASE/(DECREASE) IN CASH HELD | B54: =B33-B52 -> 0 | C54: 255827469.9 | D54: 4402260.89 | E54: 19031578.64 | F54: 39319997.29 | G54: 19504660.56 | H54: 16266183.58 | I54: 57964249.53 | J54: 19004220.84 | K54: 14261646 | L54: 14261646 | M54: 14261646 | N54: -301074108.2 | O54: 173031451 | P54: -176598418 | Q54: -224997450
A55: Cash/cash equivalents at the month/year beginning: | C55: 117948567.5 | D55: =C56 -> 373776037.4 | E55: =D56 -> 378178298.2 | F55: 397209876.9 | G55: 436529874.2 | H55: 456034534.7 | I55: 472300718.3 | J55: 530264967.8 | K55: 549269188.7 | L55: 563530834.7 | M55: 577792480.7 | N55: 592054126.7 | O55: =C55 -> 117948567.5 | P55: =O56 -> 290980018.5 | Q55: =P56 -> 114381600.5
A56: Cash/cash equivalents at the month/year end: | C56: =C54+C55 -> 373776037.4 | D56: =D54+D55 -> 378178298.2 | E56: =E54+E55 -> 397209876.9 | F56: 436529874.2 | G56: 456034534.7 | H56: 472300718.3 | I56: 530264967.8 | J56: 549269188.7 | K56: 563530834.7 | L56: 577792480.7 | M56: 592054126.7 | N56: 290980018.5 | O56: =O54+O55 -> 290980018.5 | P56: =P54+P55 -> 114381600.5 | Q56: =Q54+Q55 -> -110615849.5
A57: =head27a -> References
A58: 1. Replace 'budget' heading with adjusted budget, or 'outcome' only for month/s complete
A59: 2. Total of monthly amounts must always agree to the approved or adjusted budget
A60: 3. Amend 'cash-at-beginning' when prior year actual known (as part of the adjustments budget)
E65: =E46+E64 -> 11024513.25 | F65: 0 | G65: 4373891.21 | H65: 10813265.43 | I65: -18283809.09 | J65: -5818826.75 | K65: 15006162 | L65: 15006162 | N65: =N46+N64 -> 89571336.82 | O65: 180073967 | P65: 0
E66: =E54-E64 -> 19031578.64 | F66: 39319997.29 | G66: 19504660.56 | H66: 16266183.58 | I66: 57964249.53 | J66: 19004220.84 | K66: 14261646 | L66: 14261646 | M66: =M54-M64 -> 14261646 | N66: =N54-N64 -> -301074108.2 | O66: 173031451 | P66: -176598418

Sheet SC10
A1: =muni& " - "&S71P& " - "&Head57 -> LIM355 Lepelle-Nkumpi - NOT REQUIRED - municipality does not have entities or this is the parent municipality's budget - M08 February
A2: =desc -> Description | B2: =head27 -> Ref | C2: =Head1 -> 2019/20 | D2: =Head2 -> Budget Year 2020/21
C3: =Head5 -> Audited Outcome | D3: =Head6 -> Original Budget | E3: =Head7 -> Adjusted Budget | F3: =Head38 -> Monthly actual | G3: =Head39 -> YearTD actual | H3: =Head40 -> YearTD budget | I3: =Head41 -> YTD variance | J3: =Head41 -> YTD variance | K3: =Head8 -> Full Year Forecast
A4: R thousands | B4: 1 | J4: %
A5: ='C4-FinPerf RE'!A5 -> Revenue By Source
A6: ='C4-FinPerf RE'!A6 -> Property rates | I6: =G6-H6 -> 0 | J6: =IF(I6=0,"",I6/H6) -> 
A7: ='C4-FinPerf RE'!A7 -> Service charges - electricity revenue | I7: 0 | J7: =IF(I7=0,"",I7/H7) -> 
A8: ='C4-FinPerf RE'!A8 -> Service charges - water revenue | I8: 0
A9: ='C4-FinPerf RE'!A9 -> Service charges - sanitation revenue | I9: 0
A10: ='C4-FinPerf RE'!A10 -> Service charges - refuse revenue | I10: 0
A12: ='C4-FinPerf RE'!A12 -> Rental of facilities and equipment | I12: 0
A13: ='C4-FinPerf RE'!A13 -> Interest earned - external investments | I13: 0
A14: ='C4-FinPerf RE'!A14 -> Interest earned - outstanding debtors | I14: 0
A15: ='C4-FinPerf RE'!A15 -> Dividends received | I15: 0
A16: ='C4-FinPerf RE'!A16 -> Fines, penalties and forfeits | I16: 0
A17: ='C4-FinPerf RE'!A17 -> Licences and permits | I17: 0
A18: ='C4-FinPerf RE'!A18 -> Agency services | I18: 0
A19: ='C4-FinPerf RE'!A19 -> Transfers and subsidies | I19: 0
A20: ='C4-FinPerf RE'!A20 -> Other revenue | I20: 0
A21: ='C4-FinPerf RE'!A21 -> Gains | I21: 0
A22: Total Revenue (excluding capital transfers and contributions) | C22: =SUM(C6:C10)+SUM(C12:C21) -> 0 | D22: 0 | E22: 0 | F22: 0 | G22: 0 | H22: 0 | I22: =G22-H22 -> 0 | K22: =SUM(K6:K10)+SUM(K12:K21) -> 0
A24: Expenditure By Type
A25: ='C4-FinPerf RE'!A25 -> Employee related costs | I25: =G25-H25 -> 0 | J25: =IF(I25=0,"",I25/H25) -> 
A26: ='C4-FinPerf RE'!A26 -> Remuneration of councillors | I26: 0
A27: ='C4-FinPerf RE'!A27 -> Debt impairment | I27: 0
A28: ='C4-FinPerf RE'!A28 -> Depreciation & asset impairment | I28: 0
A29: ='C4-FinPerf RE'!A29 -> Finance charges | I29: 0
A30: ='C4-FinPerf RE'!A30 -> Bulk purchases | I30: 0
A31: ='C4-FinPerf RE'!A31 -> Other materials | I31: 0
A32: ='C4-FinPerf RE'!A32 -> Contracted services | I32: 0
A33: ='C4-FinPerf RE'!A33 -> Transfers and subsidies | I33: 0
A34: ='C4-FinPerf RE'!A34 -> Other expenditure | I34: 0
A35: ='C4-FinPerf RE'!A35 -> Losses | I35: 0
A36: Total Expenditure | C36: =SUM(C25:C35) -> 0 | D36: 0 | E36: 0 | F36: 0 | G36: 0 | H36: 0 | I36: 0 | K36: =SUM(K25:K35) -> 0
I37: 0
A38: ='C4-FinPerf RE'!A38 -> Surplus/(Deficit) | C38: =C22-C36 -> 0 | D38: 0 | E38: 0 | F38: 0 | G38: 0 | H38: 0 | I38: 0 | K38: =K22-K36 -> 0
A39: ='C4-FinPerf RE'!A39 -> Transfers and subsidies - capital (monetary allocations) (National / Provincial and District) | I39: 0
A40: ='C4-FinPerf RE'!A40 -> Transfers and subsidies - capital (monetary allocations) (National / Provincial Departmental Agencies, Households, Non-profit Institutions, Private Enterprises, Public Corporatons, Higher Educational Institutions) | I40: 0
A41: ='C4-FinPerf RE'!A41 -> Transfers and subsidies - capital (in-kind - all) | I41: 0
A42: ='C4-FinPerf RE'!A42 -> Surplus/(Deficit) after capital transfers & contributions | C42: =C38+SUM(C39:C41) -> 0 | D42: =D38+SUM(D39:D41) -> 0 | E42: 0 | F42: 0 | G42: 0 | H42: 0 | I42: 0 | K42: 0
A43: ='C4-FinPerf RE'!A43 -> Taxation | I43: 0
A44: ='C4-FinPerf RE'!A44 -> Surplus/(Deficit) after taxation | C44: =C42-C43 -> 0 | D44: 0 | E44: 0 | F44: 0 | G44: 0 | H44: 0 | I44: 0 | K44: =K42-K43 -> 0
A45: =head27a -> References
A46: 1. Votes (consolidated) are revenue sources and expenditure type

Sheet SC11
A1: =muni& " - "&S71Q& " - "&Head57 -> LIM355 Lepelle-Nkumpi - NOT REQUIRED - municipality does not have entities or this is the parent municipality's budget - M08 February
A2: =desc -> Description | B2: =head27 -> Ref | C2: =Head1 -> 2019/20 | D2: =Head2 -> Budget Year 2020/21
C3: =Head5 -> Audited Outcome | D3: =Head6 -> Original Budget | E3: =Head7 -> Adjusted Budget | F3: =Head38 -> Monthly actual | G3: =Head39 -> YearTD actual | H3: =Head40 -> YearTD budget | I3: =Head41 -> YTD variance | J3: =Head41 -> YTD variance | K3: =Head8 -> Full Year Forecast
A4: R thousands | J4: %
A5: Revenue By Municipal Entity
A6: Insert name of municipal entity | I6: =G6-H6 -> 0 | J6: =IF(I6=0,"",I6/H6) -> 
I7: 0 | J7: =IF(I7=0,"",I7/H7) -> 
I8: 0
I9: 0
I10: 0
I11: 0
I12: 0
I13: 0
I14: 0
I15: 0
A16: Total Operating Revenue | B16: 1 | C16: =SUM(C6:C15) -> 0 | D16: 0 | E16: 0 | F16: 0 | G16: 0 | H16: 0 | I16: 0 | K16: =SUM(K6:K15) -> 0
A18: Expenditure By Municipal Entity
A19: =A6 -> Insert name of municipal entity | I19: 0 | J19: =IF(I19=0,"",I19/H19) -> 
A20: =IF(A7="","",A7) ->  | I20: 0
A21: =IF(A8="","",A8) ->  | I21: 0
I22: 0
I23: 0
I24: 0
I25: 0
I26: 0
I27: 0
I28: 0
A29: Total Operating Expenditure | B29: 2 | C29: =SUM(C19:C28) -> 0 | D29: 0 | E29: 0 | F29: 0 | G29: 0 | H29: 0 | I29: 0 | K29: =SUM(K19:K28) -> 0
A31: =Head42 -> Surplus/ (Deficit) for the yr/period | C31: =C16-C29 -> 0 | D31: =D16-D29 -> 0 | E31: 0 | F31: 0 | G31: 0 | H31: 0 | I31: =I16+I29 -> 0 | K31: 0
A32: Capital Expenditure By Municipal Entity
A33: =$A$6 -> Insert name of municipal entity | I33: 0
A34: =IF(A7="","",A7) ->  | I34: 0
A35: =IF(A8="","",A8) ->  | I35: 0
I36: 0
I37: 0
I38: 0
I39: 0
I40: 0
I41: 0
A43: Total Capital Expenditure | B43: 3 | C43: =SUM(C32:C42) -> 0 | D43: =SUM(D32:D42) -> 0 | E43: 0 | F43: 0 | G43: 0 | H43: =SUM(H32:H42) -> 0 | I43: =G43-H43 -> 0 | K43: 0
A44: =head27a -> References
A45: 1. Must reconcile to the sum of all municipal entity monthly revenue reports
A46: 2. Must reconcile to the sum of all municipal entity monthly expenditure reports
A47: 3. YTD = Year to date; FAV - favourable variance or unfavourable variance
A48: 4. Material variances to be explained
A49: 5. Insert additional 'Adjustment' Budget column for each Adjustment made by an entity

Sheet SC12
A1: =muni& " - "&S71R& " - "&Head57 -> LIM355 Lepelle-Nkumpi - Supporting Table SC12 Monthly Budget Statement - capital expenditure trend - M08 February
A2: Month | B2: =Head1 -> 2019/20 | C2: =Head2 -> Budget Year 2020/21
B3: =Head5 -> Audited Outcome | C3: =Head6 -> Original Budget | D3: =Head7 -> Adjusted Budget | E3: =Head38 -> Monthly actual | F3: =Head39 -> YearTD actual | G3: =Head40 -> YearTD budget | H3: =Head41 -> YTD variance | I3: =Head41 -> YTD variance | J3: % spend of Original Budget
A4: R thousands | I4: %
A5: Monthly expenditure performance trend
A6: July | B6: 0 | C6: 11222354.19 | D6: 11222357 | E6: 0 | F6: =IF(E6>0,E6,"") ->  | G6: =IF(D6>0,D6,C6) -> 11222357 | H6: =IF(F6="",0,G6-F6) -> 0 | I6: =IF(F6="","",IF(H6=0,"",H6/G6)) ->  | J6: =IF(F6="","",F6/$C$18) -> 
A7: August | B7: 0 | C7: 11222354.19 | D7: 11222357 | E7: 2762389.24 | F7: =IF(E7>0,E7+F6,"") ->  | G7: =IF(D7>0,D7+D6,C7+C6) -> 22444714
A8: September | B8: 0 | C8: 11222354.19 | D8: 13874357 | E8: 3884812.03 | F8: =IF(E8>0,E8+F7,"") ->  | G8: =IF(D8>0,D8+G7,C8+G7) -> 36319071
A9: October | B9: 0 | C9: 11222354.19 | D9: 13874357 | E9: 529086.29 | G9: =IF(D9>0,D9+G8,C9+G8) -> 50193428
A10: November | B10: 0 | C10: 11222354.19 | D10: 13874357 | E10: 8750004.21 | G10: 64067785
A11: December | B11: 0 | C11: 11222354.19 | D11: 13874357 | E11: 4221519.49 | G11: 77942142
A12: January | B12: 0 | C12: 11222354.19 | D12: 13874357 | E12: 511017.16 | G12: 91816499
A13: February | B13: 0 | C13: 11222354.19 | D13: 14540665 | E13: 1777210.5 | G13: 106357164
A14: March | B14: 0 | C14: 11222354.19 | D14: 14540665 | E14: 0 | G14: 120897829 | H14: 0
A15: April | B15: 0 | C15: 11222354.19 | D15: 14540665 | E15: 0 | G15: 135438494 | H15: 0
A16: May | B16: 0 | C16: 11222354.19 | D16: 14540665 | E16: 0 | G16: 149979159 | H16: 0
A17: June | B17: 0 | C17: 11222353.91 | D17: 14540631 | E17: 0 | G17: 164519790 | H17: =IF(F17="",0,G17-F17) -> 0 | I17: =IF(F17="","",IF(H17=0,"",H17/G17)) ->  | J17: =IF(F17="","",F17/$C$18) -> 
A18: Total Capital expenditure | B18: =SUM(B6:B17) -> 0 | C18: =SUM(C6:C17) -> 134668250 | D18: =SUM(D6:D17) -> 164519790 | E18: =SUM(E6:E17) -> 22436038.92

Sheet SC13a
A1: =muni& " - "&S71Sa& " - "&Head57 -> LIM355 Lepelle-Nkumpi - Supporting Table SC13a Monthly Budget Statement - capital expenditure on new assets by asset class - M08 February
A2: =desc -> Description | B2: =head27 -> Ref | C2: =Head1 -> 2019/20 | D2: =Head2 -> Budget Year 2020/21
C3: =Head5 -> Audited Outcome | D3: =Head6 -> Original Budget | E3: =Head7 -> Adjusted Budget | F3: =Head38 -> Monthly actual | G3: =Head39 -> YearTD actual | H3: =Head40 -> YearTD budget | I3: =Head41 -> YTD variance | J3: =Head41 -> YTD variance | K3: =Head8 -> Full Year Forecast
A4: R thousands | B4: 1 | J4: %
A5: Capital expenditure on new assets by Asset Class/Sub-class
A7: Infrastructure | C7: =C8+C13+C17+C27+C38+C45+C53+C63+C69 -> 12687061.93 | D7: 78450000 | E7: 93978500 | F7: -1132047.69 | G7: 14881023.51 | H7: 63485708 | I7: =H7-G7 -> 48604684.49 | J7: =IF(I7=0,"",I7/H7) -> 0.7656004166 | K7: =K8+K13+K17+K27+K38+K45+K53+K63+K69 -> 93978500
A8: Roads Infrastructure | C8: =SUM(C9:C12) -> 12576499.54 | D8: 67000000 | E8: 86278500 | F8: -1132047.69 | G8: 12607143.51 | H8: 56602372 | I8: 43995228.49 | J8: 0.7772682829 | K8: =SUM(K9:K12) -> 86278500
A9: Roads | C9: 0 | D9: 3000000 | E9: 0 | F9: -2468598.3 | G9: 0 | H9: 4760000 | I9: 4760000 | J9: 1 | K9: 0
A10: Road Structures | C10: 12576499.54 | D10: 64000000 | E10: 86278500 | F10: 1336550.61 | G10: 12607143.51 | H10: 51842372 | I10: 39235228.49 | J10: 0.7568177723 | K10: 86278500
A11: Road Furniture | I11: 0
A12: Capital Spares | I12: 0
A13: Storm water Infrastructure | C13: =SUM(C14:C16) -> 0 | D13: 3750000 | E13: 0 | F13: 0 | G13: 0 | H13: 1750000 | I13: 1750000 | J13: 1 | K13: =SUM(K14:K16) -> 0
A14: Drainage Collection | I14: 0
A15: Storm water Conveyance | C15: 0 | D15: 3750000 | E15: 0 | F15: 0 | G15: 0 | H15: 1750000 | I15: 1750000 | J15: 1 | K15: 0
A16: Attenuation | I16: 0
A17: Electrical Infrastructure | C17: =SUM(C18:C26) -> 111127.61 | D17: 7500000 | E17: 7500000 | F17: 0 | G17: 2273880 | H17: 5000000 | I17: 2726120 | J17: 0.545224 | K17: =SUM(K18:K26) -> 7500000
A18: Power Plants | I18: 0
A19: HV Substations | I19: 0
A20: HV Switching Station | I20: 0
A21: HV Transmission Conductors | I21: 0
A22: MV Substations | I22: 0
A23: MV Switching Stations | I23: 0
A24: MV Networks | C24: 0 | D24: 4125000 | E24: 4125000 | F24: 0 | G24: 0 | H24: 2750000 | I24: 2750000 | J24: 1 | K24: 4125000
A25: LV Networks | C25: 111127.61 | D25: 3375000 | E25: 3375000 | F25: 0 | G25: 2273880 | H25: 2250000 | I25: -23880 | J25: -0.01061333333 | K25: 3375000
A26: Capital Spares | I26: 0
A27: Water Supply Infrastructure | C27: =SUM(C28:C37) -> -565.22 | D27: 0 | E27: 0 | F27: 0 | G27: 0 | H27: 0 | I27: 0 | K27: =SUM(K28:K37) -> 0
A28: Dams and Weirs | I28: 0
A29: Boreholes | I29: 0
A30: Reservoirs | I30: 0
A31: Pump Stations | I31: 0
A32: Water Treatment Works | I32: 0
A33: Bulk Mains | I33: 0
A34: Distribution | I34: 0
A35: Distribution Points | I35: 0
A36: PRV Stations | I36: 0
A37: Capital Spares | C37: -565.22 | D37: 0 | E37: 0 | F37: 0 | G37: 0 | H37: 0 | I37: 0 | K37: 0
A38: Sanitation Infrastructure | C38: =SUM(C39:C44) -> 0 | D38: 0 | E38: 0 | F38: 0 | G38: 0 | H38: 0 | I38: =H38-G38 -> 0 | J38: =IF(I38=0,"",I38/H38) ->  | K38: =SUM(K39:K44) -> 0
A39: Pump Station | I39: 0
A40: Reticulation | I40: =H40-G40 -> 0 | J40: =IF(I40=0,"",I40/H40) -> 
A41: Waste Water Treatment Works | I41: =H41-G41 -> 0 | J41: =IF(I41=0,"",I41/H41) -> 
A42: Outfall Sewers | I42: =H42-G42 -> 0 | J42: =IF(I42=0,"",I42/H42) -> 
A43: Toilet Facilities | I43: 0
A44: Capital Spares | I44: 0
A45: Solid Waste Infrastructure | C45: =SUM(C46:C52) -> 0 | D45: 200000 | E45: 200000 | F45: 0 | G45: 0 | H45: 133336 | I45: =H45-G45 -> 133336 | J45: =IF(I45=0,"",I45/H45) -> 1 | K45: =SUM(K46:K52) -> 200000
A46: Landfill Sites | I46: 0
A47: Waste Transfer Stations | I47: 0
A48: Waste Processing Facilities | I48: =H48-G48 -> 0 | J48: =IF(I48=0,"",I48/H48) -> 
A49: Waste Drop-off Points | I49: 0
A50: Waste Separation Facilities | I50: 0
A51: Electricity Generation Facilities | I51: 0
A52: Capital Spares | C52: 0 | D52: 200000 | E52: 200000 | F52: 0 | G52: 0 | H52: 133336 | I52: 133336 | J52: 1 | K52: 200000
A53: Rail Infrastructure | C53: =SUM(C54:C62) -> 0 | D53: 0 | E53: 0 | F53: 0 | G53: 0 | H53: 0 | I53: 0 | K53: =SUM(K54:K62) -> 0
A54: Rail Lines | I54: 0
A55: Rail Structures | I55: 0
A56: Rail Furniture | I56: 0
A57: Drainage Collection | I57: 0
A58: Storm water Conveyance | I58: 0
A59: Attenuation | I59: 0
A60: MV Substations | I60: 0
A61: LV Networks | I61: 0
A62: Capital Spares | I62: 0
A63: Coastal Infrastructure | C63: =SUM(C64:C68) -> 0 | D63: 0 | E63: 0 | F63: 0 | G63: 0 | H63: 0 | I63: 0 | K63: =SUM(K64:K68) -> 0
A64: Sand Pumps | I64: 0
A65: Piers | I65: 0
A66: Revetments | I66: 0
A67: Promenades | I67: 0
A68: Capital Spares | I68: 0
A69: Information and Communication Infrastructure | C69: =SUM(C70:C73) -> 0 | D69: 0 | E69: 0 | F69: 0 | G69: 0 | H69: 0 | I69: =H69-G69 -> 0 | J69: =IF(I69=0,"",I69/H69) ->  | K69: =SUM(K70:K73) -> 0
A70: Data Centres | I70: =H70-G70 -> 0
A71: Core Layers | I71: =H71-G71 -> 0
A72: Distribution Layers | I72: =H72-G72 -> 0
A73: Capital Spares | I73: =H73-G73 -> 0
A75: Community Assets | C75: =+C76+C99 -> 1055580.78 | D75: 24243250 | E75: 29347290 | F75: 0 | G75: 3679287.16 | H75: 18550992 | I75: =H75-G75 -> 14871704.84 | J75: 0.801666285 | K75: =+K76+K99 -> 29347290
A76: Community Facilities | C76: =SUM(C77:C98) -> 1055580.78 | D76: 18000000 | E76: 20907540 | F76: 0 | G76: 3679287.16 | H76: 13585524 | I76: =H76-G76 -> 9906236.84 | J76: =IF(I76=0,"",I76/H76) -> 0.7291759111 | K76: =SUM(K77:K98) -> 20907540
A77: Halls | C77: 1055580.78 | D77: 5000000 | E77: 8407540 | F77: 0 | G77: 3679287.16 | H77: 5018852 | I77: 1339564.84 | J77: 0.2669066233 | K77: 8407540
A78: Centres | I78: 0
A79: Crèches | C79: 0 | D79: 0 | E79: 0 | F79: 0 | G79: 0 | H79: 0 | I79: 0 | K79: 0
A80: Clinics/Care Centres | I80: 0
A81: Fire/Ambulance Stations | I81: 0
A82: Testing Stations | C82: 0 | D82: 13000000 | E82: 12500000 | F82: 0 | G82: 0 | H82: 8566672 | I82: 8566672 | J82: 1 | K82: 12500000
A83: Museums | I83: 0
A84: Galleries | I84: 0
A85: Theatres | I85: 0
A86: Libraries | I86: 0
A87: Cemeteries/Crematoria | I87: 0
A88: Police | I88: =H88-G88 -> 0 | J88: =IF(I88=0,"",I88/H88) -> 
A89: Purls | I89: 0
A90: Public Open Space | I90: 0
A91: Nature Reserves | I91: 0
A92: Public Ablution Facilities | I92: 0
A93: Markets | I93: 0
A94: Stalls | I94: 0
A95: Abattoirs | I95: 0
A96: Airports | I96: 0
A97: Taxi Ranks/Bus Terminals | I97: 0
A98: Capital Spares | I98: 0
A99: Sport and Recreation Facilities | C99: =SUM(C100:C102) -> 0 | D99: 6243250 | E99: 8439750 | F99: 0 | G99: 0 | H99: 4965468 | I99: 4965468 | J99: 1 | K99: =SUM(K100:K102) -> 8439750
A100: Indoor Facilities | C100: 0 | D100: 0 | E100: 737717 | F100: 0 | G100: 0 | H100: 511544 | I100: 511544 | J100: 1 | K100: 737717
A101: Outdoor Facilities | C101: 0 | D101: 6243250 | E101: 7702033 | F101: 0 | G101: 0 | H101: 4453924 | I101: 4453924 | J101: 1 | K101: 7702033
A102: Capital Spares | I102: 0
A103: Heritage assets | C103: =SUM(C104:C108) -> 0 | D103: 0 | E103: 0 | F103: 0 | G103: 0 | H103: 0 | I103: 0 | K103: =SUM(K104:K108) -> 0
A104: Monuments | I104: 0
A105: Historic Buildings | I105: 0
A106: Works of Art | I106: 0
A107: Conservation Areas | I107: 0
A108: Other Heritage | I108: 0
I109: 0
A110: Investment properties | C110: =+C111+C114 -> 0 | D110: 8000000 | E110: 8000000 | F110: 0 | G110: 0 | H110: 5333336 | I110: 5333336 | J110: 1 | K110: =+K111+K114 -> 8000000
A111: Revenue Generating | C111: =SUM(C112:C113) -> 0 | D111: 0 | E111: 0 | F111: 0 | G111: 0 | H111: 0 | I111: 0 | K111: =SUM(K112:K113) -> 0
A112: Improved Property | I112: 0
A113: Unimproved Property | I113: 0
A114: Non-revenue Generating | C114: =SUM(C115:C116) -> 0 | D114: 8000000 | E114: 8000000 | F114: 0 | G114: 0 | H114: 5333336 | I114: 5333336 | J114: 1 | K114: =SUM(K115:K116) -> 8000000
A115: Improved Property | I115: 0
A116: Unimproved Property | C116: 0 | D116: 8000000 | E116: 8000000 | F116: 0 | G116: 0 | H116: 5333336 | I116: 5333336 | J116: 1 | K116: 8000000
A117: Other assets | C117: =+C118+C130 -> 0 | D117: 0 | E117: 0 | F117: 0 | G117: 0 | H117: 0 | I117: 0 | K117: =+K118+K130 -> 0
A118: Operational Buildings | C118: =SUM(C119:C129) -> 0 | D118: 0 | E118: 0 | F118: 0 | G118: 0 | H118: 0 | I118: 0 | K118: =SUM(K119:K129) -> 0
A119: Municipal Offices | C119: 0 | D119: 0 | E119: 0 | F119: 0 | G119: 0 | H119: 0 | I119: 0 | K119: 0
A120: Pay/Enquiry Points | I120: 0 | J120: =IF(I120=0,"",I120/H120) -> 
A121: Building Plan Offices | I121: 0
A122: Workshops | I122: 0
A123: Yards | I123: 0
A124: Stores | I124: 0
A125: Laboratories | I125: 0
A126: Training Centres | I126: 0
A127: Manufacturing Plant | I127: 0
A128: Depots | I128: 0
A129: Capital Spares | I129: 0
A130: Housing | C130: =SUM(C131:C133) -> 0 | D130: 0 | E130: 0 | F130: 0 | G130: 0 | H130: 0 | I130: 0 | K130: =SUM(K131:K133) -> 0
A131: Staff Housing | I131: 0
A132: Social Housing | I132: 0
A133: Capital Spares | I133: 0
A135: Biological or Cultivated Assets | C135: =SUM(C136:C136) -> 0 | D135: 0 | E135: 0 | F135: 0 | G135: 0 | H135: 0 | I135: =H135-G135 -> 0 | K135: =SUM(K136) -> 0
A136: Biological or Cultivated Assets | I136: =H136-G136 -> 0
A138: Intangible Assets | C138: =SUM(C139:C140) -> 0 | D138: 0 | E138: 0 | F138: 0 | G138: 0 | H138: 0 | I138: =H138-G138 -> 0 | K138: =SUM(K139:K140) -> 0
A139: Servitudes | I139: 0
A140: Licences and Rights | C140: =SUM(C141:C146) -> 0 | D140: 0 | E140: 0 | F140: 0 | G140: 0 | H140: 0 | I140: 0 | K140: =SUM(K141:K146) -> 0
A141: Water Rights | I141: 0
A142: Effluent Licenses | I142: 0
A143: Solid Waste Licenses | I143: 0
A144: Computer Software and Applications | I144: 0
A145: Load Settlement Software Applications | I145: 0
A146: Unspecified | I146: 0
A148: Computer Equipment | C148: =SUM(C149:C149) -> 0 | D148: 1543000 | E148: 2243000 | F148: 38556 | G148: 450217.56 | H148: 1208672 | I148: =H148-G148 -> 758454.44 | J148: =IF(I148=0,"",I148/H148) -> 0.627510557 | K148: =SUM(K149) -> 2243000
A149: Computer Equipment | C149: 0 | D149: 1543000 | E149: 2243000 | F149: 38556 | G149: 450217.56 | H149: 1208672 | I149: =H149-G149 -> 758454.44 | J149: =IF(I149=0,"",I149/H149) -> 0.627510557 | K149: 2243000
A151: Furniture and Office Equipment | C151: =SUM(C152:C152) -> 0 | D151: 0 | E151: 0 | F151: 0 | G151: 0 | H151: 0 | I151: =H151-G151 -> 0 | J151: =IF(I151=0,"",I151/H151) ->  | K151: =SUM(K152) -> 0
A152: Furniture and Office Equipment | C152: 0 | D152: 0 | E152: 0 | F152: 0 | G152: 0 | H152: 0 | I152: =H152-G152 -> 0 | J152: =IF(I152=0,"",I152/H152) ->  | K152: 0
J153: =IF(I153=0,"",I153/H153) -> 
A154: Machinery and Equipment | C154: =SUM(C155:C155) -> 24205 | D154: 1950000 | E154: 3419000 | F154: 227500 | G154: 632462.5 | H154: 2393800 | I154: =H154-G154 -> 1761337.5 | J154: =IF(I154=0,"",I154/H154) -> 0.7357914195 | K154: =SUM(K155) -> 3419000
A155: Machinery and Equipment | C155: 24205 | D155: 1950000 | E155: 3419000 | F155: 227500 | G155: 632462.5 | H155: 2393800 | I155: =H155-G155 -> 1761337.5 | J155: =IF(I155=0,"",I155/H155) -> 0.7357914195 | K155: 3419000
A157: Transport Assets | C157: =SUM(C158:C158) -> 0 | D157: 2200000 | E157: 0 | F157: 0 | G157: 0 | H157: 146664 | I157: =H157-G157 -> 146664 | J157: =IF(I157=0,"",I157/H157) -> 1 | K157: =SUM(K158) -> 0
A158: Transport Assets | C158: 0 | D158: 2200000 | E158: 0 | F158: 0 | G158: 0 | H158: 146664 | I158: =H158-G158 -> 146664 | J158: =IF(I158=0,"",I158/H158) -> 1 | K158: 0
A160: Land | C160: =SUM(C161:C161) -> 0 | D160: 0 | E160: 0 | F160: 0 | G160: 0 | H160: 0 | I160: =H160-G160 -> 0 | J160: =IF(I160=0,"",I160/H160) ->  | K160: =SUM(K161) -> 0
A161: Land | I161: =H161-G161 -> 0 | J161: =IF(I161=0,"",I161/H161) -> 
A163: Zoo's, Marine and Non-biological Animals | C163: =SUM(C164:C164) -> 0 | D163: 0 | E163: 0 | F163: 0 | G163: 0 | H163: 0 | I163: =H163-G163 -> 0 | J163: =IF(I163=0,"",I163/H163) ->  | K163: =SUM(K164) -> 0
A164: Zoo's, Marine and Non-biological Animals | I164: =H164-G164 -> 0 | J164: =IF(I164=0,"",I164/H164) -> 
J165: =IF(I165=0,"",I165/H165) -> 
A166: Total Capital Expenditure on new assets | B166: 1 | C166: =C7+C75+C103+C110+C117+C135+C138+C148+C151+C154+C157+C160+C163 -> 13766847.71 | D166: 116386250 | E166: 136987790 | F166: -865991.69 | G166: 19642990.73 | H166: 91119172 | I166: =H166-G166 -> 71476181.27 | J166: =IF(I166=0,"",I166/H166) -> 0.7844252719 | K166: =K7+K75+K103+K110+K117+K135+K138+K148+K151+K154+K157+K160+K163 -> 136987790
A168: =head27a -> References
A169: 1. Total Capital Expenditure on new assets (SC13a) plus Total Capital Expenditure on renewal of existing assets (SC13b) plus Total Capital Expenditure on upgrading of existing assets (SC13e) must reconcile to total capital expenditure in Table C5
A171: check balance | C171: =C166+SC13b!C166+SC13e!C166-'C5-Capex'!C40 -> 0 | D171: =D166+SC13b!D166+SC13e!D166-'C5-Capex'!D40 -> 0 | E171: =E166+SC13b!E166+SC13e!E166-'C5-Capex'!E40 -> 0 | F171: =F166+SC13b!F166+SC13e!F166-'C5-Capex'!F40 -> 0 | G171: =G166+SC13b!G166+SC13e!G166-'C5-Capex'!G40 -> 0 | H171: =H166+SC13b!H166+SC13e!H166-'C5-Capex'!H40 -> 0 | K171: =K166+SC13b!K166+SC13e!K166-'C5-Capex'!K40 -> 0

Sheet SC13b
A1: =muni& " - "&S71Sb& " - "&Head57 -> LIM355 Lepelle-Nkumpi - Supporting Table SC13b Monthly Budget Statement - capital expenditure on renewal of existing assets by asset class - M08 February
A2: =desc -> Description | B2: =head27 -> Ref | C2: =Head1 -> 2019/20 | D2: =Head2 -> Budget Year 2020/21
C3: =Head5 -> Audited Outcome | D3: =Head6 -> Original Budget | E3: =Head7 -> Adjusted Budget | F3: =Head38 -> Monthly actual | G3: =Head39 -> YearTD actual | H3: =Head40 -> YearTD budget | I3: =Head41 -> YTD variance | J3: =Head41 -> YTD variance | K3: =Head8 -> Full Year Forecast
A4: R thousands | B4: 1 | J4: %
A5: Capital expenditure on renewal of existing assets by Asset Class/Sub-class
A7: Infrastructure | C7: =C8+C13+C17+C27+C38+C45+C53+C63+C69 -> 0 | D7: 3025000 | E7: 4875000 | F7: -142046 | G7: 0 | H7: 3586664 | I7: =H7-G7 -> 3586664 | J7: =IF(I7=0,"",I7/H7) -> 1 | K7: =K8+K13+K17+K27+K38+K45+K53+K63+K69 -> 4875000
A8: Roads Infrastructure | C8: =SUM(C9:C12) -> 0 | D8: 2275000 | E8: 4125000 | F8: -142046 | G8: 0 | H8: 3086664 | I8: 3086664 | J8: 1 | K8: =SUM(K9:K12) -> 4125000
A9: Roads | I9: 0
A10: Road Structures | C10: 0 | D10: 2275000 | E10: 4125000 | F10: -142046 | G10: 0 | H10: 3086664 | I10: 3086664 | J10: 1 | K10: 4125000
A11: Road Furniture | I11: 0
A12: Capital Spares | I12: 0
A13: Storm water Infrastructure | C13: =SUM(C14:C16) -> 0 | D13: 0 | E13: 0 | F13: 0 | G13: 0 | H13: 0 | I13: 0 | K13: =SUM(K14:K16) -> 0
A14: Drainage Collection | I14: 0
A15: Storm water Conveyance | I15: 0
A16: Attenuation | I16: 0
A17: Electrical Infrastructure | C17: =SUM(C18:C26) -> 0 | D17: 750000 | E17: 750000 | F17: 0 | G17: 0 | H17: 500000 | I17: 500000 | J17: 1 | K17: =SUM(K18:K26) -> 750000
A18: Power Plants | I18: 0
A19: HV Substations | I19: 0
A20: HV Switching Station | I20: 0
A21: HV Transmission Conductors | I21: 0
A22: MV Substations | I22: 0
A23: MV Switching Stations | I23: 0
A24: MV Networks | I24: 0
A25: LV Networks | C25: 0 | D25: 750000 | E25: 750000 | F25: 0 | G25: 0 | H25: 500000 | I25: 500000 | J25: 1 | K25: 750000
A26: Capital Spares | I26: 0
A27: Water Supply Infrastructure | C27: =SUM(C28:C37) -> 0 | D27: 0 | E27: 0 | F27: 0 | G27: 0 | H27: 0 | I27: 0 | K27: =SUM(K28:K37) -> 0
A28: Dams and Weirs | I28: 0
A29: Boreholes | I29: 0
A30: Reservoirs | I30: 0
A31: Pump Stations | I31: 0
A32: Water Treatment Works | I32: 0
A33: Bulk Mains | I33: 0
A34: Distribution | I34: 0
A35: Distribution Points | I35: 0
A36: PRV Stations | I36: 0
A37: Capital Spares | I37: 0
A38: Sanitation Infrastructure | C38: =SUM(C39:C44) -> 0 | D38: 0 | E38: 0 | F38: 0 | G38: 0 | H38: 0 | I38: 0 | K38: =SUM(K39:K44) -> 0
A39: Pump Station | I39: 0
A40: Reticulation | I40: 0
A41: Waste Water Treatment Works | I41: 0
A42: Outfall Sewers | I42: 0
A43: Toilet Facilities | I43: 0
A44: Capital Spares | I44: 0
A45: Solid Waste Infrastructure | C45: =SUM(C46:C52) -> 0 | D45: 0 | E45: 0 | F45: 0 | G45: 0 | H45: 0 | I45: 0 | K45: =SUM(K46:K52) -> 0
A46: Landfill Sites | I46: 0
A47: Waste Transfer Stations | I47: 0
A48: Waste Processing Facilities | I48: 0
A49: Waste Drop-off Points | I49: 0
A50: Waste Separation Facilities | I50: 0
A51: Electricity Generation Facilities | I51: 0
A52: Capital Spares | I52: 0
A53: Rail Infrastructure | C53: =SUM(C54:C62) -> 0 | D53: 0 | E53: 0 | F53: 0 | G53: 0 | H53: 0 | I53: 0 | K53: =SUM(K54:K62) -> 0
A54: Rail Lines | I54: 0
A55: Rail Structures | I55: 0
A56: Rail Furniture | I56: 0
A57: Drainage Collection | I57: 0
A58: Storm water Conveyance | I58: 0
A59: Attenuation | I59: 0
A60: MV Substations | I60: 0
A61: LV Networks | I61: 0
A62: Capital Spares | I62: 0
A63: Coastal Infrastructure | C63: =SUM(C64:C68) -> 0 | D63: 0 | E63: 0 | F63: 0 | G63: 0 | H63: 0 | I63: 0 | K63: =SUM(K64:K68) -> 0
A64: Sand Pumps | I64: 0
A65: Piers | I65: 0
A66: Revetments | I66: 0
A67: Promenades | I67: 0
A68: Capital Spares | I68: 0
A69: Information and Communication Infrastructure | C69: =SUM(C70:C73) -> 0 | D69: 0 | E69: 0 | F69: 0 | G69: 0 | H69: 0 | I69: 0 | K69: =SUM(K70:K73) -> 0
A70: Data Centres | I70: 0
A71: Core Layers | I71: 0
A72: Distribution Layers | I72: 0
A73: Capital Spares | I73: 0
A75: Community Assets | C75: =+C76+C99 -> 0 | D75: 5137000 | E75: 5137000 | F75: 0 | G75: 0 | H75: 3424664 | I75: 3424664 | J75: 1 | K75: =+K76+K99 -> 5137000
A76: Community Facilities | C76: =SUM(C77:C98) -> 0 | D76: 0 | E76: 0 | F76: 0 | G76: 0 | H76: 0 | I76: 0 | K76: =SUM(K77:K98) -> 0
A77: Halls | C77: 0 | D77: 0 | E77: 0 | F77: 0 | G77: 0 | H77: 0 | I77: 0 | K77: 0
A78: Centres | I78: 0
A79: Crèches | I79: 0
A80: Clinics/Care Centres | I80: 0
A81: Fire/Ambulance Stations | I81: 0
A82: Testing Stations | I82: 0
A83: Museums | I83: 0
A84: Galleries | I84: 0
A85: Theatres | I85: 0
A86: Libraries | I86: 0
A87: Cemeteries/Crematoria | I87: 0
A88: Police | I88: 0
A89: Purls | I89: 0
A90: Public Open Space | I90: 0
A91: Nature Reserves | I91: 0
A92: Public Ablution Facilities | I92: 0
A93: Markets | I93: 0
A94: Stalls | I94: 0
A95: Abattoirs | I95: 0
A96: Airports | I96: 0
A97: Taxi Ranks/Bus Terminals | I97: 0
A98: Capital Spares | I98: 0
A99: Sport and Recreation Facilities | C99: =SUM(C100:C102) -> 0 | D99: 5137000 | E99: 5137000 | F99: 0 | G99: 0 | H99: 3424664 | I99: 3424664 | J99: 1 | K99: =SUM(K100:K102) -> 5137000
A100: Indoor Facilities | I100: 0
A101: Outdoor Facilities | C101: 0 | D101: 5137000 | E101: 5137000 | F101: 0 | G101: 0 | H101: 3424664 | I101: =H101-G101 -> 3424664 | J101: =IF(I101=0,"",I101/H101) -> 1 | K101: 5137000
A102: Capital Spares | I102: 0
A103: Heritage assets | C103: =SUM(C104:C108) -> 0 | D103: 0 | E103: 0 | F103: 0 | G103: 0 | H103: 0 | I103: 0 | K103: =SUM(K104:K108) -> 0
A104: Monuments | I104: 0
A105: Historic Buildings | I105: 0
A106: Works of Art | I106: 0
A107: Conservation Areas | I107: 0
A108: Other Heritage | I108: 0
I109: 0
A110: Investment properties | C110: =+C111+C114 -> 0 | D110: 0 | E110: 0 | F110: 0 | G110: 0 | H110: 0 | I110: 0 | K110: =+K111+K114 -> 0
A111: Revenue Generating | C111: =SUM(C112:C113) -> 0 | D111: 0 | E111: 0 | F111: 0 | G111: 0 | H111: 0 | I111: 0 | K111: =SUM(K112:K113) -> 0
A112: Improved Property | I112: 0
A113: Unimproved Property | I113: 0
A114: Non-revenue Generating | C114: =SUM(C115:C116) -> 0 | D114: 0 | E114: 0 | F114: 0 | G114: 0 | H114: 0 | I114: 0 | K114: =SUM(K115:K116) -> 0
A115: Improved Property | I115: 0
A116: Unimproved Property | I116: =H116-G116 -> 0 | J116: =IF(I116=0,"",I116/H116) -> 
A117: Other assets | C117: =+C118+C130 -> 0 | D117: 0 | E117: 0 | F117: 0 | G117: 0 | H117: 0 | I117: 0 | K117: =+K118+K130 -> 0
A118: Operational Buildings | C118: =SUM(C119:C129) -> 0 | D118: 0 | E118: 0 | F118: 0 | G118: 0 | H118: 0 | I118: 0 | K118: =SUM(K119:K129) -> 0
A119: Municipal Offices | I119: 0
A120: Pay/Enquiry Points | I120: 0
A121: Building Plan Offices | I121: 0
A122: Workshops | I122: 0
A123: Yards | I123: 0
A124: Stores | I124: 0
A125: Laboratories | I125: 0
A126: Training Centres | I126: 0
A127: Manufacturing Plant | I127: 0
A128: Depots | I128: 0
A129: Capital Spares | I129: 0
A130: Housing | C130: =SUM(C131:C133) -> 0 | D130: 0 | E130: 0 | F130: 0 | G130: 0 | H130: 0 | I130: 0 | K130: =SUM(K131:K133) -> 0
A131: Staff Housing | I131: 0
A132: Social Housing | I132: 0
A133: Capital Spares | I133: 0
A135: Biological or Cultivated Assets | C135: =SUM(C136:C136) -> 0 | D135: 0 | E135: 0 | F135: 0 | G135: 0 | H135: 0 | I135: =H135-G135 -> 0 | K135: =SUM(K136) -> 0
A136: Biological or Cultivated Assets | I136: =H136-G136 -> 0
J137: =IF(I137=0,"",I137/H137) -> 
A138: Intangible Assets | C138: =SUM(C139:C140) -> 0 | D138: 0 | E138: 0 | F138: 0 | G138: 0 | H138: 0 | I138: =H138-G138 -> 0 | K138: =SUM(K139:K140) -> 0
A139: Servitudes | I139: 0
A140: Licences and Rights | C140: =SUM(C141:C146) -> 0 | D140: 0 | E140: 0 | F140: 0 | G140: 0 | H140: 0 | I140: 0 | K140: =SUM(K141:K146) -> 0
A141: Water Rights | I141: 0
A142: Effluent Licenses | I142: 0
A143: Solid Waste Licenses | I143: 0
A144: Computer Software and Applications | I144: 0
A145: Load Settlement Software Applications | I145: 0
A146: Unspecified | I146: 0
A148: Computer Equipment | C148: =SUM(C149:C149) -> 0 | D148: 0 | E148: 0 | F148: 0 | G148: 0 | H148: 0 | I148: =H148-G148 -> 0 | J148: =IF(I148=0,"",I148/H148) ->  | K148: =SUM(K149) -> 0
A149: Computer Equipment | I149: =H149-G149 -> 0 | J149: =IF(I149=0,"",I149/H149) -> 
A151: Furniture and Office Equipment | C151: =SUM(C152:C152) -> 0 | D151: 0 | E151: 0 | F151: 0 | G151: 0 | H151: 0 | I151: =H151-G151 -> 0 | J151: =IF(I151=0,"",I151/H151) ->  | K151: =SUM(K152) -> 0
A152: Furniture and Office Equipment | I152: =H152-G152 -> 0 | J152: =IF(I152=0,"",I152/H152) -> 
J153: =IF(I153=0,"",I153/H153) -> 
A154: Machinery and Equipment | C154: =SUM(C155:C155) -> 0 | D154: 520000 | E154: 520000 | F154: 0 | G154: 7800 | H154: 346664 | I154: =H154-G154 -> 338864 | J154: =IF(I154=0,"",I154/H154) -> 0.9774998269 | K154: =SUM(K155) -> 520000
A155: Machinery and Equipment | C155: 0 | D155: 520000 | E155: 520000 | F155: 0 | G155: 7800 | H155: 346664 | I155: =H155-G155 -> 338864 | J155: =IF(I155=0,"",I155/H155) -> 0.9774998269 | K155: 520000
A157: Transport Assets | C157: =SUM(C158:C158) -> 0 | D157: 0 | E157: 0 | F157: 0 | G157: 0 | H157: 0 | I157: =H157-G157 -> 0 | J157: =IF(I157=0,"",I157/H157) ->  | K157: =SUM(K158) -> 0
A158: Transport Assets | I158: =H158-G158 -> 0 | J158: =IF(I158=0,"",I158/H158) -> 
A160: Land | C160: =SUM(C161:C161) -> 0 | D160: 0 | E160: 0 | F160: 0 | G160: 0 | H160: 0 | I160: =H160-G160 -> 0 | J160: =IF(I160=0,"",I160/H160) ->  | K160: =SUM(K161) -> 0
A161: Land | I161: =H161-G161 -> 0 | J161: =IF(I161=0,"",I161/H161) -> 
J162: .
A163: Zoo's, Marine and Non-biological Animals | C163: =SUM(C164:C164) -> 0 | D163: 0 | E163: 0 | F163: 0 | G163: 0 | H163: 0 | I163: =H163-G163 -> 0 | J163: =IF(I163=0,"",I163/H163) ->  | K163: =SUM(K164) -> 0
A164: Zoo's, Marine and Non-biological Animals | I164: =H164-G164 -> 0 | J164: =IF(I164=0,"",I164/H164) -> 
J165: =IF(I165=0,"",I165/H165) -> 
A166: Total Capital Expenditure on renewal of existing assets | B166: 1 | C166: =C7+C75+C103+C110+C117+C135+C138+C148+C151+C154+C157+C160+C163 -> 0 | D166: 8682000 | E166: 10532000 | F166: -142046 | G166: 7800 | H166: 7357992 | I166: =H166-G166 -> 7350192 | J166: =IF(I166=0,"",I166/H166) -> 0.9989399282 | K166: =K7+K75+K103+K110+K117+K135+K138+K148+K151+K154+K157+K160+K163 -> 10532000
A168: =head27a -> References
A169: 1. Total Capital Expenditure on new assets (SC13a) plus Total Capital Expenditure on renewal of existing assets (SC13b) plus Total Capital Expenditure on upgrading of existing assets (SC13e) must reconcile to total capital expenditure in Table C5
A171: check balance | C171: =C166+SC13a!C166+SC13e!C166-'C5-Capex'!C40 -> 0 | D171: =D166+SC13a!D166+SC13e!D166-'C5-Capex'!D40 -> 0 | E171: =E166+SC13a!E166+SC13e!E166-'C5-Capex'!E40 -> 0 | F171: =F166+SC13a!F166+SC13e!F166-'C5-Capex'!F40 -> 0 | G171: =G166+SC13a!G166+SC13e!G166-'C5-Capex'!G40 -> 0 | H171: =H166+SC13a!H166+SC13e!H166-'C5-Capex'!H40 -> 0 | K171: =K166+SC13a!K166+SC13e!K166-'C5-Capex'!K40 -> 0

Sheet SC13c
A1: =muni& " - "&S71Sc& " - "&Head57 -> LIM355 Lepelle-Nkumpi - Supporting Table SC13c Monthly Budget Statement - expenditure on repairs and maintenance by asset class - M08 February
A2: =desc -> Description | B2: =head27 -> Ref | C2: =Head1 -> 2019/20 | D2: =Head2 -> Budget Year 2020/21
C3: =Head5 -> Audited Outcome | D3: =Head6 -> Original Budget | E3: =Head7 -> Adjusted Budget | F3: =Head38 -> Monthly actual | G3: =Head39 -> YearTD actual | H3: =Head40 -> YearTD budget | I3: =Head41 -> YTD variance | J3: =Head41 -> YTD variance | K3: =Head8 -> Full Year Forecast
A4: R thousands | B4: 1 | J4: %
A5: Repairs and maintenance expenditure by Asset Class/Sub-class
A7: Infrastructure | C7: =C8+C13+C17+C27+C38+C45+C53+C63+C69 -> 487500 | D7: 1900000 | E7: 12311384 | F7: 2009.52 | G7: 59169.27 | H7: 4241615 | I7: =H7-G7 -> 4182445.73 | J7: =IF(I7=0,"",I7/H7) -> 0.9860502969 | K7: =K8+K13+K17+K27+K38+K45+K53+K63+K69 -> 12311384
A8: Roads Infrastructure | C8: =SUM(C9:C12) -> 487500 | D8: 600000 | E8: 7011384 | F8: 2009.52 | G8: 27895.57 | H8: 2649386 | I8: 2621490.43 | J8: 0.9894709302 | K8: =SUM(K9:K12) -> 7011384
A9: Roads | C9: 487500 | D9: 600000 | E9: 6359114 | F9: 969.52 | G9: 26855.57 | H9: 2511822 | I9: 2484966.43 | J9: 0.9893083308 | K9: 6359114
A10: Road Structures | I10: 0
A11: Road Furniture | C11: 0 | D11: 0 | E11: 652270 | F11: 1040 | G11: 1040 | H11: 137564 | I11: 136524 | J11: 0.9924398825 | K11: 652270
A12: Capital Spares | I12: 0
A13: Storm water Infrastructure | C13: =SUM(C14:C16) -> 0 | D13: 0 | E13: 0 | F13: 0 | G13: 0 | H13: 0 | I13: 0 | K13: =SUM(K14:K16) -> 0
A14: Drainage Collection | I14: 0
A15: Storm water Conveyance | I15: 0
A16: Attenuation | I16: 0
A17: Electrical Infrastructure | C17: =SUM(C18:C26) -> 0 | D17: 1300000 | E17: 5300000 | F17: 0 | G17: 31273.7 | H17: 1592229 | I17: 1560955.3 | J17: 0.9803585414 | K17: =SUM(K18:K26) -> 5300000
A18: Power Plants | I18: 0
A19: HV Substations | I19: 0
A20: HV Switching Station | I20: 0
A21: HV Transmission Conductors | I21: 0
A22: MV Substations | I22: 0
A23: MV Switching Stations | I23: 0
A24: MV Networks | C24: 0 | D24: 400000 | E24: 2500000 | F24: 0 | G24: 31273.7 | H24: 826664 | I24: 795390.3 | J24: 0.9621687893 | K24: 2500000
A25: LV Networks | I25: 0
A26: Capital Spares | C26: 0 | D26: 900000 | E26: 2800000 | F26: 0 | G26: 0 | H26: 765565 | I26: 765565 | J26: 1 | K26: 2800000
A27: Water Supply Infrastructure | C27: =SUM(C28:C37) -> 0 | D27: 0 | E27: 0 | F27: 0 | G27: 0 | H27: 0 | I27: 0 | K27: =SUM(K28:K37) -> 0
A28: Dams and Weirs | I28: 0
A29: Boreholes | I29: 0
A30: Reservoirs | I30: 0
A31: Pump Stations | I31: 0
A32: Water Treatment Works | I32: 0
A33: Bulk Mains | I33: 0
A34: Distribution | I34: 0
A35: Distribution Points | I35: 0
A36: PRV Stations | I36: 0
A37: Capital Spares | I37: 0
A38: Sanitation Infrastructure | C38: =SUM(C39:C44) -> 0 | D38: 0 | E38: 0 | F38: 0 | G38: 0 | H38: 0 | I38: 0 | K38: =SUM(K39:K44) -> 0
A39: Pump Station | I39: 0
A40: Reticulation | I40: 0
A41: Waste Water Treatment Works | I41: 0
A42: Outfall Sewers | I42: 0
A43: Toilet Facilities | I43: 0
A44: Capital Spares | I44: 0
A45: Solid Waste Infrastructure | C45: =SUM(C46:C52) -> 0 | D45: 0 | E45: 0 | F45: 0 | G45: 0 | H45: 0 | I45: 0 | K45: =SUM(K46:K52) -> 0
A46: Landfill Sites | I46: 0
A47: Waste Transfer Stations | I47: 0
A48: Waste Processing Facilities | I48: 0
A49: Waste Drop-off Points | I49: 0
A50: Waste Separation Facilities | I50: 0
A51: Electricity Generation Facilities | I51: 0
A52: Capital Spares | I52: 0
A53: Rail Infrastructure | C53: =SUM(C54:C62) -> 0 | D53: 0 | E53: 0 | F53: 0 | G53: 0 | H53: 0 | I53: 0 | K53: =SUM(K54:K62) -> 0
A54: Rail Lines | I54: 0
A55: Rail Structures | I55: 0
A56: Rail Furniture | I56: 0
A57: Drainage Collection | I57: 0
A58: Storm water Conveyance | I58: 0
A59: Attenuation | I59: 0
A60: MV Substations | I60: 0
A61: LV Networks | I61: 0
A62: Capital Spares | I62: 0
A63: Coastal Infrastructure | C63: =SUM(C64:C68) -> 0 | D63: 0 | E63: 0 | F63: 0 | G63: 0 | H63: 0 | I63: 0 | K63: =SUM(K64:K68) -> 0
A64: Sand Pumps | I64: 0
A65: Piers | I65: 0
A66: Revetments | I66: 0
A67: Promenades | I67: 0
A68: Capital Spares | I68: 0
A69: Information and Communication Infrastructure | C69: =SUM(C70:C73) -> 0 | D69: 0 | E69: 0 | F69: 0 | G69: 0 | H69: 0 | I69: 0 | K69: =SUM(K70:K73) -> 0
A70: Data Centres | I70: 0
A71: Core Layers | I71: 0
A72: Distribution Layers | I72: 0
A73: Capital Spares | I73: 0
A75: Community Assets | C75: =+C76+C99 -> 0 | D75: 100000 | E75: 383545 | F75: 0 | G75: 0 | H75: 123373 | I75: 123373 | J75: 1 | K75: =+K76+K99 -> 383545
A76: Community Facilities | C76: =SUM(C77:C98) -> 0 | D76: 100000 | E76: 383545 | F76: 0 | G76: 0 | H76: 123373 | I76: 123373 | J76: 1 | K76: =SUM(K77:K98) -> 383545
A77: Halls | C77: 0 | D77: 0 | E77: 0 | F77: 0 | G77: 0 | H77: 0 | I77: 0 | K77: 0
A78: Centres | C78: 0 | D78: 100000 | E78: 383545 | F78: 0 | G78: 0 | H78: 123373 | I78: 123373 | J78: 1 | K78: 383545
A79: Crèches | C79: 0 | D79: 0 | E79: 0 | F79: 0 | G79: 0 | H79: 0 | I79: 0 | K79: 0
A80: Clinics/Care Centres | I80: 0
A81: Fire/Ambulance Stations | I81: 0
A82: Testing Stations | I82: 0
A83: Museums | I83: 0
A84: Galleries | I84: 0
A85: Theatres | I85: 0
A86: Libraries | I86: 0
A87: Cemeteries/Crematoria | C87: 0 | D87: 0 | E87: 0 | F87: 0 | G87: 0 | H87: 0 | I87: 0 | K87: 0
A88: Police | I88: 0
A89: Purls | C89: 0 | D89: 0 | E89: 0 | F89: 0 | G89: 0 | H89: 0 | I89: 0 | K89: 0
A90: Public Open Space | I90: 0
A91: Nature Reserves | I91: 0
A92: Public Ablution Facilities | I92: 0
A93: Markets | I93: 0
A94: Stalls | I94: 0
A95: Abattoirs | I95: 0
A96: Airports | I96: 0
A97: Taxi Ranks/Bus Terminals | I97: 0
A98: Capital Spares | I98: 0
A99: Sport and Recreation Facilities | C99: =SUM(C100:C102) -> 0 | D99: 0 | E99: 0 | F99: 0 | G99: 0 | H99: 0 | I99: 0 | K99: =SUM(K100:K102) -> 0
A100: Indoor Facilities | I100: 0
A101: Outdoor Facilities | C101: 0 | D101: 0 | E101: 0 | F101: 0 | G101: 0 | H101: 0 | I101: =H101-G101 -> 0 | J101: =IF(I101=0,"",I101/H101) ->  | K101: 0
A102: Capital Spares | I102: 0
A103: Heritage assets | C103: =SUM(C104:C108) -> 0 | D103: 0 | E103: 0 | F103: 0 | G103: 0 | H103: 0 | I103: 0 | K103: =SUM(K104:K108) -> 0
A104: Monuments | I104: 0
A105: Historic Buildings | I105: 0
A106: Works of Art | I106: 0
A107: Conservation Areas | I107: 0
A108: Other Heritage | I108: 0
I109: 0
A110: Investment properties | C110: =+C111+C114 -> 0 | D110: 0 | E110: 0 | F110: 0 | G110: 0 | H110: 0 | I110: 0 | K110: =+K111+K114 -> 0
A111: Revenue Generating | C111: =SUM(C112:C113) -> 0 | D111: 0 | E111: 0 | F111: 0 | G111: 0 | H111: 0 | I111: 0 | K111: =SUM(K112:K113) -> 0
A112: Improved Property | I112: 0
A113: Unimproved Property | I113: 0
A114: Non-revenue Generating | C114: =SUM(C115:C116) -> 0 | D114: 0 | E114: 0 | F114: 0 | G114: 0 | H114: 0 | I114: 0 | K114: =SUM(K115:K116) -> 0
A115: Improved Property | I115: 0
A116: Unimproved Property | I116: =H116-G116 -> 0 | J116: =IF(I116=0,"",I116/H116) -> 
A117: Other assets | C117: =+C118+C130 -> 0 | D117: 900000 | E117: 1200000 | F117: 0 | G117: 146672.78 | H117: 900000 | I117: 753327.22 | J117: 0.8370302444 | K117: =+K118+K130 -> 1200000
A118: Operational Buildings | C118: =SUM(C119:C129) -> 0 | D118: 900000 | E118: 1200000 | F118: 0 | G118: 146672.78 | H118: 900000 | I118: 753327.22 | J118: 0.8370302444 | K118: =SUM(K119:K129) -> 1200000
A119: Municipal Offices | C119: 0 | D119: 900000 | E119: 1200000 | F119: 0 | G119: 146672.78 | H119: 900000 | I119: 753327.22 | J119: 0.8370302444 | K119: 1200000
A120: Pay/Enquiry Points | I120: 0
A121: Building Plan Offices | I121: 0
A122: Workshops | I122: 0
A123: Yards | I123: 0
A124: Stores | I124: 0
A125: Laboratories | I125: 0
A126: Training Centres | I126: 0
A127: Manufacturing Plant | I127: 0
A128: Depots | I128: 0
A129: Capital Spares | I129: 0
A130: Housing | C130: =SUM(C131:C133) -> 0 | D130: 0 | E130: 0 | F130: 0 | G130: 0 | H130: 0 | I130: 0 | K130: =SUM(K131:K133) -> 0
A131: Staff Housing | I131: 0
A132: Social Housing | I132: 0
A133: Capital Spares | I133: 0
A135: Biological or Cultivated Assets | C135: =SUM(C136:C136) -> 0 | D135: 0 | E135: 0 | F135: 0 | G135: 0 | H135: 0 | I135: =H135-G135 -> 0 | K135: =SUM(K136) -> 0
A136: Biological or Cultivated Assets | I136: =H136-G136 -> 0
J137: =IF(I137=0,"",I137/H137) -> 
A138: Intangible Assets | C138: =SUM(C139:C140) -> 0 | D138: 0 | E138: 0 | F138: 0 | G138: 0 | H138: 266665 | I138: =H138-G138 -> 266665 | J138: 1 | K138: =SUM(K139:K140) -> 0
A139: Servitudes | I139: 0
A140: Licences and Rights | C140: =SUM(C141:C146) -> 0 | D140: 0 | E140: 0 | F140: 0 | G140: 0 | H140: 266665 | I140: 266665 | J140: 1 | K140: =SUM(K141:K146) -> 0
A141: Water Rights | I141: 0
A142: Effluent Licenses | I142: 0
A143: Solid Waste Licenses | I143: 0
A144: Computer Software and Applications | C144: 0 | D144: 0 | E144: 0 | F144: 0 | G144: 0 | H144: 0 | I144: 0 | K144: 0
A145: Load Settlement Software Applications | I145: 0
A146: Unspecified | C146: 0 | D146: 0 | E146: 0 | F146: 0 | G146: 0 | H146: 266665 | I146: 266665 | J146: 1 | K146: 0
A148: Computer Equipment | C148: =SUM(C149:C149) -> 0 | D148: 0 | E148: 0 | F148: 0 | G148: 0 | H148: 0 | I148: =H148-G148 -> 0 | J148: =IF(I148=0,"",I148/H148) ->  | K148: =SUM(K149) -> 0
A149: Computer Equipment | I149: =H149-G149 -> 0 | J149: =IF(I149=0,"",I149/H149) -> 
A151: Furniture and Office Equipment | C151: =SUM(C152:C152) -> 0 | D151: 0 | E151: 0 | F151: 0 | G151: 0 | H151: 0 | I151: =H151-G151 -> 0 | J151: =IF(I151=0,"",I151/H151) ->  | K151: =SUM(K152) -> 0
A152: Furniture and Office Equipment | I152: =H152-G152 -> 0 | J152: =IF(I152=0,"",I152/H152) -> 
J153: =IF(I153=0,"",I153/H153) -> 
A154: Machinery and Equipment | C154: =SUM(C155:C155) -> 0 | D154: 0 | E154: 0 | F154: 0 | G154: 0 | H154: 0 | I154: =H154-G154 -> 0 | J154: =IF(I154=0,"",I154/H154) ->  | K154: =SUM(K155) -> 0
A155: Machinery and Equipment | C155: 0 | D155: 0 | E155: 0 | F155: 0 | G155: 0 | H155: 0 | I155: =H155-G155 -> 0 | J155: =IF(I155=0,"",I155/H155) ->  | K155: 0
A157: Transport Assets | C157: =SUM(C158:C158) -> 30723.44 | D157: 400000 | E157: 400000 | F157: 14456.96 | G157: 187004.88 | H157: 266664 | I157: =H157-G157 -> 79659.12 | J157: =IF(I157=0,"",I157/H157) -> 0.2987246872 | K157: =SUM(K158) -> 400000
A158: Transport Assets | C158: 30723.44 | D158: 400000 | E158: 400000 | F158: 14456.96 | G158: 187004.88 | H158: 266664 | I158: =H158-G158 -> 79659.12 | J158: =IF(I158=0,"",I158/H158) -> 0.2987246872 | K158: 400000
A160: Land | C160: =SUM(C161:C161) -> 0 | D160: 0 | E160: 0 | F160: 0 | G160: 0 | H160: 0 | I160: =H160-G160 -> 0 | J160: =IF(I160=0,"",I160/H160) ->  | K160: =SUM(K161) -> 0
A161: Land | I161: =H161-G161 -> 0 | J161: =IF(I161=0,"",I161/H161) -> 
A163: Zoo's, Marine and Non-biological Animals | C163: =SUM(C164:C164) -> 0 | D163: 0 | E163: 0 | F163: 0 | G163: 0 | H163: 0 | I163: =H163-G163 -> 0 | J163: =IF(I163=0,"",I163/H163) ->  | K163: =SUM(K164) -> 0
A164: Zoo's, Marine and Non-biological Animals | I164: =H164-G164 -> 0 | J164: =IF(I164=0,"",I164/H164) -> 
J165: =IF(I165=0,"",I165/H165) -> 
A166: Total Repairs and Maintenance Expenditure | B166: 1 | C166: =C7+C75+C103+C110+C117+C135+C138+C148+C151+C154+C157+C160+C163 -> 518223.44 | D166: 3300000 | E166: 14294929 | F166: 16466.48 | G166: 392846.93 | H166: 5798317 | I166: 5405470.07 | J166: 0.932248111 | K166: =K7+K75+K103+K110+K117+K135+K138+K148+K151+K154+K157+K160+K163 -> 14294929

Sheet SC13d
A1: =muni& " - "&S71Sd& " - "&Head57 -> LIM355 Lepelle-Nkumpi - Supporting Table SC13d Monthly Budget Statement - depreciation by asset class - M08 February
A2: =desc -> Description | B2: =head27 -> Ref | C2: =Head1 -> 2019/20 | D2: =Head2 -> Budget Year 2020/21
C3: =Head5 -> Audited Outcome | D3: =Head6 -> Original Budget | E3: =Head7 -> Adjusted Budget | F3: =Head38 -> Monthly actual | G3: =Head39 -> YearTD actual | H3: =Head40 -> YearTD budget | I3: =Head41 -> YTD variance | J3: =Head41 -> YTD variance | K3: =Head8 -> Full Year Forecast
A4: R thousands | B4: 1 | J4: %
A5: Depreciation by Asset Class/Sub-class
A7: Infrastructure | C7: =C8+C13+C17+C27+C38+C45+C53+C63+C69 -> 0 | D7: 7598910 | E7: 16450910 | F7: 1151771.28 | G7: 9214170.26 | H7: 6836344 | I7: =H7-G7 -> -2377826.26 | J7: =IF(I7=0,"",I7/H7) -> -0.3478213296 | K7: =K8+K13+K17+K27+K38+K45+K53+K63+K69 -> 16450910
A8: Roads Infrastructure | C8: =SUM(C9:C12) -> 0 | D8: 5747530 | E8: 14519530 | F8: 991542.26 | G8: 7932338.09 | H8: 5586088 | I8: -2346250.09 | J8: -0.4200166718 | K8: =SUM(K9:K12) -> 14519530
A9: Roads | C9: 0 | D9: 5747530 | E9: 14519530 | F9: 991542.26 | G9: 7932338.09 | H9: 5586088 | I9: -2346250.09 | J9: -0.4200166718 | K9: 14519530
A10: Road Structures | I10: 0
A11: Road Furniture | I11: 0
A12: Capital Spares | I12: 0
A13: Storm water Infrastructure | C13: =SUM(C14:C16) -> 0 | D13: 0 | E13: 0 | F13: 0 | G13: 0 | H13: 0 | I13: 0 | K13: =SUM(K14:K16) -> 0
A14: Drainage Collection | C14: 0 | D14: 0 | E14: 0 | F14: 0 | G14: 0 | H14: 0 | I14: 0 | K14: 0
A15: Storm water Conveyance | I15: 0
A16: Attenuation | I16: 0
A17: Electrical Infrastructure | C17: =SUM(C18:C26) -> 0 | D17: 1216019 | E17: 1316019 | F17: 109488.96 | G17: 875911.68 | H17: 830680 | I17: -45231.68 | J17: -0.05445138922 | K17: =SUM(K18:K26) -> 1316019
A18: Power Plants | C18: 0 | D18: 0 | E18: 0 | F18: 0 | G18: 0 | H18: 0 | I18: 0 | K18: 0
A19: HV Substations | I19: 0
A20: HV Switching Station | I20: 0
A21: HV Transmission Conductors | I21: 0
A22: MV Substations | I22: 0
A23: MV Switching Stations | I23: 0
A24: MV Networks | C24: 0 | D24: 0 | E24: 0 | F24: 0 | G24: 0 | H24: 0 | I24: 0 | K24: 0
A25: LV Networks | C25: 0 | D25: 1216019 | E25: 1316019 | F25: 109488.96 | G25: 875911.68 | H25: 830680 | I25: -45231.68 | J25: -0.05445138922 | K25: 1316019
A26: Capital Spares | I26: 0
A27: Water Supply Infrastructure | C27: =SUM(C28:C37) -> 0 | D27: 0 | E27: 0 | F27: 0 | G27: 0 | H27: 0 | I27: 0 | K27: =SUM(K28:K37) -> 0
A28: Dams and Weirs | C28: 0 | D28: 0 | E28: 0 | F28: 0 | G28: 0 | H28: 0 | I28: 0 | K28: 0
A29: Boreholes | I29: 0
A30: Reservoirs | I30: 0
A31: Pump Stations | I31: 0
A32: Water Treatment Works | I32: 0
A33: Bulk Mains | I33: 0
A34: Distribution | I34: 0
A35: Distribution Points | I35: 0
A36: PRV Stations | I36: 0
A37: Capital Spares | C37: 0 | D37: 0 | E37: 0 | F37: 0 | G37: 0 | H37: 0 | I37: 0 | K37: 0
A38: Sanitation Infrastructure | C38: =SUM(C39:C44) -> 0 | D38: 0 | E38: 0 | F38: 0 | G38: 0 | H38: 0 | I38: 0 | K38: =SUM(K39:K44) -> 0
A39: Pump Station | I39: 0
A40: Reticulation | I40: 0
A41: Waste Water Treatment Works | I41: 0
A42: Outfall Sewers | I42: 0
A43: Toilet Facilities | I43: 0
A44: Capital Spares | I44: 0
A45: Solid Waste Infrastructure | C45: =SUM(C46:C52) -> 0 | D45: 635361 | E45: 615361 | F45: 50740.06 | G45: 405920.49 | H45: 419576 | I45: 13655.51 | J45: 0.03254597498 | K45: =SUM(K46:K52) -> 615361
A46: Landfill Sites | C46: 0 | D46: 539743 | E46: 519743 | F46: 43145.73 | G46: 345165.85 | H46: 355832 | I46: 10666.15 | J46: 0.02997524113 | K46: 519743
A47: Waste Transfer Stations | C47: 0 | D47: 95618 | E47: 95618 | F47: 7594.33 | G47: 60754.64 | H47: 63744 | I47: 2989.36 | J47: 0.04689633534 | K47: 95618
A48: Waste Processing Facilities | I48: 0
A49: Waste Drop-off Points | I49: 0
A50: Waste Separation Facilities | I50: 0
A51: Electricity Generation Facilities | I51: 0
A52: Capital Spares | I52: 0
A53: Rail Infrastructure | C53: =SUM(C54:C62) -> 0 | D53: 0 | E53: 0 | F53: 0 | G53: 0 | H53: 0 | I53: 0 | K53: =SUM(K54:K62) -> 0
A54: Rail Lines | I54: 0
A55: Rail Structures | I55: 0
A56: Rail Furniture | I56: 0
A57: Drainage Collection | I57: 0
A58: Storm water Conveyance | I58: 0
A59: Attenuation | I59: 0
A60: MV Substations | I60: 0
A61: LV Networks | I61: 0
A62: Capital Spares | I62: 0
A63: Coastal Infrastructure | C63: =SUM(C64:C68) -> 0 | D63: 0 | E63: 0 | F63: 0 | G63: 0 | H63: 0 | I63: 0 | K63: =SUM(K64:K68) -> 0
A64: Sand Pumps | I64: 0
A65: Piers | I65: 0
A66: Revetments | I66: 0
A67: Promenades | I67: 0
A68: Capital Spares | I68: 0
A69: Information and Communication Infrastructure | C69: =SUM(C70:C73) -> 0 | D69: 0 | E69: 0 | F69: 0 | G69: 0 | H69: 0 | I69: 0 | K69: =SUM(K70:K73) -> 0
A70: Data Centres | I70: 0
A71: Core Layers | I71: 0
A72: Distribution Layers | I72: 0
A73: Capital Spares | I73: 0
A75: Community Assets | C75: =+C76+C99 -> 0 | D75: 7721089 | E75: 8704089 | F75: 722663.63 | G75: 5781308.98 | H75: 5343984 | I75: -437324.98 | J75: -0.08183500924 | K75: =+K76+K99 -> 8704089
A76: Community Facilities | C76: =SUM(C77:C98) -> 0 | D76: 6780589 | E76: 7483589 | F76: 621206.51 | G76: 4969652.01 | H76: 4660984 | I76: -308668.01 | J76: -0.06622378665 | K76: =SUM(K77:K98) -> 7483589
A77: Halls | C77: 0 | D77: 3869217 | E77: 4689217 | F77: 390486.01 | G77: 3123888.08 | H77: 2743480 | I77: -380408.08 | J77: -0.1386589587 | K77: 4689217
A78: Centres | I78: 0
A79: Crèches | I79: 0
A80: Clinics/Care Centres | C80: 0 | D80: 240350 | E80: 240350 | F80: 18759.84 | G80: 150078.65 | H80: 160232 | I80: 10153.35 | J80: 0.06336655599 | K80: 240350
A81: Fire/Ambulance Stations | I81: 0
A82: Testing Stations | C82: 0 | D82: 361048 | E82: 311048 | F82: 25338.65 | G82: 202709.2 | H82: 230696 | I82: 27986.8 | J82: 0.1213146305 | K82: 311048
A83: Museums | I83: 0
A84: Galleries | I84: 0
A85: Theatres | I85: 0
A86: Libraries | C86: 0 | D86: 862648 | E86: 827648 | F86: 68871.89 | G86: 550975.12 | H86: 568096 | I86: 17120.88 | J86: 0.03013730074 | K86: 827648
A87: Cemeteries/Crematoria | C87: 0 | D87: 616550 | E87: 591550 | F87: 49160.77 | G87: 393286.16 | H87: 406032 | I87: 12745.84 | J87: 0.0313912204 | K87: 591550
A88: Police | I88: 0
A89: Purls | I89: 0
A90: Public Open Space | I90: 0
A91: Nature Reserves | I91: 0
A92: Public Ablution Facilities | I92: 0
A93: Markets | C93: 0 | D93: 82033 | E93: 78033 | F93: 6502.49 | G93: 52019.92 | H93: 53888 | I93: 1868.08 | J93: 0.03466597387 | K93: 78033
A94: Stalls | I94: 0
A95: Abattoirs | I95: 0
A96: Airports | I96: 0
A97: Taxi Ranks/Bus Terminals | C97: 0 | D97: 748743 | E97: 745743 | F97: 62086.86 | G97: 496694.88 | H97: 498560 | I97: 1865.12 | J97: 0.003741014121 | K97: 745743
A98: Capital Spares | I98: 0
A99: Sport and Recreation Facilities | C99: =SUM(C100:C102) -> 0 | D99: 940500 | E99: 1220500 | F99: 101457.12 | G99: 811656.97 | H99: 683000 | I99: -128656.97 | J99: -0.1883703807 | K99: =SUM(K100:K102) -> 1220500
A100: Indoor Facilities | I100: 0
A101: Outdoor Facilities | C101: 0 | D101: 940500 | E101: 1220500 | F101: 101457.12 | G101: 811656.97 | H101: 683000 | I101: =H101-G101 -> -128656.97 | J101: =IF(I101=0,"",I101/H101) -> -0.1883703807 | K101: 1220500
A102: Capital Spares | I102: 0
A103: Heritage assets | C103: =SUM(C104:C108) -> 0 | D103: 0 | E103: 0 | F103: 0 | G103: 0 | H103: 0 | I103: 0 | K103: =SUM(K104:K108) -> 0
A104: Monuments | I104: 0
A105: Historic Buildings | I105: 0
A106: Works of Art | I106: 0
A107: Conservation Areas | I107: 0
A108: Other Heritage | I108: 0
I109: 0
A110: Investment properties | C110: =+C111+C114 -> 0 | D110: 0 | E110: 0 | F110: 0 | G110: 0 | H110: 0 | I110: 0 | K110: =+K111+K114 -> 0
A111: Revenue Generating | C111: =SUM(C112:C113) -> 0 | D111: 0 | E111: 0 | F111: 0 | G111: 0 | H111: 0 | I111: 0 | K111: =SUM(K112:K113) -> 0
A112: Improved Property | C112: 0 | D112: 0 | E112: 0 | F112: 0 | G112: 0 | H112: 0 | I112: 0 | K112: 0
A113: Unimproved Property | C113: 0 | D113: 0 | E113: 0 | F113: 0 | G113: 0 | H113: 0 | I113: 0 | K113: 0
A114: Non-revenue Generating | C114: =SUM(C115:C116) -> 0 | D114: 0 | E114: 0 | F114: 0 | G114: 0 | H114: 0 | I114: 0 | K114: =SUM(K115:K116) -> 0
A115: Improved Property | I115: 0
A116: Unimproved Property | I116: =H116-G116 -> 0 | J116: =IF(I116=0,"",I116/H116) -> 
A117: Other assets | C117: =+C118+C130 -> 0 | D117: 9243179 | E117: 3093179 | F117: 256863.51 | G117: 2054908.08 | H117: 4932120 | I117: 2877211.92 | J117: 0.583362108 | K117: =+K118+K130 -> 3093179
A118: Operational Buildings | C118: =SUM(C119:C129) -> 0 | D118: 9243179 | E118: 3093179 | F118: 256863.51 | G118: 2054908.08 | H118: 4932120 | I118: 2877211.92 | J118: 0.583362108 | K118: =SUM(K119:K129) -> 3093179
A119: Municipal Offices | C119: 0 | D119: 9243179 | E119: 3093179 | F119: 256863.51 | G119: 2054908.08 | H119: 4932120 | I119: 2877211.92 | J119: 0.583362108 | K119: 3093179
A120: Pay/Enquiry Points | I120: 0
A121: Building Plan Offices | I121: 0
A122: Workshops | I122: 0
A123: Yards | I123: 0
A124: Stores | I124: 0
A125: Laboratories | I125: 0
A126: Training Centres | I126: 0
A127: Manufacturing Plant | I127: 0
A128: Depots | I128: 0
A129: Capital Spares | I129: 0
A130: Housing | C130: =SUM(C131:C133) -> 0 | D130: 0 | E130: 0 | F130: 0 | G130: 0 | H130: 0 | I130: 0 | K130: =SUM(K131:K133) -> 0
A131: Staff Housing | I131: 0
A132: Social Housing | I132: 0
A133: Capital Spares | I133: 0
A135: Biological or Cultivated Assets | C135: =SUM(C136:C136) -> 0 | D135: 0 | E135: 0 | F135: 0 | G135: 0 | H135: 0 | I135: =H135-G135 -> 0 | K135: =SUM(K136) -> 0
A136: Biological or Cultivated Assets | I136: =H136-G136 -> 0
J137: =IF(I137=0,"",I137/H137) -> 
A138: Intangible Assets | C138: =SUM(C139:C140) -> 0 | D138: 30194 | E138: 150194 | F138: 0 | G138: 0 | H138: 44128 | I138: =H138-G138 -> 44128 | J138: 1 | K138: =SUM(K139:K140) -> 150194
A139: Servitudes | I139: 0
A140: Licences and Rights | C140: =SUM(C141:C146) -> 0 | D140: 30194 | E140: 150194 | F140: 0 | G140: 0 | H140: 44128 | I140: 44128 | J140: 1 | K140: =SUM(K141:K146) -> 150194
A141: Water Rights | I141: 0
A142: Effluent Licenses | I142: 0
A143: Solid Waste Licenses | I143: 0
A144: Computer Software and Applications | C144: 0 | D144: 30194 | E144: 150194 | F144: 0 | G144: 0 | H144: 44128 | I144: 44128 | J144: 1 | K144: 150194
A145: Load Settlement Software Applications | I145: 0
A146: Unspecified | I146: 0
A148: Computer Equipment | C148: =SUM(C149:C149) -> 0 | D148: 1641267 | E148: 311267 | F148: 25653.69 | G148: 204248.29 | H148: 828176 | I148: =H148-G148 -> 623927.71 | J148: =IF(I148=0,"",I148/H148) -> 0.7533757438 | K148: =SUM(K149) -> 311267
A149: Computer Equipment | C149: 0 | D149: 1641267 | E149: 311267 | F149: 25653.69 | G149: 204248.29 | H149: 828176 | I149: =H149-G149 -> 623927.71 | J149: =IF(I149=0,"",I149/H149) -> 0.7533757438 | K149: 311267
A151: Furniture and Office Equipment | C151: =SUM(C152:C152) -> 13577.88 | D151: 1216019 | E151: 316019 | F151: 24767.57 | G151: 198140.57 | H151: 630680 | I151: =H151-G151 -> 432539.43 | J151: =IF(I151=0,"",I151/H151) -> 0.6858302626 | K151: =SUM(K152) -> 316019
A152: Furniture and Office Equipment | C152: 13577.88 | D152: 1216019 | E152: 316019 | F152: 24767.57 | G152: 198140.57 | H152: 630680 | I152: =H152-G152 -> 432539.43 | J152: =IF(I152=0,"",I152/H152) -> 0.6858302626 | K152: 316019
J153: =IF(I153=0,"",I153/H153) -> 
A154: Machinery and Equipment | C154: =SUM(C155:C155) -> 0 | D154: 2801139 | E154: 101139 | F154: 4848.88 | G154: 37938.82 | H154: 1327424 | I154: =H154-G154 -> 1289485.18 | J154: =IF(I154=0,"",I154/H154) -> 0.971419215 | K154: =SUM(K155) -> 101139
A155: Machinery and Equipment | C155: 0 | D155: 2801139 | E155: 101139 | F155: 4848.88 | G155: 37938.82 | H155: 1327424 | I155: =H155-G155 -> 1289485.18 | J155: =IF(I155=0,"",I155/H155) -> 0.971419215 | K155: 101139
A157: Transport Assets | C157: =SUM(C158:C158) -> 0 | D157: 2009447 | E157: 3134447 | F157: 260888.36 | G157: 2087107.15 | H157: 1564632 | I157: =H157-G157 -> -522475.15 | J157: =IF(I157=0,"",I157/H157) -> -0.3339284573 | K157: =SUM(K158) -> 3134447
A158: Transport Assets | C158: 0 | D158: 2009447 | E158: 3134447 | F158: 260888.36 | G158: 2087107.15 | H158: 1564632 | I158: =H158-G158 -> -522475.15 | J158: =IF(I158=0,"",I158/H158) -> -0.3339284573 | K158: 3134447
A160: Land | C160: =SUM(C161:C161) -> 0 | D160: 0 | E160: 0 | F160: 0 | G160: 0 | H160: 0 | I160: =H160-G160 -> 0 | J160: =IF(I160=0,"",I160/H160) ->  | K160: =SUM(K161) -> 0
A161: Land | I161: =H161-G161 -> 0 | J161: =IF(I161=0,"",I161/H161) -> 
A163: Zoo's, Marine and Non-biological Animals | C163: =SUM(C164:C164) -> 0 | D163: 0 | E163: 0 | F163: 0 | G163: 0 | H163: 0 | I163: =H163-G163 -> 0 | J163: =IF(I163=0,"",I163/H163) ->  | K163: =SUM(K164) -> 0
A164: Zoo's, Marine and Non-biological Animals | I164: =H164-G164 -> 0 | J164: =IF(I164=0,"",I164/H164) -> 
J165: =IF(I165=0,"",I165/H165) -> 
A166: Total Depreciation | B166: 1 | C166: =C7+C75+C103+C110+C117+C135+C138+C148+C151+C154+C157+C160+C163 -> 13577.88 | D166: 32261244 | E166: 32261244 | F166: 2447456.92 | G166: 19577822.15 | H166: 21507488 | I166: 1929665.85 | J166: 0.08972065217 | K166: =K7+K75+K103+K110+K117+K135+K138+K148+K151+K154+K157+K160+K163 -> 32261244

Sheet SC13e
A1: =muni& " - "&S71Se& " - "&Head57 -> LIM355 Lepelle-Nkumpi - Supporting Table SC13e Monthly Budget Statement - capital expenditure on upgrading of existing assets by asset class - M08 February
A2: =desc -> Description | B2: =head27 -> Ref | C2: =Head1 -> 2019/20 | D2: =Head2 -> Budget Year 2020/21
C3: =Head5 -> Audited Outcome | D3: =Head6 -> Original Budget | E3: =Head7 -> Adjusted Budget | F3: =Head38 -> Monthly actual | G3: =Head39 -> YearTD actual | H3: =Head40 -> YearTD budget | I3: =Head41 -> YTD variance | J3: =Head41 -> YTD variance | K3: =Head8 -> Full Year Forecast
A4: R thousands | B4: 1 | J4: %
A5: Capital expenditure on upgrading of existing assets by Asset Class/Sub-class
A7: Infrastructure | C7: =C8+C13+C17+C27+C38+C45+C53+C63+C69 -> 720.11 | D7: 0 | E7: 7400000 | F7: 2785248.19 | G7: 2785248.19 | H7: 1480000 | I7: =H7-G7 -> -1305248.19 | J7: =IF(I7=0,"",I7/H7) -> -0.8819244527 | K7: =K8+K13+K17+K27+K38+K45+K53+K63+K69 -> 7400000
A8: Roads Infrastructure | C8: =SUM(C9:C12) -> 0 | D8: 0 | E8: 7400000 | F8: 2785248.19 | G8: 2785248.19 | H8: 1480000 | I8: -1305248.19 | J8: -0.8819244527 | K8: =SUM(K9:K12) -> 7400000
A9: Roads | C9: 0 | D9: 0 | E9: 7400000 | F9: 2785248.19 | G9: 2785248.19 | H9: 1480000 | I9: -1305248.19 | J9: -0.8819244527 | K9: 7400000
A10: Road Structures | C10: 0 | D10: 0 | E10: 0 | F10: 0 | G10: 0 | H10: 0 | I10: 0 | K10: 0
A11: Road Furniture | I11: 0
A12: Capital Spares | I12: 0
A13: Storm water Infrastructure | C13: =SUM(C14:C16) -> 720.11 | D13: 0 | E13: 0 | F13: 0 | G13: 0 | H13: 0 | I13: 0 | K13: =SUM(K14:K16) -> 0
A14: Drainage Collection | I14: 0
A15: Storm water Conveyance | C15: 720.11 | D15: 0 | E15: 0 | F15: 0 | G15: 0 | H15: 0 | I15: 0 | K15: 0
A16: Attenuation | I16: 0
A17: Electrical Infrastructure | C17: =SUM(C18:C26) -> 0 | D17: 0 | E17: 0 | F17: 0 | G17: 0 | H17: 0 | I17: 0 | K17: =SUM(K18:K26) -> 0
A18: Power Plants | I18: 0
A19: HV Substations | I19: 0
A20: HV Switching Station | I20: 0
A21: HV Transmission Conductors | I21: 0
A22: MV Substations | I22: 0
A23: MV Switching Stations | I23: 0
A24: MV Networks | C24: 0 | D24: 0 | E24: 0 | F24: 0 | G24: 0 | H24: 0 | I24: 0 | K24: 0
A25: LV Networks | I25: 0
A26: Capital Spares | I26: 0
A27: Water Supply Infrastructure | C27: =SUM(C28:C37) -> 0 | D27: 0 | E27: 0 | F27: 0 | G27: 0 | H27: 0 | I27: 0 | K27: =SUM(K28:K37) -> 0
A28: Dams and Weirs | I28: 0
A29: Boreholes | I29: 0
A30: Reservoirs | I30: 0
A31: Pump Stations | I31: 0
A32: Water Treatment Works | I32: 0
A33: Bulk Mains | I33: 0
A34: Distribution | I34: 0
A35: Distribution Points | I35: 0
A36: PRV Stations | I36: 0
A37: Capital Spares | I37: 0
A38: Sanitation Infrastructure | C38: =SUM(C39:C44) -> 0 | D38: 0 | E38: 0 | F38: 0 | G38: 0 | H38: 0 | I38: 0 | K38: =SUM(K39:K44) -> 0
A39: Pump Station | I39: 0
A40: Reticulation | I40: 0
A41: Waste Water Treatment Works | I41: 0
A42: Outfall Sewers | I42: 0
A43: Toilet Facilities | I43: 0
A44: Capital Spares | I44: 0
A45: Solid Waste Infrastructure | C45: =SUM(C46:C52) -> 0 | D45: 0 | E45: 0 | F45: 0 | G45: 0 | H45: 0 | I45: 0 | K45: =SUM(K46:K52) -> 0
A46: Landfill Sites | I46: 0
A47: Waste Transfer Stations | I47: 0
A48: Waste Processing Facilities | I48: 0
A49: Waste Drop-off Points | I49: 0
A50: Waste Separation Facilities | I50: 0
A51: Electricity Generation Facilities | I51: 0
A52: Capital Spares | I52: 0
A53: Rail Infrastructure | C53: =SUM(C54:C62) -> 0 | D53: 0 | E53: 0 | F53: 0 | G53: 0 | H53: 0 | I53: 0 | K53: =SUM(K54:K62) -> 0
A54: Rail Lines | I54: 0
A55: Rail Structures | I55: 0
A56: Rail Furniture | I56: 0
A57: Drainage Collection | I57: 0
A58: Storm water Conveyance | I58: 0
A59: Attenuation | I59: 0
A60: MV Substations | I60: 0
A61: LV Networks | I61: 0
A62: Capital Spares | I62: 0
A63: Coastal Infrastructure | C63: =SUM(C64:C68) -> 0 | D63: 0 | E63: 0 | F63: 0 | G63: 0 | H63: 0 | I63: 0 | K63: =SUM(K64:K68) -> 0
A64: Sand Pumps | I64: 0
A65: Piers | I65: 0
A66: Revetments | I66: 0
A67: Promenades | I67: 0
A68: Capital Spares | I68: 0
A69: Information and Communication Infrastructure | C69: =SUM(C70:C73) -> 0 | D69: 0 | E69: 0 | F69: 0 | G69: 0 | H69: 0 | I69: 0 | K69: =SUM(K70:K73) -> 0
A70: Data Centres | I70: 0
A71: Core Layers | I71: 0
A72: Distribution Layers | I72: 0
A73: Capital Spares | I73: 0
A75: Community Assets | C75: =+C76+C99 -> 0 | D75: 0 | E75: 0 | F75: 0 | G75: 0 | H75: 0 | I75: 0 | K75: =+K76+K99 -> 0
A76: Community Facilities | C76: =SUM(C77:C98) -> 0 | D76: 0 | E76: 0 | F76: 0 | G76: 0 | H76: 0 | I76: 0 | K76: =SUM(K77:K98) -> 0
A77: Halls | I77: 0
A78: Centres | I78: 0
A79: Crèches | I79: 0
A80: Clinics/Care Centres | I80: 0
A81: Fire/Ambulance Stations | I81: 0
A82: Testing Stations | I82: 0
A83: Museums | I83: 0
A84: Galleries | I84: 0
A85: Theatres | I85: 0
A86: Libraries | I86: 0
A87: Cemeteries/Crematoria | I87: 0
A88: Police | I88: 0
A89: Purls | C89: 0 | D89: 0 | E89: 0 | F89: 0 | G89: 0 | H89: 0 | I89: 0 | K89: 0
A90: Public Open Space | I90: 0
A91: Nature Reserves | I91: 0
A92: Public Ablution Facilities | I92: 0
A93: Markets | I93: 0
A94: Stalls | I94: 0
A95: Abattoirs | I95: 0
A96: Airports | I96: 0
A97: Taxi Ranks/Bus Terminals | I97: 0
A98: Capital Spares | I98: 0
A99: Sport and Recreation Facilities | C99: =SUM(C100:C102) -> 0 | D99: 0 | E99: 0 | F99: 0 | G99: 0 | H99: 0 | I99: 0 | K99: =SUM(K100:K102) -> 0
A100: Indoor Facilities | I100: 0
A101: Outdoor Facilities | C101: 0 | D101: 0 | E101: 0 | F101: 0 | G101: 0 | H101: 0 | I101: =H101-G101 -> 0 | J101: =IF(I101=0,"",I101/H101) ->  | K101: 0
A102: Capital Spares | I102: 0
A103: Heritage assets | C103: =SUM(C104:C108) -> 0 | D103: 0 | E103: 0 | F103: 0 | G103: 0 | H103: 0 | I103: 0 | K103: =SUM(K104:K108) -> 0
A104: Monuments | I104: 0
A105: Historic Buildings | I105: 0
A106: Works of Art | I106: 0
A107: Conservation Areas | I107: 0
A108: Other Heritage | I108: 0
I109: 0
A110: Investment properties | C110: =+C111+C114 -> 0 | D110: 0 | E110: 0 | F110: 0 | G110: 0 | H110: 0 | I110: 0 | K110: =+K111+K114 -> 0
A111: Revenue Generating | C111: =SUM(C112:C113) -> 0 | D111: 0 | E111: 0 | F111: 0 | G111: 0 | H111: 0 | I111: 0 | K111: =SUM(K112:K113) -> 0
A112: Improved Property | I112: 0
A113: Unimproved Property | I113: 0
A114: Non-revenue Generating | C114: =SUM(C115:C116) -> 0 | D114: 0 | E114: 0 | F114: 0 | G114: 0 | H114: 0 | I114: 0 | K114: =SUM(K115:K116) -> 0
A115: Improved Property | I115: 0
A116: Unimproved Property | I116: =H116-G116 -> 0 | J116: =IF(I116=0,"",I116/H116) -> 
A117: Other assets | C117: =+C118+C130 -> 0 | D117: 9600000 | E117: 9600000 | F117: 0 | G117: 0 | H117: 6400000 | I117: 6400000 | J117: 1 | K117: =+K118+K130 -> 9600000
A118: Operational Buildings | C118: =SUM(C119:C129) -> 0 | D118: 9600000 | E118: 9600000 | F118: 0 | G118: 0 | H118: 6400000 | I118: 6400000 | J118: 1 | K118: =SUM(K119:K129) -> 9600000
A119: Municipal Offices | C119: 0 | D119: 9600000 | E119: 9600000 | F119: 0 | G119: 0 | H119: 6400000 | I119: 6400000 | J119: 1 | K119: 9600000
A120: Pay/Enquiry Points | I120: 0
A121: Building Plan Offices | I121: 0
A122: Workshops | I122: 0
A123: Yards | I123: 0
A124: Stores | I124: 0
A125: Laboratories | I125: 0
A126: Training Centres | I126: 0
A127: Manufacturing Plant | I127: 0
A128: Depots | I128: 0
A129: Capital Spares | I129: 0
A130: Housing | C130: =SUM(C131:C133) -> 0 | D130: 0 | E130: 0 | F130: 0 | G130: 0 | H130: 0 | I130: 0 | K130: =SUM(K131:K133) -> 0
A131: Staff Housing | I131: 0
A132: Social Housing | I132: 0
A133: Capital Spares | I133: 0
A135: Biological or Cultivated Assets | C135: =SUM(C136:C136) -> 0 | D135: 0 | E135: 0 | F135: 0 | G135: 0 | H135: 0 | I135: =H135-G135 -> 0 | K135: =SUM(K136) -> 0
A136: Biological or Cultivated Assets | I136: =H136-G136 -> 0
J137: =IF(I137=0,"",I137/H137) -> 
A138: Intangible Assets | C138: =SUM(C139:C140) -> 0 | D138: 0 | E138: 0 | F138: 0 | G138: 0 | H138: 0 | I138: =H138-G138 -> 0 | K138: =SUM(K139:K140) -> 0
A139: Servitudes | I139: 0
A140: Licences and Rights | C140: =SUM(C141:C146) -> 0 | D140: 0 | E140: 0 | F140: 0 | G140: 0 | H140: 0 | I140: 0 | K140: =SUM(K141:K146) -> 0
A141: Water Rights | I141: 0
A142: Effluent Licenses | I142: 0
A143: Solid Waste Licenses | I143: 0
A144: Computer Software and Applications | I144: 0
A145: Load Settlement Software Applications | I145: 0
A146: Unspecified | I146: 0
A148: Computer Equipment | C148: =SUM(C149:C149) -> 0 | D148: 0 | E148: 0 | F148: 0 | G148: 0 | H148: 0 | I148: =H148-G148 -> 0 | J148: =IF(I148=0,"",I148/H148) ->  | K148: =SUM(K149) -> 0
A149: Computer Equipment | I149: =H149-G149 -> 0 | J149: =IF(I149=0,"",I149/H149) -> 
A151: Furniture and Office Equipment | C151: =SUM(C152:C152) -> 0 | D151: 0 | E151: 0 | F151: 0 | G151: 0 | H151: 0 | I151: =H151-G151 -> 0 | J151: =IF(I151=0,"",I151/H151) ->  | K151: =SUM(K152) -> 0
A152: Furniture and Office Equipment | I152: =H152-G152 -> 0 | J152: =IF(I152=0,"",I152/H152) -> 
J153: =IF(I153=0,"",I153/H153) -> 
A154: Machinery and Equipment | C154: =SUM(C155:C155) -> 0 | D154: 0 | E154: 0 | F154: 0 | G154: 0 | H154: 0 | I154: =H154-G154 -> 0 | J154: =IF(I154=0,"",I154/H154) ->  | K154: =SUM(K155) -> 0
A155: Machinery and Equipment | I155: =H155-G155 -> 0 | J155: =IF(I155=0,"",I155/H155) -> 
A157: Transport Assets | C157: =SUM(C158:C158) -> 0 | D157: 0 | E157: 0 | F157: 0 | G157: 0 | H157: 0 | I157: =H157-G157 -> 0 | J157: =IF(I157=0,"",I157/H157) ->  | K157: =SUM(K158) -> 0
A158: Transport Assets | I158: =H158-G158 -> 0 | J158: =IF(I158=0,"",I158/H158) -> 
A160: Land | C160: =SUM(C161:C161) -> 0 | D160: 0 | E160: 0 | F160: 0 | G160: 0 | H160: 0 | I160: =H160-G160 -> 0 | J160: =IF(I160=0,"",I160/H160) ->  | K160: =SUM(K161) -> 0
A161: Land | I161: =H161-G161 -> 0 | J161: =IF(I161=0,"",I161/H161) -> 
J162: .
A163: Zoo's, Marine and Non-biological Animals | C163: =SUM(C164:C164) -> 0 | D163: 0 | E163: 0 | F163: 0 | G163: 0 | H163: 0 | I163: =H163-G163 -> 0 | J163: =IF(I163=0,"",I163/H163) ->  | K163: =SUM(K164) -> 0
A164: Zoo's, Marine and Non-biological Animals | I164: =H164-G164 -> 0 | J164: =IF(I164=0,"",I164/H164) -> 
J165: =IF(I165=0,"",I165/H165) -> 
A166: Total Capital Expenditure on upgrading of existing assets | B166: 1 | C166: =C7+C75+C103+C110+C117+C135+C138+C148+C151+C154+C157+C160+C163 -> 720.11 | D166: 9600000 | E166: 17000000 | F166: 2785248.19 | G166: 2785248.19 | H166: 7880000 | I166: =H166-G166 -> 5094751.81 | J166: =IF(I166=0,"",I166/H166) -> 0.6465421079 | K166: =K7+K75+K103+K110+K117+K135+K138+K148+K151+K154+K157+K160+K163 -> 17000000
A168: =head27a -> References
A169: 1. Total Capital Expenditure on new assets (SC13a) plus Total Capital Expenditure on renewal of existing assets (SC13b) plus Total Capital Expenditure on upgrading of existing assets (SC13e) must reconcile to total capital expenditure in Table C5
A171: check balance | C171: =C166+SC13a!C166+SC13b!C166-'C5-Capex'!C40 -> 0 | D171: =D166+SC13a!D166+SC13b!D166-'C5-Capex'!D40 -> 0 | E171: =E166+SC13a!E166+SC13b!E166-'C5-Capex'!E40 -> 0 | F171: =F166+SC13a!F166+SC13b!F166-'C5-Capex'!F40 -> 0 | G171: =G166+SC13a!G166+SC13b!G166-'C5-Capex'!G40 -> 0 | H171: =H166+SC13a!H166+SC13b!H166-'C5-Capex'!H40 -> 0 | K171: =K166+SC13a!K166+SC13b!K166-'C5-Capex'!K40 -> 0

Sheet SC71charts
A1: ='Template names'!B102 -> Chart C1 2020/21 Capital Expenditure Monthly Trend: actual v target
A2: Month | B2: ='SC12'!B2 -> 2019/20 | C2: ='SC12'!C3 -> Original Budget | D2: ='SC12'!D3 -> Adjusted Budget | E2: ='SC12'!E3 -> Monthly actual
A3: =LEFT('SC12'!A6,3) -> Jul | B3: ='SC12'!B6 -> 0 | C3: ='SC12'!C6 -> 11222354.19 | D3: ='SC12'!D6 -> 11222357 | E3: ='SC12'!E6 -> 0
A4: =LEFT('SC12'!A7,3) -> Aug | B4: ='SC12'!B7 -> 0 | C4: ='SC12'!C7 -> 11222354.19 | D4: ='SC12'!D7 -> 11222357 | E4: ='SC12'!E7 -> 2762389.24
A5: =LEFT('SC12'!A8,3) -> Sep | B5: ='SC12'!B8 -> 0 | C5: ='SC12'!C8 -> 11222354.19 | D5: ='SC12'!D8 -> 13874357 | E5: ='SC12'!E8 -> 3884812.03
A6: =LEFT('SC12'!A9,3) -> Oct | B6: ='SC12'!B9 -> 0 | C6: ='SC12'!C9 -> 11222354.19 | D6: ='SC12'!D9 -> 13874357 | E6: ='SC12'!E9 -> 529086.29
A7: =LEFT('SC12'!A10,3) -> Nov | B7: ='SC12'!B10 -> 0 | C7: ='SC12'!C10 -> 11222354.19 | D7: ='SC12'!D10 -> 13874357 | E7: ='SC12'!E10 -> 8750004.21
A8: =LEFT('SC12'!A11,3) -> Dec | B8: ='SC12'!B11 -> 0 | C8: ='SC12'!C11 -> 11222354.19 | D8: ='SC12'!D11 -> 13874357 | E8: ='SC12'!E11 -> 4221519.49
A9: =LEFT('SC12'!A12,3) -> Jan | B9: ='SC12'!B12 -> 0 | C9: ='SC12'!C12 -> 11222354.19 | D9: ='SC12'!D12 -> 13874357 | E9: ='SC12'!E12 -> 511017.16
A10: =LEFT('SC12'!A13,3) -> Feb | B10: ='SC12'!B13 -> 0 | C10: ='SC12'!C13 -> 11222354.19 | D10: ='SC12'!D13 -> 14540665 | E10: ='SC12'!E13 -> 1777210.5
A11: =LEFT('SC12'!A14,3) -> Mar | B11: ='SC12'!B14 -> 0 | C11: ='SC12'!C14 -> 11222354.19 | D11: ='SC12'!D14 -> 14540665 | E11: ='SC12'!E14 -> 0
A12: =LEFT('SC12'!A15,3) -> Apr | B12: ='SC12'!B15 -> 0 | C12: ='SC12'!C15 -> 11222354.19 | D12: ='SC12'!D15 -> 14540665 | E12: ='SC12'!E15 -> 0
A13: =LEFT('SC12'!A16,3) -> May | B13: ='SC12'!B16 -> 0 | C13: ='SC12'!C16 -> 11222354.19 | D13: ='SC12'!D16 -> 14540665 | E13: ='SC12'!E16 -> 0
A14: =LEFT('SC12'!A17,3) -> Jun | B14: ='SC12'!B17 -> 0 | C14: ='SC12'!C17 -> 11222353.91 | D14: ='SC12'!D17 -> 14540631 | E14: ='SC12'!E17 -> 0
A26: ='Template names'!B103 -> Chart C2 2020/21 Capital Expenditure: YTD actual v YTD target
A27: Month | B27: ='SC12'!F3 -> YearTD actual | C27: ='SC12'!G3 -> YearTD budget
A28: =LEFT('SC12'!A6,3) -> Jul | B28: ='SC12'!F6 ->  | C28: ='SC12'!G6 -> 11222357
A29: =LEFT('SC12'!A7,3) -> Aug | B29: ='SC12'!F7 ->  | C29: ='SC12'!G7 -> 22444714
A30: =LEFT('SC12'!A8,3) -> Sep | B30: ='SC12'!F8 ->  | C30: ='SC12'!G8 -> 36319071
A31: =LEFT('SC12'!A9,3) -> Oct | B31: ='SC12'!F9 ->  | C31: ='SC12'!G9 -> 50193428
A32: =LEFT('SC12'!A10,3) -> Nov | B32: ='SC12'!F10 ->  | C32: ='SC12'!G10 -> 64067785
A33: =LEFT('SC12'!A11,3) -> Dec | B33: ='SC12'!F11 ->  | C33: ='SC12'!G11 -> 77942142
A34: =LEFT('SC12'!A12,3) -> Jan | B34: ='SC12'!F12 ->  | C34: ='SC12'!G12 -> 91816499
A35: =LEFT('SC12'!A13,3) -> Feb | B35: ='SC12'!F13 ->  | C35: ='SC12'!G13 -> 106357164
A36: =LEFT('SC12'!A14,3) -> Mar | B36: ='SC12'!F14 ->  | C36: ='SC12'!G14 -> 120897829
A37: =LEFT('SC12'!A15,3) -> Apr | B37: ='SC12'!F15 ->  | C37: ='SC12'!G15 -> 135438494
A38: =LEFT('SC12'!A16,3) -> May | B38: ='SC12'!F16 ->  | C38: ='SC12'!G16 -> 149979159
A39: =LEFT('SC12'!A17,3) -> Jun | B39: ='SC12'!F17 ->  | C39: ='SC12'!G17 -> 164519790
A51: ='Template names'!B104 -> Chart C3 Aged Consumer Debtors Analysis
B52: ='SC3'!C3 -> 0-30 Days | C52: ='SC3'!D3 -> 31-60 Days | D52: ='SC3'!E3 -> 61-90 Days | E52: ='SC3'!F3 -> 91-120 Days | F52: ='SC3'!G3 -> 121-150 Dys | G52: ='SC3'!H3 -> 151-180 Dys | H52: ='SC3'!I3 -> 181 Dys-1 Yr | I52: ='SC3'!J3 -> Over 1Yr
A53: =Head2 -> Budget Year 2020/21 | B53: ='SC3'!C14 -> 0 | C53: ='SC3'!D14 -> 0 | D53: ='SC3'!E14 -> 0 | E53: ='SC3'!F14 -> 0 | F53: ='SC3'!G14 -> 0 | G53: ='SC3'!H14 -> 0 | H53: ='SC3'!I14 -> 0 | I53: ='SC3'!J14 -> 0
A54: =Head1 -> 2019/20 | B54: ='SC3'!C15 -> 0 | C54: ='SC3'!D15 -> 0 | D54: ='SC3'!E15 -> 0 | E54: ='SC3'!F15 -> 0 | F54: ='SC3'!G15 -> 0 | G54: ='SC3'!H15 -> 0 | H54: ='SC3'!I15 -> 0 | I54: ='SC3'!J15 -> 0
A76: ='Template names'!B105 -> Chart C4 Consumer Debtors (total by Debtor Customer Category)
B77: =Head1 -> 2019/20 | C77: =Head2 -> Budget Year 2020/21
A78: ='SC3'!A17 -> Organs of State | B78: =C78*0.97 -> 0 | C78: ='SC3'!K17 -> 0
A79: ='SC3'!A18 -> Commercial | B79: =C79*0.97 -> 0 | C79: ='SC3'!K18 -> 0
A80: ='SC3'!A19 -> Households | B80: =C80*0.97 -> 0 | C80: ='SC3'!K19 -> 0
A81: ='SC3'!A20 -> Other | B81: =C81*0.97 -> 0 | C81: ='SC3'!K20 -> 0
A101: ='Template names'!B106 -> Chart C5 Aged Creditors Analysis
B102: ='SC4'!A6 -> Bulk Electricity | C102: ='SC4'!A7 -> Bulk Water | D102: ='SC4'!A8 -> PAYE deductions | E102: ='SC4'!A9 -> VAT (output less input) | F102: ='SC4'!A10 -> Pensions / Retirement deductions | G102: ='SC4'!A11 -> Loan repayments | H102: ='SC4'!A12 -> Trade Creditors | I102: ='SC4'!A13 -> Auditor General | J102: ='SC4'!A14 -> Other
A103: =A54 -> 2019/20 | B103: ='SC4'!L6 -> 0 | C103: ='SC4'!L7 -> 0 | D103: ='SC4'!L8 -> 0 | E103: ='SC4'!L9 -> 0 | F103: ='SC4'!L10 -> 0 | G103: ='SC4'!L11 -> 0 | H103: ='SC4'!L12 -> 0 | I103: ='SC4'!L13 -> 0 | J103: ='SC4'!L14 -> 0
A104: =A53 -> Budget Year 2020/21 | B104: ='SC4'!K6 -> 0 | C104: ='SC4'!K7 -> 0 | D104: ='SC4'!K8 -> 0 | E104: ='SC4'!K9 -> 0 | F104: ='SC4'!K10 -> 0 | G104: ='SC4'!K11 -> 0 | H104: ='SC4'!K12 -> 0 | I104: ='SC4'!K13 -> 0 | J104: ='SC4'!K14 -> 0
